Workbook

Sheet General
B1: Módulo de Ingreso de Información
B5: Código
B6: Nombre | E6: Permisos Ambiental obtenida
B7: Fecha Radicación
B8: Hora Radicación
B9: Capacidad (MW)
B10: Tecnología | E10: Costo Activos de Uso ($COP)
B11: Barra 1 | E11: Delta pérdidas (GWh)
B12: Código Asociado | E12: Reducción Marginal VPN ($COP)
B13: FPO
B14: FPO 2
B15: Obligaciones
B16: Requiere Expansión
B17: Área Eléctrica

Sheet Tablas
B1: Tecnologia | C1: Factor de planta | D1: Iflex | E1: IE-RP | F1: Factor ENFICC | G1: Factor emisiones | H1: Oferta promedio | I1: Comentarios | J1: Area Eléctrica | N1: FPO | P1: Fecha Radicacion | Q1: Hora Radicacion | S1: Gestion Ambiental | U1: Consulta Previa | W1: Permiso Arquelogico
B2: Solar FV | C2: 0.26 | D2: 0 | E2: 0.3190502279 | F2: 0.15 | G2: 0 | H2: 83577.2 | I2: Los parámetros fueron calculados conforme a la metodología presentada en la Circular UPME 057 de 2022. | J2: Altántico | L2: SI | N2: 2023-01-01 | P2: 2022-01-01 | Q2: 00:00:00 | S2: No hay avances | U2: No hay avances | W2: No hay avances
B3: Eólico Onshore | C3: 0.57 | D3: 0 | E3: 0.3190502279 | F3: 0.06 | G3: 0 | H3: 83577.2 | I3: Los parámetros fueron calculados conforme a la metodología presentada en la Circular UPME 057 de 2022. | J3: Bolívar | L3: NO | N3: 2037-12-31 | P3: 2022-03-31 | Q3: 23:59:59 | S3: EIA | U3: Resolución. No Procede | W3: Aprobado
B4: Eólico Offshore | C4: 0.57 | D4: 0 | E4: 0.3190502279 | F4: 0.06 | G4: 0 | H4: 83577.2 | I4: Los parámetros fueron calculados conforme a la metodología presentada en la Circular UPME 057 de 2022. | J4: Córdoba - Sucre, Chinú | S4: LA | U4: Resolución. Si Procede | W4: No Aplica
B5: Biomasa y Residuos | C5: 0.7 | D5: 0.25 | E5: 0.3190502279 | F5: 0.83 | G5: 0.37 | H5: 83577.2 | I5: Los parámetros fueron calculados conforme a la metodología presentada en la Circular UPME 057 de 2022. | J5: Córdoba - Sucre, Cerromatoso | S5: PA | U5: Finalizada
B6: Geotérmica | C6: 0.8 | D6: 0.25 | E6: 0.3190502279 | F6: 0.7 | G6: 0 | H6: 83577.2 | I6: Los parámetros fueron calculados conforme a la metodología presentada en la Circular UPME 057 de 2022. | J6: Guajira - Cesar - Madgalena | S6: No Aplica
B7: PCH | C7: 0.54 | D7: 0.61 | E7: 0.1550930337 | F7: 0.15 | G7: 0 | H7: 158280.5 | I7: Los parámetros fueron calculados conforme a la metodología presentada en la Circular UPME 057 de 2022. | J7: Santander
B8: Termica - Ciclo abierto | C8: 0.85 | D8: 0.4 | E8: -0.5761741581 | F8: 0.83 | G8: 0.95 | H8: 267152.5 | I8: Los parámetros fueron calculados conforme a la metodología presentada en la Circular UPME 057 de 2022. | J8: Norte de Santander
B9: Termica - Ciclo combinado | C9: 0.85 | D9: 0.27 | E9: -0.5761741581 | F9: 0.83 | G9: 0.95 | H9: 267152.5 | I9: Los parámetros fueron calculados conforme a la metodología presentada en la Circular UPME 057 de 2022. | J9: Boyacá - Casanare
B10: Termica a vapor | C10: 0.85 | D10: 0.25 | E10: -0.5761741581 | F10: 0.83 | G10: 0.37 | H10: 267152.5 | I10: Los parámetros fueron calculados conforme a la metodología presentada en la Circular UPME 057 de 2022. | J10: Arauca
B11: Termica - diesel | C11: 0.85 | D11: 0.6 | E11: -4.282826571 | F11: 0.83 | G11: 0.77 | H11: 709472.9 | I11: Los parámetros fueron calculados conforme a la metodología presentada en la Circular UPME 057 de 2022. | J11: Antioquia
B12: Hidraulica | C12: 0.6 | D12: 0.61 | E12: 0.1550930337 | F12: 0.31 | G12: 0 | H12: 158280.5 | I12: Los parámetros fueron calculados conforme a la metodología presentada en la Circular UPME 057 de 2022. | J12: Chocó
B13: Cogeneracion | C13: 0.85 | D13: 0.1 | E13: 0.3190502279 | F13: 0.83 | G13: 0.37 | H13: 83577.2 | I13: Los parámetros fueron calculados conforme a la metodología presentada en la Circular UPME 057 de 2022. | J13: Bogotá
J14: Meta - Guaviare
J15: Caldas - Quidio - Risaralda
J16: Valle
J17: Cauca - Nariño
J18: Tolima - Huila Caquetá
J19: Putumayo

Sheet InfoPro
A1: Código | B1: Nombre | C1: Fecha Radicación | D1: Hora Radicación | E1: Capacidad | F1: Tipo | G1: Barra 1 | H1: Código Asociado | I1: FPO | J1: FPO 2 | K1: Obligaciones | L1: Requiere Expansión | M1: Area Eléctrica | N1: Permisos Ambiental obtenida | O1: Costo Activos de Uso | P1: Pérdidas reportadas | Q1: orden | R1: fila
A2: SC_1373_A1 | B2: Pétalo del Magdalena II Guacamayal | C2: 2022-07-15 | D2: 44774.76667 | E2: 9.9 | F2: Solar FV | G2: Guacamayal 13.8 | H2: SC_1373 | I2: 2026-12-31 | J2: 2026-12-31 | K2: NO | L2: NO | M2: Guajira - Cesar - Madgalena | N2: NO | O2: 0 | P2: 0.58802 | Q2: 185 | R2: =IF(L2="NO",2,1) -> 2
A3: SC_1373_A2 | B3: Pétalo del Magdalena II Guacamayal | C3: 2022-07-15 | D3: 44774.76667 | E3: 9.9 | F3: Solar FV | G3: Guacamayal 34.5 | H3: SC_1373 | I3: 2026-12-31 | J3: 2026-12-31 | K3: NO | L3: NO | M3: Guajira - Cesar - Madgalena | N3: NO | O3: 0 | P3: 0.61403 | Q3: 184 | R3: 2
A4: SC_1012_A1 | B4: PARQUE SOLAR FOTOVOLTAICO TUNA | C4: 2022-07-15 | D4: 44757 | E4: 100 | F4: Solar FV | G4: San Juan 220 | H4: SC_1012 | I4: 2026-12-31 | J4: 2026-12-31 | K4: NO | L4: NO | M4: Guajira - Cesar - Madgalena | N4: NO | O4: 0 | P4: -13.02 | Q4: 85 | R4: 2
A5: SC_1012_A2 | B5: PARQUE SOLAR FOTOVOLTAICO TUNA | C5: 2022-07-15 | D5: 44757 | E5: 100 | F5: Solar FV | G5: Valledupar 220 | H5: SC_1012 | I5: 2026-12-31 | J5: 2026-12-31 | K5: NO | L5: NO | M5: Guajira - Cesar - Madgalena | N5: NO | O5: 0 | P5: -10.68 | Q5: 84 | R5: 2
A6: SC_1077_A1 | B6: Nevada I 90 MW | C6: 2022-07-18 | D6: 44760 | E6: 90 | F6: Eólico Onshore | G6: Cuestecita 220 II | H6: SC_1077 | I6: 2030-12-31 | J6: 2030-12-31 | K6: NO | L6: NO | M6: Guajira - Cesar - Madgalena | N6: NO | O6: 0 | P6: -5.698 | Q6: 148 | R6: 2
A7: SC_1077_A2 | B7: Nevada I 90 MW | C7: 2022-07-18 | D7: 44760 | E7: 90 | F7: Eólico Onshore | G7: Cuestecitas 500 | H7: SC_1077 | I7: 2030-12-31 | J7: 2030-12-31 | K7: NO | L7: NO | M7: Guajira - Cesar - Madgalena | N7: NO | O7: 0 | P7: -5.493 | Q7: 147 | R7: 2
A8: SC_1135_A1 | B8: Parque Eólico Brisas 1 | C8: 2022-07-18 | D8: 44760 | E8: 200 | F8: Eólico Onshore | G8: Colectora 2 500 kV | H8: SC_1135 | I8: 2028-12-31 | J8: 2028-12-31 | K8: NO | L8: SI | M8: Guajira - Cesar - Madgalena | N8: NO | O8: 0 | P8: -3.14 | Q8: 146 | R8: 1
A9: SC_1135_A2 | B9: Parque Eólico Brisas 1 | C9: 2022-07-18 | D9: 44760 | E9: 200 | F9: Eólico Onshore | G9: Colectora 1 Eolica 500 | H9: SC_1135 | I9: 2028-12-31 | J9: 2028-12-31 | K9: NO | L9: NO | M9: Guajira - Cesar - Madgalena | N9: NO | O9: 0 | P9: -12.42 | Q9: 145 | R9: 2
A10: SC_1154_A1 | B10: Parque Eólico Brisas 2 | C10: 2022-07-18 | D10: 44760 | E10: 200 | F10: Eólico Onshore | G10: Colectora 2 500 kV | H10: SC_1154 | I10: 2029-12-31 | J10: 2029-12-31 | K10: NO | L10: SI | M10: Guajira - Cesar - Madgalena | N10: NO | O10: 0 | P10: -7.9 | Q10: 144 | R10: 1
A11: SC_1154_A2 | B11: Parque Eólico Brisas 2 | C11: 2022-07-18 | D11: 44760 | E11: 200 | F11: Eólico Onshore | G11: Colectora 1 Eolica 500 | H11: SC_1154 | I11: 2029-12-31 | J11: 2029-12-31 | K11: NO | L11: SI | M11: Guajira - Cesar - Madgalena | N11: NO | O11: 0 | P11: -12.55 | Q11: 143 | R11: 1
A12: SC_1161_A1 | B12: Parque Eólico Brisas 3 | C12: 2022-07-18 | D12: 44760 | E12: 200 | F12: Eólico Onshore | G12: Colectora 2 500 kV | H12: SC_1161 | I12: 2030-12-31 | J12: 2030-12-31 | K12: NO | L12: SI | M12: Guajira - Cesar - Madgalena | N12: NO | O12: 0 | P12: -8.43 | Q12: 142 | R12: 1
A13: SC_1161_A2 | B13: Parque Eólico Brisas 3 | C13: 2022-07-18 | D13: 44760 | E13: 200 | F13: Eólico Onshore | G13: Colectora 1 Eolica 500 | H13: SC_1161 | I13: 2030-12-31 | J13: 2030-12-31 | K13: NO | L13: SI | M13: Guajira - Cesar - Madgalena | N13: NO | O13: 0 | P13: -12.59 | Q13: 141 | R13: 1
A14: SC_1211_A1 | B14: Planta Solar FV Caracolicitos 69MW | C14: 2022-07-18 | D14: 44760 | E14: 69 | F14: Solar FV | G14: Copey 110 | H14: SC_1211 | I14: 2026-12-31 | J14: 2026-12-31 | K14: NO | L14: NO | M14: Guajira - Cesar - Madgalena | N14: NO | O14: 0 | P14: -0.91855 | Q14: 140 | R14: 2
A15: SC_1211_A2 | B15: Planta Solar FV Caracolicitos 69MW | C15: 2022-07-18 | D15: 44760 | E15: 69 | F15: Solar FV | G15: Copey 220 | H15: SC_1211 | I15: 2026-12-31 | J15: 2026-12-31 | K15: NO | L15: NO | M15: Guajira - Cesar - Madgalena | N15: NO | O15: 0 | P15: -1.21771 | Q15: 139 | R15: 2
A16: SC_1218_A1 | B16: Las Flores 150 MW | C16: 2022-01-22T09:23:00 | D16: 44583.39097 | E16: 150 | F16: Solar FV | G16: Codazzi GCM 110 | H16: SC_1218 | I16: 2025-12-31 | J16: 2025-12-31 | K16: NO | L16: SI | M16: Guajira - Cesar - Madgalena | N16: NO | O16: 34545310000 | P16: -19.74773 | Q16: 5 | R16: 1
A17: SC_1223_A1 | B17: Parque Eolico Sirius | C17: 2022-07-15 | D17: 44757 | E17: 100 | F17: Eólico Onshore | G17: San Juan 220 | H17: SC_1223 | I17: 2025-12-31 | J17: 2025-12-31 | K17: NO | L17: NO | M17: Guajira - Cesar - Madgalena | N17: NO | O17: 0 | P17: -15.44042 | Q17: 83 | R17: 2
A18: SC_1232_A1 | B18: La Paz Solar 9,9 MW | C18: 2022-07-15 | D18: 44757 | E18: 9.9 | F18: Solar FV | G18: La paz 13.8 | H18: SC_1232 | I18: 2025-12-31 | J18: 2025-12-31 | K18: NO | L18: NO | M18: Guajira - Cesar - Madgalena | N18: NO | O18: 0 | P18: 0.76152 | Q18: 82 | R18: 2
A19: SC_1232_A2 | B19: La Paz Solar 9,9 MW | C19: 2022-07-15 | D19: 44757 | E19: 9.9 | F19: Solar FV | G19: La paz 34.5 | H19: SC_1232 | I19: 2025-12-31 | J19: 2025-12-31 | K19: NO | L19: NO | M19: Guajira - Cesar - Madgalena | N19: NO | O19: 0 | P19: 0.77578 | Q19: 81 | R19: 2
A20: SC_1239_A1 | B20: El Carmen | C20: 2022-07-15 | D20: 44757 | E20: 104.5 | F20: Eólico Onshore | G20: San Juan 220 | H20: SC_1239 | I20: 2027-12-01 | J20: 2027-12-01 | K20: NO | L20: SI | M20: Guajira - Cesar - Madgalena | N20: NO | O20: 42787000000 | P20: -45.85635113 | Q20: 80 | R20: 1
A21: SC_1239_A2 | B21: El Carmen | C21: 2022-07-15 | D21: 44757 | E21: 104.5 | F21: Eólico Onshore | G21: San Juan 500 kV | H21: SC_1239 | I21: 2027-12-01 | J21: 2027-12-01 | K21: NO | L21: SI | M21: Guajira - Cesar - Madgalena | N21: NO | O21: 123083000000 | P21: -46.02699255 | Q21: 79 | R21: 1
A22: SC_1244_A1 | B22: Proyecto Maria | C22: 2022-07-17 | D22: 44759 | E22: 120 | F22: Eólico Onshore | G22: San Juan 220 | H22: SC_1244 | I22: 2026-12-31 | J22: 2026-12-31 | K22: NO | L22: NO | M22: Guajira - Cesar - Madgalena | N22: NO | O22: 0 | P22: -70.35 | Q22: 106 | R22: 2
A23: SC_1252_A1 | B23: Parque Eólico Neptuno | C23: 2022-07-15 | D23: 44757 | E23: 150 | F23: Eólico Onshore | G23: San Juan 220 | H23: SC_1252 | I23: 2026-12-31 | J23: 2026-12-31 | K23: NO | L23: SI | M23: Guajira - Cesar - Madgalena | N23: NO | O23: 40503820000 | P23: -25.3566 | Q23: 78 | R23: 1
A24: SC_1262_A1 | B24: Parque Solar Australe de 251 MW (entrega 200 MW) | C24: 2022-07-17 | D24: 44759 | E24: 200 | F24: Solar FV | G24: La Loma 500 | H24: SC_1262 | I24: 2026-11-19 | J24: 2026-11-19 | K24: NO | L24: NO | M24: Guajira - Cesar - Madgalena | N24: NO | O24: 0 | P24: -8.49 | Q24: 105 | R24: 2
A25: SC_1262_A2 | B25: Parque Solar Australe de 251 MW (entrega 200 MW) | C25: 2022-07-17 | D25: 44759 | E25: 200 | F25: Solar FV | G25: La Loma 110 | H25: SC_1262 | I25: 2026-11-19 | J25: 2026-11-19 | K25: NO | L25: NO | M25: Guajira - Cesar - Madgalena | N25: NO | O25: 0 | P25: -11.18 | Q25: 104 | R25: 2
A26: SC_1264_A1 | B26: Parque Solar Galus de 133 MW (entrega 110 MW) | C26: 2022-07-17 | D26: 44759 | E26: 110 | F26: Solar FV | G26: Copey 220 | H26: SC_1264 | I26: 2027-11-25 | J26: 2027-11-25 | K26: NO | L26: NO | M26: Guajira - Cesar - Madgalena | N26: NO | O26: 0 | P26: -6.63 | Q26: 103 | R26: 2
A27: SC_1264_A2 | B27: Parque Solar Galus de 133 MW (entrega 110 MW) | C27: 2022-07-17 | D27: 44759 | E27: 110 | F27: Solar FV | G27: Copey 110 | H27: SC_1264 | I27: 2027-11-25 | J27: 2027-11-25 | K27: NO | L27: NO | M27: Guajira - Cesar - Madgalena | N27: NO | O27: 0 | P27: -6.2 | Q27: 102 | R27: 2
A28: SC_1266_A1 | B28: Parque Solar Fornax DE 127 MW (Entrega 105 MW) | C28: 2022-07-17 | D28: 44759 | E28: 105 | F28: Solar FV | G28: Fundacion 220 | H28: SC_1266 | I28: 2027-11-30 | J28: 2027-11-30 | K28: NO | L28: NO | M28: Guajira - Cesar - Madgalena | N28: NO | O28: 0 | P28: -5.21 | Q28: 101 | R28: 2
A29: SC_1266_A2 | B29: Parque Solar Fornax DE 127 MW (Entrega 105 MW) | C29: 2022-07-17 | D29: 44759 | E29: 105 | F29: Solar FV | G29: Fundacion 110 | H29: SC_1266 | I29: 2027-11-30 | J29: 2027-11-30 | K29: NO | L29: NO | M29: Guajira - Cesar - Madgalena | N29: NO | O29: 0 | P29: -7.24 | Q29: 100 | R29: 2
A30: SC_1272_A1 | B30: Guacamayal Solar de 9,9 MW | C30: 2022-07-15 | D30: 44757 | E30: 9.9 | F30: Solar FV | G30: Guacamayal 34.5 | H30: SC_1272 | I30: 2024-12-31 | J30: 2024-12-31 | K30: NO | L30: NO | M30: Guajira - Cesar - Madgalena | N30: NO | O30: 0 | P30: 3.513 | Q30: 77 | R30: 2
A31: SC_1272_A2 | B31: Guacamayal Solar de 9,9 MW | C31: 2022-07-15 | D31: 44757 | E31: 9.9 | F31: Solar FV | G31: Guacamayal 13.8 | H31: SC_1272 | I31: 2024-12-31 | J31: 2024-12-31 | K31: NO | L31: NO | M31: Guajira - Cesar - Madgalena | N31: NO | O31: 0 | P31: 1.728 | Q31: 76 | R31: 2
A32: SC_1293_A1 | B32: Leo Solar II | C32: 2022-07-18 | D32: 44760 | E32: 80 | F32: Solar FV | G32: San Juan 220 | H32: SC_1293 | I32: 2025-06-30 | J32: 2025-06-30 | K32: NO | L32: NO | M32: Guajira - Cesar - Madgalena | N32: NO | O32: 0 | P32: -1.93 | Q32: 138 | R32: 2
A33: SC_1293_A2 | B33: Leo Solar II | C33: 2022-07-18 | D33: 44760 | E33: 80 | F33: Solar FV | G33: San Juan 110 | H33: SC_1293 | I33: 2025-06-30 | J33: 2025-06-30 | K33: NO | L33: NO | M33: Guajira - Cesar - Madgalena | N33: NO | O33: 0 | P33: -6.81 | Q33: 137 | R33: 2
A34: SC_1306_A1 | B34: Leo Solar I | C34: 2022-07-18 | D34: 44760 | E34: 19.9 | F34: Solar FV | G34: San Juan 110 | H34: SC_1306 | I34: 2025-06-30 | J34: 2025-06-30 | K34: NO | L34: NO | M34: Guajira - Cesar - Madgalena | N34: NO | O34: 0 | P34: -2.87 | Q34: 136 | R34: 2
A35: SC_1306_A2 | B35: Leo Solar I | C35: 2022-07-18 | D35: 44760 | E35: 19.9 | F35: Solar FV | G35: SAN JUAN 1 34.5 kV | H35: SC_1306 | I35: 2025-06-30 | J35: 2025-06-30 | K35: NO | L35: NO | M35: Guajira - Cesar - Madgalena | N35: NO | O35: 0 | P35: -2.7 | Q35: 135 | R35: 2
A36: SC_1311_A1 | B36: Elipse de 200 MW | C36: 2022-07-16T15:46:00 | D36: 44758.65694 | E36: 200 | F36: Eólico Onshore | G36: Cuestecitas 500 | H36: SC_1311 | I36: 2025-12-31 | J36: 2025-12-31 | K36: NO | L36: NO | M36: Guajira - Cesar - Madgalena | N36: NO | O36: 0 | P36: 9.872109 | Q36: 91 | R36: 2
A37: SC_1312_A1 | B37: Omega de 300 MW | C37: 2022-07-16T15:49:00 | D37: 44758.65903 | E37: 300 | F37: Eólico Onshore | G37: Cuestecitas 500 | H37: SC_1312 | I37: 2028-12-31 | J37: 2028-12-31 | K37: NO | L37: NO | M37: Guajira - Cesar - Madgalena | N37: NO | O37: 0 | P37: 18.305713 | Q37: 92 | R37: 2
A38: SC_1313_A1 | B38: Kappa de 500 MW | C38: 2022-07-16T15:50:00 | D38: 44758.65972 | E38: 500 | F38: Eólico Onshore | G38: Colectora 1 Eolica 500 | H38: SC_1313 | I38: 2027-12-31 | J38: 2027-12-31 | K38: NO | L38: NO | M38: Guajira - Cesar - Madgalena | N38: NO | O38: 0 | P38: 110.777796 | Q38: 93 | R38: 2
A39: SC_1315_A1 | B39: Parque Eólico Cordobita - 50MW | C39: 2022-07-31T15:53:00 | D39: 44773.66181 | E39: 50 | F39: Eólico Onshore | G39: Rio Cordoba 110 | H39: SC_1315 | I39: 2027-12-31 | J39: 2027-12-31 | K39: NO | L39: NO | M39: Guajira - Cesar - Madgalena | N39: NO | O39: 0 | P39: -0.02 | Q39: 174 | R39: 2
A40: SC_1315_A2 | B40: Parque Eólico Cordobita - 50MW | C40: 2022-07-31T15:53:00 | D40: 44773.66181 | E40: 50 | F40: Eólico Onshore | G40: Cienaga 110 | H40: SC_1315 | I40: 2027-12-31 | J40: 2027-12-31 | K40: NO | L40: NO | M40: Guajira - Cesar - Madgalena | N40: NO | O40: 0 | P40: -1.49 | Q40: 173 | R40: 2
A41: SC_1317_A1 | B41: EÓLICA BONDA - 70MW | C41: 2022-07-31T15:54:00 | D41: 44773.6625 | E41: 70 | F41: Eólico Onshore | G41: Termocol 220 | H41: SC_1317 | I41: 2027-12-31 | J41: 2027-12-31 | K41: NO | L41: NO | M41: Guajira - Cesar - Madgalena | N41: NO | O41: 0 | P41: -11 | Q41: 175 | R41: 2
A42: SC_1321_A1 | B42: OWF ASTROLABIO - 600 MW | C42: 2022-05-10T15:55:00 | D42: 44691.66319 | E42: 600 | F42: Eólico Offshore | G42: Cuestecitas 500 | H42: SC_1321 | I42: 2034-12-31 | J42: 2034-12-31 | K42: NO | L42: NO | M42: Guajira - Cesar - Madgalena | N42: NO | O42: 0 | P42: 0 | Q42: 14
A43: SC_1321_A2 | B43: OWF ASTROLABIO - 600 MW | C43: 2022-05-10T15:55:00 | D43: 44691.66319 | E43: 825 | F43: Eólico Offshore | G43: Colectora 1 Eolica 500 | H43: SC_1321 | I43: 2034-12-31 | J43: 2034-12-31 | K43: NO | L43: NO | M43: Guajira - Cesar - Madgalena | N43: NO | O43: 0 | P43: -174.94091 | Q43: 12 | R43: =IF(L43="NO",2,1) -> 2
A44: SC_1336_A1 | B44: AES Solar 4 | C44: 2022-07-15 | D44: 44757 | E44: 300 | F44: Solar FV | G44: La Loma 500 | H44: SC_1336 | I44: 2026-12-01 | J44: 2026-12-01 | K44: NO | L44: NO | M44: Guajira - Cesar - Madgalena | N44: NO | O44: 0 | P44: -24.83 | Q44: 75 | R44: 2
A45: SC_1336_A2 | B45: AES Solar 4 | C45: 2022-07-15 | D45: 44757 | E45: 300 | F45: Solar FV | G45: El Copey 500 | H45: SC_1336 | I45: 2026-12-01 | J45: 2026-12-01 | K45: NO | L45: NO | M45: Guajira - Cesar - Madgalena | N45: NO | O45: 0 | P45: -25.51 | Q45: 74 | R45: 2
A46: SC_1345_A1 | B46: Parque Eólico Jouttalein_150MW | C46: 2022-07-15 | D46: 44757 | E46: 150 | F46: Eólico Onshore | G46: Colectora 1 Eolica 500 | H46: SC_1345 | I46: 2025-12-31 | J46: 2025-12-31 | K46: NO | L46: NO | M46: Guajira - Cesar - Madgalena | N46: NO | O46: 0 | P46: -25.41 | Q46: 73 | R46: 2
A47: SC_1345_A2 | B47: Parque Eólico Jouttalein_150MW | C47: 2022-07-15 | D47: 44757 | E47: 150 | F47: Eólico Onshore | G47: Cuestecitas 500 | H47: SC_1345 | I47: 2025-12-31 | J47: 2025-12-31 | K47: NO | L47: NO | M47: Guajira - Cesar - Madgalena | N47: NO | O47: 0 | P47: -29.49 | Q47: 72 | R47: 2
A48: SC_1347_A1 | B48: AES Solar 5_100MW | C48: 2022-07-15 | D48: 44757 | E48: 100 | F48: Solar FV | G48: Cuestecitas 110 | H48: SC_1347 | I48: 2026-12-01 | J48: 2026-12-01 | K48: NO | L48: NO | M48: Guajira - Cesar - Madgalena | N48: NO | O48: 0 | P48: -13.14 | Q48: 71 | R48: 2
A49: SC_1347_A2 | B49: AES Solar 5_100MW | C49: 2022-07-15 | D49: 44757 | E49: 100 | F49: Solar FV | G49: Cuestecita 220 | H49: SC_1347 | I49: 2026-12-01 | J49: 2026-12-01 | K49: NO | L49: NO | M49: Guajira - Cesar - Madgalena | N49: NO | O49: 0 | P49: -13.09 | Q49: 70 | R49: 2
A50: SC_1355_A1 | B50: Barlovento 1 | C50: 2022-08-09T17:16:00 | D50: 44782.71944 | E50: 500 | F50: Eólico Offshore | G50: Colectora 2 500 kV | H50: SC_1355 | I50: 2034-12-31 | J50: 2034-12-31 | K50: NO | L50: SI | M50: Guajira - Cesar - Madgalena | N50: NO | O50: 3.41632547e+10 | P50: -97.83427 | Q50: 198 | R50: 1
A51: SC_1356_A1 | B51: Sol de Zawady 9,9 MW | C51: 2022-07-15 | D51: 44757 | E51: 9.9 | F51: Solar FV | G51: Zawady 13.8 | H51: SC_1356 | I51: 2024-12-31 | J51: 2024-12-31 | K51: NO | L51: NO | M51: Guajira - Cesar - Madgalena | N51: NO | O51: 0 | P51: -0.65 | Q51: 69 | R51: 2
A52: SC_1356_A2 | B52: Sol de Zawady 9,9 MW | C52: 2022-07-15 | D52: 44757 | E52: 9.9 | F52: Solar FV | G52: Zawady 34.5 | H52: SC_1356 | I52: 2024-12-31 | J52: 2024-12-31 | K52: NO | L52: NO | M52: Guajira - Cesar - Madgalena | N52: NO | O52: 0 | P52: -0.69 | Q52: 68 | R52: 2
A53: SC_1366_A1 | B53: PARQUE SOLAR TÁNGARA 100 MW | C53: 2022-07-15 | D53: 44757 | E53: 100 | F53: Solar FV | G53: Copey 220 | H53: SC_1366 | I53: 2026-12-31 | J53: 2026-12-31 | K53: NO | L53: NO | M53: Guajira - Cesar - Madgalena | N53: NO | O53: 0 | P53: -7.56 | Q53: 67 | R53: 2
A54: SC_1376_A1 | B54: Expansión La Loma I - 100 MW | C54: 2022-07-18T18:30:00 | D54: 44760.77083 | E54: 100 | F54: Solar FV | G54: La Loma 500 | H54: SC_1376 | I54: 2027-12-31 | J54: 2027-12-31 | K54: NO | L54: NO | M54: Guajira - Cesar - Madgalena | N54: NO | O54: 0 | P54: -5.06 | Q54: 152 | R54: 2
A55: SC_1376_A2 | B55: Expansión La Loma I - 100 MW | C55: 2022-07-18T18:30:00 | D55: 44760.77083 | E55: 100 | F55: Solar FV | G55: El Copey 500 | H55: SC_1376 | I55: 2027-12-31 | J55: 2027-12-31 | K55: NO | L55: NO | M55: Guajira - Cesar - Madgalena | N55: NO | O55: 0 | P55: -4.61 | Q55: 151 | R55: 2
A56: SC_1377_A1 | B56: Eólica Cordobita - 50MW | C56: 2022-08-01T18:31:00 | D56: 44774.77153 | E56: 50 | F56: Eólico Onshore | G56: Rio Cordoba 110 | H56: SC_1377 | I56: 2027-12-31 | J56: 2027-12-31 | K56: NO | L56: NO | M56: Guajira - Cesar - Madgalena | N56: NO | O56: 0 | P56: -0.02 | Q56: 187 | R56: 2
A57: SC_1377_A2 | B57: Eólica Cordobita - 50MW | C57: 2022-08-01T18:31:00 | D57: 44774.77153 | E57: 50 | F57: Eólico Onshore | G57: Cienaga 110 | H57: SC_1377 | I57: 2027-12-31 | J57: 2027-12-31 | K57: NO | L57: NO | M57: Guajira - Cesar - Madgalena | N57: NO | O57: 0 | P57: -1.49 | Q57: 186 | R57: 2
A58: SC_1380_A1 | B58: Parque Eólico Motosira | C58: 2022-07-17 | D58: 44759 | E58: 300 | F58: Eólico Onshore | G58: Colectora 1 Eolica 500 | H58: SC_1380 | I58: 2026-12-31 | J58: 2026-12-31 | K58: NO | L58: NO | M58: Guajira - Cesar - Madgalena | N58: NO | O58: 0 | P58: -167.37635 | Q58: 99 | R58: 2
A59: SC_1380_A2 | B59: Parque Eólico Motosira | C59: 2022-07-17 | D59: 44759 | E59: 300 | F59: Eólico Onshore | G59: Colectora 2 500 kV | H59: SC_1380 | I59: 2026-12-31 | J59: 2026-12-31 | K59: NO | L59: SI | M59: Guajira - Cesar - Madgalena | N59: NO | O59: 3.44518681e+12 | P59: -51.459 | Q59: 98 | R59: 1
A60: SC_1421_A1 | B60: Parque Solar Fotovoltaico SJ Solar 100 MW | C60: 2022-07-16 | D60: 44758 | E60: 100 | F60: Solar FV | G60: San Juan 220 | H60: SC_1421 | I60: 2026-12-31 | J60: 2026-12-31 | K60: NO | L60: NO | M60: Guajira - Cesar - Madgalena | N60: NO | O60: 0 | P60: -2.35 | Q60: 90 | R60: 2
A61: SC_1421_A2 | B61: Parque Solar Fotovoltaico SJ Solar 100 MW | C61: 2022-07-16 | D61: 44758 | E61: 100 | F61: Solar FV | G61: San Juan 110 | H61: SC_1421 | I61: 2026-12-31 | J61: 2026-12-31 | K61: NO | L61: NO | M61: Guajira - Cesar - Madgalena | N61: NO | O61: 0 | P61: -3.86 | Q61: 89 | R61: 2
A62: SC_1479_A1 | B62: Oslo I_150MW | C62: 2022-07-16 | D62: 44758 | E62: 150 | F62: Solar FV | G62: Fundacion 220 | H62: SC_1479 | I62: 2026-12-31 | J62: 2026-12-31 | K62: NO | L62: NO | M62: Guajira - Cesar - Madgalena | N62: NO | O62: 0 | P62: -69.49 | Q62: 88 | R62: 2
A63: SC_1479_A2 | B63: Oslo I_150MW | C63: 2022-07-16 | D63: 44758 | E63: 150 | F63: Solar FV | G63: Copey 220 | H63: SC_1479 | I63: 2026-12-31 | J63: 2026-12-31 | K63: NO | L63: NO | M63: Guajira - Cesar - Madgalena | N63: NO | O63: 0 | P63: -71.49 | Q63: 87 | R63: 2
A64: SC_1506_A1 | B64: Parque Solar Toro Moreno | C64: 2022-11-04T17:59:00 | D64: 44869.74931 | E64: 99.9 | F64: Solar FV | G64: San Juan 220 | H64: SC_1506 | I64: 2021-12-31 | J64: 2021-12-31 | K64: NO | L64: NO | M64: Guajira - Cesar - Madgalena | N64: NO | O64: 0 | P64: -5.793 | Q64: 278 | R64: 2
A65: SC_1506_A2 | B65: Parque Solar Toro Moreno | C65: 2022-11-04T17:59:00 | D65: 44869.74931 | E65: 99.9 | F65: Solar FV | G65: San Juan 110 | H65: SC_1506 | I65: 2021-12-31 | J65: 2021-12-31 | K65: NO | L65: NO | M65: Guajira - Cesar - Madgalena | N65: NO | O65: 0 | P65: -7.303 | Q65: 277 | R65: 2
A66: SC_1512_A1 | B66: El Flamingo - 200 MW | C66: 2022-07-18 | D66: 44760 | E66: 200 | F66: Solar FV | G66: Cuestecita 220 | H66: SC_1512 | I66: 2027-06-30 | J66: 2027-06-30 | K66: NO | L66: NO | M66: Guajira - Cesar - Madgalena | N66: NO | O66: 0 | P66: -50.97 | Q66: 134 | R66: 2
A67: SC_1512_A2 | B67: El Flamingo - 200 MW | C67: 2022-07-18 | D67: 44760 | E67: 200 | F67: Solar FV | G67: Cuestecitas 500 | H67: SC_1512 | I67: 2027-06-30 | J67: 2027-06-30 | K67: NO | L67: NO | M67: Guajira - Cesar - Madgalena | N67: NO | O67: 0 | P67: -43.35 | Q67: 133 | R67: 2
A68: SC_1518_A1 | B68: CHIRIGUANÁ - 300 MW | C68: 2022-07-18 | D68: 44760 | E68: 300 | F68: Solar FV | G68: La Loma 500 | H68: SC_1518 | I68: 2027-12-31 | J68: 2027-12-31 | K68: NO | L68: NO | M68: Guajira - Cesar - Madgalena | N68: NO | O68: 0 | P68: -34.77 | Q68: 132 | R68: 2
A69: SC_1518_A2 | B69: CHIRIGUANÁ - 300 MW | C69: 2022-07-18 | D69: 44760 | E69: 300 | F69: Solar FV | G69: El Copey 500 | H69: SC_1518 | I69: 2027-12-31 | J69: 2027-12-31 | K69: NO | L69: NO | M69: Guajira - Cesar - Madgalena | N69: NO | O69: 0 | P69: -33.27 | Q69: 131 | R69: 2
A70: SC_1531_A1 | B70: Haticos_56MW | C70: 2022-09-01 | D70: 44760 | E70: 56 | F70: Solar FV | G70: San Juan 110 | H70: SC_1531 | I70: 2027-12-31 | J70: 2027-12-31 | K70: NO | L70: NO | M70: Guajira - Cesar - Madgalena | N70: NO | O70: 0 | P70: -14.23 | Q70: 130 | R70: 2
A71: SC_1531_A2 | B71: Haticos_56MW | C71: 2022-09-01 | D71: 44760 | E71: 56 | F71: Solar FV | G71: San Juan 220 | H71: SC_1531 | I71: 2027-12-31 | J71: 2027-12-31 | K71: NO | L71: NO | M71: Guajira - Cesar - Madgalena | N71: NO | O71: 0 | P71: -13.36 | Q71: 129 | R71: 2
A72: SC_1532_A1 | B72: Las Mangas_340.8MW | C72: 2022-07-17 | D72: 44759 | E72: 340.8 | F72: Solar FV | G72: San Juan 220 | H72: SC_1532 | I72: 2027-12-31 | J72: 2027-12-31 | K72: NO | L72: SI | M72: Guajira - Cesar - Madgalena | N72: NO | O72: 32580046749 | P72: -123.08 | Q72: 97 | R72: 1
A73: SC_1532_A2 | B73: Las Mangas_340.8MW | C73: 2022-07-17 | D73: 44759 | E73: 340.8 | F73: Solar FV | G73: Nueva subestación San Juan 500 kV | H73: SC_1532 | I73: 2027-12-31 | J73: 2027-12-31 | K73: NO | L73: SI | M73: Guajira - Cesar - Madgalena | N73: NO | O73: 9.413581921e+10 | P73: -49.82 | Q73: 96 | R73: 1
A74: SC_1534_A1 | B74: Parque Eólico Cerrito_378MW | C74: 2022-07-17 | D74: 44759 | E74: 378 | F74: Eólico Onshore | G74: Colectora 1 Eolica 500 | H74: SC_1534 | I74: 2025-06-30 | J74: 2025-06-30 | K74: NO | L74: NO | M74: Guajira - Cesar - Madgalena | N74: NO | O74: 0 | P74: -232899 | Q74: 95 | R74: 2
A75: SC_1534_A2 | B75: Parque Eólico Cerrito_378MW | C75: 2022-07-17 | D75: 44759 | E75: 378 | F75: Eólico Onshore | G75: Colectora 2 500 kV | H75: SC_1534 | I75: 2025-06-30 | J75: 2025-06-30 | K75: NO | L75: SI | M75: Guajira - Cesar - Madgalena | N75: NO | O75: 3.44518681e+12 | P75: -93076 | Q75: 94 | R75: 1
A76: SC_1535_A1 | B76: Parque Eólico Cerrito 2 | C76: 2022-07-18 | D76: 44760 | E76: 200 | F76: Eólico Onshore | G76: Colectora 1 Eolica 500 | H76: SC_1535 | I76: 2025-06-30 | J76: 2025-06-30 | K76: NO | L76: NO | M76: Guajira - Cesar - Madgalena | N76: NO | O76: 0 | P76: -112.02798 | Q76: 128 | R76: 2
A77: SC_1535_A2 | B77: Parque Eólico Cerrito 2 | C77: 2022-07-18 | D77: 44760 | E77: 200 | F77: Eólico Onshore | G77: Colectora 2 500 kV | H77: SC_1535 | I77: 2025-06-30 | J77: 2025-06-30 | K77: NO | L77: SI | M77: Guajira - Cesar - Madgalena | N77: NO | O77: 3.612282882e+12 | P77: -45.54927 | Q77: 127 | R77: 1
A78: SC_1549_A1 | B78: Parque Solar Bonda | C78: 2022-07-18 | D78: 44760 | E78: 9.9 | F78: Solar FV | G78: Bonda 13.8 | H78: SC_1549 | I78: 2025-12-31 | J78: 2025-12-31 | K78: NO | L78: NO | M78: Guajira - Cesar - Madgalena | N78: NO | O78: 0 | P78: 2.4 | Q78: 126 | R78: 2
A79: SC_1549_A2 | B79: Parque Solar Bonda | C79: 2022-07-18 | D79: 44760 | E79: 9.9 | F79: Solar FV | G79: Bonda 34.5 | H79: SC_1549 | I79: 2025-12-31 | J79: 2025-12-31 | K79: NO | L79: NO | M79: Guajira - Cesar - Madgalena | N79: NO | O79: 0 | P79: 2.41 | Q79: 125 | R79: 2
A80: SC_1550_A1 | B80: Parque Solar Fonseca | C80: 2022-07-18 | D80: 44760 | E80: 9.9 | F80: Solar FV | G80: Fonseca 13.8 | H80: SC_1550 | I80: 2025-12-31 | J80: 2025-12-31 | K80: NO | L80: NO | M80: Guajira - Cesar - Madgalena | N80: NO | O80: 0 | P80: 0.26 | Q80: 124 | R80: 2
A81: SC_1550_A2 | B81: Parque Solar Fonseca | C81: 2022-07-18 | D81: 44760 | E81: 9.9 | F81: Solar FV | G81: Fonseca 34.5 | H81: SC_1550 | I81: 2025-12-31 | J81: 2025-12-31 | K81: NO | L81: NO | M81: Guajira - Cesar - Madgalena | N81: NO | O81: 0 | P81: 0.27 | Q81: 123 | R81: 2
A82: SC_1556_A1 | B82: Copey Solar I - 100 MW | C82: 2022-07-18 | D82: 44760 | E82: 100 | F82: Solar FV | G82: Copey 220 | H82: SC_1556 | I82: 2026-12-31 | J82: 2026-12-31 | K82: NO | L82: NO | M82: Guajira - Cesar - Madgalena | N82: NO | O82: 0 | P82: -7.56 | Q82: 122 | R82: 2
A83: SC_1556_A2 | B83: Copey Solar I - 100 MW | C83: 2022-07-18 | D83: 44760 | E83: 100 | F83: Solar FV | G83: El Copey 500 | H83: SC_1556 | I83: 2026-12-31 | J83: 2026-12-31 | K83: NO | L83: NO | M83: Guajira - Cesar - Madgalena | N83: NO | O83: 0 | P83: -7.25 | Q83: 121 | R83: 2
A84: SC_1557_A1 | B84: Copey Solar II | C84: 2022-07-18 | D84: 44760 | E84: 100 | F84: Solar FV | G84: Copey 220 | H84: SC_1557 | I84: 2027-12-31 | J84: 2027-12-31 | K84: NO | L84: NO | M84: Guajira - Cesar - Madgalena | N84: NO | O84: 0 | P84: -7.93 | Q84: 120 | R84: 2
A85: SC_1557_A2 | B85: Copey Solar II | C85: 2022-07-18 | D85: 44760 | E85: 100 | F85: Solar FV | G85: El Copey 500 | H85: SC_1557 | I85: 2027-12-31 | J85: 2027-12-31 | K85: NO | L85: NO | M85: Guajira - Cesar - Madgalena | N85: NO | O85: 0 | P85: -7.46 | Q85: 119 | R85: 2
A86: SC_1565_A1 | B86: Eólica Río Córdoba 50 MW | C86: 2022-01-08 | D86: 44569 | E86: 50 | F86: Eólico Onshore | G86: Rio Cordoba 110 | H86: SC_1565 | I86: 2025-12-31 | J86: 2025-12-31 | K86: NO | L86: SI | M86: Guajira - Cesar - Madgalena | N86: NO | O86: 0 | P86: -21 | Q86: 3 | R86: 1
A87: SC_1575_A1 | B87: BONDERO 70 MW | C87: 2022-03-18T09:23:00 | D87: 44638.39097 | E87: 70 | F87: Eólico Onshore | G87: Termocol 220 | H87: SC_1575 | I87: 2024-12-31 | J87: 2024-12-31 | K87: NO | L87: NO | M87: Guajira - Cesar - Madgalena | N87: NO | O87: 0 | P87: -29 | Q87: 7 | R87: 2
A88: SC_1592_A1 | B88: Expansión La Loma II - 100 MW | C88: 2022-07-18T10:28:00 | D88: 44760.43611 | E88: 100 | F88: Solar FV | G88: La Loma 500 | H88: SC_1592 | I88: 2028-12-31 | J88: 2028-12-31 | K88: NO | L88: NO | M88: Guajira - Cesar - Madgalena | N88: NO | O88: 0 | P88: -8.37 | Q88: 149 | R88: 2
A89: SC_1593_A1 | B89: Parque Solar Camarones 6 MW | C89: 2022-07-18 | D89: 44760 | E89: 6 | F89: Solar FV | G89: Camarones 34.5 | H89: SC_1593 | I89: 2024-12-31 | J89: 2024-12-31 | K89: NO | L89: NO | M89: Guajira - Cesar - Madgalena | N89: NO | O89: 0 | P89: -0.11 | Q89: 118 | R89: 2
A90: SC_1593_A2 | B90: Parque Solar Camarones 6 MW | C90: 2022-07-18 | D90: 44760 | E90: 6 | F90: Solar FV | G90: Riohacha 34.5 | H90: SC_1593 | I90: 2024-12-31 | J90: 2024-12-31 | K90: NO | L90: NO | M90: Guajira - Cesar - Madgalena | N90: NO | O90: 0 | P90: -0.11005 | Q90: 117 | R90: 2
A91: SC_1596_A1 | B91: Expansión La Loma III - 100 MW | C91: 2022-07-18T10:30:00 | D91: 44760.4375 | E91: 100 | F91: Solar FV | G91: La Loma 500 | H91: SC_1596 | I91: 2029-12-31 | J91: 2029-12-31 | K91: NO | L91: NO | M91: Guajira - Cesar - Madgalena | N91: NO | O91: 0 | P91: -12.23 | Q91: 150 | R91: 2
A92: SC_1656_A1 | B92: Parque solar TERRɅ I | C92: 2022-07-26T15:58:00 | D92: 44768.66528 | E92: 19.9 | F92: Solar FV | G92: Copey 34.5 1 | H92: SC_1656 | I92: 2024-06-30 | J92: 2024-06-30 | K92: NO | L92: NO | M92: Guajira - Cesar - Madgalena | N92: NO | O92: 0 | P92: -0.277 | Q92: 160 | R92: 2
A93: SC_1656_A2 | B93: Parque solar TERRɅ I | C93: 2022-07-26T15:58:00 | D93: 44768.66528 | E93: 19.9 | F93: Solar FV | G93: Copey 110 | H93: SC_1656 | I93: 2024-06-30 | J93: 2024-06-30 | K93: NO | L93: NO | M93: Guajira - Cesar - Madgalena | N93: NO | O93: 0 | P93: -0.295 | Q93: 159 | R93: 2
A94: SC_1698_A1 | B94: Barlovento 2_500MW | C94: 2022-08-09T18:34:00 | D94: 44782.77361 | E94: 500 | F94: Eólico Offshore | G94: Colectora 2 500 kV | H94: SC_1698 | I94: 2034-12-31 | J94: 2034-12-31 | K94: NO | L94: SI | M94: Guajira - Cesar - Madgalena | N94: NO | O94: 3.41632547e+10 | P94: -94.09295 | Q94: 199 | R94: 1
A95: SC_1699_A1 | B95: PARQUE EOLICO GUAJIRA II de 302.4 MW | C95: 2022-08-04T18:35:00 | D95: 44777.77431 | E95: 302.4 | F95: Eólico Onshore | G95: Cuestecitas 500 | H95: SC_1699 | I95: 2027-12-31 | J95: 2027-12-31 | K95: NO | L95: NO | M95: Guajira - Cesar - Madgalena | N95: SI | O95: 0 | P95: 31.4 | Q95: 193 | R95: 2
A96: SC_1699_A2 | B96: PARQUE EOLICO GUAJIRA II de 302.4 MW | C96: 2022-08-04T18:35:00 | D96: 44777.77431 | E96: 302.4 | F96: Eólico Onshore | G96: Cuestecita 220 II | H96: SC_1699 | I96: 2027-12-31 | J96: 2027-12-31 | K96: NO | L96: NO | M96: Guajira - Cesar - Madgalena | N96: SI | O96: 0 | P96: 116.2 | Q96: 192 | R96: 2
A97: SC_1703_A1 | B97: Barlovento 3 de 500 MW | C97: 2022-08-09T18:39:00 | D97: 44782.77708 | E97: 500 | F97: Eólico Offshore | G97: Colectora 2 500 kV | H97: SC_1703 | I97: 2034-12-31 | J97: 2034-12-31 | K97: NO | L97: SI | M97: Guajira - Cesar - Madgalena | N97: NO | O97: 3.41632547e+10 | P97: -97.83427 | Q97: 200 | R97: 1
A98: SC_1707_A1 | B98: Santa Marta II - 50 MW | C98: 2022-02-27T18:47:00 | D98: 44619.78264 | E98: 50 | F98: Solar FV | G98: Copey 220 | H98: SC_1707 | I98: 2025-12-31 | J98: 2025-12-31 | K98: NO | L98: NO | M98: Guajira - Cesar - Madgalena | N98: NO | O98: 0 | P98: -4.513 | Q98: 6 | R98: 2
A99: SC_1710_A1 | B99: Parque Eólico Trupillo_100MW | C99: 2022-07-19T18:50:00 | D99: 44761.78472 | E99: 100 | F99: Eólico Onshore | G99: Colectora 2 500 kV | H99: SC_1710 | I99: 2028-12-31 | J99: 2028-12-31 | K99: NO | L99: SI | M99: Guajira - Cesar - Madgalena | N99: NO | O99: 0 | P99: -1.14 | Q99: 156 | R99: 1
A100: SC_1710_A2 | B100: Parque Eólico Trupillo_100MW | C100: 2022-07-19T18:50:00 | D100: 44761.78472 | E100: 100 | F100: Eólico Onshore | G100: Colectora 1 Eolica 500 | H100: SC_1710 | I100: 2028-12-31 | J100: 2028-12-31 | K100: NO | L100: NO | M100: Guajira - Cesar - Madgalena | N100: NO | O100: 0 | P100: -5.9 | Q100: 155 | R100: 2
A101: SC_1718_A1 | B101: Autogeneración Drummond 50 MW | C101: 2022-09-03 | D101: 44760 | E101: 50 | F101: Solar FV | G101: La Loma 500 | H101: SC_1718 | I101: 2023-12-31 | J101: 2023-12-31 | K101: NO | L101: NO | M101: Guajira - Cesar - Madgalena | N101: NO | O101: 0 | P101: -2.518 | Q101: 116 | R101: 2
A102: SC_1722_A1 | B102: PARQUE EÓLICO MONSAUI 9,9 MW | C102: 2022-07-18 | D102: 44760 | E102: 9.9 | F102: Eólico Onshore | G102: Santa Marta 110 | H102: SC_1722 | I102: 2027-12-31 | J102: 2027-12-31 | K102: NO | L102: NO | M102: Guajira - Cesar - Madgalena | N102: NO | O102: 0 | P102: -1.857 | Q102: 115 | R102: 2
A103: SC_1722_A2 | B103: PARQUE EÓLICO MONSAUI 9,9 MW | C103: 2022-07-18 | D103: 44760 | E103: 9.9 | F103: Eólico Onshore | G103: Termocol 220 | H103: SC_1722 | I103: 2027-12-31 | J103: 2027-12-31 | K103: NO | L103: NO | M103: Guajira - Cesar - Madgalena | N103: NO | O103: 0 | P103: 1.123 | Q103: 114 | R103: 2
A104: SC_1728_A1 | B104: PARQUE SOLAR CAÑAHUATE II - 190 MW | C104: 2022-09-03 | D104: 44760 | E104: 190 | F104: Solar FV | G104: La Loma 500 | H104: SC_1728 | I104: 2024-12-31 | J104: 2024-12-31 | K104: NO | L104: NO | M104: Guajira - Cesar - Madgalena | N104: NO | O104: 0 | P104: -16.133 | Q104: 113 | R104: 2
A105: SC_1729_A1 | B105: TR Solar 17 | C105: 2022-07-18 | D105: 44760 | E105: 200 | F105: Solar FV | G105: La Loma 500 | H105: SC_1729 | I105: 2026-12-31 | J105: 2026-12-31 | K105: NO | L105: NO | M105: Guajira - Cesar - Madgalena | N105: NO | O105: 0 | P105: -15.21 | Q105: 112 | R105: 2
A106: SC_1729_A2 | B106: TR Solar 17 | C106: 2022-07-18 | D106: 44760 | E106: 200 | F106: Solar FV | G106: El Copey 500 | H106: SC_1729 | I106: 2026-12-31 | J106: 2026-12-31 | K106: NO | L106: NO | M106: Guajira - Cesar - Madgalena | N106: NO | O106: 0 | P106: 15.42 | Q106: 111 | R106: 2
A107: SC_1746_A1 | B107: Parque Solar Nuevo Mundo | C107: 2022-09-03T11:38:00 | D107: 44807.48472 | E107: 99.99 | F107: Solar FV | G107: La Loma 110 | H107: SC_1746 | I107: 2025-12-30 | J107: 2025-12-30 | K107: NO | L107: SI | M107: Guajira - Cesar - Madgalena | N107: NO | O107: 15012000000 | P107: -3.957 | Q107: 276 | R107: =IF(L107="NO",2,1) -> 1
A108: SC_1746_A2 | B108: Parque Solar Nuevo Mundo | C108: 2022-09-03T11:38:00 | D108: 44807.48472 | E108: 99.99 | F108: Solar FV | G108: El Paso 110 | H108: SC_1746 | I108: 2025-12-30 | J108: 2025-12-30 | K108: NO | L108: SI | M108: Guajira - Cesar - Madgalena | N108: NO | O108: 20223000000 | P108: -2.761 | Q108: 275 | R108: 1
A109: SC_1752_A1 | B109: OWF BERGANTIN 300 | C109: 2022-03-26T08:28:00 | D109: 44646.35278 | E109: 300 | F109: Eólico Offshore | G109: R Cordoba 220 | H109: SC_1752 | I109: 2032-02-08 | J109: 2032-02-08 | K109: NO | L109: NO | M109: Guajira - Cesar - Madgalena | N109: NO | O109: 0 | P109: -61.60176 | Q109: 9 | R109: 2
A110: SC_1752_A2 | B110: OWF BERGANTIN 300 | C110: 2022-03-26T08:28:00 | D110: 44646.35278 | E110: 300 | F110: Eólico Offshore | G110: Fundacion 220 | H110: SC_1752 | I110: 2032-02-08 | J110: 2032-02-08 | K110: NO | L110: NO | M110: Guajira - Cesar - Madgalena | N110: NO | O110: 0 | P110: -56.1706 | Q110: 8 | R110: 2
A111: SC_1756_A1 | B111: Barlovento 4_500MW | C111: 2022-08-09T16:10:00 | D111: 44782.67361 | E111: 500 | F111: Eólico Offshore | G111: Colectora 2 500 kV | H111: SC_1756 | I111: 2034-12-31 | J111: 2034-12-31 | K111: NO | L111: SI | M111: Guajira - Cesar - Madgalena | N111: NO | O111: 3.41632547e+10 | P111: -97.83427 | Q111: 197 | R111: 1
A112: SC_1765_A1 | B112: PARQUE SOLAR CIUDAD BLANCA - 199 MW | C112: 2022-06-25T16:38:00 | D112: 44737.69306 | E112: 19.9 | F112: Solar FV | G112: CODAZZI (CESAR) 1 34.5 kV | H112: SC_1765 | I112: 2026-12-31 | J112: 2026-12-31 | K112: NO | L112: NO | M112: Guajira - Cesar - Madgalena | N112: NO | O112: 0 | P112: -0.53992 | Q112: 27 | R112: 2
A113: SC_1765_A2 | B113: PARQUE SOLAR CIUDAD BLANCA - 199 MW | C113: 2022-06-25T16:38:00 | D113: 44737.69306 | E113: 19.9 | F113: Solar FV | G113: CODAZZI (CESAR) 1 13.8 kV | H113: SC_1765 | I113: 2026-12-31 | J113: 2026-12-31 | K113: NO | L113: NO | M113: Guajira - Cesar - Madgalena | N113: NO | O113: 0 | P113: -0.53612 | Q113: 26 | R113: 2
A114: SC_1779_A1 | B114: Pétalo del Cesar III El Paso | C114: 2022-08-12T14:56:00 | D114: 44785.62222 | E114: 9.9 | F114: Solar FV | G114: EL PASO 1 13.8 kV | H114: SC_1779 | I114: 2026-12-31 | J114: 2026-12-31 | K114: NO | L114: NO | M114: Guajira - Cesar - Madgalena | N114: NO | O114: 0 | P114: -1.03076 | Q114: 206 | R114: 2
A115: SC_1779_A2 | B115: Pétalo del Cesar III El Paso | C115: 2022-08-12T14:56:00 | D115: 44785.62222 | E115: 9.9 | F115: Solar FV | G115: EL PASO 1 34.5 kV | H115: SC_1779 | I115: 2026-12-31 | J115: 2026-12-31 | K115: NO | L115: NO | M115: Guajira - Cesar - Madgalena | N115: NO | O115: 0 | P115: -1.03068 | Q115: 205 | R115: 2
A116: SC_1783_A1 | B116: Pétalo del Cesar IV La Loma | C116: 2022-07-22T22:44:00 | D116: 44764.94722 | E116: 9.9 | F116: Solar FV | G116: La loma 34.5 | H116: SC_1783 | I116: 2026-01-31 | J116: 2026-01-31 | K116: NO | L116: NO | M116: Guajira - Cesar - Madgalena | N116: NO | O116: 0 | P116: -2.04 | Q116: 158 | R116: 2
A117: SC_1783_A2 | B117: Pétalo del Cesar IV La Loma | C117: 2022-07-22T22:44:00 | D117: 44764.94722 | E117: 9.9 | F117: Solar FV | G117: La loma 13.8 | H117: SC_1783 | I117: 2026-01-31 | J117: 2026-01-31 | K117: NO | L117: NO | M117: Guajira - Cesar - Madgalena | N117: NO | O117: 0 | P117: -1.85 | Q117: 157 | R117: 2
A118: SC_1788_A1 | B118: DSE COPEY 19.9 | C118: 2022-07-28T18:07:00 | D118: 44770.75486 | E118: 19.9 | F118: Solar FV | G118: Copey 34.5 1 | H118: SC_1788 | I118: 2025-12-31 | J118: 2025-12-31 | K118: NO | L118: NO | M118: Guajira - Cesar - Madgalena | N118: NO | O118: 0 | P118: -0.5 | Q118: 163 | R118: 2
A119: SC_1811_A1 | B119: DSE RIOHACHA | C119: 2022-07-27T16:05:00 | D119: 44769.67014 | E119: 9.9 | F119: Solar FV | G119: Riohacha 34.5 | H119: SC_1811 | I119: 2025-12-31 | J119: 2025-12-31 | K119: NO | L119: NO | M119: Guajira - Cesar - Madgalena | N119: NO | O119: 0 | P119: -1.77 | Q119: 162 | R119: 2
A120: SC_1811_A2 | B120: DSE RIOHACHA | C120: 2022-07-27T16:05:00 | D120: 44769.67014 | E120: 9.9 | F120: Solar FV | G120: Riohacha 110 | H120: SC_1811 | I120: 2025-12-31 | J120: 2025-12-31 | K120: NO | L120: NO | M120: Guajira - Cesar - Madgalena | N120: NO | O120: 0 | P120: -1.74 | Q120: 161 | R120: 2
A121: SC_1824_A1 | B121: PGF ROSARIO II_45MW | C121: 2022-08-10T11:28:00 | D121: 44783.47778 | E121: 45 | F121: Solar FV | G121: Codazzi GCM 110 | H121: SC_1824 | I121: 2026-12-31 | J121: 2026-12-31 | K121: NO | L121: NO | M121: Guajira - Cesar - Madgalena | N121: NO | O121: 0 | P121: 5.399 | Q121: 204 | R121: 2
A122: SC_1824_A2 | B122: PGF ROSARIO II_45MW | C122: 2022-08-10T11:28:00 | D122: 44783.47778 | E122: 45 | F122: Solar FV | G122: La Jagua 110 | H122: SC_1824 | I122: 2026-12-31 | J122: 2026-12-31 | K122: NO | L122: NO | M122: Guajira - Cesar - Madgalena | N122: NO | O122: 0 | P122: 5.28 | Q122: 203 | R122: 2
A123: SC_1827_A1 | B123: Guatapurí Solar I 9,9 MW | C123: 2022-08-01T14:52:00 | D123: 44774.61944 | E123: 9.9 | F123: Solar FV | G123: Guatapuri 13.8 | H123: SC_1827 | I123: 2025-12-31 | J123: 2025-12-31 | K123: NO | L123: NO | M123: Guajira - Cesar - Madgalena | N123: NO | O123: 0 | P123: -6.80291 | Q123: 179 | R123: 2
A124: SC_1827_A2 | B124: Guatapurí Solar I 9,9 MW | C124: 2022-08-01T14:52:00 | D124: 44774.61944 | E124: 9.9 | F124: Solar FV | G124: Guatapuri 34.5(1) | H124: SC_1827 | I124: 2025-12-31 | J124: 2025-12-31 | K124: NO | L124: NO | M124: Guajira - Cesar - Madgalena | N124: NO | O124: 0 | P124: -6.31339 | Q124: 178 | R124: 2
A125: SC_1830_A1 | B125: Guatapurí Solar II 9,9 MW | C125: 2022-08-01T14:55:00 | D125: 44774.62153 | E125: 9.9 | F125: Solar FV | G125: Guatapuri 13.8 | H125: SC_1830 | I125: 2025-12-31 | J125: 2025-12-31 | K125: NO | L125: NO | M125: Guajira - Cesar - Madgalena | N125: NO | O125: 0 | P125: -6.80291 | Q125: 181 | R125: 2
A126: SC_1830_A2 | B126: Guatapurí Solar II 9,9 MW | C126: 2022-08-01T14:55:00 | D126: 44774.62153 | E126: 9.9 | F126: Solar FV | G126: Guatapuri 34.5(1) | H126: SC_1830 | I126: 2025-12-31 | J126: 2025-12-31 | K126: NO | L126: NO | M126: Guajira - Cesar - Madgalena | N126: NO | O126: 0 | P126: -6.31339 | Q126: 180 | R126: 2
A127: SC_1840_A1 | B127: Granja Solar Asturias 9,9 MW | C127: 2022-08-02T12:37:00 | D127: 44775.52569 | E127: 9.9 | F127: Solar FV | G127: La loma 13.8 | H127: SC_1840 | I127: 2025-12-31 | J127: 2025-12-31 | K127: NO | L127: NO | M127: Guajira - Cesar - Madgalena | N127: NO | O127: 0 | P127: -0.94 | Q127: 191 | R127: 2
A128: SC_1840_A2 | B128: Granja Solar Asturias 9,9 MW | C128: 2022-08-02T12:37:00 | D128: 44775.52569 | E128: 9.9 | F128: Solar FV | G128: La loma 34.5 | H128: SC_1840 | I128: 2025-12-31 | J128: 2025-12-31 | K128: NO | L128: NO | M128: Guajira - Cesar - Madgalena | N128: NO | O128: 0 | P128: -0.94 | Q128: 190 | R128: 2
A129: SC_1846_A1 | B129: PARQUE DE GENERACIÓN SOLAR CYGNUS 50 MW | C129: 2022-08-16T13:59:00 | D129: 44789.58264 | E129: 50 | F129: Solar FV | G129: Guatapurí 110 | H129: SC_1846 | I129: 2025-12-31 | J129: 2025-12-31 | K129: NO | L129: NO | M129: Guajira - Cesar - Madgalena | N129: NO | O129: 0 | P129: -17.253 | Q129: 220 | R129: 2
A130: SC_1846_A2 | B130: PARQUE DE GENERACIÓN SOLAR CYGNUS 50 MW | C130: 2022-08-16T13:59:00 | D130: 44789.58264 | E130: 50 | F130: Solar FV | G130: San Juan 110 | H130: SC_1846 | I130: 2025-12-31 | J130: 2025-12-31 | K130: NO | L130: NO | M130: Guajira - Cesar - Madgalena | N130: NO | O130: 0 | P130: -18.274 | Q130: 219 | R130: 2
A131: SC_1854_A1 | B131: CATAY 1 - 200 MW | C131: 2022-07-03T15:28:00 | D131: 44745.64444 | E131: 200 | F131: Solar FV | G131: Copey 220 | H131: SC_1854 | I131: 2027-12-31 | J131: 2027-12-31 | K131: NO | L131: NO | M131: Guajira - Cesar - Madgalena | N131: NO | O131: 0 | P131: -51.85829 | Q131: 35 | R131: 2
A132: SC_1854_A2 | B132: CATAY 1 - 200 MW | C132: 2022-07-03T15:28:00 | D132: 44745.64444 | E132: 200 | F132: Solar FV | G132: El Copey 500 | H132: SC_1854 | I132: 2027-12-31 | J132: 2027-12-31 | K132: NO | L132: NO | M132: Guajira - Cesar - Madgalena | N132: NO | O132: 0 | P132: -39.634438 | Q132: 34 | R132: 2
A133: SC_1856_A1 | B133: SIERRA NEVADA DE VERANO | C133: 2022-07-29T11:06:00 | D133: 44771.4625 | E133: 99.9 | F133: Solar FV | G133: Copey 110 | H133: SC_1856 | I133: 2027-12-17 | J133: 2027-12-17 | K133: NO | L133: NO | M133: Guajira - Cesar - Madgalena | N133: NO | O133: 0 | P133: -0.478 | Q133: 167 | R133: 2
A134: SC_1856_A2 | B134: SIERRA NEVADA DE VERANO | C134: 2022-07-29T11:06:00 | D134: 44771.4625 | E134: 99.9 | F134: Solar FV | G134: Copey 220 | H134: SC_1856 | I134: 2027-12-17 | J134: 2027-12-17 | K134: NO | L134: NO | M134: Guajira - Cesar - Madgalena | N134: NO | O134: 0 | P134: -1.034 | Q134: 166 | R134: 2
A135: SC_1857_A1 | B135: MILAGROS DE VERANO | C135: 2022-07-29T11:14:00 | D135: 44771.46806 | E135: 99.9 | F135: Solar FV | G135: Copey 110 | H135: SC_1857 | I135: 2028-12-22 | J135: 2028-12-22 | K135: NO | L135: NO | M135: Guajira - Cesar - Madgalena | N135: NO | O135: 0 | P135: -0.468 | Q135: 169 | R135: 2
A136: SC_1857_A2 | B136: MILAGROS DE VERANO | C136: 2022-07-29T11:14:00 | D136: 44771.46806 | E136: 99.9 | F136: Solar FV | G136: Copey 220 | H136: SC_1857 | I136: 2028-12-22 | J136: 2028-12-22 | K136: NO | L136: NO | M136: Guajira - Cesar - Madgalena | N136: NO | O136: 0 | P136: -1.028 | Q136: 168 | R136: 2
A137: SC_1861_A1 | B137: Autogenerador CELSIA Solar Cenit Copey | C137: 2022-07-29T19:20:00 | D137: 44771.80556 | E137: 6.6 | F137: Solar FV | G137: Copey 34.5 1 | H137: SC_1861 | I137: 2023-12-31 | J137: 2023-12-31 | K137: NO | L137: NO | M137: Guajira - Cesar - Madgalena | N137: NO | O137: 0 | P137: 0.2 | Q137: 172 | R137: 2
A138: SC_1876_A1 | B138: Nevada II 250 MW | C138: 2022-08-01T10:33:00 | D138: 44774.43958 | E138: 250 | F138: Eólico Onshore | G138: Cuestecitas 500 | H138: SC_1876 | I138: 2030-12-31 | J138: 2030-12-31 | K138: NO | L138: NO | M138: Guajira - Cesar - Madgalena | N138: NO | O138: 0 | P138: -12.984 | Q138: 177 | R138: 2
A139: SC_1876_A2 | B139: Nevada II 250 MW | C139: 2022-08-01T10:33:00 | D139: 44774.43958 | E139: 250 | F139: Eólico Onshore | G139: Colectora 1 Eolica 500 | H139: SC_1876 | I139: 2030-12-31 | J139: 2030-12-31 | K139: NO | L139: NO | M139: Guajira - Cesar - Madgalena | N139: NO | O139: 0 | P139: -18.98 | Q139: 176 | R139: 2
A140: SC_1877_A1 | B140: Planta Solar FV Corozal 9,9MW | C140: 2022-07-29T10:34:00 | D140: 44771.44028 | E140: 9.9 | F140: Solar FV | G140: Guacamayal 34.5 | H140: SC_1877 | I140: 2026-12-31 | J140: 2026-12-31 | K140: NO | L140: NO | M140: Guajira - Cesar - Madgalena | N140: NO | O140: 0 | P140: 0.00066 | Q140: 165 | R140: 2
A141: SC_1877_A2 | B141: Planta Solar FV Corozal 9,9MW | C141: 2022-07-29T10:34:00 | D141: 44771.44028 | E141: 9.9 | F141: Solar FV | G141: Guacamayal 13.8 | H141: SC_1877 | I141: 2026-12-31 | J141: 2026-12-31 | K141: NO | L141: NO | M141: Guajira - Cesar - Madgalena | N141: NO | O141: 0 | P141: 0.00066 | Q141: 164 | R141: 2
A142: SC_1889_A1 | B142: La Granja | C142: 2022-07-29T18:49:00 | D142: 44771.78403 | E142: 19.9 | F142: Solar FV | G142: La loma 34.5 | H142: SC_1889 | I142: 2025-12-31 | J142: 2025-12-31 | K142: NO | L142: NO | M142: Guajira - Cesar - Madgalena | N142: NO | O142: 0 | P142: -1.95 | Q142: 171 | R142: 2
A143: SC_1889_A2 | B143: La Granja | C143: 2022-07-29T18:49:00 | D143: 44771.78403 | E143: 19.9 | F143: Solar FV | G143: La loma 13.8 | H143: SC_1889 | I143: 2025-12-31 | J143: 2025-12-31 | K143: NO | L143: NO | M143: Guajira - Cesar - Madgalena | N143: NO | O143: 0 | P143: -1.91 | Q143: 170 | R143: 2
A144: SC_1898_A1 | B144: Parque Eólico Fenix_70MW | C144: 2022-08-18T19:04:00 | D144: 44791.79444 | E144: 70 | F144: Eólico Onshore | G144: Cuestecita 220 | H144: SC_1898 | I144: 2028-11-16 | J144: 2028-11-16 | K144: NO | L144: NO | M144: Guajira - Cesar - Madgalena | N144: NO | O144: 0 | P144: -59.7 | Q144: 237 | R144: 2
A145: SC_1898_A2 | B145: Parque Eólico Fenix_70MW | C145: 2022-08-18T19:04:00 | D145: 44791.79444 | E145: 70 | F145: Eólico Onshore | G145: Cuestecitas 500 | H145: SC_1898 | I145: 2028-11-16 | J145: 2028-11-16 | K145: NO | L145: NO | M145: Guajira - Cesar - Madgalena | N145: NO | O145: 0 | P145: -55.77 | Q145: 236 | R145: 2
A146: SC_1904_A1 | B146: Parque Solar Fotovoltaico Potreritos | C146: 2022-08-22T19:11:00 | D146: 44795.79931 | E146: 168 | F146: Solar FV | G146: San Juan 220 | H146: SC_1904 | I146: 2024-12-31 | J146: 2024-12-31 | K146: NO | L146: NO | M146: Guajira - Cesar - Madgalena | N146: NO | O146: 0 | P146: -10.866 | Q146: 255 | R146: 2
A147: SC_1904_A2 | B147: Parque Solar Fotovoltaico Potreritos | C147: 2022-08-22T19:11:00 | D147: 44795.79931 | E147: 168 | F147: Solar FV | G147: Valledupar 220 | H147: SC_1904 | I147: 2024-12-31 | J147: 2024-12-31 | K147: NO | L147: NO | M147: Guajira - Cesar - Madgalena | N147: NO | O147: 0 | P147: -9.312 | Q147: 254 | R147: 2
A148: SC_1905_A1 | B148: Parque Solar Valle del Cesar | C148: 2022-08-16T19:12:00 | D148: 44789.8 | E148: 50 | F148: Solar FV | G148: Codazzi GCM 110 | H148: SC_1905 | I148: 2026-12-31 | J148: 2026-12-31 | K148: NO | L148: NO | M148: Guajira - Cesar - Madgalena | N148: NO | O148: 0 | P148: -1.782 | Q148: 222 | R148: 2
A149: SC_1905_A2 | B149: Parque Solar Valle del Cesar | C149: 2022-08-16T19:12:00 | D149: 44789.8 | E149: 50 | F149: Solar FV | G149: Valledupar 110 | H149: SC_1905 | I149: 2026-12-31 | J149: 2026-12-31 | K149: NO | L149: NO | M149: Guajira - Cesar - Madgalena | N149: NO | O149: 0 | P149: -2.511 | Q149: 221 | R149: 2
A150: SC_1908_A1 | B150: Corocoro 500 MW | C150: 2022-08-23T09:58:00 | D150: 44796.41528 | E150: 500 | F150: Solar FV | G150: La Loma 500 | H150: SC_1908 | I150: 2026-12-31 | J150: 2026-12-31 | K150: NO | L150: NO | M150: Guajira - Cesar - Madgalena | N150: NO | O150: 0 | P150: -256.43 | Q150: 257 | R150: 2
A151: SC_1908_A2 | B151: Corocoro 500 MW | C151: 2022-08-23T09:58:00 | D151: 44796.41528 | E151: 500 | F151: Solar FV | G151: Cuestecitas 500 | H151: SC_1908 | I151: 2026-12-31 | J151: 2026-12-31 | K151: NO | L151: NO | M151: Guajira - Cesar - Madgalena | N151: NO | O151: 0 | P151: -263.52 | Q151: 256 | R151: 2
A152: SC_1912_A1 | B152: Draco de 22.5 MW (entrega 19,9 MW) | C152: 2022-08-19T10:12:00 | D152: 44792.425 | E152: 19.9 | F152: Solar FV | G152: La jagua 34.5 | H152: SC_1912 | I152: 2025-12-29 | J152: 2025-12-29 | K152: NO | L152: NO | M152: Guajira - Cesar - Madgalena | N152: NO | O152: 0 | P152: 0.22586 | Q152: 241 | R152: 2
A153: SC_1912_A2 | B153: Draco de 22.5 MW (entrega 19,9 MW) | C153: 2022-08-19T10:12:00 | D153: 44792.425 | E153: 19.9 | F153: Solar FV | G153: La Jagua 110 | H153: SC_1912 | I153: 2025-12-29 | J153: 2025-12-29 | K153: NO | L153: NO | M153: Guajira - Cesar - Madgalena | N153: NO | O153: 0 | P153: 0.15984 | Q153: 240 | R153: 2
A154: SC_1920_A1 | B154: Parque Solar TERRɅ II 19.9 MW | C154: 2022-08-17T14:21:00 | D154: 44790.59792 | E154: 19.9 | F154: Solar FV | G154: Copey 34.5 1 | H154: SC_1920 | I154: 2024-06-30 | J154: 2024-06-30 | K154: NO | L154: NO | M154: Guajira - Cesar - Madgalena | N154: NO | O154: 0 | P154: -0.33536 | Q154: 231 | R154: 2
A155: SC_1920_A2 | B155: Parque Solar TERRɅ II 19.9 MW | C155: 2022-08-17T14:21:00 | D155: 44790.59792 | E155: 19.9 | F155: Solar FV | G155: Copey 110 | H155: SC_1920 | I155: 2024-06-30 | J155: 2024-06-30 | K155: NO | L155: NO | M155: Guajira - Cesar - Madgalena | N155: NO | O155: 0 | P155: -0.35393 | Q155: 230 | R155: 2
A156: SC_1928_A1 | B156: Jacamará 500 MW | C156: 2022-08-23T17:59:00 | D156: 44796.74931 | E156: 500 | F156: Solar FV | G156: La Loma 500 | H156: SC_1928 | I156: 2026-12-31 | J156: 2026-12-31 | K156: NO | L156: NO | M156: Guajira - Cesar - Madgalena | N156: NO | O156: 0 | P156: -256.43 | Q156: 259 | R156: 2
A157: SC_1928_A2 | B157: Jacamará 500 MW | C157: 2022-08-23T17:59:00 | D157: 44796.74931 | E157: 500 | F157: Solar FV | G157: Cuestecitas 500 | H157: SC_1928 | I157: 2026-12-31 | J157: 2026-12-31 | K157: NO | L157: NO | M157: Guajira - Cesar - Madgalena | N157: NO | O157: 0 | P157: -263.52 | Q157: 258 | R157: 2
A158: SC_1944_A1 | B158: MANANTIALES DE VERANO de 99.9 MW | C158: 2022-08-02T09:25:00 | D158: 44775.39236 | E158: 99.9 | F158: Solar FV | G158: Copey 110 | H158: SC_1944 | I158: 2026-12-18 | J158: 2026-12-18 | K158: NO | L158: NO | M158: Guajira - Cesar - Madgalena | N158: NO | O158: 0 | P158: -0.481 | Q158: 189 | R158: 2
A159: SC_1944_A2 | B159: MANANTIALES DE VERANO de 99.9 MW | C159: 2022-08-02T09:25:00 | D159: 44775.39236 | E159: 99.9 | F159: Solar FV | G159: Copey 220 | H159: SC_1944 | I159: 2026-12-18 | J159: 2026-12-18 | K159: NO | L159: NO | M159: Guajira - Cesar - Madgalena | N159: NO | O159: 0 | P159: -1.034 | Q159: 188 | R159: 2
A160: SC_1948_A1 | B160: PGF ROSARIO I | C160: 2022-08-09T21:43:00 | D160: 44782.90486 | E160: 95 | F160: Solar FV | G160: Valledupar 110 | H160: SC_1948 | I160: 2026-12-31 | J160: 2026-12-31 | K160: NO | L160: NO | M160: Guajira - Cesar - Madgalena | N160: NO | O160: 0 | P160: -9.372 | Q160: 202 | R160: 2
A161: SC_1948_A2 | B161: PGF ROSARIO I | C161: 2022-08-09T21:43:00 | D161: 44782.90486 | E161: 95 | F161: Solar FV | G161: Guatapurí 110 | H161: SC_1948 | I161: 2026-12-31 | J161: 2026-12-31 | K161: NO | L161: NO | M161: Guajira - Cesar - Madgalena | N161: NO | O161: 0 | P161: -6.548 | Q161: 201 | R161: 2
A162: SC_1967_A1 | B162: Solar Valledupar 4 | C162: 2022-08-16T22:09:00 | D162: 44789.92292 | E162: 19.9 | F162: Solar FV | G162: Valledupar34.5_B3 | H162: SC_1967 | I162: 2025-12-31 | J162: 2025-12-31 | K162: NO | L162: NO | M162: Guajira - Cesar - Madgalena | N162: NO | O162: 0 | P162: -1.17695 | Q162: 224 | R162: 2
A163: SC_1967_A2 | B163: Solar Valledupar 4 | C163: 2022-08-16T22:09:00 | D163: 44789.92292 | E163: 19.9 | F163: Solar FV | G163: Valledupar 13.8 T3 | H163: SC_1967 | I163: 2025-12-31 | J163: 2025-12-31 | K163: NO | L163: NO | M163: Guajira - Cesar - Madgalena | N163: NO | O163: 0 | P163: -2.6418 | Q163: 223 | R163: 2
A164: SC_1968_A1 | B164: Solar Valledupar 5 | C164: 2022-08-16T22:10:00 | D164: 44789.92361 | E164: 19.9 | F164: Solar FV | G164: Valledupar34.5_B3 | H164: SC_1968 | I164: 2025-12-31 | J164: 2025-12-31 | K164: NO | L164: NO | M164: Guajira - Cesar - Madgalena | N164: NO | O164: 0 | P164: -1.17695 | Q164: 226 | R164: 2
A165: SC_1968_A2 | B165: Solar Valledupar 5 | C165: 2022-08-16T22:10:00 | D165: 44789.92361 | E165: 19.9 | F165: Solar FV | G165: Valledupar 13.8 T3 | H165: SC_1968 | I165: 2025-12-31 | J165: 2025-12-31 | K165: NO | L165: NO | M165: Guajira - Cesar - Madgalena | N165: NO | O165: 0 | P165: -2.34405 | Q165: 225 | R165: 2
A166: SC_1978_A1 | B166: Solar El Copey | C166: 2022-08-16T22:34:00 | D166: 44789.94028 | E166: 230 | F166: Solar FV | G166: El Copey 500 | H166: SC_1978 | I166: 2025-12-31 | J166: 2025-12-31 | K166: NO | L166: NO | M166: Guajira - Cesar - Madgalena | N166: NO | O166: 0 | P166: -10.118 | Q166: 228 | R166: 2
A167: SC_1978_A2 | B167: Solar El Copey | C167: 2022-08-16T22:34:00 | D167: 44789.94028 | E167: 230 | F167: Solar FV | G167: La Loma 500 | H167: SC_1978 | I167: 2025-12-31 | J167: 2025-12-31 | K167: NO | L167: NO | M167: Guajira - Cesar - Madgalena | N167: NO | O167: 0 | P167: -7.829 | Q167: 227 | R167: 2
A168: SC_1981_A1 | B168: Solar Valledupar 2 | C168: 2022-08-16T10:07:00 | D168: 44789.42153 | E168: 19.9 | F168: Solar FV | G168: Valledupar34.5_B3 | H168: SC_1981 | I168: 2023-12-31 | J168: 2023-12-31 | K168: NO | L168: NO | M168: Guajira - Cesar - Madgalena | N168: NO | O168: 0 | P168: 0.61628 | Q168: 214 | R168: 2
A169: SC_1981_A2 | B169: Solar Valledupar 2 | C169: 2022-08-16T10:07:00 | D169: 44789.42153 | E169: 19.9 | F169: Solar FV | G169: Valledupar 13.8 T3 | H169: SC_1981 | I169: 2023-12-31 | J169: 2023-12-31 | K169: NO | L169: NO | M169: Guajira - Cesar - Madgalena | N169: NO | O169: 0 | P169: 0.37543 | Q169: 213 | R169: 2
A170: SC_1982_A1 | B170: Solar Valledupar 3 | C170: 2022-08-16T10:08:00 | D170: 44789.42222 | E170: 19.9 | F170: Solar FV | G170: Valledupar34.5_B3 | H170: SC_1982 | I170: 2025-12-31 | J170: 2025-12-31 | K170: NO | L170: NO | M170: Guajira - Cesar - Madgalena | N170: NO | O170: 0 | P170: -1.17695 | Q170: 216 | R170: 2
A171: SC_1982_A2 | B171: Solar Valledupar 3 | C171: 2022-08-16T10:08:00 | D171: 44789.42222 | E171: 19.9 | F171: Solar FV | G171: Valledupar 13.8 T3 | H171: SC_1982 | I171: 2025-12-31 | J171: 2025-12-31 | K171: NO | L171: NO | M171: Guajira - Cesar - Madgalena | N171: NO | O171: 0 | P171: -2.6418 | Q171: 215 | R171: =IF(L171="NO",2,1) -> 2
A172: SC_1989_A1 | B172: Solar Valledupar 1 | C172: 2022-08-16T10:28:00 | D172: 44789.43611 | E172: 19.9 | F172: Solar FV | G172: Valledupar34.5_B3 | H172: SC_1989 | I172: 2023-12-31 | J172: 2023-12-31 | K172: NO | L172: NO | M172: Guajira - Cesar - Madgalena | N172: NO | O172: 0 | P172: 0.61628 | Q172: 218 | R172: 2
A173: SC_1989_A2 | B173: Solar Valledupar 1 | C173: 2022-08-16T10:28:00 | D173: 44789.43611 | E173: 19.9 | F173: Solar FV | G173: Valledupar 13.8 T3 | H173: SC_1989 | I173: 2023-12-31 | J173: 2023-12-31 | K173: NO | L173: NO | M173: Guajira - Cesar - Madgalena | N173: NO | O173: 0 | P173: 0.37543 | Q173: 217 | R173: 2
A174: SC_1992_A1 | B174: Parque Solar TERRɅ III | C174: 2022-08-17T10:36:00 | D174: 44790.44167 | E174: 19.9 | F174: Solar FV | G174: Copey 34.5 1 | H174: SC_1992 | I174: 2024-06-01 | J174: 2024-06-01 | K174: NO | L174: NO | M174: Guajira - Cesar - Madgalena | N174: NO | O174: 0 | P174: -0.71029 | Q174: 229 | R174: 2
A175: SC_2005_A1 | B175: PARQUE SOLAR CATACA | C175: 2022-08-19T14:07:00 | D175: 44792.58819 | E175: 9.9 | F175: Solar FV | G175: Aracataca 34.5(1) | H175: SC_2005 | I175: 2024-12-31 | J175: 2024-12-31 | K175: NO | L175: NO | M175: Guajira - Cesar - Madgalena | N175: NO | O175: 0 | P175: 1.343346 | Q175: 242 | R175: 2
A176: SC_2010_A1 | B176: PARQUE SOLAR SAN JUAN_5MW | C176: 2022-08-22T14:21:00 | D176: 44795.59792 | E176: 5 | F176: Solar FV | G176: El reten 34.5 | H176: SC_2010 | I176: 2024-12-31 | J176: 2024-12-31 | K176: NO | L176: NO | M176: Guajira - Cesar - Madgalena | N176: NO | O176: 0 | P176: 0.8668 | Q176: 248 | R176: 2
A177: SC_2011_A1 | B177: PE Vientos de la Manita | C177: 2022-08-01T15:21:00 | D177: 44774.63958 | E177: 9.9 | F177: Eólico Onshore | G177: Ballenas 34.5 | H177: SC_2011 | I177: 2025-12-31 | J177: 2025-12-31 | K177: NO | L177: NO | M177: Guajira - Cesar - Madgalena | N177: NO | O177: 0 | P177: 2.18113 | Q177: 183 | R177: 2
A178: SC_2011_A2 | B178: PE Vientos de la Manita | C178: 2022-08-01T15:21:00 | D178: 44774.63958 | E178: 9.9 | F178: Eólico Onshore | G178: Manaure 34.5 | H178: SC_2011 | I178: 2025-12-31 | J178: 2025-12-31 | K178: NO | L178: NO | M178: Guajira - Cesar - Madgalena | N178: NO | O178: 0 | P178: 5.15183 | Q178: 182 | R178: 2
A179: SC_2020_A1 | B179: San Juan Solar I 9,9 MW | C179: 2022-08-12T17:06:00 | D179: 44785.7125 | E179: 9.9 | F179: Solar FV | G179: SAN JUAN 1 34.5 kV | H179: SC_2020 | I179: 2024-12-31 | J179: 2024-12-31 | K179: NO | L179: NO | M179: Guajira - Cesar - Madgalena | N179: NO | O179: 0 | P179: -0.576 | Q179: 208 | R179: 2
A180: SC_2020_A2 | B180: San Juan Solar I 9,9 MW | C180: 2022-08-12T17:06:00 | D180: 44785.7125 | E180: 9.9 | F180: Solar FV | G180: SAN JUAN 1 13.8 kV | H180: SC_2020 | I180: 2024-12-31 | J180: 2024-12-31 | K180: NO | L180: NO | M180: Guajira - Cesar - Madgalena | N180: NO | O180: 0 | P180: -0.579 | Q180: 207 | R180: 2
A181: SC_2021_A1 | B181: San Juan Solar II 9,9 MW | C181: 2022-08-12T17:07:00 | D181: 44785.71319 | E181: 9.9 | F181: Solar FV | G181: SAN JUAN 1 34.5 kV | H181: SC_2021 | I181: 2024-12-31 | J181: 2024-12-31 | K181: NO | L181: NO | M181: Guajira - Cesar - Madgalena | N181: NO | O181: 0 | P181: -0.576 | Q181: 210 | R181: 2
A182: SC_2021_A2 | B182: San Juan Solar II 9,9 MW | C182: 2022-08-12T17:07:00 | D182: 44785.71319 | E182: 9.9 | F182: Solar FV | G182: SAN JUAN 1 13.8 kV | H182: SC_2021 | I182: 2024-12-31 | J182: 2024-12-31 | K182: NO | L182: NO | M182: Guajira - Cesar - Madgalena | N182: NO | O182: 0 | P182: -0.579 | Q182: 209 | R182: 2
A183: SC_2056_A1 | B183: Saturno 200 MW | C183: 2022-06-30T10:20:00 | D183: 44742.43056 | E183: 200 | F183: Solar FV | G183: La Loma 500 | H183: SC_2056 | I183: 2025-12-31 | J183: 2025-12-31 | K183: NO | L183: NO | M183: Guajira - Cesar - Madgalena | N183: NO | O183: 0 | P183: 0.417582 | Q183: 30 | R183: 2
A184: SC_2057_A1 | B184: SABAN II - 305 MW | C184: 2022-07-02T10:21:00 | D184: 44744.43125 | E184: 305 | F184: Solar FV | G184: La Loma 500 | H184: SC_2057 | I184: 2027-12-31 | J184: 2027-12-31 | K184: NO | L184: NO | M184: Guajira - Cesar - Madgalena | N184: NO | O184: 0 | P184: -33.6 | Q184: 33 | R184: 2
A185: SC_2066_A1 | B185: Orquídea del Cesar - La Loma - 62 MW | C185: 2022-08-26T14:05:00 | D185: 44799.58681 | E185: 62 | F185: Solar FV | G185: La Loma 110 | H185: SC_2066 | I185: 2028-12-31 | J185: 2028-12-31 | K185: NO | L185: NO | M185: Guajira - Cesar - Madgalena | N185: NO | O185: 0 | P185: -12.907 | Q185: 267 | R185: 2
A186: SC_2066_A2 | B186: Orquídea del Cesar - La Loma - 62 MW | C186: 2022-08-26T14:05:00 | D186: 44799.58681 | E186: 62 | F186: Solar FV | G186: El Paso 110 | H186: SC_2066 | I186: 2028-12-31 | J186: 2028-12-31 | K186: NO | L186: NO | M186: Guajira - Cesar - Madgalena | N186: NO | O186: 0 | P186: -17.936 | Q186: 266 | R186: 2
A187: SC_2069_A1 | B187: Pétalo del Magdalena - Fundación | C187: 2022-08-22T14:09:00 | D187: 44795.58958 | E187: 9.9 | F187: Solar FV | G187: FUNDACION 2 34.5 kV | H187: SC_2069 | I187: 2026-12-31 | J187: 2026-12-31 | K187: NO | L187: NO | M187: Guajira - Cesar - Madgalena | N187: NO | O187: 0 | P187: -1.3 | Q187: 247 | R187: 2
A188: SC_2070_A1 | B188: Cactus del Cesar - La Loma | C188: 2022-08-26T14:10:00 | D188: 44799.59028 | E188: 19.9 | F188: Solar FV | G188: La loma 34.5 | H188: SC_2070 | I188: 2028-06-30 | J188: 2028-06-30 | K188: NO | L188: NO | M188: Guajira - Cesar - Madgalena | N188: NO | O188: 0 | P188: -4.223 | Q188: 269 | R188: 2
A189: SC_2070_A2 | B189: Cactus del Cesar - La Loma | C189: 2022-08-26T14:10:00 | D189: 44799.59028 | E189: 19.9 | F189: Solar FV | G189: La loma 13.8 | H189: SC_2070 | I189: 2028-06-30 | J189: 2028-06-30 | K189: NO | L189: NO | M189: Guajira - Cesar - Madgalena | N189: NO | O189: 0 | P189: -4.081 | Q189: 268 | R189: 2
A190: SC_2077_A1 | B190: PARQUE SOLAR GUACAMAYAL 9.9 | C190: 2022-08-22T14:25:00 | D190: 44795.60069 | E190: 9.9 | F190: Solar FV | G190: Guacamayal 34.5 | H190: SC_2077 | I190: 2024-12-31 | J190: 2024-12-31 | K190: NO | L190: NO | M190: Guajira - Cesar - Madgalena | N190: NO | O190: 0 | P190: 1.546 | Q190: 249 | R190: 2
A191: SC_2084_A1 | B191: Parque Solar Codazzi 1 19,9 MW | C191: 2022-08-18T14:40:00 | D191: 44791.61111 | E191: 19.9 | F191: Solar FV | G191: Codazzi GCM 110 | H191: SC_2084 | I191: 2026-06-30 | J191: 2026-06-30 | K191: NO | L191: NO | M191: Guajira - Cesar - Madgalena | N191: NO | O191: 0 | P191: -2.851425036 | Q191: 233 | R191: 2
A192: SC_2084_A2 | B192: Parque Solar Codazzi 1 19,9 MW | C192: 2022-08-18T14:40:00 | D192: 44791.61111 | E192: 19.9 | F192: Solar FV | G192: CODAZZI (CESAR) 1 34.5 kV | H192: SC_2084 | I192: 2026-06-30 | J192: 2026-06-30 | K192: NO | L192: NO | M192: Guajira - Cesar - Madgalena | N192: NO | O192: 0 | P192: -3.433043701 | Q192: 232 | R192: 2
A193: SC_2086_A1 | B193: PARQUE SOLAR SABANA SOLAR 19.9 | C193: 2022-08-22T14:42:00 | D193: 44795.6125 | E193: 19.9 | F193: Solar FV | G193: SAN JUAN 1 34.5 kV | H193: SC_2086 | I193: 2024-12-31 | J193: 2024-12-31 | K193: NO | L193: NO | M193: Guajira - Cesar - Madgalena | N193: NO | O193: 0 | P193: -0.0801 | Q193: 250 | R193: 2
A194: SC_2103_A1 | B194: PARQUE SOLAR PUERTA DEL SOL | C194: 2022-08-22T15:27:00 | D194: 44795.64375 | E194: 19.9 | F194: Solar FV | G194: FUNDACION 2 34.5 kV | H194: SC_2103 | I194: 2024-12-31 | J194: 2024-12-31 | K194: NO | L194: NO | M194: Guajira - Cesar - Madgalena | N194: NO | O194: 0 | P194: 0.2737 | Q194: 251 | R194: 2
A195: SC_2125_A1 | B195: Expansión Valledupar 100 MW | C195: 2022-08-25T17:40:00 | D195: 44798.73611 | E195: 100 | F195: Solar FV | G195: Valledupar 220 | H195: SC_2125 | I195: 2027-12-31 | J195: 2027-12-31 | K195: NO | L195: NO | M195: Guajira - Cesar - Madgalena | N195: SI | O195: 0 | P195: -8.61 | Q195: 265 | R195: 2
A196: SC_2125_A2 | B196: Expansión Valledupar 100 MW | C196: 2022-08-25T17:40:00 | D196: 44798.73611 | E196: 100 | F196: Solar FV | G196: Valledupar 110 | H196: SC_2125 | I196: 2027-12-31 | J196: 2027-12-31 | K196: NO | L196: NO | M196: Guajira - Cesar - Madgalena | N196: SI | O196: 0 | P196: -8.43 | Q196: 264 | R196: 2
A197: SC_2129_A2 | B197: DSE LA JAGUA DE IBIRICO | C197: 2022-08-08T18:04:00 | D197: 44781.75278 | E197: 9.9 | F197: Solar FV | G197: La jagua 34.5 | H197: SC_2129 | I197: 2025-07-31 | J197: 2025-07-31 | K197: NO | L197: NO | M197: Guajira - Cesar - Madgalena | N197: NO | O197: 0 | P197: -0.4 | Q197: 194 | R197: 2
A198: SC_2130_A1 | B198: Parque Solar Boreal | C198: 2022-08-18T18:06:00 | D198: 44791.75417 | E198: 100 | F198: Solar FV | G198: La Loma 500 | H198: SC_2130 | I198: 2028-11-24 | J198: 2028-11-24 | K198: NO | L198: NO | M198: Guajira - Cesar - Madgalena | N198: NO | O198: 0 | P198: -18.6 | Q198: 235 | R198: 2
A199: SC_2130_A2 | B199: Parque Solar Boreal | C199: 2022-08-18T18:06:00 | D199: 44791.75417 | E199: 100 | F199: Solar FV | G199: La Loma 110 | H199: SC_2130 | I199: 2028-11-24 | J199: 2028-11-24 | K199: NO | L199: NO | M199: Guajira - Cesar - Madgalena | N199: NO | O199: 0 | P199: -23.96 | Q199: 234 | R199: 2
A200: SC_2132_A1 | B200: El Encanto 9,9 MW | C200: 2022-08-22T18:14:00 | D200: 44795.75972 | E200: 9.9 | F200: Solar FV | G200: EL PASO 1 34.5 kV | H200: SC_2132 | I200: 2024-12-31 | J200: 2024-12-31 | K200: NO | L200: NO | M200: Guajira - Cesar - Madgalena | N200: NO | O200: 0 | P200: 0 | Q200: 252 | R200: 2
... 78 more rows

Sheet Hoja1 (hidden)
B1: a | C1: b | D1: c | E1: d | F1: e | L1: a | M1: b | T1: a | U1: b | V1: c | W1: d
B2: SC_170 | C2: 0 | D2: =COUNTIF(InfoPro!$H$2:$H$155,Hoja1!B2) -> 0 | E2: =COUNTIF(InfoPro!$H$2:$H$155,Hoja1!C2) -> 0 | F2: =IF(E2=0,IF(D2=0,"NO","SI"),"SI") -> NO | J2: SC_1753 | L2: SC_1753 | M2: =COUNTIF($J$2:$J$144,L2) -> 2 | T2: SC_9 | U2: =COUNTIF($B$2:$B$85,T2) -> 0 | V2: =COUNTIF($C$1:$C$84,T2) -> 0 | W2: =SUM(U2:V2) -> 0
B3: SC_314 | C3: SC_829 | D3: =COUNTIF(InfoPro!$H$2:$H$155,Hoja1!B3) -> 0 | E3: =COUNTIF(InfoPro!$H$2:$H$155,Hoja1!C3) -> 0 | F3: =IF(E3=0,IF(D3=0,"NO","SI"),"SI") -> NO | J3: SC_1753 | L3: SC_1753 | M3: =COUNTIF($J$2:$J$144,L3) -> 2 | T3: SC_36 | U3: =COUNTIF($B$2:$B$85,T3) -> 0 | V3: =COUNTIF($C$1:$C$84,T3) -> 0 | W3: =SUM(U3:V3) -> 0
B4: SC_436 | C4: 0 | D4: =COUNTIF(InfoPro!$H$2:$H$155,Hoja1!B4) -> 0 | E4: =COUNTIF(InfoPro!$H$2:$H$155,Hoja1!C4) -> 0 | F4: NO | J4: SC_1754 | L4: SC_1754 | M4: 2 | T4: SC_57 | U4: 0 | V4: 0 | W4: 0
B5: SC_484 | C5: 0 | D5: =COUNTIF(InfoPro!$H$2:$H$155,Hoja1!B5) -> 0 | E5: =COUNTIF(InfoPro!$H$2:$H$155,Hoja1!C5) -> 0 | F5: NO | J5: SC_1754 | L5: SC_1754 | M5: 2 | T5: SC_128 | U5: 0 | V5: 0 | W5: 0
B6: SC_501 | C6: 0 | D6: =COUNTIF(InfoPro!$H$2:$H$155,Hoja1!B6) -> 0 | E6: =COUNTIF(InfoPro!$H$2:$H$155,Hoja1!C6) -> 0 | F6: NO | J6: SC_1307 | L6: SC_1307 | M6: 2 | T6: SC_193 | U6: 0 | V6: 0 | W6: 0
B7: SC_640 | C7: SC_1753 | D7: =COUNTIF(InfoPro!$H$2:$H$155,Hoja1!B7) -> 0 | E7: =COUNTIF(InfoPro!$H$2:$H$155,Hoja1!C7) -> 0 | F7: NO | J7: SC_1307 | L7: SC_1307 | M7: 2 | T7: SC_204 | U7: 0 | V7: 0 | W7: 0
B8: SC_864 | C8: SC_1754 | D8: =COUNTIF(InfoPro!$H$2:$H$155,Hoja1!B8) -> 0 | E8: =COUNTIF(InfoPro!$H$2:$H$155,Hoja1!C8) -> 0 | F8: NO | J8: SC_1607 | L8: SC_1607 | M8: 2 | T8: SC_217 | U8: 0 | V8: 0 | W8: 0
B9: SC_646 | C9: SC_1307 | D9: =COUNTIF(InfoPro!$H$2:$H$155,Hoja1!B9) -> 0 | E9: =COUNTIF(InfoPro!$H$2:$H$155,Hoja1!C9) -> 0 | F9: NO | J9: SC_1607 | L9: SC_1607 | M9: 2 | T9: SC_919 | U9: 0 | V9: 0 | W9: 0
B10: SC_678 | C10: SC_1607 | D10: =COUNTIF(InfoPro!$H$2:$H$155,Hoja1!B10) -> 0 | E10: =COUNTIF(InfoPro!$H$2:$H$155,Hoja1!C10) -> 0 | F10: NO | J10: SC_1003 | L10: SC_1003 | M10: 2 | T10: SC_848 | U10: 0 | V10: 0 | W10: 0
B11: SC_1003 | C11: 0 | D11: =COUNTIF(InfoPro!$H$2:$H$155,Hoja1!B11) -> 0 | E11: =COUNTIF(InfoPro!$H$2:$H$155,Hoja1!C11) -> 0 | F11: NO | J11: SC_1003 | L11: SC_1003 | M11: 2 | T11: SC_947 | U11: 0 | V11: 0 | W11: 0
B12: SC_577 | C12: SC_2068 | D12: =COUNTIF(InfoPro!$H$2:$H$155,Hoja1!B12) -> 0 | E12: =COUNTIF(InfoPro!$H$2:$H$155,Hoja1!C12) -> 0 | F12: NO | J12: SC_2068 | L12: SC_2068 | M12: 2 | T12: SC_955 | U12: 0 | V12: 0 | W12: 0
B13: SC_545 | C13: 0 | D13: =COUNTIF(InfoPro!$H$2:$H$155,Hoja1!B13) -> 0 | E13: =COUNTIF(InfoPro!$H$2:$H$155,Hoja1!C13) -> 0 | F13: NO | J13: SC_2068 | L13: SC_2068 | M13: 2 | T13: SC_956 | U13: 1 | V13: 0 | W13: 1
B14: SC_969 | C14: 0 | D14: =COUNTIF(InfoPro!$H$2:$H$155,Hoja1!B14) -> 0 | E14: =COUNTIF(InfoPro!$H$2:$H$155,Hoja1!C14) -> 0 | F14: NO | J14: SC_969 | L14: SC_969 | M14: 2 | T14: SC_823 | U14: 0 | V14: 0 | W14: 0
B15: SC_970 | C15: 0 | D15: =COUNTIF(InfoPro!$H$2:$H$155,Hoja1!B15) -> 0 | E15: =COUNTIF(InfoPro!$H$2:$H$155,Hoja1!C15) -> 0 | F15: NO | J15: SC_969 | L15: SC_969 | M15: 2 | T15: SC_999 | U15: 0 | V15: 0 | W15: 0
B16: SC_385 | C16: SC_1372 | D16: =COUNTIF(InfoPro!$H$2:$H$155,Hoja1!B16) -> 0 | E16: =COUNTIF(InfoPro!$H$2:$H$155,Hoja1!C16) -> 0 | F16: NO | J16: SC_970 | L16: SC_970 | M16: 1 | T16: SC_1078 | U16: 0 | V16: 0 | W16: 0
B17: SC_537 | C17: 0 | D17: =COUNTIF(InfoPro!$H$2:$H$155,Hoja1!B17) -> 0 | E17: =COUNTIF(InfoPro!$H$2:$H$155,Hoja1!C17) -> 0 | F17: NO | J17: SC_537 | L17: SC_1372 | M17: 0 | T17: SC_1096 | U17: 0 | V17: 0 | W17: 0
B18: SC_765 | C18: 0 | D18: =COUNTIF(InfoPro!$H$2:$H$155,Hoja1!B18) -> 0 | E18: =COUNTIF(InfoPro!$H$2:$H$155,Hoja1!C18) -> 0 | F18: NO | J18: SC_765 | L18: SC_1372 | M18: 0 | T18: SC_1153 | U18: 0 | V18: 0 | W18: 0
B19: SC_784 | C19: 0 | D19: =COUNTIF(InfoPro!$H$2:$H$155,Hoja1!B19) -> 0 | E19: =COUNTIF(InfoPro!$H$2:$H$155,Hoja1!C19) -> 0 | F19: NO | J19: SC_765 | L19: SC_537 | M19: 1 | T19: SC_1213 | U19: 0 | V19: 0 | W19: 0
B20: SC_579 | C20: SC_1776 | D20: =COUNTIF(InfoPro!$H$2:$H$155,Hoja1!B20) -> 0 | E20: =COUNTIF(InfoPro!$H$2:$H$155,Hoja1!C20) -> 0 | F20: NO | J20: SC_784 | L20: SC_537 | M20: 1 | T20: SC_1225 | U20: 0 | V20: 0 | W20: 0
B21: SC_588 | C21: 0 | D21: =COUNTIF(InfoPro!$H$2:$H$155,Hoja1!B21) -> 0 | E21: =COUNTIF(InfoPro!$H$2:$H$155,Hoja1!C21) -> 0 | F21: NO | J21: SC_784 | L21: SC_765 | M21: 2 | T21: SC_1257 | U21: 0 | V21: 0 | W21: 0
B22: SC_629 | C22: 0 | D22: =COUNTIF(InfoPro!$H$2:$H$155,Hoja1!B22) -> 0 | E22: =COUNTIF(InfoPro!$H$2:$H$155,Hoja1!C22) -> 0 | F22: NO | J22: SC_1776 | L22: SC_765 | M22: 2 | T22: SC_1282 | U22: 0 | V22: 0 | W22: 0
B23: SC_631 | C23: 0 | D23: =COUNTIF(InfoPro!$H$2:$H$155,Hoja1!B23) -> 0 | E23: =COUNTIF(InfoPro!$H$2:$H$155,Hoja1!C23) -> 0 | F23: NO | J23: SC_1776 | L23: SC_784 | M23: 2 | T23: SC_1283 | U23: 0 | V23: 0 | W23: 0
B24: SC_647 | C24: SC_1705 | D24: =COUNTIF(InfoPro!$H$2:$H$155,Hoja1!B24) -> 0 | E24: =COUNTIF(InfoPro!$H$2:$H$155,Hoja1!C24) -> 0 | F24: NO | J24: SC_588 | L24: SC_784 | M24: 2 | T24: SC_1381 | U24: 0 | V24: 0 | W24: 0
B25: SC_674 | C25: SC_1795 | D25: =COUNTIF(InfoPro!$H$2:$H$155,Hoja1!B25) -> 0 | E25: =COUNTIF(InfoPro!$H$2:$H$155,Hoja1!C25) -> 0 | F25: NO | J25: SC_588 | L25: SC_1776 | M25: 2 | T25: SC_1386 | U25: 0 | V25: 0 | W25: 0
B26: SC_956 | C26: SC_1806 | D26: =COUNTIF(InfoPro!$H$2:$H$155,Hoja1!B26) -> 0 | E26: =COUNTIF(InfoPro!$H$2:$H$155,Hoja1!C26) -> 0 | F26: NO | J26: SC_629 | L26: SC_1776 | M26: 2 | T26: SC_1399 | U26: 0 | V26: 0 | W26: 0
B27: SC_960 | C27: 0 | D27: =COUNTIF(InfoPro!$H$2:$H$155,Hoja1!B27) -> 0 | E27: =COUNTIF(InfoPro!$H$2:$H$155,Hoja1!C27) -> 0 | F27: NO | J27: SC_629 | L27: SC_588 | M27: 2 | T27: SC_1407 | U27: 0 | V27: 0 | W27: 0
B28: SC_980 | C28: 0 | D28: =COUNTIF(InfoPro!$H$2:$H$155,Hoja1!B28) -> 0 | E28: =COUNTIF(InfoPro!$H$2:$H$155,Hoja1!C28) -> 0 | F28: NO | J28: SC_631 | L28: SC_588 | M28: 2 | T28: SC_1415 | U28: 0 | V28: 0 | W28: 0
B29: SC_995 | C29: 0 | D29: =COUNTIF(InfoPro!$H$2:$H$155,Hoja1!B29) -> 0 | E29: =COUNTIF(InfoPro!$H$2:$H$155,Hoja1!C29) -> 0 | F29: NO | J29: SC_631 | L29: SC_629 | M29: 2 | T29: SC_1420 | U29: 0 | V29: 0 | W29: 0
B30: SC_997 | C30: SC_1909 | D30: =COUNTIF(InfoPro!$H$2:$H$155,Hoja1!B30) -> 0 | E30: =COUNTIF(InfoPro!$H$2:$H$155,Hoja1!C30) -> 0 | F30: NO | J30: SC_1705 | L30: SC_629 | M30: 2 | T30: SC_1541 | U30: 0 | V30: 0 | W30: 0
B31: SC_1053 | C31: SC_1903 | D31: =COUNTIF(InfoPro!$H$2:$H$155,Hoja1!B31) -> 0 | E31: =COUNTIF(InfoPro!$H$2:$H$155,Hoja1!C31) -> 0 | F31: NO | J31: SC_1705 | L31: SC_631 | M31: 2 | T31: SC_1543 | U31: 0 | V31: 0 | W31: 0
B32: SC_1084 | C32: SC_1939 | D32: =COUNTIF(InfoPro!$H$2:$H$155,Hoja1!B32) -> 0 | E32: =COUNTIF(InfoPro!$H$2:$H$155,Hoja1!C32) -> 0 | F32: NO | J32: SC_1795 | L32: SC_631 | M32: 2 | T32: SC_1450 | U32: 0 | V32: 0 | W32: 0
B33: SC_831 | C33: 0 | D33: =COUNTIF(InfoPro!$H$2:$H$155,Hoja1!B33) -> 0 | E33: =COUNTIF(InfoPro!$H$2:$H$155,Hoja1!C33) -> 0 | F33: NO | J33: SC_1795 | L33: SC_1705 | M33: 2 | T33: SC_1570 | U33: 0 | V33: 0 | W33: 0
B34: SC_1101 | C34: 0 | D34: =COUNTIF(InfoPro!$H$2:$H$155,Hoja1!B34) -> 0 | E34: =COUNTIF(InfoPro!$H$2:$H$155,Hoja1!C34) -> 0 | F34: NO | J34: SC_960 | L34: SC_1795 | M34: 2 | T34: SC_1566 | U34: 0 | V34: 0 | W34: 0
B35: SC_1123 | C35: 0 | D35: =COUNTIF(InfoPro!$H$2:$H$155,Hoja1!B35) -> 0 | E35: =COUNTIF(InfoPro!$H$2:$H$155,Hoja1!C35) -> 0 | F35: NO | J35: SC_980 | L35: SC_1795 | M35: 2 | T35: SC_1598 | U35: 0 | V35: 0 | W35: 0
B36: SC_1143 | C36: SC_1896 | D36: =COUNTIF(InfoPro!$H$2:$H$155,Hoja1!B36) -> 0 | E36: =COUNTIF(InfoPro!$H$2:$H$155,Hoja1!C36) -> 0 | F36: NO | J36: SC_980 | L36: SC_1806 | M36: 0 | T36: SC_1602 | U36: 0 | V36: 0 | W36: 0
B37: SC_1146 | C37: SC_1915 | D37: =COUNTIF(InfoPro!$H$2:$H$155,Hoja1!B37) -> 0 | E37: =COUNTIF(InfoPro!$H$2:$H$155,Hoja1!C37) -> 0 | F37: NO | J37: SC_995 | L37: SC_1806 | M37: 0 | T37: SC_1603 | U37: 0 | V37: 0 | W37: 0
B38: SC_1149 | C38: SC_2003 | D38: =COUNTIF(InfoPro!$H$2:$H$155,Hoja1!B38) -> 0 | E38: =COUNTIF(InfoPro!$H$2:$H$155,Hoja1!C38) -> 0 | F38: NO | J38: SC_1909 | L38: SC_960 | M38: 1 | T38: SC_1616 | U38: 0 | V38: 0 | W38: 0
B39: SC_1151 | C39: SC_1929 | D39: =COUNTIF(InfoPro!$H$2:$H$155,Hoja1!B39) -> 0 | E39: =COUNTIF(InfoPro!$H$2:$H$155,Hoja1!C39) -> 0 | F39: NO | J39: SC_1909 | L39: SC_980 | M39: 2 | T39: SC_1651 | U39: 0 | V39: 0 | W39: 0
B40: SC_1156 | C40: SC_1963 | D40: =COUNTIF(InfoPro!$H$2:$H$155,Hoja1!B40) -> 0 | E40: =COUNTIF(InfoPro!$H$2:$H$155,Hoja1!C40) -> 0 | F40: NO | J40: SC_1903 | L40: SC_980 | M40: 2 | T40: SC_1673 | U40: 0 | V40: 0 | W40: 0
B41: SC_1157 | C41: SC_1969 | D41: =COUNTIF(InfoPro!$H$2:$H$155,Hoja1!B41) -> 0 | E41: =COUNTIF(InfoPro!$H$2:$H$155,Hoja1!C41) -> 0 | F41: NO | J41: SC_1903 | L41: SC_995 | M41: 1 | T41: SC_1681 | U41: 0 | V41: 0 | W41: 0
B42: SC_1159 | C42: SC_1975 | D42: =COUNTIF(InfoPro!$H$2:$H$155,Hoja1!B42) -> 0 | E42: =COUNTIF(InfoPro!$H$2:$H$155,Hoja1!C42) -> 0 | F42: NO | J42: SC_1939 | L42: SC_1909 | M42: 2 | T42: SC_1687 | U42: 0 | V42: 0 | W42: 0
B43: SC_1163 | C43: SC_1976 | D43: =COUNTIF(InfoPro!$H$2:$H$155,Hoja1!B43) -> 0 | E43: =COUNTIF(InfoPro!$H$2:$H$155,Hoja1!C43) -> 0 | F43: NO | J43: SC_831 | L43: SC_1909 | M43: 2 | T43: SC_1688 | U43: 1 | V43: 0 | W43: 1
B44: SC_1166 | C44: SC_1801 | D44: =COUNTIF(InfoPro!$H$2:$H$155,Hoja1!B44) -> 0 | E44: =COUNTIF(InfoPro!$H$2:$H$155,Hoja1!C44) -> 0 | F44: NO | J44: SC_831 | L44: SC_1903 | M44: 2 | T44: SC_1726 | U44: 0 | V44: 0 | W44: 0
B45: SC_1170 | C45: SC_1832 | D45: =COUNTIF(InfoPro!$H$2:$H$155,Hoja1!B45) -> 0 | E45: =COUNTIF(InfoPro!$H$2:$H$155,Hoja1!C45) -> 0 | F45: NO | J45: SC_1101 | L45: SC_1903 | M45: 2 | T45: SC_1734 | U45: 0 | V45: 0 | W45: 0
B46: SC_1172 | C46: SC_1841 | D46: =COUNTIF(InfoPro!$H$2:$H$155,Hoja1!B46) -> 0 | E46: =COUNTIF(InfoPro!$H$2:$H$155,Hoja1!C46) -> 0 | F46: NO | J46: SC_1101 | L46: SC_1939 | M46: 1 | T46: SC_1748 | U46: 0 | V46: 0 | W46: 0
B47: SC_1184 | C47: 0 | D47: =COUNTIF(InfoPro!$H$2:$H$155,Hoja1!B47) -> 0 | E47: =COUNTIF(InfoPro!$H$2:$H$155,Hoja1!C47) -> 0 | F47: NO | J47: SC_1123 | L47: SC_831 | M47: 2 | T47: SC_1001 | U47: 0 | V47: 0 | W47: 0
B48: SC_1193 | C48: SC_2097 | D48: =COUNTIF(InfoPro!$H$2:$H$155,Hoja1!B48) -> 0 | E48: =COUNTIF(InfoPro!$H$2:$H$155,Hoja1!C48) -> 0 | F48: NO | J48: SC_1896 | L48: SC_831 | M48: 2 | T48: SC_1030 | U48: 0 | V48: 0 | W48: 0
B49: SC_1196 | C49: 0 | D49: =COUNTIF(InfoPro!$H$2:$H$155,Hoja1!B49) -> 0 | E49: =COUNTIF(InfoPro!$H$2:$H$155,Hoja1!C49) -> 0 | F49: NO | J49: SC_1896 | L49: SC_1101 | M49: 2 | T49: SC_1623 | U49: 0 | V49: 0 | W49: 0
B50: SC_1209 | C50: 0 | D50: =COUNTIF(InfoPro!$H$2:$H$155,Hoja1!B50) -> 0 | E50: =COUNTIF(InfoPro!$H$2:$H$155,Hoja1!C50) -> 0 | F50: NO | J50: SC_1915 | L50: SC_1101 | M50: 2 | T50: SC_1639 | U50: 0 | V50: 0 | W50: 0
B51: SC_1210 | C51: SC_1813 | D51: =COUNTIF(InfoPro!$H$2:$H$155,Hoja1!B51) -> 0 | E51: =COUNTIF(InfoPro!$H$2:$H$155,Hoja1!C51) -> 0 | F51: NO | J51: SC_2003 | L51: SC_1123 | M51: 1 | T51: SC_1646 | U51: 0 | V51: 0 | W51: 0
B52: SC_1240 | C52: SC_2285 | D52: =COUNTIF(InfoPro!$H$2:$H$155,Hoja1!B52) -> 0 | E52: =COUNTIF(InfoPro!$H$2:$H$155,Hoja1!C52) -> 0 | F52: NO | J52: SC_2003 | L52: SC_1896 | M52: 2 | T52: SC_2269 | U52: 0 | V52: 0 | W52: 0
B53: SC_1241 | C53: 0 | D53: =COUNTIF(InfoPro!$H$2:$H$155,Hoja1!B53) -> 0 | E53: =COUNTIF(InfoPro!$H$2:$H$155,Hoja1!C53) -> 0 | F53: NO | J53: SC_1929 | L53: SC_1896 | M53: 2 | T53: SC_1613 | U53: 0 | V53: 0 | W53: 0
B54: SC_1260 | C54: 0 | D54: =COUNTIF(InfoPro!$H$2:$H$155,Hoja1!B54) -> 0 | E54: =COUNTIF(InfoPro!$H$2:$H$155,Hoja1!C54) -> 0 | F54: NO | J54: SC_1963 | L54: SC_1915 | M54: 1 | T54: SC_1079 | U54: 0 | V54: 0 | W54: 0
B55: SC_1290 | C55: 0 | D55: =COUNTIF(InfoPro!$H$2:$H$155,Hoja1!B55) -> 0 | E55: =COUNTIF(InfoPro!$H$2:$H$155,Hoja1!C55) -> 0 | F55: NO | J55: SC_1963 | L55: SC_2003 | M55: 2 | T55: SC_1659 | U55: 0 | V55: 0 | W55: 0
B56: SC_1428 | C56: 0 | D56: =COUNTIF(InfoPro!$H$2:$H$155,Hoja1!B56) -> 0 | E56: =COUNTIF(InfoPro!$H$2:$H$155,Hoja1!C56) -> 0 | F56: NO | J56: SC_1969 | L56: SC_2003 | M56: 2 | T56: SC_1751 | U56: 0 | V56: 0 | W56: 0
B57: SC_1437 | C57: SC_2045 | D57: =COUNTIF(InfoPro!$H$2:$H$155,Hoja1!B57) -> 0 | E57: =COUNTIF(InfoPro!$H$2:$H$155,Hoja1!C57) -> 0 | F57: NO | J57: SC_1969 | L57: SC_1929 | M57: 1 | T57: SC_1565 | U57: 0 | V57: 0 | W57: 0
B58: SC_1441 | C58: SC_2047 | D58: =COUNTIF(InfoPro!$H$2:$H$155,Hoja1!B58) -> 0 | E58: =COUNTIF(InfoPro!$H$2:$H$155,Hoja1!C58) -> 0 | F58: NO | J58: SC_1975 | L58: SC_1963 | M58: 2 | T58: SC_1686 | U58: 0 | V58: 0 | W58: 0
B59: SC_1443 | C59: SC_2048 | D59: =COUNTIF(InfoPro!$H$2:$H$155,Hoja1!B59) -> 0 | E59: =COUNTIF(InfoPro!$H$2:$H$155,Hoja1!C59) -> 0 | F59: NO | J59: SC_1975 | L59: SC_1963 | M59: 2 | T59: SC_1708 | U59: 0 | V59: 0 | W59: 0
B60: SC_1440 | C60: SC_2009 | D60: =COUNTIF(InfoPro!$H$2:$H$155,Hoja1!B60) -> 0 | E60: =COUNTIF(InfoPro!$H$2:$H$155,Hoja1!C60) -> 0 | F60: NO | J60: SC_1976 | L60: SC_1969 | M60: 2 | T60: SC_1692 | U60: 0 | V60: 0 | W60: 0
B61: SC_1453 | C61: SC_2022 | D61: =COUNTIF(InfoPro!$H$2:$H$155,Hoja1!B61) -> 0 | E61: =COUNTIF(InfoPro!$H$2:$H$155,Hoja1!C61) -> 0 | F61: NO | J61: SC_1976 | L61: SC_1969 | M61: 2 | T61: SC_1595 | U61: 0 | V61: 0 | W61: 0
B62: SC_1458 | C62: SC_2034 | D62: =COUNTIF(InfoPro!$H$2:$H$155,Hoja1!B62) -> 0 | E62: =COUNTIF(InfoPro!$H$2:$H$155,Hoja1!C62) -> 0 | F62: NO | J62: SC_1801 | L62: SC_1975 | M62: 2 | T62: SC_1700 | U62: 0 | V62: 0 | W62: 0
B63: SC_1460 | C63: SC_2036 | D63: =COUNTIF(InfoPro!$H$2:$H$155,Hoja1!B63) -> 0 | E63: =COUNTIF(InfoPro!$H$2:$H$155,Hoja1!C63) -> 0 | F63: NO | J63: SC_1832 | L63: SC_1975 | M63: 2 | T63: SC_2061 | U63: 0 | V63: 0 | W63: 0
B64: SC_1524 | C64: SC_2099 | D64: =COUNTIF(InfoPro!$H$2:$H$155,Hoja1!B64) -> 0 | E64: =COUNTIF(InfoPro!$H$2:$H$155,Hoja1!C64) -> 0 | F64: NO | J64: SC_1832 | L64: SC_1976 | M64: 2 | T64: SC_2129 | U64: 0 | V64: 0 | W64: 0
B65: SC_1525 | C65: 0 | D65: =COUNTIF(InfoPro!$H$2:$H$155,Hoja1!B65) -> 0 | E65: =COUNTIF(InfoPro!$H$2:$H$155,Hoja1!C65) -> 0 | F65: NO | J65: SC_1841 | L65: SC_1976 | M65: 2 | T65: SC_1805 | U65: 0 | V65: 0 | W65: 0
B66: SC_1486 | C66: SC_1945 | D66: =COUNTIF(InfoPro!$H$2:$H$155,Hoja1!B66) -> 0 | E66: =COUNTIF(InfoPro!$H$2:$H$155,Hoja1!C66) -> 0 | F66: NO | J66: SC_1841 | L66: SC_1801 | M66: 1 | T66: SC_1806 | U66: 0 | V66: 1 | W66: 1
B67: SC_1488 | C67: SC_2012 | D67: =COUNTIF(InfoPro!$H$2:$H$155,Hoja1!B67) -> 0 | E67: =COUNTIF(InfoPro!$H$2:$H$155,Hoja1!C67) -> 0 | F67: =IF(E67=0,IF(D67=0,"NO","SI"),"SI") -> NO | J67: SC_1184 | L67: SC_1832 | M67: =COUNTIF($J$2:$J$144,L67) -> 2 | T67: SC_1803 | U67: =COUNTIF($B$2:$B$85,T67) -> 0 | V67: =COUNTIF($C$1:$C$84,T67) -> 0 | W67: =SUM(U67:V67) -> 0
B68: SC_1516 | C68: SC_2179 | D68: =COUNTIF(InfoPro!$H$2:$H$155,Hoja1!B68) -> 0 | E68: =COUNTIF(InfoPro!$H$2:$H$155,Hoja1!C68) -> 0 | F68: NO | J68: SC_1184 | L68: SC_1832 | M68: 2 | T68: SC_2274 | U68: 0 | V68: 0 | W68: 0
B69: SC_1521 | C69: 0 | D69: =COUNTIF(InfoPro!$H$2:$H$155,Hoja1!B69) -> 0 | E69: =COUNTIF(InfoPro!$H$2:$H$155,Hoja1!C69) -> 0 | F69: NO | J69: SC_2097 | L69: SC_1841 | M69: 2 | T69: SC_1814 | U69: 0 | V69: 0 | W69: 0
B70: SC_1522 | C70: SC_2201 | D70: =COUNTIF(InfoPro!$H$2:$H$155,Hoja1!B70) -> 0 | E70: =COUNTIF(InfoPro!$H$2:$H$155,Hoja1!C70) -> 0 | F70: NO | J70: SC_2097 | L70: SC_1841 | M70: 2 | T70: SC_1932 | U70: 0 | V70: 0 | W70: 0
B71: SC_1574 | C71: SC_2203 | D71: =COUNTIF(InfoPro!$H$2:$H$155,Hoja1!B71) -> 0 | E71: =COUNTIF(InfoPro!$H$2:$H$155,Hoja1!C71) -> 0 | F71: NO | J71: SC_1196 | L71: SC_1184 | M71: 2 | T71: SC_1940 | U71: 0 | V71: 0 | W71: 0
B72: SC_1576 | C72: SC_2204 | D72: =COUNTIF(InfoPro!$H$2:$H$155,Hoja1!B72) -> 0 | E72: =COUNTIF(InfoPro!$H$2:$H$155,Hoja1!C72) -> 0 | F72: NO | J72: SC_1196 | L72: SC_1184 | M72: 2 | T72: SC_2052 | U72: 0 | V72: 0 | W72: 0
B73: SC_1562 | C73: SC_2146 | D73: =COUNTIF(InfoPro!$H$2:$H$155,Hoja1!B73) -> 0 | E73: =COUNTIF(InfoPro!$H$2:$H$155,Hoja1!C73) -> 0 | F73: NO | J73: SC_1209 | L73: SC_2097 | M73: 2 | T73: SC_2053 | U73: 0 | V73: 0 | W73: 0
B74: SC_1582 | C74: SC_2000 | D74: =COUNTIF(InfoPro!$H$2:$H$155,Hoja1!B74) -> 0 | E74: =COUNTIF(InfoPro!$H$2:$H$155,Hoja1!C74) -> 0 | F74: NO | J74: SC_1209 | L74: SC_2097 | M74: 2 | T74: SC_1785 | U74: 0 | V74: 0 | W74: 0
B75: SC_1586 | C75: SC_2019 | D75: =COUNTIF(InfoPro!$H$2:$H$155,Hoja1!B75) -> 0 | E75: =COUNTIF(InfoPro!$H$2:$H$155,Hoja1!C75) -> 0 | F75: NO | J75: SC_2285 | L75: SC_1196 | M75: 2 | T75: SC_2152 | U75: 0 | V75: 0 | W75: 0
B76: SC_1589 | C76: SC_2027 | D76: =COUNTIF(InfoPro!$H$2:$H$155,Hoja1!B76) -> 0 | E76: =COUNTIF(InfoPro!$H$2:$H$155,Hoja1!C76) -> 0 | F76: NO | J76: SC_1241 | L76: SC_1196 | M76: 2 | T76: SC_2154 | U76: 0 | V76: 0 | W76: 0
B77: SC_1641 | C77: SC_2256 | D77: =COUNTIF(InfoPro!$H$2:$H$155,Hoja1!B77) -> 0 | E77: =COUNTIF(InfoPro!$H$2:$H$155,Hoja1!C77) -> 0 | F77: NO | J77: SC_1241 | L77: SC_1209 | M77: 2 | T77: SC_2030 | U77: 0 | V77: 0 | W77: 0
B78: SC_1660 | C78: SC_2336 | D78: =COUNTIF(InfoPro!$H$2:$H$155,Hoja1!B78) -> 0 | E78: =COUNTIF(InfoPro!$H$2:$H$155,Hoja1!C78) -> 0 | F78: NO | J78: SC_1260 | L78: SC_1209 | M78: 2 | T78: SC_2096 | U78: 0 | V78: 0 | W78: 0
B79: SC_1669 | C79: SC_2186 | D79: =COUNTIF(InfoPro!$H$2:$H$155,Hoja1!B79) -> 0 | E79: =COUNTIF(InfoPro!$H$2:$H$155,Hoja1!C79) -> 0 | F79: NO | J79: SC_1260 | L79: SC_1813 | M79: 0 | T79: SC_2199 | U79: 0 | V79: 0 | W79: 0
B80: SC_1688 | C80: 0 | D80: =COUNTIF(InfoPro!$H$2:$H$155,Hoja1!B80) -> 0 | E80: =COUNTIF(InfoPro!$H$2:$H$155,Hoja1!C80) -> 0 | F80: NO | J80: SC_1290 | L80: SC_1813 | M80: 0 | T80: SC_2221 | U80: 0 | V80: 0 | W80: 0
B81: SC_1690 | C81: SC_2192 | D81: =COUNTIF(InfoPro!$H$2:$H$155,Hoja1!B81) -> 0 | E81: =COUNTIF(InfoPro!$H$2:$H$155,Hoja1!C81) -> 0 | F81: NO | J81: SC_1428 | L81: SC_2285 | M81: 1 | T81: SC_1973 | U81: 0 | V81: 0 | W81: 0
B82: SC_1701 | C82: SC_2216 | D82: =COUNTIF(InfoPro!$H$2:$H$155,Hoja1!B82) -> 0 | E82: =COUNTIF(InfoPro!$H$2:$H$155,Hoja1!C82) -> 0 | F82: NO | J82: SC_1428 | L82: SC_1241 | M82: 2 | T82: SC_1984 | U82: 0 | V82: 0 | W82: 0
B83: SC_1736 | C83: SC_2187 | D83: =COUNTIF(InfoPro!$H$2:$H$155,Hoja1!B83) -> 0 | E83: =COUNTIF(InfoPro!$H$2:$H$155,Hoja1!C83) -> 0 | F83: NO | J83: SC_2045 | L83: SC_1241 | M83: 2 | T83: SC_2091 | U83: 0 | V83: 0 | W83: 0
B84: SC_1739 | C84: SC_2122 | D84: =COUNTIF(InfoPro!$H$2:$H$155,Hoja1!B84) -> 0 | E84: =COUNTIF(InfoPro!$H$2:$H$155,Hoja1!C84) -> 0 | F84: NO | J84: SC_2045 | L84: SC_1260 | M84: 2 | T84: SC_2106 | U84: 0 | V84: 0 | W84: 0
B85: SC_1741 | C85: 0 | D85: =COUNTIF(InfoPro!$H$2:$H$155,Hoja1!B85) -> 0 | E85: =COUNTIF(InfoPro!$H$2:$H$155,Hoja1!C85) -> 0 | F85: NO | J85: SC_2047 | L85: SC_1260 | M85: 2 | T85: SC_1996 | U85: 0 | V85: 0 | W85: 0
J86: SC_2047 | L86: SC_1290 | M86: 1 | T86: SC_2243 | U86: 0 | V86: 0 | W86: 0
J87: SC_2048 | L87: SC_1428 | M87: 2 | T87: SC_2148 | U87: 0 | V87: 0 | W87: 0
J88: SC_2048 | L88: SC_1428 | M88: 2 | T88: SC_2050 | U88: 0 | V88: 0 | W88: 0
J89: SC_2009 | L89: SC_2045 | M89: 2 | T89: SC_2093 | U89: 0 | V89: 0 | W89: 0
J90: SC_2009 | L90: SC_2045 | M90: 2 | T90: SC_2092 | U90: 0 | V90: 0 | W90: 0
J91: SC_2022 | L91: SC_2047 | M91: 2 | T91: SC_2141 | U91: 0 | V91: 0 | W91: 0
J92: SC_2022 | L92: SC_2047 | M92: 2 | T92: SC_2073 | U92: 0 | V92: 0 | W92: 0
J93: SC_2034 | L93: SC_2048 | M93: 2 | T93: SC_2181 | U93: 0 | V93: 0 | W93: 0
J94: SC_2034 | L94: SC_2048 | M94: 2 | T94: SC_2164 | U94: 0 | V94: 0 | W94: 0
J95: SC_2036 | L95: SC_2009 | M95: 2 | T95: SC_2182 | U95: 0 | V95: 0 | W95: 0
J96: SC_2036 | L96: SC_2009 | M96: 2 | T96: SC_2230 | U96: 0 | V96: 0 | W96: 0
J97: SC_2099 | L97: SC_2022 | M97: 2 | T97: SC_2244 | U97: 0 | V97: 0 | W97: 0
J98: SC_2099 | L98: SC_2022 | M98: 2 | T98: SC_2161 | U98: 0 | V98: 0 | W98: 0
J99: SC_1525 | L99: SC_2034 | M99: 2 | T99: SC_2196 | U99: 0 | V99: 0 | W99: 0
J100: SC_1525 | L100: SC_2034 | M100: 2 | T100: SC_1890 | U100: 0 | V100: 0 | W100: 0
J101: SC_1945 | L101: SC_2036 | M101: 2 | T101: SC_1893 | U101: 0 | V101: 0 | W101: 0
J102: SC_1945 | L102: SC_2036 | M102: 2 | T102: SC_2082 | U102: 0 | V102: 0 | W102: 0
J103: SC_2179 | L103: SC_2099 | M103: 2 | T103: SC_2142 | U103: 0 | V103: 0 | W103: 0
J104: SC_2179 | L104: SC_2099 | M104: 2 | T104: SC_2197 | U104: 0 | V104: 0 | W104: 0
J105: SC_1521 | L105: SC_1525 | M105: 2 | T105: SC_2282 | U105: 0 | V105: 0 | W105: 0
J106: SC_2201 | L106: SC_1525 | M106: 2 | T106: SC_2134 | U106: 0 | V106: 0 | W106: 0
J107: SC_2201 | L107: SC_1945 | M107: 2 | T107: SC_1871 | U107: 0 | V107: 0 | W107: 0
J108: SC_2203 | L108: SC_1945 | M108: 2
J109: SC_2203 | L109: SC_2012 | M109: 0
J110: SC_2146 | L110: SC_2012 | M110: 0
J111: SC_2146 | L111: SC_2179 | M111: 2
J112: SC_2000 | L112: SC_2179 | M112: 2
J113: SC_2000 | L113: SC_1521 | M113: 1
J114: SC_2019 | L114: SC_2201 | M114: 2
J115: SC_2019 | L115: SC_2201 | M115: 2
J116: SC_2256 | L116: SC_2203 | M116: 2
J117: SC_2256 | L117: SC_2203 | M117: 2
J118: SC_2336 | L118: SC_2204 | M118: 0
J119: SC_2336 | L119: SC_2204 | M119: 0
J120: SC_2186 | L120: SC_2146 | M120: 2
J121: SC_2186 | L121: SC_2146 | M121: 2
J122: SC_1688 | L122: SC_2000 | M122: 2
J123: SC_1688 | L123: SC_2000 | M123: 2
J124: SC_2192 | L124: SC_2019 | M124: 2
J125: SC_2192 | L125: SC_2019 | M125: 2
J126: SC_2216 | L126: SC_2027 | M126: 0
J127: SC_2216 | L127: SC_2027 | M127: 0
J128: SC_2187 | L128: SC_2027 | M128: 0
J129: SC_2187 | L129: SC_2256 | M129: 2
J130: SC_2122 | L130: SC_2256 | M130: 2
J131: SC_2122 | L131: SC_2336 | M131: =COUNTIF($J$2:$J$144,L131) -> 2
J132: SC_1741 | L132: SC_2336 | M132: 2
J133: SC_1741 | L133: SC_2186 | M133: 2
J134: SC_170 | L134: SC_2186 | M134: 2
J135: SC_170 | L135: SC_1688 | M135: 2
J136: SC_829 | L136: SC_1688 | M136: 2
J137: SC_829 | L137: SC_2192 | M137: 2
J138: SC_436 | L138: SC_2192 | M138: 2
J139: SC_436 | L139: SC_2216 | M139: 2
J140: SC_484 | L140: SC_2216 | M140: 2
J141: SC_501 | L141: SC_2187 | M141: 2
J142: SC_501 | L142: SC_2187 | M142: 2
J143: SC_545 | L143: SC_2122 | M143: 2
J144: SC_545 | L144: SC_2122 | M144: 2
L145: SC_1741 | M145: 2
L146: SC_1741 | M146: 2
L147: SC_68 | M147: 0
L148: SC_170 | M148: 2
L149: SC_170 | M149: 2
L150: SC_829 | M150: 2
L151: SC_829 | M151: 2
L152: SC_436 | M152: 2
L153: SC_436 | M153: 2
L154: SC_484 | M154: 1
L155: SC_501 | M155: 2
L156: SC_501 | M156: 2
L157: SC_545 | M157: 2
L158: SC_545 | M158: 2

Sheet IT-TA
B1: Codigo | C1: Nombre | D1: Capacidad | E1: Licencia Ambiental obtenida | F1: Año de entrada | G1: P | H1: Total | J1: Año de Referencia
B2: =IF(ISBLANK(InfoPro!A2),"",InfoPro!A2) -> SC_1373_A1 | C2: =IF(ISBLANK(InfoPro!B2),"",InfoPro!B2) -> Pétalo del Magdalena II Guacamayal | D2: =IF(ISBLANK(InfoPro!E2),"",InfoPro!E2) -> 9.9 | E2: =IF(ISBLANK(InfoPro!N2),"",InfoPro!N2) -> NO | F2: =IF(ISBLANK(InfoPro!I2),"",YEAR(InfoPro!I2)-$J$2) -> 3 | G2: =IF(E2="SI",100,IF(E2="NO",0,"")) -> 0 | H2: =IF(G2="","",(G2)) -> 0 | J2: 2023
B3: =IF(ISBLANK(InfoPro!A3),"",InfoPro!A3) -> SC_1373_A2 | C3: =IF(ISBLANK(InfoPro!B3),"",InfoPro!B3) -> Pétalo del Magdalena II Guacamayal | D3: =IF(ISBLANK(InfoPro!E3),"",InfoPro!E3) -> 9.9 | E3: =IF(ISBLANK(InfoPro!N3),"",InfoPro!N3) -> NO | F3: =IF(ISBLANK(InfoPro!I3),"",YEAR(InfoPro!I3)-$J$2) -> 3 | G3: =IF(E3="SI",100,IF(E3="NO",0,"")) -> 0 | H3: =IF(G3="","",(G3)) -> 0
B4: =IF(ISBLANK(InfoPro!A4),"",InfoPro!A4) -> SC_1012_A1 | C4: =IF(ISBLANK(InfoPro!B4),"",InfoPro!B4) -> PARQUE SOLAR FOTOVOLTAICO TUNA | D4: =IF(ISBLANK(InfoPro!E4),"",InfoPro!E4) -> 100 | E4: =IF(ISBLANK(InfoPro!N4),"",InfoPro!N4) -> NO | F4: =IF(ISBLANK(InfoPro!I4),"",YEAR(InfoPro!I4)-$J$2) -> 3 | G4: 0 | H4: 0
B5: =IF(ISBLANK(InfoPro!A5),"",InfoPro!A5) -> SC_1012_A2 | C5: =IF(ISBLANK(InfoPro!B5),"",InfoPro!B5) -> PARQUE SOLAR FOTOVOLTAICO TUNA | D5: =IF(ISBLANK(InfoPro!E5),"",InfoPro!E5) -> 100 | E5: =IF(ISBLANK(InfoPro!N5),"",InfoPro!N5) -> NO | F5: =IF(ISBLANK(InfoPro!I5),"",YEAR(InfoPro!I5)-$J$2) -> 3 | G5: 0 | H5: 0
B6: =IF(ISBLANK(InfoPro!A6),"",InfoPro!A6) -> SC_1077_A1 | C6: =IF(ISBLANK(InfoPro!B6),"",InfoPro!B6) -> Nevada I 90 MW | D6: =IF(ISBLANK(InfoPro!E6),"",InfoPro!E6) -> 90 | E6: =IF(ISBLANK(InfoPro!N6),"",InfoPro!N6) -> NO | F6: =IF(ISBLANK(InfoPro!I6),"",YEAR(InfoPro!I6)-$J$2) -> 7 | G6: 0 | H6: 0
B7: =IF(ISBLANK(InfoPro!A7),"",InfoPro!A7) -> SC_1077_A2 | C7: =IF(ISBLANK(InfoPro!B7),"",InfoPro!B7) -> Nevada I 90 MW | D7: =IF(ISBLANK(InfoPro!E7),"",InfoPro!E7) -> 90 | E7: =IF(ISBLANK(InfoPro!N7),"",InfoPro!N7) -> NO | F7: =IF(ISBLANK(InfoPro!I7),"",YEAR(InfoPro!I7)-$J$2) -> 7 | G7: 0 | H7: 0
B8: =IF(ISBLANK(InfoPro!A8),"",InfoPro!A8) -> SC_1135_A1 | C8: =IF(ISBLANK(InfoPro!B8),"",InfoPro!B8) -> Parque Eólico Brisas 1 | D8: =IF(ISBLANK(InfoPro!E8),"",InfoPro!E8) -> 200 | E8: =IF(ISBLANK(InfoPro!N8),"",InfoPro!N8) -> NO | F8: =IF(ISBLANK(InfoPro!I8),"",YEAR(InfoPro!I8)-$J$2) -> 5 | G8: 0 | H8: 0
B9: =IF(ISBLANK(InfoPro!A9),"",InfoPro!A9) -> SC_1135_A2 | C9: =IF(ISBLANK(InfoPro!B9),"",InfoPro!B9) -> Parque Eólico Brisas 1 | D9: =IF(ISBLANK(InfoPro!E9),"",InfoPro!E9) -> 200 | E9: =IF(ISBLANK(InfoPro!N9),"",InfoPro!N9) -> NO | F9: =IF(ISBLANK(InfoPro!I9),"",YEAR(InfoPro!I9)-$J$2) -> 5 | G9: 0 | H9: 0
B10: =IF(ISBLANK(InfoPro!A10),"",InfoPro!A10) -> SC_1154_A1 | C10: =IF(ISBLANK(InfoPro!B10),"",InfoPro!B10) -> Parque Eólico Brisas 2 | D10: =IF(ISBLANK(InfoPro!E10),"",InfoPro!E10) -> 200 | E10: =IF(ISBLANK(InfoPro!N10),"",InfoPro!N10) -> NO | F10: =IF(ISBLANK(InfoPro!I10),"",YEAR(InfoPro!I10)-$J$2) -> 6 | G10: 0 | H10: 0
B11: =IF(ISBLANK(InfoPro!A11),"",InfoPro!A11) -> SC_1154_A2 | C11: =IF(ISBLANK(InfoPro!B11),"",InfoPro!B11) -> Parque Eólico Brisas 2 | D11: =IF(ISBLANK(InfoPro!E11),"",InfoPro!E11) -> 200 | E11: =IF(ISBLANK(InfoPro!N11),"",InfoPro!N11) -> NO | F11: =IF(ISBLANK(InfoPro!I11),"",YEAR(InfoPro!I11)-$J$2) -> 6 | G11: 0 | H11: 0
B12: =IF(ISBLANK(InfoPro!A12),"",InfoPro!A12) -> SC_1161_A1 | C12: =IF(ISBLANK(InfoPro!B12),"",InfoPro!B12) -> Parque Eólico Brisas 3 | D12: =IF(ISBLANK(InfoPro!E12),"",InfoPro!E12) -> 200 | E12: =IF(ISBLANK(InfoPro!N12),"",InfoPro!N12) -> NO | F12: =IF(ISBLANK(InfoPro!I12),"",YEAR(InfoPro!I12)-$J$2) -> 7 | G12: 0 | H12: 0
B13: =IF(ISBLANK(InfoPro!A13),"",InfoPro!A13) -> SC_1161_A2 | C13: =IF(ISBLANK(InfoPro!B13),"",InfoPro!B13) -> Parque Eólico Brisas 3 | D13: =IF(ISBLANK(InfoPro!E13),"",InfoPro!E13) -> 200 | E13: =IF(ISBLANK(InfoPro!N13),"",InfoPro!N13) -> NO | F13: =IF(ISBLANK(InfoPro!I13),"",YEAR(InfoPro!I13)-$J$2) -> 7 | G13: 0 | H13: 0
B14: =IF(ISBLANK(InfoPro!#REF!),"",InfoPro!#REF!) ->  | C14: =IF(ISBLANK(InfoPro!#REF!),"",InfoPro!#REF!) ->  | D14: =IF(ISBLANK(InfoPro!#REF!),"",InfoPro!#REF!) ->  | E14: =IF(ISBLANK(InfoPro!#REF!),"",InfoPro!#REF!) ->  | F14: =IF(ISBLANK(InfoPro!#REF!),"",YEAR(InfoPro!#REF!)-$J$2) -> 
B15: =IF(ISBLANK(InfoPro!A14),"",InfoPro!A14) -> SC_1211_A1 | C15: =IF(ISBLANK(InfoPro!B14),"",InfoPro!B14) -> Planta Solar FV Caracolicitos 69MW | D15: =IF(ISBLANK(InfoPro!E14),"",InfoPro!E14) -> 69 | E15: =IF(ISBLANK(InfoPro!N14),"",InfoPro!N14) -> NO | F15: =IF(ISBLANK(InfoPro!I14),"",YEAR(InfoPro!I14)-$J$2) -> 3 | G15: 0 | H15: 0
B16: =IF(ISBLANK(InfoPro!A15),"",InfoPro!A15) -> SC_1211_A2 | C16: =IF(ISBLANK(InfoPro!B15),"",InfoPro!B15) -> Planta Solar FV Caracolicitos 69MW | D16: =IF(ISBLANK(InfoPro!E15),"",InfoPro!E15) -> 69 | E16: =IF(ISBLANK(InfoPro!N15),"",InfoPro!N15) -> NO | F16: =IF(ISBLANK(InfoPro!I15),"",YEAR(InfoPro!I15)-$J$2) -> 3 | G16: 0 | H16: 0
B17: =IF(ISBLANK(InfoPro!A16),"",InfoPro!A16) -> SC_1218_A1 | C17: =IF(ISBLANK(InfoPro!B16),"",InfoPro!B16) -> Las Flores 150 MW | D17: =IF(ISBLANK(InfoPro!E16),"",InfoPro!E16) -> 150 | E17: =IF(ISBLANK(InfoPro!N16),"",InfoPro!N16) -> NO | F17: =IF(ISBLANK(InfoPro!I16),"",YEAR(InfoPro!I16)-$J$2) -> 2 | G17: 0 | H17: 0
B18: =IF(ISBLANK(InfoPro!A17),"",InfoPro!A17) -> SC_1223_A1 | C18: =IF(ISBLANK(InfoPro!B17),"",InfoPro!B17) -> Parque Eolico Sirius | D18: =IF(ISBLANK(InfoPro!E17),"",InfoPro!E17) -> 100 | E18: =IF(ISBLANK(InfoPro!N17),"",InfoPro!N17) -> NO | F18: =IF(ISBLANK(InfoPro!I17),"",YEAR(InfoPro!I17)-$J$2) -> 2 | G18: 0 | H18: 0
B19: =IF(ISBLANK(InfoPro!A18),"",InfoPro!A18) -> SC_1232_A1 | C19: =IF(ISBLANK(InfoPro!B18),"",InfoPro!B18) -> La Paz Solar 9,9 MW | D19: =IF(ISBLANK(InfoPro!E18),"",InfoPro!E18) -> 9.9 | E19: =IF(ISBLANK(InfoPro!N18),"",InfoPro!N18) -> NO | F19: =IF(ISBLANK(InfoPro!I18),"",YEAR(InfoPro!I18)-$J$2) -> 2 | G19: 0 | H19: 0
B20: =IF(ISBLANK(InfoPro!A19),"",InfoPro!A19) -> SC_1232_A2 | C20: =IF(ISBLANK(InfoPro!B19),"",InfoPro!B19) -> La Paz Solar 9,9 MW | D20: =IF(ISBLANK(InfoPro!E19),"",InfoPro!E19) -> 9.9 | E20: =IF(ISBLANK(InfoPro!N19),"",InfoPro!N19) -> NO | F20: =IF(ISBLANK(InfoPro!I19),"",YEAR(InfoPro!I19)-$J$2) -> 2 | G20: 0 | H20: 0
B21: =IF(ISBLANK(InfoPro!A20),"",InfoPro!A20) -> SC_1239_A1 | C21: =IF(ISBLANK(InfoPro!B20),"",InfoPro!B20) -> El Carmen | D21: =IF(ISBLANK(InfoPro!E20),"",InfoPro!E20) -> 104.5 | E21: =IF(ISBLANK(InfoPro!N20),"",InfoPro!N20) -> NO | F21: =IF(ISBLANK(InfoPro!I20),"",YEAR(InfoPro!I20)-$J$2) -> 4 | G21: 0 | H21: 0
B22: =IF(ISBLANK(InfoPro!A21),"",InfoPro!A21) -> SC_1239_A2 | C22: =IF(ISBLANK(InfoPro!B21),"",InfoPro!B21) -> El Carmen | D22: =IF(ISBLANK(InfoPro!E21),"",InfoPro!E21) -> 104.5 | E22: =IF(ISBLANK(InfoPro!N21),"",InfoPro!N21) -> NO | F22: =IF(ISBLANK(InfoPro!I21),"",YEAR(InfoPro!I21)-$J$2) -> 4 | G22: 0 | H22: 0
B23: =IF(ISBLANK(InfoPro!A22),"",InfoPro!A22) -> SC_1244_A1 | C23: =IF(ISBLANK(InfoPro!B22),"",InfoPro!B22) -> Proyecto Maria | D23: =IF(ISBLANK(InfoPro!E22),"",InfoPro!E22) -> 120 | E23: =IF(ISBLANK(InfoPro!N22),"",InfoPro!N22) -> NO | F23: =IF(ISBLANK(InfoPro!I22),"",YEAR(InfoPro!I22)-$J$2) -> 3 | G23: 0 | H23: 0
B24: =IF(ISBLANK(InfoPro!A23),"",InfoPro!A23) -> SC_1252_A1 | C24: =IF(ISBLANK(InfoPro!B23),"",InfoPro!B23) -> Parque Eólico Neptuno | D24: =IF(ISBLANK(InfoPro!E23),"",InfoPro!E23) -> 150 | E24: =IF(ISBLANK(InfoPro!N23),"",InfoPro!N23) -> NO | F24: =IF(ISBLANK(InfoPro!I23),"",YEAR(InfoPro!I23)-$J$2) -> 3 | G24: 0 | H24: 0
B25: =IF(ISBLANK(InfoPro!A24),"",InfoPro!A24) -> SC_1262_A1 | C25: =IF(ISBLANK(InfoPro!B24),"",InfoPro!B24) -> Parque Solar Australe de 251 MW (entrega 200 MW) | D25: =IF(ISBLANK(InfoPro!E24),"",InfoPro!E24) -> 200 | E25: =IF(ISBLANK(InfoPro!N24),"",InfoPro!N24) -> NO | F25: =IF(ISBLANK(InfoPro!I24),"",YEAR(InfoPro!I24)-$J$2) -> 3 | G25: 0 | H25: 0
B26: =IF(ISBLANK(InfoPro!A25),"",InfoPro!A25) -> SC_1262_A2 | C26: =IF(ISBLANK(InfoPro!B25),"",InfoPro!B25) -> Parque Solar Australe de 251 MW (entrega 200 MW) | D26: =IF(ISBLANK(InfoPro!E25),"",InfoPro!E25) -> 200 | E26: =IF(ISBLANK(InfoPro!N25),"",InfoPro!N25) -> NO | F26: =IF(ISBLANK(InfoPro!I25),"",YEAR(InfoPro!I25)-$J$2) -> 3 | G26: 0 | H26: 0
B27: =IF(ISBLANK(InfoPro!A26),"",InfoPro!A26) -> SC_1264_A1 | C27: =IF(ISBLANK(InfoPro!B26),"",InfoPro!B26) -> Parque Solar Galus de 133 MW (entrega 110 MW) | D27: =IF(ISBLANK(InfoPro!E26),"",InfoPro!E26) -> 110 | E27: =IF(ISBLANK(InfoPro!N26),"",InfoPro!N26) -> NO | F27: =IF(ISBLANK(InfoPro!I26),"",YEAR(InfoPro!I26)-$J$2) -> 4 | G27: 0 | H27: 0
B28: =IF(ISBLANK(InfoPro!A27),"",InfoPro!A27) -> SC_1264_A2 | C28: =IF(ISBLANK(InfoPro!B27),"",InfoPro!B27) -> Parque Solar Galus de 133 MW (entrega 110 MW) | D28: =IF(ISBLANK(InfoPro!E27),"",InfoPro!E27) -> 110 | E28: =IF(ISBLANK(InfoPro!N27),"",InfoPro!N27) -> NO | F28: =IF(ISBLANK(InfoPro!I27),"",YEAR(InfoPro!I27)-$J$2) -> 4 | G28: 0 | H28: 0
B29: =IF(ISBLANK(InfoPro!A28),"",InfoPro!A28) -> SC_1266_A1 | C29: =IF(ISBLANK(InfoPro!B28),"",InfoPro!B28) -> Parque Solar Fornax DE 127 MW (Entrega 105 MW) | D29: =IF(ISBLANK(InfoPro!E28),"",InfoPro!E28) -> 105 | E29: =IF(ISBLANK(InfoPro!N28),"",InfoPro!N28) -> NO | F29: =IF(ISBLANK(InfoPro!I28),"",YEAR(InfoPro!I28)-$J$2) -> 4 | G29: 0 | H29: 0
B30: =IF(ISBLANK(InfoPro!A29),"",InfoPro!A29) -> SC_1266_A2 | C30: =IF(ISBLANK(InfoPro!B29),"",InfoPro!B29) -> Parque Solar Fornax DE 127 MW (Entrega 105 MW) | D30: =IF(ISBLANK(InfoPro!E29),"",InfoPro!E29) -> 105 | E30: =IF(ISBLANK(InfoPro!N29),"",InfoPro!N29) -> NO | F30: =IF(ISBLANK(InfoPro!I29),"",YEAR(InfoPro!I29)-$J$2) -> 4 | G30: 0 | H30: 0
B31: =IF(ISBLANK(InfoPro!A30),"",InfoPro!A30) -> SC_1272_A1 | C31: =IF(ISBLANK(InfoPro!B30),"",InfoPro!B30) -> Guacamayal Solar de 9,9 MW | D31: =IF(ISBLANK(InfoPro!E30),"",InfoPro!E30) -> 9.9 | E31: =IF(ISBLANK(InfoPro!N30),"",InfoPro!N30) -> NO | F31: =IF(ISBLANK(InfoPro!I30),"",YEAR(InfoPro!I30)-$J$2) -> 1 | G31: 0 | H31: 0
B32: =IF(ISBLANK(InfoPro!A31),"",InfoPro!A31) -> SC_1272_A2 | C32: =IF(ISBLANK(InfoPro!B31),"",InfoPro!B31) -> Guacamayal Solar de 9,9 MW | D32: =IF(ISBLANK(InfoPro!E31),"",InfoPro!E31) -> 9.9 | E32: =IF(ISBLANK(InfoPro!N31),"",InfoPro!N31) -> NO | F32: =IF(ISBLANK(InfoPro!I31),"",YEAR(InfoPro!I31)-$J$2) -> 1 | G32: 0 | H32: 0
B33: =IF(ISBLANK(InfoPro!A32),"",InfoPro!A32) -> SC_1293_A1 | C33: =IF(ISBLANK(InfoPro!B32),"",InfoPro!B32) -> Leo Solar II | D33: =IF(ISBLANK(InfoPro!E32),"",InfoPro!E32) -> 80 | E33: =IF(ISBLANK(InfoPro!N32),"",InfoPro!N32) -> NO | F33: =IF(ISBLANK(InfoPro!I32),"",YEAR(InfoPro!I32)-$J$2) -> 2 | G33: 0 | H33: 0
B34: =IF(ISBLANK(InfoPro!A33),"",InfoPro!A33) -> SC_1293_A2 | C34: =IF(ISBLANK(InfoPro!B33),"",InfoPro!B33) -> Leo Solar II | D34: =IF(ISBLANK(InfoPro!E33),"",InfoPro!E33) -> 80 | E34: =IF(ISBLANK(InfoPro!N33),"",InfoPro!N33) -> NO | F34: =IF(ISBLANK(InfoPro!I33),"",YEAR(InfoPro!I33)-$J$2) -> 2 | G34: 0 | H34: 0
B35: =IF(ISBLANK(InfoPro!A34),"",InfoPro!A34) -> SC_1306_A1 | C35: =IF(ISBLANK(InfoPro!B34),"",InfoPro!B34) -> Leo Solar I | D35: =IF(ISBLANK(InfoPro!E34),"",InfoPro!E34) -> 19.9 | E35: =IF(ISBLANK(InfoPro!N34),"",InfoPro!N34) -> NO | F35: =IF(ISBLANK(InfoPro!I34),"",YEAR(InfoPro!I34)-$J$2) -> 2 | G35: 0 | H35: 0
B36: =IF(ISBLANK(InfoPro!A35),"",InfoPro!A35) -> SC_1306_A2 | C36: =IF(ISBLANK(InfoPro!B35),"",InfoPro!B35) -> Leo Solar I | D36: =IF(ISBLANK(InfoPro!E35),"",InfoPro!E35) -> 19.9 | E36: =IF(ISBLANK(InfoPro!N35),"",InfoPro!N35) -> NO | F36: =IF(ISBLANK(InfoPro!I35),"",YEAR(InfoPro!I35)-$J$2) -> 2 | G36: 0 | H36: 0
B37: =IF(ISBLANK(InfoPro!A36),"",InfoPro!A36) -> SC_1311_A1 | C37: =IF(ISBLANK(InfoPro!B36),"",InfoPro!B36) -> Elipse de 200 MW | D37: =IF(ISBLANK(InfoPro!E36),"",InfoPro!E36) -> 200 | E37: =IF(ISBLANK(InfoPro!N36),"",InfoPro!N36) -> NO | F37: =IF(ISBLANK(InfoPro!I36),"",YEAR(InfoPro!I36)-$J$2) -> 2 | G37: 0 | H37: 0
B38: =IF(ISBLANK(InfoPro!A37),"",InfoPro!A37) -> SC_1312_A1 | C38: =IF(ISBLANK(InfoPro!B37),"",InfoPro!B37) -> Omega de 300 MW | D38: =IF(ISBLANK(InfoPro!E37),"",InfoPro!E37) -> 300 | E38: =IF(ISBLANK(InfoPro!N37),"",InfoPro!N37) -> NO | F38: =IF(ISBLANK(InfoPro!I37),"",YEAR(InfoPro!I37)-$J$2) -> 5 | G38: 0 | H38: 0
B39: =IF(ISBLANK(InfoPro!A38),"",InfoPro!A38) -> SC_1313_A1 | C39: =IF(ISBLANK(InfoPro!B38),"",InfoPro!B38) -> Kappa de 500 MW | D39: =IF(ISBLANK(InfoPro!E38),"",InfoPro!E38) -> 500 | E39: =IF(ISBLANK(InfoPro!N38),"",InfoPro!N38) -> NO | F39: =IF(ISBLANK(InfoPro!I38),"",YEAR(InfoPro!I38)-$J$2) -> 4 | G39: 0 | H39: 0
B40: =IF(ISBLANK(InfoPro!A39),"",InfoPro!A39) -> SC_1315_A1 | C40: =IF(ISBLANK(InfoPro!B39),"",InfoPro!B39) -> Parque Eólico Cordobita - 50MW | D40: =IF(ISBLANK(InfoPro!E39),"",InfoPro!E39) -> 50 | E40: =IF(ISBLANK(InfoPro!N39),"",InfoPro!N39) -> NO | F40: =IF(ISBLANK(InfoPro!I39),"",YEAR(InfoPro!I39)-$J$2) -> 4 | G40: 0 | H40: 0
B41: =IF(ISBLANK(InfoPro!A40),"",InfoPro!A40) -> SC_1315_A2 | C41: =IF(ISBLANK(InfoPro!B40),"",InfoPro!B40) -> Parque Eólico Cordobita - 50MW | D41: =IF(ISBLANK(InfoPro!E40),"",InfoPro!E40) -> 50 | E41: =IF(ISBLANK(InfoPro!N40),"",InfoPro!N40) -> NO | F41: =IF(ISBLANK(InfoPro!I40),"",YEAR(InfoPro!I40)-$J$2) -> 4 | G41: 0 | H41: 0
B42: =IF(ISBLANK(InfoPro!A41),"",InfoPro!A41) -> SC_1317_A1 | C42: =IF(ISBLANK(InfoPro!B41),"",InfoPro!B41) -> EÓLICA BONDA - 70MW | D42: =IF(ISBLANK(InfoPro!E41),"",InfoPro!E41) -> 70 | E42: =IF(ISBLANK(InfoPro!N41),"",InfoPro!N41) -> NO | F42: =IF(ISBLANK(InfoPro!I41),"",YEAR(InfoPro!I41)-$J$2) -> 4 | G42: 0 | H42: 0
B43: =IF(ISBLANK(InfoPro!A42),"",InfoPro!A42) -> SC_1321_A1 | C43: =IF(ISBLANK(InfoPro!B42),"",InfoPro!B42) -> OWF ASTROLABIO - 600 MW | D43: =IF(ISBLANK(InfoPro!E42),"",InfoPro!E42) -> 600 | E43: =IF(ISBLANK(InfoPro!N42),"",InfoPro!N42) -> NO | F43: =IF(ISBLANK(InfoPro!I42),"",YEAR(InfoPro!I42)-$J$2) -> 11 | G43: 0 | H43: 0
B44: =IF(ISBLANK(InfoPro!A43),"",InfoPro!A43) -> SC_1321_A2 | C44: =IF(ISBLANK(InfoPro!B43),"",InfoPro!B43) -> OWF ASTROLABIO - 600 MW | D44: =IF(ISBLANK(InfoPro!E43),"",InfoPro!E43) -> 825 | E44: =IF(ISBLANK(InfoPro!N43),"",InfoPro!N43) -> NO | F44: =IF(ISBLANK(InfoPro!I43),"",YEAR(InfoPro!I43)-$J$2) -> 11 | G44: 0 | H44: 0
B45: =IF(ISBLANK(InfoPro!A44),"",InfoPro!A44) -> SC_1336_A1 | C45: =IF(ISBLANK(InfoPro!B44),"",InfoPro!B44) -> AES Solar 4 | D45: =IF(ISBLANK(InfoPro!E44),"",InfoPro!E44) -> 300 | E45: =IF(ISBLANK(InfoPro!N44),"",InfoPro!N44) -> NO | F45: =IF(ISBLANK(InfoPro!I44),"",YEAR(InfoPro!I44)-$J$2) -> 3 | G45: 0 | H45: 0
B46: =IF(ISBLANK(InfoPro!A45),"",InfoPro!A45) -> SC_1336_A2 | C46: =IF(ISBLANK(InfoPro!B45),"",InfoPro!B45) -> AES Solar 4 | D46: =IF(ISBLANK(InfoPro!E45),"",InfoPro!E45) -> 300 | E46: =IF(ISBLANK(InfoPro!N45),"",InfoPro!N45) -> NO | F46: =IF(ISBLANK(InfoPro!I45),"",YEAR(InfoPro!I45)-$J$2) -> 3 | G46: 0 | H46: 0
B47: =IF(ISBLANK(InfoPro!A46),"",InfoPro!A46) -> SC_1345_A1 | C47: =IF(ISBLANK(InfoPro!B46),"",InfoPro!B46) -> Parque Eólico Jouttalein_150MW | D47: =IF(ISBLANK(InfoPro!E46),"",InfoPro!E46) -> 150 | E47: =IF(ISBLANK(InfoPro!N46),"",InfoPro!N46) -> NO | F47: =IF(ISBLANK(InfoPro!I46),"",YEAR(InfoPro!I46)-$J$2) -> 2 | G47: 0 | H47: 0
B48: =IF(ISBLANK(InfoPro!A47),"",InfoPro!A47) -> SC_1345_A2 | C48: =IF(ISBLANK(InfoPro!B47),"",InfoPro!B47) -> Parque Eólico Jouttalein_150MW | D48: =IF(ISBLANK(InfoPro!E47),"",InfoPro!E47) -> 150 | E48: =IF(ISBLANK(InfoPro!N47),"",InfoPro!N47) -> NO | F48: =IF(ISBLANK(InfoPro!I47),"",YEAR(InfoPro!I47)-$J$2) -> 2 | G48: 0 | H48: 0
B49: =IF(ISBLANK(InfoPro!A48),"",InfoPro!A48) -> SC_1347_A1 | C49: =IF(ISBLANK(InfoPro!B48),"",InfoPro!B48) -> AES Solar 5_100MW | D49: =IF(ISBLANK(InfoPro!E48),"",InfoPro!E48) -> 100 | E49: =IF(ISBLANK(InfoPro!N48),"",InfoPro!N48) -> NO | F49: =IF(ISBLANK(InfoPro!I48),"",YEAR(InfoPro!I48)-$J$2) -> 3 | G49: 0 | H49: 0
B50: =IF(ISBLANK(InfoPro!A49),"",InfoPro!A49) -> SC_1347_A2 | C50: =IF(ISBLANK(InfoPro!B49),"",InfoPro!B49) -> AES Solar 5_100MW | D50: =IF(ISBLANK(InfoPro!E49),"",InfoPro!E49) -> 100 | E50: =IF(ISBLANK(InfoPro!N49),"",InfoPro!N49) -> NO | F50: =IF(ISBLANK(InfoPro!I49),"",YEAR(InfoPro!I49)-$J$2) -> 3 | G50: 0 | H50: 0
B51: =IF(ISBLANK(InfoPro!A50),"",InfoPro!A50) -> SC_1355_A1 | C51: =IF(ISBLANK(InfoPro!B50),"",InfoPro!B50) -> Barlovento 1 | D51: =IF(ISBLANK(InfoPro!E50),"",InfoPro!E50) -> 500 | E51: =IF(ISBLANK(InfoPro!N50),"",InfoPro!N50) -> NO | F51: =IF(ISBLANK(InfoPro!I50),"",YEAR(InfoPro!I50)-$J$2) -> 11 | G51: 0 | H51: 0
B52: =IF(ISBLANK(InfoPro!A51),"",InfoPro!A51) -> SC_1356_A1 | C52: =IF(ISBLANK(InfoPro!B51),"",InfoPro!B51) -> Sol de Zawady 9,9 MW | D52: =IF(ISBLANK(InfoPro!E51),"",InfoPro!E51) -> 9.9 | E52: =IF(ISBLANK(InfoPro!N51),"",InfoPro!N51) -> NO | F52: =IF(ISBLANK(InfoPro!I51),"",YEAR(InfoPro!I51)-$J$2) -> 1 | G52: 0 | H52: 0
B53: =IF(ISBLANK(InfoPro!A52),"",InfoPro!A52) -> SC_1356_A2 | C53: =IF(ISBLANK(InfoPro!B52),"",InfoPro!B52) -> Sol de Zawady 9,9 MW | D53: =IF(ISBLANK(InfoPro!E52),"",InfoPro!E52) -> 9.9 | E53: =IF(ISBLANK(InfoPro!N52),"",InfoPro!N52) -> NO | F53: =IF(ISBLANK(InfoPro!I52),"",YEAR(InfoPro!I52)-$J$2) -> 1 | G53: 0 | H53: 0
B54: =IF(ISBLANK(InfoPro!A53),"",InfoPro!A53) -> SC_1366_A1 | C54: =IF(ISBLANK(InfoPro!B53),"",InfoPro!B53) -> PARQUE SOLAR TÁNGARA 100 MW | D54: =IF(ISBLANK(InfoPro!E53),"",InfoPro!E53) -> 100 | E54: =IF(ISBLANK(InfoPro!N53),"",InfoPro!N53) -> NO | F54: =IF(ISBLANK(InfoPro!I53),"",YEAR(InfoPro!I53)-$J$2) -> 3 | G54: 0 | H54: 0
B55: =IF(ISBLANK(InfoPro!A54),"",InfoPro!A54) -> SC_1376_A1 | C55: =IF(ISBLANK(InfoPro!B54),"",InfoPro!B54) -> Expansión La Loma I - 100 MW | D55: =IF(ISBLANK(InfoPro!E54),"",InfoPro!E54) -> 100 | E55: =IF(ISBLANK(InfoPro!N54),"",InfoPro!N54) -> NO | F55: =IF(ISBLANK(InfoPro!I54),"",YEAR(InfoPro!I54)-$J$2) -> 4 | G55: 0 | H55: 0
B56: =IF(ISBLANK(InfoPro!A55),"",InfoPro!A55) -> SC_1376_A2 | C56: =IF(ISBLANK(InfoPro!B55),"",InfoPro!B55) -> Expansión La Loma I - 100 MW | D56: =IF(ISBLANK(InfoPro!E55),"",InfoPro!E55) -> 100 | E56: =IF(ISBLANK(InfoPro!N55),"",InfoPro!N55) -> NO | F56: =IF(ISBLANK(InfoPro!I55),"",YEAR(InfoPro!I55)-$J$2) -> 4 | G56: 0 | H56: 0
B57: =IF(ISBLANK(InfoPro!A56),"",InfoPro!A56) -> SC_1377_A1 | C57: =IF(ISBLANK(InfoPro!B56),"",InfoPro!B56) -> Eólica Cordobita - 50MW | D57: =IF(ISBLANK(InfoPro!E56),"",InfoPro!E56) -> 50 | E57: =IF(ISBLANK(InfoPro!N56),"",InfoPro!N56) -> NO | F57: =IF(ISBLANK(InfoPro!I56),"",YEAR(InfoPro!I56)-$J$2) -> 4 | G57: 0 | H57: 0
B58: =IF(ISBLANK(InfoPro!A57),"",InfoPro!A57) -> SC_1377_A2 | C58: =IF(ISBLANK(InfoPro!B57),"",InfoPro!B57) -> Eólica Cordobita - 50MW | D58: =IF(ISBLANK(InfoPro!E57),"",InfoPro!E57) -> 50 | E58: =IF(ISBLANK(InfoPro!N57),"",InfoPro!N57) -> NO | F58: =IF(ISBLANK(InfoPro!I57),"",YEAR(InfoPro!I57)-$J$2) -> 4 | G58: 0 | H58: 0
B59: =IF(ISBLANK(InfoPro!A58),"",InfoPro!A58) -> SC_1380_A1 | C59: =IF(ISBLANK(InfoPro!B58),"",InfoPro!B58) -> Parque Eólico Motosira | D59: =IF(ISBLANK(InfoPro!E58),"",InfoPro!E58) -> 300 | E59: =IF(ISBLANK(InfoPro!N58),"",InfoPro!N58) -> NO | F59: =IF(ISBLANK(InfoPro!I58),"",YEAR(InfoPro!I58)-$J$2) -> 3 | G59: 0 | H59: 0
B60: =IF(ISBLANK(InfoPro!A59),"",InfoPro!A59) -> SC_1380_A2 | C60: =IF(ISBLANK(InfoPro!B59),"",InfoPro!B59) -> Parque Eólico Motosira | D60: =IF(ISBLANK(InfoPro!E59),"",InfoPro!E59) -> 300 | E60: =IF(ISBLANK(InfoPro!N59),"",InfoPro!N59) -> NO | F60: =IF(ISBLANK(InfoPro!I59),"",YEAR(InfoPro!I59)-$J$2) -> 3 | G60: 0 | H60: 0
B61: =IF(ISBLANK(InfoPro!A60),"",InfoPro!A60) -> SC_1421_A1 | C61: =IF(ISBLANK(InfoPro!B60),"",InfoPro!B60) -> Parque Solar Fotovoltaico SJ Solar 100 MW | D61: =IF(ISBLANK(InfoPro!E60),"",InfoPro!E60) -> 100 | E61: =IF(ISBLANK(InfoPro!N60),"",InfoPro!N60) -> NO | F61: =IF(ISBLANK(InfoPro!I60),"",YEAR(InfoPro!I60)-$J$2) -> 3 | G61: 0 | H61: 0
B62: =IF(ISBLANK(InfoPro!A61),"",InfoPro!A61) -> SC_1421_A2 | C62: =IF(ISBLANK(InfoPro!B61),"",InfoPro!B61) -> Parque Solar Fotovoltaico SJ Solar 100 MW | D62: =IF(ISBLANK(InfoPro!E61),"",InfoPro!E61) -> 100 | E62: =IF(ISBLANK(InfoPro!N61),"",InfoPro!N61) -> NO | F62: =IF(ISBLANK(InfoPro!I61),"",YEAR(InfoPro!I61)-$J$2) -> 3 | G62: 0 | H62: 0
B63: =IF(ISBLANK(InfoPro!A62),"",InfoPro!A62) -> SC_1479_A1 | C63: =IF(ISBLANK(InfoPro!B62),"",InfoPro!B62) -> Oslo I_150MW | D63: =IF(ISBLANK(InfoPro!E62),"",InfoPro!E62) -> 150 | E63: =IF(ISBLANK(InfoPro!N62),"",InfoPro!N62) -> NO | F63: =IF(ISBLANK(InfoPro!I62),"",YEAR(InfoPro!I62)-$J$2) -> 3 | G63: 0 | H63: 0
B64: =IF(ISBLANK(InfoPro!A63),"",InfoPro!A63) -> SC_1479_A2 | C64: =IF(ISBLANK(InfoPro!B63),"",InfoPro!B63) -> Oslo I_150MW | D64: =IF(ISBLANK(InfoPro!E63),"",InfoPro!E63) -> 150 | E64: =IF(ISBLANK(InfoPro!N63),"",InfoPro!N63) -> NO | F64: =IF(ISBLANK(InfoPro!I63),"",YEAR(InfoPro!I63)-$J$2) -> 3 | G64: 0 | H64: 0
B65: =IF(ISBLANK(InfoPro!A64),"",InfoPro!A64) -> SC_1506_A1 | C65: =IF(ISBLANK(InfoPro!B64),"",InfoPro!B64) -> Parque Solar Toro Moreno | D65: =IF(ISBLANK(InfoPro!E64),"",InfoPro!E64) -> 99.9 | E65: =IF(ISBLANK(InfoPro!N64),"",InfoPro!N64) -> NO | F65: =IF(ISBLANK(InfoPro!I64),"",YEAR(InfoPro!I64)-$J$2) -> -2 | G65: 0 | H65: 0
B66: =IF(ISBLANK(InfoPro!A65),"",InfoPro!A65) -> SC_1506_A2 | C66: =IF(ISBLANK(InfoPro!B65),"",InfoPro!B65) -> Parque Solar Toro Moreno | D66: =IF(ISBLANK(InfoPro!E65),"",InfoPro!E65) -> 99.9 | E66: =IF(ISBLANK(InfoPro!N65),"",InfoPro!N65) -> NO | F66: =IF(ISBLANK(InfoPro!I65),"",YEAR(InfoPro!I65)-$J$2) -> -2 | G66: 0 | H66: 0
B67: =IF(ISBLANK(InfoPro!A66),"",InfoPro!A66) -> SC_1512_A1 | C67: =IF(ISBLANK(InfoPro!B66),"",InfoPro!B66) -> El Flamingo - 200 MW | D67: =IF(ISBLANK(InfoPro!E66),"",InfoPro!E66) -> 200 | E67: =IF(ISBLANK(InfoPro!N66),"",InfoPro!N66) -> NO | F67: =IF(ISBLANK(InfoPro!I66),"",YEAR(InfoPro!I66)-$J$2) -> 4 | G67: =IF(E67="SI",100,IF(E67="NO",0,"")) -> 0 | H67: =IF(G67="","",(G67)) -> 0
B68: =IF(ISBLANK(InfoPro!A67),"",InfoPro!A67) -> SC_1512_A2 | C68: =IF(ISBLANK(InfoPro!B67),"",InfoPro!B67) -> El Flamingo - 200 MW | D68: =IF(ISBLANK(InfoPro!E67),"",InfoPro!E67) -> 200 | E68: =IF(ISBLANK(InfoPro!N67),"",InfoPro!N67) -> NO | F68: =IF(ISBLANK(InfoPro!I67),"",YEAR(InfoPro!I67)-$J$2) -> 4 | G68: 0 | H68: 0
B69: =IF(ISBLANK(InfoPro!A68),"",InfoPro!A68) -> SC_1518_A1 | C69: =IF(ISBLANK(InfoPro!B68),"",InfoPro!B68) -> CHIRIGUANÁ - 300 MW | D69: =IF(ISBLANK(InfoPro!E68),"",InfoPro!E68) -> 300 | E69: =IF(ISBLANK(InfoPro!N68),"",InfoPro!N68) -> NO | F69: =IF(ISBLANK(InfoPro!I68),"",YEAR(InfoPro!I68)-$J$2) -> 4 | G69: 0 | H69: 0
B70: =IF(ISBLANK(InfoPro!A69),"",InfoPro!A69) -> SC_1518_A2 | C70: =IF(ISBLANK(InfoPro!B69),"",InfoPro!B69) -> CHIRIGUANÁ - 300 MW | D70: =IF(ISBLANK(InfoPro!E69),"",InfoPro!E69) -> 300 | E70: =IF(ISBLANK(InfoPro!N69),"",InfoPro!N69) -> NO | F70: =IF(ISBLANK(InfoPro!I69),"",YEAR(InfoPro!I69)-$J$2) -> 4 | G70: 0 | H70: 0
B71: =IF(ISBLANK(InfoPro!A70),"",InfoPro!A70) -> SC_1531_A1 | C71: =IF(ISBLANK(InfoPro!B70),"",InfoPro!B70) -> Haticos_56MW | D71: =IF(ISBLANK(InfoPro!E70),"",InfoPro!E70) -> 56 | E71: =IF(ISBLANK(InfoPro!N70),"",InfoPro!N70) -> NO | F71: =IF(ISBLANK(InfoPro!I70),"",YEAR(InfoPro!I70)-$J$2) -> 4 | G71: 0 | H71: 0
B72: =IF(ISBLANK(InfoPro!A71),"",InfoPro!A71) -> SC_1531_A2 | C72: =IF(ISBLANK(InfoPro!B71),"",InfoPro!B71) -> Haticos_56MW | D72: =IF(ISBLANK(InfoPro!E71),"",InfoPro!E71) -> 56 | E72: =IF(ISBLANK(InfoPro!N71),"",InfoPro!N71) -> NO | F72: =IF(ISBLANK(InfoPro!I71),"",YEAR(InfoPro!I71)-$J$2) -> 4 | G72: 0 | H72: 0
B73: =IF(ISBLANK(InfoPro!A72),"",InfoPro!A72) -> SC_1532_A1 | C73: =IF(ISBLANK(InfoPro!B72),"",InfoPro!B72) -> Las Mangas_340.8MW | D73: =IF(ISBLANK(InfoPro!E72),"",InfoPro!E72) -> 340.8 | E73: =IF(ISBLANK(InfoPro!N72),"",InfoPro!N72) -> NO | F73: =IF(ISBLANK(InfoPro!I72),"",YEAR(InfoPro!I72)-$J$2) -> 4 | G73: 0 | H73: 0
B74: =IF(ISBLANK(InfoPro!A73),"",InfoPro!A73) -> SC_1532_A2 | C74: =IF(ISBLANK(InfoPro!B73),"",InfoPro!B73) -> Las Mangas_340.8MW | D74: =IF(ISBLANK(InfoPro!E73),"",InfoPro!E73) -> 340.8 | E74: =IF(ISBLANK(InfoPro!N73),"",InfoPro!N73) -> NO | F74: =IF(ISBLANK(InfoPro!I73),"",YEAR(InfoPro!I73)-$J$2) -> 4 | G74: 0 | H74: 0
B75: =IF(ISBLANK(InfoPro!A74),"",InfoPro!A74) -> SC_1534_A1 | C75: =IF(ISBLANK(InfoPro!B74),"",InfoPro!B74) -> Parque Eólico Cerrito_378MW | D75: =IF(ISBLANK(InfoPro!E74),"",InfoPro!E74) -> 378 | E75: =IF(ISBLANK(InfoPro!N74),"",InfoPro!N74) -> NO | F75: =IF(ISBLANK(InfoPro!I74),"",YEAR(InfoPro!I74)-$J$2) -> 2 | G75: 0 | H75: 0
B76: =IF(ISBLANK(InfoPro!A75),"",InfoPro!A75) -> SC_1534_A2 | C76: =IF(ISBLANK(InfoPro!B75),"",InfoPro!B75) -> Parque Eólico Cerrito_378MW | D76: =IF(ISBLANK(InfoPro!E75),"",InfoPro!E75) -> 378 | E76: =IF(ISBLANK(InfoPro!N75),"",InfoPro!N75) -> NO | F76: =IF(ISBLANK(InfoPro!I75),"",YEAR(InfoPro!I75)-$J$2) -> 2 | G76: 0 | H76: 0
B77: =IF(ISBLANK(InfoPro!A76),"",InfoPro!A76) -> SC_1535_A1 | C77: =IF(ISBLANK(InfoPro!B76),"",InfoPro!B76) -> Parque Eólico Cerrito 2 | D77: =IF(ISBLANK(InfoPro!E76),"",InfoPro!E76) -> 200 | E77: =IF(ISBLANK(InfoPro!N76),"",InfoPro!N76) -> NO | F77: =IF(ISBLANK(InfoPro!I76),"",YEAR(InfoPro!I76)-$J$2) -> 2 | G77: 0 | H77: 0
B78: =IF(ISBLANK(InfoPro!A77),"",InfoPro!A77) -> SC_1535_A2 | C78: =IF(ISBLANK(InfoPro!B77),"",InfoPro!B77) -> Parque Eólico Cerrito 2 | D78: =IF(ISBLANK(InfoPro!E77),"",InfoPro!E77) -> 200 | E78: =IF(ISBLANK(InfoPro!N77),"",InfoPro!N77) -> NO | F78: =IF(ISBLANK(InfoPro!I77),"",YEAR(InfoPro!I77)-$J$2) -> 2 | G78: 0 | H78: 0
B79: =IF(ISBLANK(InfoPro!A78),"",InfoPro!A78) -> SC_1549_A1 | C79: =IF(ISBLANK(InfoPro!B78),"",InfoPro!B78) -> Parque Solar Bonda | D79: =IF(ISBLANK(InfoPro!E78),"",InfoPro!E78) -> 9.9 | E79: =IF(ISBLANK(InfoPro!N78),"",InfoPro!N78) -> NO | F79: =IF(ISBLANK(InfoPro!I78),"",YEAR(InfoPro!I78)-$J$2) -> 2 | G79: 0 | H79: 0
B80: =IF(ISBLANK(InfoPro!A79),"",InfoPro!A79) -> SC_1549_A2 | C80: =IF(ISBLANK(InfoPro!B79),"",InfoPro!B79) -> Parque Solar Bonda | D80: =IF(ISBLANK(InfoPro!E79),"",InfoPro!E79) -> 9.9 | E80: =IF(ISBLANK(InfoPro!N79),"",InfoPro!N79) -> NO | F80: =IF(ISBLANK(InfoPro!I79),"",YEAR(InfoPro!I79)-$J$2) -> 2 | G80: 0 | H80: 0
B81: =IF(ISBLANK(InfoPro!A80),"",InfoPro!A80) -> SC_1550_A1 | C81: =IF(ISBLANK(InfoPro!B80),"",InfoPro!B80) -> Parque Solar Fonseca | D81: =IF(ISBLANK(InfoPro!E80),"",InfoPro!E80) -> 9.9 | E81: =IF(ISBLANK(InfoPro!N80),"",InfoPro!N80) -> NO | F81: =IF(ISBLANK(InfoPro!I80),"",YEAR(InfoPro!I80)-$J$2) -> 2 | G81: 0 | H81: 0
B82: =IF(ISBLANK(InfoPro!A81),"",InfoPro!A81) -> SC_1550_A2 | C82: =IF(ISBLANK(InfoPro!B81),"",InfoPro!B81) -> Parque Solar Fonseca | D82: =IF(ISBLANK(InfoPro!E81),"",InfoPro!E81) -> 9.9 | E82: =IF(ISBLANK(InfoPro!N81),"",InfoPro!N81) -> NO | F82: =IF(ISBLANK(InfoPro!I81),"",YEAR(InfoPro!I81)-$J$2) -> 2 | G82: 0 | H82: 0
B83: =IF(ISBLANK(InfoPro!A82),"",InfoPro!A82) -> SC_1556_A1 | C83: =IF(ISBLANK(InfoPro!B82),"",InfoPro!B82) -> Copey Solar I - 100 MW | D83: =IF(ISBLANK(InfoPro!E82),"",InfoPro!E82) -> 100 | E83: =IF(ISBLANK(InfoPro!N82),"",InfoPro!N82) -> NO | F83: =IF(ISBLANK(InfoPro!I82),"",YEAR(InfoPro!I82)-$J$2) -> 3 | G83: 0 | H83: 0
B84: =IF(ISBLANK(InfoPro!A83),"",InfoPro!A83) -> SC_1556_A2 | C84: =IF(ISBLANK(InfoPro!B83),"",InfoPro!B83) -> Copey Solar I - 100 MW | D84: =IF(ISBLANK(InfoPro!E83),"",InfoPro!E83) -> 100 | E84: =IF(ISBLANK(InfoPro!N83),"",InfoPro!N83) -> NO | F84: =IF(ISBLANK(InfoPro!I83),"",YEAR(InfoPro!I83)-$J$2) -> 3 | G84: 0 | H84: 0
B85: =IF(ISBLANK(InfoPro!A84),"",InfoPro!A84) -> SC_1557_A1 | C85: =IF(ISBLANK(InfoPro!B84),"",InfoPro!B84) -> Copey Solar II | D85: =IF(ISBLANK(InfoPro!E84),"",InfoPro!E84) -> 100 | E85: =IF(ISBLANK(InfoPro!N84),"",InfoPro!N84) -> NO | F85: =IF(ISBLANK(InfoPro!I84),"",YEAR(InfoPro!I84)-$J$2) -> 4 | G85: 0 | H85: 0
B86: =IF(ISBLANK(InfoPro!A85),"",InfoPro!A85) -> SC_1557_A2 | C86: =IF(ISBLANK(InfoPro!B85),"",InfoPro!B85) -> Copey Solar II | D86: =IF(ISBLANK(InfoPro!E85),"",InfoPro!E85) -> 100 | E86: =IF(ISBLANK(InfoPro!N85),"",InfoPro!N85) -> NO | F86: =IF(ISBLANK(InfoPro!I85),"",YEAR(InfoPro!I85)-$J$2) -> 4 | G86: 0 | H86: 0
B87: =IF(ISBLANK(InfoPro!A86),"",InfoPro!A86) -> SC_1565_A1 | C87: =IF(ISBLANK(InfoPro!B86),"",InfoPro!B86) -> Eólica Río Córdoba 50 MW | D87: =IF(ISBLANK(InfoPro!E86),"",InfoPro!E86) -> 50 | E87: =IF(ISBLANK(InfoPro!N86),"",InfoPro!N86) -> NO | F87: =IF(ISBLANK(InfoPro!I86),"",YEAR(InfoPro!I86)-$J$2) -> 2 | G87: 0 | H87: 0
B88: =IF(ISBLANK(InfoPro!A87),"",InfoPro!A87) -> SC_1575_A1 | C88: =IF(ISBLANK(InfoPro!B87),"",InfoPro!B87) -> BONDERO 70 MW | D88: =IF(ISBLANK(InfoPro!E87),"",InfoPro!E87) -> 70 | E88: =IF(ISBLANK(InfoPro!N87),"",InfoPro!N87) -> NO | F88: =IF(ISBLANK(InfoPro!I87),"",YEAR(InfoPro!I87)-$J$2) -> 1 | G88: 0 | H88: 0
B89: =IF(ISBLANK(InfoPro!A88),"",InfoPro!A88) -> SC_1592_A1 | C89: =IF(ISBLANK(InfoPro!B88),"",InfoPro!B88) -> Expansión La Loma II - 100 MW | D89: =IF(ISBLANK(InfoPro!E88),"",InfoPro!E88) -> 100 | E89: =IF(ISBLANK(InfoPro!N88),"",InfoPro!N88) -> NO | F89: =IF(ISBLANK(InfoPro!I88),"",YEAR(InfoPro!I88)-$J$2) -> 5 | G89: 0 | H89: 0
B90: =IF(ISBLANK(InfoPro!A89),"",InfoPro!A89) -> SC_1593_A1 | C90: =IF(ISBLANK(InfoPro!B89),"",InfoPro!B89) -> Parque Solar Camarones 6 MW | D90: =IF(ISBLANK(InfoPro!E89),"",InfoPro!E89) -> 6 | E90: =IF(ISBLANK(InfoPro!N89),"",InfoPro!N89) -> NO | F90: =IF(ISBLANK(InfoPro!I89),"",YEAR(InfoPro!I89)-$J$2) -> 1 | G90: 0 | H90: 0
B91: =IF(ISBLANK(InfoPro!A90),"",InfoPro!A90) -> SC_1593_A2 | C91: =IF(ISBLANK(InfoPro!B90),"",InfoPro!B90) -> Parque Solar Camarones 6 MW | D91: =IF(ISBLANK(InfoPro!E90),"",InfoPro!E90) -> 6 | E91: =IF(ISBLANK(InfoPro!N90),"",InfoPro!N90) -> NO | F91: =IF(ISBLANK(InfoPro!I90),"",YEAR(InfoPro!I90)-$J$2) -> 1 | G91: 0 | H91: 0
B92: =IF(ISBLANK(InfoPro!A91),"",InfoPro!A91) -> SC_1596_A1 | C92: =IF(ISBLANK(InfoPro!B91),"",InfoPro!B91) -> Expansión La Loma III - 100 MW | D92: =IF(ISBLANK(InfoPro!E91),"",InfoPro!E91) -> 100 | E92: =IF(ISBLANK(InfoPro!N91),"",InfoPro!N91) -> NO | F92: =IF(ISBLANK(InfoPro!I91),"",YEAR(InfoPro!I91)-$J$2) -> 6 | G92: 0 | H92: 0
B93: =IF(ISBLANK(InfoPro!A92),"",InfoPro!A92) -> SC_1656_A1 | C93: =IF(ISBLANK(InfoPro!B92),"",InfoPro!B92) -> Parque solar TERRɅ I | D93: =IF(ISBLANK(InfoPro!E92),"",InfoPro!E92) -> 19.9 | E93: =IF(ISBLANK(InfoPro!N92),"",InfoPro!N92) -> NO | F93: =IF(ISBLANK(InfoPro!I92),"",YEAR(InfoPro!I92)-$J$2) -> 1 | G93: 0 | H93: 0
B94: =IF(ISBLANK(InfoPro!A93),"",InfoPro!A93) -> SC_1656_A2 | C94: =IF(ISBLANK(InfoPro!B93),"",InfoPro!B93) -> Parque solar TERRɅ I | D94: =IF(ISBLANK(InfoPro!E93),"",InfoPro!E93) -> 19.9 | E94: =IF(ISBLANK(InfoPro!N93),"",InfoPro!N93) -> NO | F94: =IF(ISBLANK(InfoPro!I93),"",YEAR(InfoPro!I93)-$J$2) -> 1 | G94: 0 | H94: 0
B95: =IF(ISBLANK(InfoPro!A94),"",InfoPro!A94) -> SC_1698_A1 | C95: =IF(ISBLANK(InfoPro!B94),"",InfoPro!B94) -> Barlovento 2_500MW | D95: =IF(ISBLANK(InfoPro!E94),"",InfoPro!E94) -> 500 | E95: =IF(ISBLANK(InfoPro!N94),"",InfoPro!N94) -> NO | F95: =IF(ISBLANK(InfoPro!I94),"",YEAR(InfoPro!I94)-$J$2) -> 11 | G95: 0 | H95: 0
B96: =IF(ISBLANK(InfoPro!A95),"",InfoPro!A95) -> SC_1699_A1 | C96: =IF(ISBLANK(InfoPro!B95),"",InfoPro!B95) -> PARQUE EOLICO GUAJIRA II de 302.4 MW | D96: =IF(ISBLANK(InfoPro!E95),"",InfoPro!E95) -> 302.4 | E96: =IF(ISBLANK(InfoPro!N95),"",InfoPro!N95) -> SI | F96: =IF(ISBLANK(InfoPro!I95),"",YEAR(InfoPro!I95)-$J$2) -> 4 | G96: 100 | H96: 100
B97: =IF(ISBLANK(InfoPro!A96),"",InfoPro!A96) -> SC_1699_A2 | C97: =IF(ISBLANK(InfoPro!B96),"",InfoPro!B96) -> PARQUE EOLICO GUAJIRA II de 302.4 MW | D97: =IF(ISBLANK(InfoPro!E96),"",InfoPro!E96) -> 302.4 | E97: =IF(ISBLANK(InfoPro!N96),"",InfoPro!N96) -> SI | F97: =IF(ISBLANK(InfoPro!I96),"",YEAR(InfoPro!I96)-$J$2) -> 4 | G97: 100 | H97: 100
B98: =IF(ISBLANK(InfoPro!A97),"",InfoPro!A97) -> SC_1703_A1 | C98: =IF(ISBLANK(InfoPro!B97),"",InfoPro!B97) -> Barlovento 3 de 500 MW | D98: =IF(ISBLANK(InfoPro!E97),"",InfoPro!E97) -> 500 | E98: =IF(ISBLANK(InfoPro!N97),"",InfoPro!N97) -> NO | F98: =IF(ISBLANK(InfoPro!I97),"",YEAR(InfoPro!I97)-$J$2) -> 11 | G98: 0 | H98: 0
B99: =IF(ISBLANK(InfoPro!A98),"",InfoPro!A98) -> SC_1707_A1 | C99: =IF(ISBLANK(InfoPro!B98),"",InfoPro!B98) -> Santa Marta II - 50 MW | D99: =IF(ISBLANK(InfoPro!E98),"",InfoPro!E98) -> 50 | E99: =IF(ISBLANK(InfoPro!N98),"",InfoPro!N98) -> NO | F99: =IF(ISBLANK(InfoPro!I98),"",YEAR(InfoPro!I98)-$J$2) -> 2 | G99: 0 | H99: 0
B100: =IF(ISBLANK(InfoPro!A99),"",InfoPro!A99) -> SC_1710_A1 | C100: =IF(ISBLANK(InfoPro!B99),"",InfoPro!B99) -> Parque Eólico Trupillo_100MW | D100: =IF(ISBLANK(InfoPro!E99),"",InfoPro!E99) -> 100 | E100: =IF(ISBLANK(InfoPro!N99),"",InfoPro!N99) -> NO | F100: =IF(ISBLANK(InfoPro!I99),"",YEAR(InfoPro!I99)-$J$2) -> 5 | G100: 0 | H100: 0
B101: =IF(ISBLANK(InfoPro!A100),"",InfoPro!A100) -> SC_1710_A2 | C101: =IF(ISBLANK(InfoPro!B100),"",InfoPro!B100) -> Parque Eólico Trupillo_100MW | D101: =IF(ISBLANK(InfoPro!E100),"",InfoPro!E100) -> 100 | E101: =IF(ISBLANK(InfoPro!N100),"",InfoPro!N100) -> NO | F101: =IF(ISBLANK(InfoPro!I100),"",YEAR(InfoPro!I100)-$J$2) -> 5 | G101: 0 | H101: 0
B102: =IF(ISBLANK(InfoPro!A101),"",InfoPro!A101) -> SC_1718_A1 | C102: =IF(ISBLANK(InfoPro!B101),"",InfoPro!B101) -> Autogeneración Drummond 50 MW | D102: =IF(ISBLANK(InfoPro!E101),"",InfoPro!E101) -> 50 | E102: =IF(ISBLANK(InfoPro!N101),"",InfoPro!N101) -> NO | F102: =IF(ISBLANK(InfoPro!I101),"",YEAR(InfoPro!I101)-$J$2) -> 0 | G102: 0 | H102: 0
B103: =IF(ISBLANK(InfoPro!A102),"",InfoPro!A102) -> SC_1722_A1 | C103: =IF(ISBLANK(InfoPro!B102),"",InfoPro!B102) -> PARQUE EÓLICO MONSAUI 9,9 MW | D103: =IF(ISBLANK(InfoPro!E102),"",InfoPro!E102) -> 9.9 | E103: =IF(ISBLANK(InfoPro!N102),"",InfoPro!N102) -> NO | F103: =IF(ISBLANK(InfoPro!I102),"",YEAR(InfoPro!I102)-$J$2) -> 4 | G103: 0 | H103: 0
B104: =IF(ISBLANK(InfoPro!A103),"",InfoPro!A103) -> SC_1722_A2 | C104: =IF(ISBLANK(InfoPro!B103),"",InfoPro!B103) -> PARQUE EÓLICO MONSAUI 9,9 MW | D104: =IF(ISBLANK(InfoPro!E103),"",InfoPro!E103) -> 9.9 | E104: =IF(ISBLANK(InfoPro!N103),"",InfoPro!N103) -> NO | F104: =IF(ISBLANK(InfoPro!I103),"",YEAR(InfoPro!I103)-$J$2) -> 4 | G104: 0 | H104: 0
B105: =IF(ISBLANK(InfoPro!A104),"",InfoPro!A104) -> SC_1728_A1 | C105: =IF(ISBLANK(InfoPro!B104),"",InfoPro!B104) -> PARQUE SOLAR CAÑAHUATE II - 190 MW | D105: =IF(ISBLANK(InfoPro!E104),"",InfoPro!E104) -> 190 | E105: =IF(ISBLANK(InfoPro!N104),"",InfoPro!N104) -> NO | F105: =IF(ISBLANK(InfoPro!I104),"",YEAR(InfoPro!I104)-$J$2) -> 1 | G105: 0 | H105: 0
B106: =IF(ISBLANK(InfoPro!A105),"",InfoPro!A105) -> SC_1729_A1 | C106: =IF(ISBLANK(InfoPro!B105),"",InfoPro!B105) -> TR Solar 17 | D106: =IF(ISBLANK(InfoPro!E105),"",InfoPro!E105) -> 200 | E106: =IF(ISBLANK(InfoPro!N105),"",InfoPro!N105) -> NO | F106: =IF(ISBLANK(InfoPro!I105),"",YEAR(InfoPro!I105)-$J$2) -> 3 | G106: 0 | H106: 0
B107: =IF(ISBLANK(InfoPro!A106),"",InfoPro!A106) -> SC_1729_A2 | C107: =IF(ISBLANK(InfoPro!B106),"",InfoPro!B106) -> TR Solar 17 | D107: =IF(ISBLANK(InfoPro!E106),"",InfoPro!E106) -> 200 | E107: =IF(ISBLANK(InfoPro!N106),"",InfoPro!N106) -> NO | F107: =IF(ISBLANK(InfoPro!I106),"",YEAR(InfoPro!I106)-$J$2) -> 3 | G107: 0 | H107: 0
B108: =IF(ISBLANK(InfoPro!A107),"",InfoPro!A107) -> SC_1746_A1 | C108: =IF(ISBLANK(InfoPro!B107),"",InfoPro!B107) -> Parque Solar Nuevo Mundo | D108: =IF(ISBLANK(InfoPro!E107),"",InfoPro!E107) -> 99.99 | E108: =IF(ISBLANK(InfoPro!N107),"",InfoPro!N107) -> NO | F108: =IF(ISBLANK(InfoPro!I107),"",YEAR(InfoPro!I107)-$J$2) -> 2 | G108: 0 | H108: 0
B109: =IF(ISBLANK(InfoPro!A108),"",InfoPro!A108) -> SC_1746_A2 | C109: =IF(ISBLANK(InfoPro!B108),"",InfoPro!B108) -> Parque Solar Nuevo Mundo | D109: =IF(ISBLANK(InfoPro!E108),"",InfoPro!E108) -> 99.99 | E109: =IF(ISBLANK(InfoPro!N108),"",InfoPro!N108) -> NO | F109: =IF(ISBLANK(InfoPro!I108),"",YEAR(InfoPro!I108)-$J$2) -> 2 | G109: 0 | H109: 0
B110: =IF(ISBLANK(InfoPro!A109),"",InfoPro!A109) -> SC_1752_A1 | C110: =IF(ISBLANK(InfoPro!B109),"",InfoPro!B109) -> OWF BERGANTIN 300 | D110: =IF(ISBLANK(InfoPro!E109),"",InfoPro!E109) -> 300 | E110: =IF(ISBLANK(InfoPro!N109),"",InfoPro!N109) -> NO | F110: =IF(ISBLANK(InfoPro!I109),"",YEAR(InfoPro!I109)-$J$2) -> 9 | G110: 0 | H110: 0
B111: =IF(ISBLANK(InfoPro!A110),"",InfoPro!A110) -> SC_1752_A2 | C111: =IF(ISBLANK(InfoPro!B110),"",InfoPro!B110) -> OWF BERGANTIN 300 | D111: =IF(ISBLANK(InfoPro!E110),"",InfoPro!E110) -> 300 | E111: =IF(ISBLANK(InfoPro!N110),"",InfoPro!N110) -> NO | F111: =IF(ISBLANK(InfoPro!I110),"",YEAR(InfoPro!I110)-$J$2) -> 9 | G111: 0 | H111: 0
B112: =IF(ISBLANK(InfoPro!A111),"",InfoPro!A111) -> SC_1756_A1 | C112: =IF(ISBLANK(InfoPro!B111),"",InfoPro!B111) -> Barlovento 4_500MW | D112: =IF(ISBLANK(InfoPro!E111),"",InfoPro!E111) -> 500 | E112: =IF(ISBLANK(InfoPro!N111),"",InfoPro!N111) -> NO | F112: =IF(ISBLANK(InfoPro!I111),"",YEAR(InfoPro!I111)-$J$2) -> 11 | G112: 0 | H112: 0
B113: =IF(ISBLANK(InfoPro!A112),"",InfoPro!A112) -> SC_1765_A1 | C113: =IF(ISBLANK(InfoPro!B112),"",InfoPro!B112) -> PARQUE SOLAR CIUDAD BLANCA - 199 MW | D113: =IF(ISBLANK(InfoPro!E112),"",InfoPro!E112) -> 19.9 | E113: =IF(ISBLANK(InfoPro!N112),"",InfoPro!N112) -> NO | F113: =IF(ISBLANK(InfoPro!I112),"",YEAR(InfoPro!I112)-$J$2) -> 3 | G113: 0 | H113: 0
B114: =IF(ISBLANK(InfoPro!A113),"",InfoPro!A113) -> SC_1765_A2 | C114: =IF(ISBLANK(InfoPro!B113),"",InfoPro!B113) -> PARQUE SOLAR CIUDAD BLANCA - 199 MW | D114: =IF(ISBLANK(InfoPro!E113),"",InfoPro!E113) -> 19.9 | E114: =IF(ISBLANK(InfoPro!N113),"",InfoPro!N113) -> NO | F114: =IF(ISBLANK(InfoPro!I113),"",YEAR(InfoPro!I113)-$J$2) -> 3 | G114: 0 | H114: 0
B115: =IF(ISBLANK(InfoPro!A114),"",InfoPro!A114) -> SC_1779_A1 | C115: =IF(ISBLANK(InfoPro!B114),"",InfoPro!B114) -> Pétalo del Cesar III El Paso | D115: =IF(ISBLANK(InfoPro!E114),"",InfoPro!E114) -> 9.9 | E115: =IF(ISBLANK(InfoPro!N114),"",InfoPro!N114) -> NO | F115: =IF(ISBLANK(InfoPro!I114),"",YEAR(InfoPro!I114)-$J$2) -> 3 | G115: 0 | H115: 0
B116: =IF(ISBLANK(InfoPro!A115),"",InfoPro!A115) -> SC_1779_A2 | C116: =IF(ISBLANK(InfoPro!B115),"",InfoPro!B115) -> Pétalo del Cesar III El Paso | D116: =IF(ISBLANK(InfoPro!E115),"",InfoPro!E115) -> 9.9 | E116: =IF(ISBLANK(InfoPro!N115),"",InfoPro!N115) -> NO | F116: =IF(ISBLANK(InfoPro!I115),"",YEAR(InfoPro!I115)-$J$2) -> 3 | G116: 0 | H116: 0
B117: =IF(ISBLANK(InfoPro!A116),"",InfoPro!A116) -> SC_1783_A1 | C117: =IF(ISBLANK(InfoPro!B116),"",InfoPro!B116) -> Pétalo del Cesar IV La Loma | D117: =IF(ISBLANK(InfoPro!E116),"",InfoPro!E116) -> 9.9 | E117: =IF(ISBLANK(InfoPro!N116),"",InfoPro!N116) -> NO | F117: =IF(ISBLANK(InfoPro!I116),"",YEAR(InfoPro!I116)-$J$2) -> 3 | G117: 0 | H117: 0
B118: =IF(ISBLANK(InfoPro!A117),"",InfoPro!A117) -> SC_1783_A2 | C118: =IF(ISBLANK(InfoPro!B117),"",InfoPro!B117) -> Pétalo del Cesar IV La Loma | D118: =IF(ISBLANK(InfoPro!E117),"",InfoPro!E117) -> 9.9 | E118: =IF(ISBLANK(InfoPro!N117),"",InfoPro!N117) -> NO | F118: =IF(ISBLANK(InfoPro!I117),"",YEAR(InfoPro!I117)-$J$2) -> 3 | G118: 0 | H118: 0
B119: =IF(ISBLANK(InfoPro!A118),"",InfoPro!A118) -> SC_1788_A1 | C119: =IF(ISBLANK(InfoPro!B118),"",InfoPro!B118) -> DSE COPEY 19.9 | D119: =IF(ISBLANK(InfoPro!E118),"",InfoPro!E118) -> 19.9 | E119: =IF(ISBLANK(InfoPro!N118),"",InfoPro!N118) -> NO | F119: =IF(ISBLANK(InfoPro!I118),"",YEAR(InfoPro!I118)-$J$2) -> 2 | G119: 0 | H119: 0
B120: =IF(ISBLANK(InfoPro!A119),"",InfoPro!A119) -> SC_1811_A1 | C120: =IF(ISBLANK(InfoPro!B119),"",InfoPro!B119) -> DSE RIOHACHA | D120: =IF(ISBLANK(InfoPro!E119),"",InfoPro!E119) -> 9.9 | E120: =IF(ISBLANK(InfoPro!N119),"",InfoPro!N119) -> NO | F120: =IF(ISBLANK(InfoPro!I119),"",YEAR(InfoPro!I119)-$J$2) -> 2 | G120: 0 | H120: 0
B121: =IF(ISBLANK(InfoPro!A120),"",InfoPro!A120) -> SC_1811_A2 | C121: =IF(ISBLANK(InfoPro!B120),"",InfoPro!B120) -> DSE RIOHACHA | D121: =IF(ISBLANK(InfoPro!E120),"",InfoPro!E120) -> 9.9 | E121: =IF(ISBLANK(InfoPro!N120),"",InfoPro!N120) -> NO | F121: =IF(ISBLANK(InfoPro!I120),"",YEAR(InfoPro!I120)-$J$2) -> 2 | G121: 0 | H121: 0
B122: =IF(ISBLANK(InfoPro!A121),"",InfoPro!A121) -> SC_1824_A1 | C122: =IF(ISBLANK(InfoPro!B121),"",InfoPro!B121) -> PGF ROSARIO II_45MW | D122: =IF(ISBLANK(InfoPro!E121),"",InfoPro!E121) -> 45 | E122: =IF(ISBLANK(InfoPro!N121),"",InfoPro!N121) -> NO | F122: =IF(ISBLANK(InfoPro!I121),"",YEAR(InfoPro!I121)-$J$2) -> 3 | G122: 0 | H122: 0
B123: =IF(ISBLANK(InfoPro!A122),"",InfoPro!A122) -> SC_1824_A2 | C123: =IF(ISBLANK(InfoPro!B122),"",InfoPro!B122) -> PGF ROSARIO II_45MW | D123: =IF(ISBLANK(InfoPro!E122),"",InfoPro!E122) -> 45 | E123: =IF(ISBLANK(InfoPro!N122),"",InfoPro!N122) -> NO | F123: =IF(ISBLANK(InfoPro!I122),"",YEAR(InfoPro!I122)-$J$2) -> 3 | G123: 0 | H123: 0
B124: =IF(ISBLANK(InfoPro!A123),"",InfoPro!A123) -> SC_1827_A1 | C124: =IF(ISBLANK(InfoPro!B123),"",InfoPro!B123) -> Guatapurí Solar I 9,9 MW | D124: =IF(ISBLANK(InfoPro!E123),"",InfoPro!E123) -> 9.9 | E124: =IF(ISBLANK(InfoPro!N123),"",InfoPro!N123) -> NO | F124: =IF(ISBLANK(InfoPro!I123),"",YEAR(InfoPro!I123)-$J$2) -> 2 | G124: 0 | H124: 0
B125: =IF(ISBLANK(InfoPro!A124),"",InfoPro!A124) -> SC_1827_A2 | C125: =IF(ISBLANK(InfoPro!B124),"",InfoPro!B124) -> Guatapurí Solar I 9,9 MW | D125: =IF(ISBLANK(InfoPro!E124),"",InfoPro!E124) -> 9.9 | E125: =IF(ISBLANK(InfoPro!N124),"",InfoPro!N124) -> NO | F125: =IF(ISBLANK(InfoPro!I124),"",YEAR(InfoPro!I124)-$J$2) -> 2 | G125: 0 | H125: 0
B126: =IF(ISBLANK(InfoPro!A125),"",InfoPro!A125) -> SC_1830_A1 | C126: =IF(ISBLANK(InfoPro!B125),"",InfoPro!B125) -> Guatapurí Solar II 9,9 MW | D126: =IF(ISBLANK(InfoPro!E125),"",InfoPro!E125) -> 9.9 | E126: =IF(ISBLANK(InfoPro!N125),"",InfoPro!N125) -> NO | F126: =IF(ISBLANK(InfoPro!I125),"",YEAR(InfoPro!I125)-$J$2) -> 2 | G126: 0 | H126: 0
B127: =IF(ISBLANK(InfoPro!A126),"",InfoPro!A126) -> SC_1830_A2 | C127: =IF(ISBLANK(InfoPro!B126),"",InfoPro!B126) -> Guatapurí Solar II 9,9 MW | D127: =IF(ISBLANK(InfoPro!E126),"",InfoPro!E126) -> 9.9 | E127: =IF(ISBLANK(InfoPro!N126),"",InfoPro!N126) -> NO | F127: =IF(ISBLANK(InfoPro!I126),"",YEAR(InfoPro!I126)-$J$2) -> 2 | G127: 0 | H127: 0
B128: =IF(ISBLANK(InfoPro!A127),"",InfoPro!A127) -> SC_1840_A1 | C128: =IF(ISBLANK(InfoPro!B127),"",InfoPro!B127) -> Granja Solar Asturias 9,9 MW | D128: =IF(ISBLANK(InfoPro!E127),"",InfoPro!E127) -> 9.9 | E128: =IF(ISBLANK(InfoPro!N127),"",InfoPro!N127) -> NO | F128: =IF(ISBLANK(InfoPro!I127),"",YEAR(InfoPro!I127)-$J$2) -> 2 | G128: 0 | H128: 0
B129: =IF(ISBLANK(InfoPro!A128),"",InfoPro!A128) -> SC_1840_A2 | C129: =IF(ISBLANK(InfoPro!B128),"",InfoPro!B128) -> Granja Solar Asturias 9,9 MW | D129: =IF(ISBLANK(InfoPro!E128),"",InfoPro!E128) -> 9.9 | E129: =IF(ISBLANK(InfoPro!N128),"",InfoPro!N128) -> NO | F129: =IF(ISBLANK(InfoPro!I128),"",YEAR(InfoPro!I128)-$J$2) -> 2 | G129: 0 | H129: 0
B130: =IF(ISBLANK(InfoPro!A129),"",InfoPro!A129) -> SC_1846_A1 | C130: =IF(ISBLANK(InfoPro!B129),"",InfoPro!B129) -> PARQUE DE GENERACIÓN SOLAR CYGNUS 50 MW | D130: =IF(ISBLANK(InfoPro!E129),"",InfoPro!E129) -> 50 | E130: =IF(ISBLANK(InfoPro!N129),"",InfoPro!N129) -> NO | F130: =IF(ISBLANK(InfoPro!I129),"",YEAR(InfoPro!I129)-$J$2) -> 2 | G130: 0 | H130: 0
B131: =IF(ISBLANK(InfoPro!A130),"",InfoPro!A130) -> SC_1846_A2 | C131: =IF(ISBLANK(InfoPro!B130),"",InfoPro!B130) -> PARQUE DE GENERACIÓN SOLAR CYGNUS 50 MW | D131: =IF(ISBLANK(InfoPro!E130),"",InfoPro!E130) -> 50 | E131: =IF(ISBLANK(InfoPro!N130),"",InfoPro!N130) -> NO | F131: =IF(ISBLANK(InfoPro!I130),"",YEAR(InfoPro!I130)-$J$2) -> 2 | G131: =IF(E131="SI",100,IF(E131="NO",0,"")) -> 0 | H131: =IF(G131="","",(G131)) -> 0
B132: =IF(ISBLANK(InfoPro!A131),"",InfoPro!A131) -> SC_1854_A1 | C132: =IF(ISBLANK(InfoPro!B131),"",InfoPro!B131) -> CATAY 1 - 200 MW | D132: =IF(ISBLANK(InfoPro!E131),"",InfoPro!E131) -> 200 | E132: =IF(ISBLANK(InfoPro!N131),"",InfoPro!N131) -> NO | F132: =IF(ISBLANK(InfoPro!I131),"",YEAR(InfoPro!I131)-$J$2) -> 4 | G132: 0 | H132: 0
B133: =IF(ISBLANK(InfoPro!A132),"",InfoPro!A132) -> SC_1854_A2 | C133: =IF(ISBLANK(InfoPro!B132),"",InfoPro!B132) -> CATAY 1 - 200 MW | D133: =IF(ISBLANK(InfoPro!E132),"",InfoPro!E132) -> 200 | E133: =IF(ISBLANK(InfoPro!N132),"",InfoPro!N132) -> NO | F133: =IF(ISBLANK(InfoPro!I132),"",YEAR(InfoPro!I132)-$J$2) -> 4 | G133: 0 | H133: 0
B134: =IF(ISBLANK(InfoPro!A133),"",InfoPro!A133) -> SC_1856_A1 | C134: =IF(ISBLANK(InfoPro!B133),"",InfoPro!B133) -> SIERRA NEVADA DE VERANO | D134: =IF(ISBLANK(InfoPro!E133),"",InfoPro!E133) -> 99.9 | E134: =IF(ISBLANK(InfoPro!N133),"",InfoPro!N133) -> NO | F134: =IF(ISBLANK(InfoPro!I133),"",YEAR(InfoPro!I133)-$J$2) -> 4 | G134: 0 | H134: 0
B135: =IF(ISBLANK(InfoPro!A134),"",InfoPro!A134) -> SC_1856_A2 | C135: =IF(ISBLANK(InfoPro!B134),"",InfoPro!B134) -> SIERRA NEVADA DE VERANO | D135: =IF(ISBLANK(InfoPro!E134),"",InfoPro!E134) -> 99.9 | E135: =IF(ISBLANK(InfoPro!N134),"",InfoPro!N134) -> NO | F135: =IF(ISBLANK(InfoPro!I134),"",YEAR(InfoPro!I134)-$J$2) -> 4 | G135: 0 | H135: 0
B136: =IF(ISBLANK(InfoPro!A135),"",InfoPro!A135) -> SC_1857_A1 | C136: =IF(ISBLANK(InfoPro!B135),"",InfoPro!B135) -> MILAGROS DE VERANO | D136: =IF(ISBLANK(InfoPro!E135),"",InfoPro!E135) -> 99.9 | E136: =IF(ISBLANK(InfoPro!N135),"",InfoPro!N135) -> NO | F136: =IF(ISBLANK(InfoPro!I135),"",YEAR(InfoPro!I135)-$J$2) -> 5 | G136: 0 | H136: 0
B137: =IF(ISBLANK(InfoPro!A136),"",InfoPro!A136) -> SC_1857_A2 | C137: =IF(ISBLANK(InfoPro!B136),"",InfoPro!B136) -> MILAGROS DE VERANO | D137: =IF(ISBLANK(InfoPro!E136),"",InfoPro!E136) -> 99.9 | E137: =IF(ISBLANK(InfoPro!N136),"",InfoPro!N136) -> NO | F137: =IF(ISBLANK(InfoPro!I136),"",YEAR(InfoPro!I136)-$J$2) -> 5 | G137: 0 | H137: 0
B138: =IF(ISBLANK(InfoPro!A137),"",InfoPro!A137) -> SC_1861_A1 | C138: =IF(ISBLANK(InfoPro!B137),"",InfoPro!B137) -> Autogenerador CELSIA Solar Cenit Copey | D138: =IF(ISBLANK(InfoPro!E137),"",InfoPro!E137) -> 6.6 | E138: =IF(ISBLANK(InfoPro!N137),"",InfoPro!N137) -> NO | F138: =IF(ISBLANK(InfoPro!I137),"",YEAR(InfoPro!I137)-$J$2) -> 0 | G138: 0 | H138: 0
B139: =IF(ISBLANK(InfoPro!A138),"",InfoPro!A138) -> SC_1876_A1 | C139: =IF(ISBLANK(InfoPro!B138),"",InfoPro!B138) -> Nevada II 250 MW | D139: =IF(ISBLANK(InfoPro!E138),"",InfoPro!E138) -> 250 | E139: =IF(ISBLANK(InfoPro!N138),"",InfoPro!N138) -> NO | F139: =IF(ISBLANK(InfoPro!I138),"",YEAR(InfoPro!I138)-$J$2) -> 7 | G139: 0 | H139: 0
B140: =IF(ISBLANK(InfoPro!A139),"",InfoPro!A139) -> SC_1876_A2 | C140: =IF(ISBLANK(InfoPro!B139),"",InfoPro!B139) -> Nevada II 250 MW | D140: =IF(ISBLANK(InfoPro!E139),"",InfoPro!E139) -> 250 | E140: =IF(ISBLANK(InfoPro!N139),"",InfoPro!N139) -> NO | F140: =IF(ISBLANK(InfoPro!I139),"",YEAR(InfoPro!I139)-$J$2) -> 7 | G140: 0 | H140: 0
B141: =IF(ISBLANK(InfoPro!A140),"",InfoPro!A140) -> SC_1877_A1 | C141: =IF(ISBLANK(InfoPro!B140),"",InfoPro!B140) -> Planta Solar FV Corozal 9,9MW | D141: =IF(ISBLANK(InfoPro!E140),"",InfoPro!E140) -> 9.9 | E141: =IF(ISBLANK(InfoPro!N140),"",InfoPro!N140) -> NO | F141: =IF(ISBLANK(InfoPro!I140),"",YEAR(InfoPro!I140)-$J$2) -> 3 | G141: 0 | H141: 0
B142: =IF(ISBLANK(InfoPro!A141),"",InfoPro!A141) -> SC_1877_A2 | C142: =IF(ISBLANK(InfoPro!B141),"",InfoPro!B141) -> Planta Solar FV Corozal 9,9MW | D142: =IF(ISBLANK(InfoPro!E141),"",InfoPro!E141) -> 9.9 | E142: =IF(ISBLANK(InfoPro!N141),"",InfoPro!N141) -> NO | F142: =IF(ISBLANK(InfoPro!I141),"",YEAR(InfoPro!I141)-$J$2) -> 3 | G142: 0 | H142: 0
B143: =IF(ISBLANK(InfoPro!A142),"",InfoPro!A142) -> SC_1889_A1 | C143: =IF(ISBLANK(InfoPro!B142),"",InfoPro!B142) -> La Granja | D143: =IF(ISBLANK(InfoPro!E142),"",InfoPro!E142) -> 19.9 | E143: =IF(ISBLANK(InfoPro!N142),"",InfoPro!N142) -> NO | F143: =IF(ISBLANK(InfoPro!I142),"",YEAR(InfoPro!I142)-$J$2) -> 2 | G143: 0 | H143: 0
B144: =IF(ISBLANK(InfoPro!A143),"",InfoPro!A143) -> SC_1889_A2 | C144: =IF(ISBLANK(InfoPro!B143),"",InfoPro!B143) -> La Granja | D144: =IF(ISBLANK(InfoPro!E143),"",InfoPro!E143) -> 19.9 | E144: =IF(ISBLANK(InfoPro!N143),"",InfoPro!N143) -> NO | F144: =IF(ISBLANK(InfoPro!I143),"",YEAR(InfoPro!I143)-$J$2) -> 2 | G144: 0 | H144: 0
B145: =IF(ISBLANK(InfoPro!A144),"",InfoPro!A144) -> SC_1898_A1 | C145: =IF(ISBLANK(InfoPro!B144),"",InfoPro!B144) -> Parque Eólico Fenix_70MW | D145: =IF(ISBLANK(InfoPro!E144),"",InfoPro!E144) -> 70 | E145: =IF(ISBLANK(InfoPro!N144),"",InfoPro!N144) -> NO | F145: =IF(ISBLANK(InfoPro!I144),"",YEAR(InfoPro!I144)-$J$2) -> 5 | G145: =IF(E145="SI",100,IF(E145="NO",0,"")) -> 0 | H145: =IF(G145="","",(G145)) -> 0
B146: =IF(ISBLANK(InfoPro!A145),"",InfoPro!A145) -> SC_1898_A2 | C146: =IF(ISBLANK(InfoPro!B145),"",InfoPro!B145) -> Parque Eólico Fenix_70MW | D146: =IF(ISBLANK(InfoPro!E145),"",InfoPro!E145) -> 70 | E146: =IF(ISBLANK(InfoPro!N145),"",InfoPro!N145) -> NO | F146: =IF(ISBLANK(InfoPro!I145),"",YEAR(InfoPro!I145)-$J$2) -> 5 | G146: 0 | H146: 0
B147: =IF(ISBLANK(InfoPro!A146),"",InfoPro!A146) -> SC_1904_A1 | C147: =IF(ISBLANK(InfoPro!B146),"",InfoPro!B146) -> Parque Solar Fotovoltaico Potreritos | D147: =IF(ISBLANK(InfoPro!E146),"",InfoPro!E146) -> 168 | E147: =IF(ISBLANK(InfoPro!N146),"",InfoPro!N146) -> NO | F147: =IF(ISBLANK(InfoPro!I146),"",YEAR(InfoPro!I146)-$J$2) -> 1 | G147: 0 | H147: 0
B148: =IF(ISBLANK(InfoPro!A147),"",InfoPro!A147) -> SC_1904_A2 | C148: =IF(ISBLANK(InfoPro!B147),"",InfoPro!B147) -> Parque Solar Fotovoltaico Potreritos | D148: =IF(ISBLANK(InfoPro!E147),"",InfoPro!E147) -> 168 | E148: =IF(ISBLANK(InfoPro!N147),"",InfoPro!N147) -> NO | F148: =IF(ISBLANK(InfoPro!I147),"",YEAR(InfoPro!I147)-$J$2) -> 1 | G148: 0 | H148: 0
B149: =IF(ISBLANK(InfoPro!A148),"",InfoPro!A148) -> SC_1905_A1 | C149: =IF(ISBLANK(InfoPro!B148),"",InfoPro!B148) -> Parque Solar Valle del Cesar | D149: =IF(ISBLANK(InfoPro!E148),"",InfoPro!E148) -> 50 | E149: =IF(ISBLANK(InfoPro!N148),"",InfoPro!N148) -> NO | F149: =IF(ISBLANK(InfoPro!I148),"",YEAR(InfoPro!I148)-$J$2) -> 3 | G149: 0 | H149: 0
B150: =IF(ISBLANK(InfoPro!A149),"",InfoPro!A149) -> SC_1905_A2 | C150: =IF(ISBLANK(InfoPro!B149),"",InfoPro!B149) -> Parque Solar Valle del Cesar | D150: =IF(ISBLANK(InfoPro!E149),"",InfoPro!E149) -> 50 | E150: =IF(ISBLANK(InfoPro!N149),"",InfoPro!N149) -> NO | F150: =IF(ISBLANK(InfoPro!I149),"",YEAR(InfoPro!I149)-$J$2) -> 3 | G150: 0 | H150: 0
B151: =IF(ISBLANK(InfoPro!A150),"",InfoPro!A150) -> SC_1908_A1 | C151: =IF(ISBLANK(InfoPro!B150),"",InfoPro!B150) -> Corocoro 500 MW | D151: =IF(ISBLANK(InfoPro!E150),"",InfoPro!E150) -> 500 | E151: =IF(ISBLANK(InfoPro!N150),"",InfoPro!N150) -> NO | F151: =IF(ISBLANK(InfoPro!I150),"",YEAR(InfoPro!I150)-$J$2) -> 3 | G151: 0 | H151: 0
B152: =IF(ISBLANK(InfoPro!A151),"",InfoPro!A151) -> SC_1908_A2 | C152: =IF(ISBLANK(InfoPro!B151),"",InfoPro!B151) -> Corocoro 500 MW | D152: =IF(ISBLANK(InfoPro!E151),"",InfoPro!E151) -> 500 | E152: =IF(ISBLANK(InfoPro!N151),"",InfoPro!N151) -> NO | F152: =IF(ISBLANK(InfoPro!I151),"",YEAR(InfoPro!I151)-$J$2) -> 3 | G152: =IF(E152="SI",100,IF(E152="NO",0,"")) -> 0 | H152: =IF(G152="","",(G152)) -> 0
B153: =IF(ISBLANK(InfoPro!A152),"",InfoPro!A152) -> SC_1912_A1 | C153: =IF(ISBLANK(InfoPro!B152),"",InfoPro!B152) -> Draco de 22.5 MW (entrega 19,9 MW) | D153: =IF(ISBLANK(InfoPro!E152),"",InfoPro!E152) -> 19.9 | E153: =IF(ISBLANK(InfoPro!N152),"",InfoPro!N152) -> NO | F153: =IF(ISBLANK(InfoPro!I152),"",YEAR(InfoPro!I152)-$J$2) -> 2 | G153: 0 | H153: 0
B154: =IF(ISBLANK(InfoPro!A153),"",InfoPro!A153) -> SC_1912_A2 | C154: =IF(ISBLANK(InfoPro!B153),"",InfoPro!B153) -> Draco de 22.5 MW (entrega 19,9 MW) | D154: =IF(ISBLANK(InfoPro!E153),"",InfoPro!E153) -> 19.9 | E154: =IF(ISBLANK(InfoPro!N153),"",InfoPro!N153) -> NO | F154: =IF(ISBLANK(InfoPro!I153),"",YEAR(InfoPro!I153)-$J$2) -> 2 | G154: 0 | H154: 0
B155: =IF(ISBLANK(InfoPro!A154),"",InfoPro!A154) -> SC_1920_A1 | C155: =IF(ISBLANK(InfoPro!B154),"",InfoPro!B154) -> Parque Solar TERRɅ II 19.9 MW | D155: =IF(ISBLANK(InfoPro!E154),"",InfoPro!E154) -> 19.9 | E155: =IF(ISBLANK(InfoPro!N154),"",InfoPro!N154) -> NO | F155: =IF(ISBLANK(InfoPro!I154),"",YEAR(InfoPro!I154)-$J$2) -> 1 | G155: 0 | H155: 0
B156: =IF(ISBLANK(InfoPro!A155),"",InfoPro!A155) -> SC_1920_A2 | C156: =IF(ISBLANK(InfoPro!B155),"",InfoPro!B155) -> Parque Solar TERRɅ II 19.9 MW | D156: =IF(ISBLANK(InfoPro!E155),"",InfoPro!E155) -> 19.9 | E156: =IF(ISBLANK(InfoPro!N155),"",InfoPro!N155) -> NO | F156: =IF(ISBLANK(InfoPro!I155),"",YEAR(InfoPro!I155)-$J$2) -> 1 | G156: 0 | H156: 0
B157: =IF(ISBLANK(InfoPro!A156),"",InfoPro!A156) -> SC_1928_A1 | C157: =IF(ISBLANK(InfoPro!B156),"",InfoPro!B156) -> Jacamará 500 MW | D157: =IF(ISBLANK(InfoPro!E156),"",InfoPro!E156) -> 500 | E157: =IF(ISBLANK(InfoPro!N156),"",InfoPro!N156) -> NO | F157: =IF(ISBLANK(InfoPro!I156),"",YEAR(InfoPro!I156)-$J$2) -> 3 | G157: 0 | H157: 0
B158: =IF(ISBLANK(InfoPro!A157),"",InfoPro!A157) -> SC_1928_A2 | C158: =IF(ISBLANK(InfoPro!B157),"",InfoPro!B157) -> Jacamará 500 MW | D158: =IF(ISBLANK(InfoPro!E157),"",InfoPro!E157) -> 500 | E158: =IF(ISBLANK(InfoPro!N157),"",InfoPro!N157) -> NO | F158: =IF(ISBLANK(InfoPro!I157),"",YEAR(InfoPro!I157)-$J$2) -> 3 | G158: 0 | H158: 0
B159: =IF(ISBLANK(InfoPro!A158),"",InfoPro!A158) -> SC_1944_A1 | C159: =IF(ISBLANK(InfoPro!B158),"",InfoPro!B158) -> MANANTIALES DE VERANO de 99.9 MW | D159: =IF(ISBLANK(InfoPro!E158),"",InfoPro!E158) -> 99.9 | E159: =IF(ISBLANK(InfoPro!N158),"",InfoPro!N158) -> NO | F159: =IF(ISBLANK(InfoPro!I158),"",YEAR(InfoPro!I158)-$J$2) -> 3 | G159: 0 | H159: 0
B160: =IF(ISBLANK(InfoPro!A159),"",InfoPro!A159) -> SC_1944_A2 | C160: =IF(ISBLANK(InfoPro!B159),"",InfoPro!B159) -> MANANTIALES DE VERANO de 99.9 MW | D160: =IF(ISBLANK(InfoPro!E159),"",InfoPro!E159) -> 99.9 | E160: =IF(ISBLANK(InfoPro!N159),"",InfoPro!N159) -> NO | F160: =IF(ISBLANK(InfoPro!I159),"",YEAR(InfoPro!I159)-$J$2) -> 3 | G160: 0 | H160: 0
B161: =IF(ISBLANK(InfoPro!A160),"",InfoPro!A160) -> SC_1948_A1 | C161: =IF(ISBLANK(InfoPro!B160),"",InfoPro!B160) -> PGF ROSARIO I | D161: =IF(ISBLANK(InfoPro!E160),"",InfoPro!E160) -> 95 | E161: =IF(ISBLANK(InfoPro!N160),"",InfoPro!N160) -> NO | F161: =IF(ISBLANK(InfoPro!I160),"",YEAR(InfoPro!I160)-$J$2) -> 3 | G161: 0 | H161: 0
B162: =IF(ISBLANK(InfoPro!A161),"",InfoPro!A161) -> SC_1948_A2 | C162: =IF(ISBLANK(InfoPro!B161),"",InfoPro!B161) -> PGF ROSARIO I | D162: =IF(ISBLANK(InfoPro!E161),"",InfoPro!E161) -> 95 | E162: =IF(ISBLANK(InfoPro!N161),"",InfoPro!N161) -> NO | F162: =IF(ISBLANK(InfoPro!I161),"",YEAR(InfoPro!I161)-$J$2) -> 3 | G162: 0 | H162: 0
B163: =IF(ISBLANK(InfoPro!A162),"",InfoPro!A162) -> SC_1967_A1 | C163: =IF(ISBLANK(InfoPro!B162),"",InfoPro!B162) -> Solar Valledupar 4 | D163: =IF(ISBLANK(InfoPro!E162),"",InfoPro!E162) -> 19.9 | E163: =IF(ISBLANK(InfoPro!N162),"",InfoPro!N162) -> NO | F163: =IF(ISBLANK(InfoPro!I162),"",YEAR(InfoPro!I162)-$J$2) -> 2 | G163: 0 | H163: 0
B164: =IF(ISBLANK(InfoPro!A163),"",InfoPro!A163) -> SC_1967_A2 | C164: =IF(ISBLANK(InfoPro!B163),"",InfoPro!B163) -> Solar Valledupar 4 | D164: =IF(ISBLANK(InfoPro!E163),"",InfoPro!E163) -> 19.9 | E164: =IF(ISBLANK(InfoPro!N163),"",InfoPro!N163) -> NO | F164: =IF(ISBLANK(InfoPro!I163),"",YEAR(InfoPro!I163)-$J$2) -> 2 | G164: 0 | H164: 0
B165: =IF(ISBLANK(InfoPro!A164),"",InfoPro!A164) -> SC_1968_A1 | C165: =IF(ISBLANK(InfoPro!B164),"",InfoPro!B164) -> Solar Valledupar 5 | D165: =IF(ISBLANK(InfoPro!E164),"",InfoPro!E164) -> 19.9 | E165: =IF(ISBLANK(InfoPro!N164),"",InfoPro!N164) -> NO | F165: =IF(ISBLANK(InfoPro!I164),"",YEAR(InfoPro!I164)-$J$2) -> 2 | G165: 0 | H165: 0
B166: =IF(ISBLANK(InfoPro!A165),"",InfoPro!A165) -> SC_1968_A2 | C166: =IF(ISBLANK(InfoPro!B165),"",InfoPro!B165) -> Solar Valledupar 5 | D166: =IF(ISBLANK(InfoPro!E165),"",InfoPro!E165) -> 19.9 | E166: =IF(ISBLANK(InfoPro!N165),"",InfoPro!N165) -> NO | F166: =IF(ISBLANK(InfoPro!I165),"",YEAR(InfoPro!I165)-$J$2) -> 2 | G166: 0 | H166: 0
B167: =IF(ISBLANK(InfoPro!A166),"",InfoPro!A166) -> SC_1978_A1 | C167: =IF(ISBLANK(InfoPro!B166),"",InfoPro!B166) -> Solar El Copey | D167: =IF(ISBLANK(InfoPro!E166),"",InfoPro!E166) -> 230 | E167: =IF(ISBLANK(InfoPro!N166),"",InfoPro!N166) -> NO | F167: =IF(ISBLANK(InfoPro!I166),"",YEAR(InfoPro!I166)-$J$2) -> 2 | G167: 0 | H167: 0
B168: =IF(ISBLANK(InfoPro!A167),"",InfoPro!A167) -> SC_1978_A2 | C168: =IF(ISBLANK(InfoPro!B167),"",InfoPro!B167) -> Solar El Copey | D168: =IF(ISBLANK(InfoPro!E167),"",InfoPro!E167) -> 230 | E168: =IF(ISBLANK(InfoPro!N167),"",InfoPro!N167) -> NO | F168: =IF(ISBLANK(InfoPro!I167),"",YEAR(InfoPro!I167)-$J$2) -> 2 | G168: 0 | H168: 0
B169: =IF(ISBLANK(InfoPro!A168),"",InfoPro!A168) -> SC_1981_A1 | C169: =IF(ISBLANK(InfoPro!B168),"",InfoPro!B168) -> Solar Valledupar 2 | D169: =IF(ISBLANK(InfoPro!E168),"",InfoPro!E168) -> 19.9 | E169: =IF(ISBLANK(InfoPro!N168),"",InfoPro!N168) -> NO | F169: =IF(ISBLANK(InfoPro!I168),"",YEAR(InfoPro!I168)-$J$2) -> 0 | G169: 0 | H169: 0
B170: =IF(ISBLANK(InfoPro!A169),"",InfoPro!A169) -> SC_1981_A2 | C170: =IF(ISBLANK(InfoPro!B169),"",InfoPro!B169) -> Solar Valledupar 2 | D170: =IF(ISBLANK(InfoPro!E169),"",InfoPro!E169) -> 19.9 | E170: =IF(ISBLANK(InfoPro!N169),"",InfoPro!N169) -> NO | F170: =IF(ISBLANK(InfoPro!I169),"",YEAR(InfoPro!I169)-$J$2) -> 0 | G170: 0 | H170: 0
B171: =IF(ISBLANK(InfoPro!A170),"",InfoPro!A170) -> SC_1982_A1 | C171: =IF(ISBLANK(InfoPro!B170),"",InfoPro!B170) -> Solar Valledupar 3 | D171: =IF(ISBLANK(InfoPro!E170),"",InfoPro!E170) -> 19.9 | E171: =IF(ISBLANK(InfoPro!N170),"",InfoPro!N170) -> NO | F171: =IF(ISBLANK(InfoPro!I170),"",YEAR(InfoPro!I170)-$J$2) -> 2 | G171: 0 | H171: 0
B172: =IF(ISBLANK(InfoPro!A171),"",InfoPro!A171) -> SC_1982_A2 | C172: =IF(ISBLANK(InfoPro!B171),"",InfoPro!B171) -> Solar Valledupar 3 | D172: =IF(ISBLANK(InfoPro!E171),"",InfoPro!E171) -> 19.9 | E172: =IF(ISBLANK(InfoPro!N171),"",InfoPro!N171) -> NO | F172: =IF(ISBLANK(InfoPro!I171),"",YEAR(InfoPro!I171)-$J$2) -> 2 | G172: 0 | H172: 0
B173: =IF(ISBLANK(InfoPro!A172),"",InfoPro!A172) -> SC_1989_A1 | C173: =IF(ISBLANK(InfoPro!B172),"",InfoPro!B172) -> Solar Valledupar 1 | D173: =IF(ISBLANK(InfoPro!E172),"",InfoPro!E172) -> 19.9 | E173: =IF(ISBLANK(InfoPro!N172),"",InfoPro!N172) -> NO | F173: =IF(ISBLANK(InfoPro!I172),"",YEAR(InfoPro!I172)-$J$2) -> 0 | G173: 0 | H173: 0
B174: =IF(ISBLANK(InfoPro!A173),"",InfoPro!A173) -> SC_1989_A2 | C174: =IF(ISBLANK(InfoPro!B173),"",InfoPro!B173) -> Solar Valledupar 1 | D174: =IF(ISBLANK(InfoPro!E173),"",InfoPro!E173) -> 19.9 | E174: =IF(ISBLANK(InfoPro!N173),"",InfoPro!N173) -> NO | F174: =IF(ISBLANK(InfoPro!I173),"",YEAR(InfoPro!I173)-$J$2) -> 0 | G174: 0 | H174: 0
B175: =IF(ISBLANK(InfoPro!A174),"",InfoPro!A174) -> SC_1992_A1 | C175: =IF(ISBLANK(InfoPro!B174),"",InfoPro!B174) -> Parque Solar TERRɅ III | D175: =IF(ISBLANK(InfoPro!E174),"",InfoPro!E174) -> 19.9 | E175: =IF(ISBLANK(InfoPro!N174),"",InfoPro!N174) -> NO | F175: =IF(ISBLANK(InfoPro!I174),"",YEAR(InfoPro!I174)-$J$2) -> 1 | G175: 0 | H175: 0
B176: =IF(ISBLANK(InfoPro!A175),"",InfoPro!A175) -> SC_2005_A1 | C176: =IF(ISBLANK(InfoPro!B175),"",InfoPro!B175) -> PARQUE SOLAR CATACA | D176: =IF(ISBLANK(InfoPro!E175),"",InfoPro!E175) -> 9.9 | E176: =IF(ISBLANK(InfoPro!N175),"",InfoPro!N175) -> NO | F176: =IF(ISBLANK(InfoPro!I175),"",YEAR(InfoPro!I175)-$J$2) -> 1 | G176: 0 | H176: 0
B177: =IF(ISBLANK(InfoPro!A176),"",InfoPro!A176) -> SC_2010_A1 | C177: =IF(ISBLANK(InfoPro!B176),"",InfoPro!B176) -> PARQUE SOLAR SAN JUAN_5MW | D177: =IF(ISBLANK(InfoPro!E176),"",InfoPro!E176) -> 5 | E177: =IF(ISBLANK(InfoPro!N176),"",InfoPro!N176) -> NO | F177: =IF(ISBLANK(InfoPro!I176),"",YEAR(InfoPro!I176)-$J$2) -> 1 | G177: 0 | H177: 0
B178: =IF(ISBLANK(InfoPro!A177),"",InfoPro!A177) -> SC_2011_A1 | C178: =IF(ISBLANK(InfoPro!B177),"",InfoPro!B177) -> PE Vientos de la Manita | D178: =IF(ISBLANK(InfoPro!E177),"",InfoPro!E177) -> 9.9 | E178: =IF(ISBLANK(InfoPro!N177),"",InfoPro!N177) -> NO | F178: =IF(ISBLANK(InfoPro!I177),"",YEAR(InfoPro!I177)-$J$2) -> 2 | G178: 0 | H178: 0
B179: =IF(ISBLANK(InfoPro!A178),"",InfoPro!A178) -> SC_2011_A2 | C179: =IF(ISBLANK(InfoPro!B178),"",InfoPro!B178) -> PE Vientos de la Manita | D179: =IF(ISBLANK(InfoPro!E178),"",InfoPro!E178) -> 9.9 | E179: =IF(ISBLANK(InfoPro!N178),"",InfoPro!N178) -> NO | F179: =IF(ISBLANK(InfoPro!I178),"",YEAR(InfoPro!I178)-$J$2) -> 2 | G179: 0 | H179: 0
B180: =IF(ISBLANK(InfoPro!A179),"",InfoPro!A179) -> SC_2020_A1 | C180: =IF(ISBLANK(InfoPro!B179),"",InfoPro!B179) -> San Juan Solar I 9,9 MW | D180: =IF(ISBLANK(InfoPro!E179),"",InfoPro!E179) -> 9.9 | E180: =IF(ISBLANK(InfoPro!N179),"",InfoPro!N179) -> NO | F180: =IF(ISBLANK(InfoPro!I179),"",YEAR(InfoPro!I179)-$J$2) -> 1 | G180: 0 | H180: 0
B181: =IF(ISBLANK(InfoPro!A180),"",InfoPro!A180) -> SC_2020_A2 | C181: =IF(ISBLANK(InfoPro!B180),"",InfoPro!B180) -> San Juan Solar I 9,9 MW | D181: =IF(ISBLANK(InfoPro!E180),"",InfoPro!E180) -> 9.9 | E181: =IF(ISBLANK(InfoPro!N180),"",InfoPro!N180) -> NO | F181: =IF(ISBLANK(InfoPro!I180),"",YEAR(InfoPro!I180)-$J$2) -> 1 | G181: 0 | H181: 0
B182: =IF(ISBLANK(InfoPro!A181),"",InfoPro!A181) -> SC_2021_A1 | C182: =IF(ISBLANK(InfoPro!B181),"",InfoPro!B181) -> San Juan Solar II 9,9 MW | D182: =IF(ISBLANK(InfoPro!E181),"",InfoPro!E181) -> 9.9 | E182: =IF(ISBLANK(InfoPro!N181),"",InfoPro!N181) -> NO | F182: =IF(ISBLANK(InfoPro!I181),"",YEAR(InfoPro!I181)-$J$2) -> 1 | G182: 0 | H182: 0
B183: =IF(ISBLANK(InfoPro!A182),"",InfoPro!A182) -> SC_2021_A2 | C183: =IF(ISBLANK(InfoPro!B182),"",InfoPro!B182) -> San Juan Solar II 9,9 MW | D183: =IF(ISBLANK(InfoPro!E182),"",InfoPro!E182) -> 9.9 | E183: =IF(ISBLANK(InfoPro!N182),"",InfoPro!N182) -> NO | F183: =IF(ISBLANK(InfoPro!I182),"",YEAR(InfoPro!I182)-$J$2) -> 1 | G183: 0 | H183: 0
B184: =IF(ISBLANK(InfoPro!A183),"",InfoPro!A183) -> SC_2056_A1 | C184: =IF(ISBLANK(InfoPro!B183),"",InfoPro!B183) -> Saturno 200 MW | D184: =IF(ISBLANK(InfoPro!E183),"",InfoPro!E183) -> 200 | E184: =IF(ISBLANK(InfoPro!N183),"",InfoPro!N183) -> NO | F184: =IF(ISBLANK(InfoPro!I183),"",YEAR(InfoPro!I183)-$J$2) -> 2 | G184: 0 | H184: 0
B185: =IF(ISBLANK(InfoPro!A184),"",InfoPro!A184) -> SC_2057_A1 | C185: =IF(ISBLANK(InfoPro!B184),"",InfoPro!B184) -> SABAN II - 305 MW | D185: =IF(ISBLANK(InfoPro!E184),"",InfoPro!E184) -> 305 | E185: =IF(ISBLANK(InfoPro!N184),"",InfoPro!N184) -> NO | F185: =IF(ISBLANK(InfoPro!I184),"",YEAR(InfoPro!I184)-$J$2) -> 4 | G185: 0 | H185: 0
B186: =IF(ISBLANK(InfoPro!A185),"",InfoPro!A185) -> SC_2066_A1 | C186: =IF(ISBLANK(InfoPro!B185),"",InfoPro!B185) -> Orquídea del Cesar - La Loma - 62 MW | D186: =IF(ISBLANK(InfoPro!E185),"",InfoPro!E185) -> 62 | E186: =IF(ISBLANK(InfoPro!N185),"",InfoPro!N185) -> NO | F186: =IF(ISBLANK(InfoPro!I185),"",YEAR(InfoPro!I185)-$J$2) -> 5 | G186: 0 | H186: 0
B187: =IF(ISBLANK(InfoPro!A186),"",InfoPro!A186) -> SC_2066_A2 | C187: =IF(ISBLANK(InfoPro!B186),"",InfoPro!B186) -> Orquídea del Cesar - La Loma - 62 MW | D187: =IF(ISBLANK(InfoPro!E186),"",InfoPro!E186) -> 62 | E187: =IF(ISBLANK(InfoPro!N186),"",InfoPro!N186) -> NO | F187: =IF(ISBLANK(InfoPro!I186),"",YEAR(InfoPro!I186)-$J$2) -> 5 | G187: 0 | H187: 0
B188: =IF(ISBLANK(InfoPro!A187),"",InfoPro!A187) -> SC_2069_A1 | C188: =IF(ISBLANK(InfoPro!B187),"",InfoPro!B187) -> Pétalo del Magdalena - Fundación | D188: =IF(ISBLANK(InfoPro!E187),"",InfoPro!E187) -> 9.9 | E188: =IF(ISBLANK(InfoPro!N187),"",InfoPro!N187) -> NO | F188: =IF(ISBLANK(InfoPro!I187),"",YEAR(InfoPro!I187)-$J$2) -> 3 | G188: 0 | H188: 0
B189: =IF(ISBLANK(InfoPro!A188),"",InfoPro!A188) -> SC_2070_A1 | C189: =IF(ISBLANK(InfoPro!B188),"",InfoPro!B188) -> Cactus del Cesar - La Loma | D189: =IF(ISBLANK(InfoPro!E188),"",InfoPro!E188) -> 19.9 | E189: =IF(ISBLANK(InfoPro!N188),"",InfoPro!N188) -> NO | F189: =IF(ISBLANK(InfoPro!I188),"",YEAR(InfoPro!I188)-$J$2) -> 5 | G189: 0 | H189: 0
B190: =IF(ISBLANK(InfoPro!A189),"",InfoPro!A189) -> SC_2070_A2 | C190: =IF(ISBLANK(InfoPro!B189),"",InfoPro!B189) -> Cactus del Cesar - La Loma | D190: =IF(ISBLANK(InfoPro!E189),"",InfoPro!E189) -> 19.9 | E190: =IF(ISBLANK(InfoPro!N189),"",InfoPro!N189) -> NO | F190: =IF(ISBLANK(InfoPro!I189),"",YEAR(InfoPro!I189)-$J$2) -> 5 | G190: 0 | H190: 0
B191: =IF(ISBLANK(InfoPro!A190),"",InfoPro!A190) -> SC_2077_A1 | C191: =IF(ISBLANK(InfoPro!B190),"",InfoPro!B190) -> PARQUE SOLAR GUACAMAYAL 9.9 | D191: =IF(ISBLANK(InfoPro!E190),"",InfoPro!E190) -> 9.9 | E191: =IF(ISBLANK(InfoPro!N190),"",InfoPro!N190) -> NO | F191: =IF(ISBLANK(InfoPro!I190),"",YEAR(InfoPro!I190)-$J$2) -> 1 | G191: 0 | H191: 0
B192: =IF(ISBLANK(InfoPro!A191),"",InfoPro!A191) -> SC_2084_A1 | C192: =IF(ISBLANK(InfoPro!B191),"",InfoPro!B191) -> Parque Solar Codazzi 1 19,9 MW | D192: =IF(ISBLANK(InfoPro!E191),"",InfoPro!E191) -> 19.9 | E192: =IF(ISBLANK(InfoPro!N191),"",InfoPro!N191) -> NO | F192: =IF(ISBLANK(InfoPro!I191),"",YEAR(InfoPro!I191)-$J$2) -> 3 | G192: 0 | H192: 0
B193: =IF(ISBLANK(InfoPro!A192),"",InfoPro!A192) -> SC_2084_A2 | C193: =IF(ISBLANK(InfoPro!B192),"",InfoPro!B192) -> Parque Solar Codazzi 1 19,9 MW | D193: =IF(ISBLANK(InfoPro!E192),"",InfoPro!E192) -> 19.9 | E193: =IF(ISBLANK(InfoPro!N192),"",InfoPro!N192) -> NO | F193: =IF(ISBLANK(InfoPro!I192),"",YEAR(InfoPro!I192)-$J$2) -> 3 | G193: 0 | H193: 0
B194: =IF(ISBLANK(InfoPro!A193),"",InfoPro!A193) -> SC_2086_A1 | C194: =IF(ISBLANK(InfoPro!B193),"",InfoPro!B193) -> PARQUE SOLAR SABANA SOLAR 19.9 | D194: =IF(ISBLANK(InfoPro!E193),"",InfoPro!E193) -> 19.9 | E194: =IF(ISBLANK(InfoPro!N193),"",InfoPro!N193) -> NO | F194: =IF(ISBLANK(InfoPro!I193),"",YEAR(InfoPro!I193)-$J$2) -> 1 | G194: 0 | H194: 0
B195: =IF(ISBLANK(InfoPro!A194),"",InfoPro!A194) -> SC_2103_A1 | C195: =IF(ISBLANK(InfoPro!B194),"",InfoPro!B194) -> PARQUE SOLAR PUERTA DEL SOL | D195: =IF(ISBLANK(InfoPro!E194),"",InfoPro!E194) -> 19.9 | E195: =IF(ISBLANK(InfoPro!N194),"",InfoPro!N194) -> NO | F195: =IF(ISBLANK(InfoPro!I194),"",YEAR(InfoPro!I194)-$J$2) -> 1 | G195: 0 | H195: 0
B196: =IF(ISBLANK(InfoPro!A195),"",InfoPro!A195) -> SC_2125_A1 | C196: =IF(ISBLANK(InfoPro!B195),"",InfoPro!B195) -> Expansión Valledupar 100 MW | D196: =IF(ISBLANK(InfoPro!E195),"",InfoPro!E195) -> 100 | E196: =IF(ISBLANK(InfoPro!N195),"",InfoPro!N195) -> SI | F196: =IF(ISBLANK(InfoPro!I195),"",YEAR(InfoPro!I195)-$J$2) -> 4 | G196: 100 | H196: 100
B197: =IF(ISBLANK(InfoPro!A196),"",InfoPro!A196) -> SC_2125_A2 | C197: =IF(ISBLANK(InfoPro!B196),"",InfoPro!B196) -> Expansión Valledupar 100 MW | D197: =IF(ISBLANK(InfoPro!E196),"",InfoPro!E196) -> 100 | E197: =IF(ISBLANK(InfoPro!N196),"",InfoPro!N196) -> SI | F197: =IF(ISBLANK(InfoPro!I196),"",YEAR(InfoPro!I196)-$J$2) -> 4 | G197: 100 | H197: 100
B198: =IF(ISBLANK(InfoPro!A197),"",InfoPro!A197) -> SC_2129_A2 | C198: =IF(ISBLANK(InfoPro!B197),"",InfoPro!B197) -> DSE LA JAGUA DE IBIRICO | D198: =IF(ISBLANK(InfoPro!E197),"",InfoPro!E197) -> 9.9 | E198: =IF(ISBLANK(InfoPro!N197),"",InfoPro!N197) -> NO | F198: =IF(ISBLANK(InfoPro!I197),"",YEAR(InfoPro!I197)-$J$2) -> 2 | G198: 0 | H198: 0
B199: =IF(ISBLANK(InfoPro!A198),"",InfoPro!A198) -> SC_2130_A1 | C199: =IF(ISBLANK(InfoPro!B198),"",InfoPro!B198) -> Parque Solar Boreal | D199: =IF(ISBLANK(InfoPro!E198),"",InfoPro!E198) -> 100 | E199: =IF(ISBLANK(InfoPro!N198),"",InfoPro!N198) -> NO | F199: =IF(ISBLANK(InfoPro!I198),"",YEAR(InfoPro!I198)-$J$2) -> 5 | G199: 0 | H199: 0
B200: =IF(ISBLANK(InfoPro!A199),"",InfoPro!A199) -> SC_2130_A2 | C200: =IF(ISBLANK(InfoPro!B199),"",InfoPro!B199) -> Parque Solar Boreal | D200: =IF(ISBLANK(InfoPro!E199),"",InfoPro!E199) -> 100 | E200: =IF(ISBLANK(InfoPro!N199),"",InfoPro!N199) -> NO | F200: =IF(ISBLANK(InfoPro!I199),"",YEAR(InfoPro!I199)-$J$2) -> 5 | G200: 0 | H200: 0
... 81 more rows

Sheet EC-RE
B3: Factor emisiones sistema | C3: 0.127283 | D3: Ton/MWh | F3: Año de Referencia | G3: 2023
B4: Tasa de descuento | C4: 0.118 | F4: Mínimo | G4: =MIN(Z9:Z284) -> 
B5: Costo emisiones Ton | C5: 91.94 | D5: USD/Ton
B6: TRM | C6: 4070 | D6: COP/USD
J7: 0 | K7: 1 | L7: 2 | M7: 3 | N7: 4 | O7: 5 | P7: 6 | Q7: 7 | R7: 8 | S7: 9 | T7: 10 | U7: 11 | V7: 12 | W7: 13 | X7: 14
A8: Codigo | B8: Nombre | C8: capacidad | D8: tipo | E8: Año de entrada | F8: FP | G8: Factor emisiones | H8: Produccion media/a MWh/a | I8: Emisiones evitadas Ton/a | J8: Flujo Descontado 0 | K8: Flujo Descontado 1 | L8: Flujo Descontado 2 | M8: Flujo Descontado 3 | N8: Flujo Descontado 4 | O8: Flujo Descontado 5 | P8: Flujo Descontado 6 | Q8: Flujo Descontado 7 | R8: Flujo Descontado 8 | S8: Flujo Descontado 9 | T8: Flujo Descontado 10 | U8: Flujo Descontado 11 | V8: Flujo Descontado 12 | W8: Flujo Descontado 13 | X8: Flujo Descontado 14 | Y8: VPN | Z8: (Beneficio)/kW
A9: =IF(ISBLANK(InfoPro!A2),"",InfoPro!A2) -> SC_1373_A1 | B9: =IF(ISBLANK(InfoPro!B2),"",InfoPro!B2) -> Pétalo del Magdalena II Guacamayal | C9: =IF(ISBLANK(InfoPro!E2),"",InfoPro!E2) -> 9.9 | D9: =IF(ISBLANK(InfoPro!F2),"",InfoPro!F2) -> Solar FV | E9: =IF(ISBLANK(InfoPro!I2),"",YEAR(InfoPro!I2)-$G$3) -> 3 | F9: =IF(B9="","",VLOOKUP(D9,Tablas!$B$2:$E$13,2,FALSE)) -> 0.26 | G9: =IF(B9="","",VLOOKUP(D9,Tablas!$B$2:$G$13,6,FALSE)) -> 0 | H9: =IF(C9="","",+C9*F9*24*365) -> 22548.24 | I9: =IF(H9="","",+H9*($C$3-G9)) -> 2870.007632 | J9: =IF($I9="","",(1/(1+$C$4)^(J$7+$E9))*$I9*$C$5) -> 188826.1509 | K9: =IF($I9="","",(1/(1+$C$4)^(K$7+$E9))*$I9*$C$5) -> 168896.3782 | L9: 151070.1058 | M9: 135125.3182 | N9: 120863.4331 | O9: 108106.8275 | P9: 96696.62564 | Q9: 86490.72061 | R9: 77362.00413 | S9: 69196.78365 | T9: 61893.36642 | U9: 55360.79286 | V9: 49517.70381 | W9: 44291.3272 | X9: 39616.57174 | Y9: =IF(X9="","",SUM(J9:X9)*$C$6) -> 5914988427 | Z9: =IF(C9=0,0,IF(Y9="","",Y9/(C9*1000))) -> 597473.5785
A10: =IF(ISBLANK(InfoPro!A3),"",InfoPro!A3) -> SC_1373_A2 | B10: =IF(ISBLANK(InfoPro!B3),"",InfoPro!B3) -> Pétalo del Magdalena II Guacamayal | C10: =IF(ISBLANK(InfoPro!E3),"",InfoPro!E3) -> 9.9 | D10: =IF(ISBLANK(InfoPro!F3),"",InfoPro!F3) -> Solar FV | E10: =IF(ISBLANK(InfoPro!I3),"",YEAR(InfoPro!I3)-$G$3) -> 3 | F10: =IF(B10="","",VLOOKUP(D10,Tablas!$B$2:$E$13,2,FALSE)) -> 0.26 | G10: =IF(B10="","",VLOOKUP(D10,Tablas!$B$2:$G$13,6,FALSE)) -> 0 | H10: =IF(C10="","",+C10*F10*24*365) -> 22548.24 | I10: =IF(H10="","",+H10*($C$3-G10)) -> 2870.007632 | J10: 188826.1509 | K10: 168896.3782 | L10: 151070.1058 | M10: 135125.3182 | N10: 120863.4331 | O10: 108106.8275 | P10: 96696.62564 | Q10: 86490.72061 | R10: 77362.00413 | S10: 69196.78365 | T10: 61893.36642 | U10: 55360.79286 | V10: 49517.70381 | W10: 44291.3272 | X10: 39616.57174 | Y10: =IF(X10="","",SUM(J10:X10)*$C$6) -> 5914988427 | Z10: =IF(C10=0,0,IF(Y10="","",Y10/(C10*1000))) -> 597473.5785
A11: =IF(ISBLANK(InfoPro!A4),"",InfoPro!A4) -> SC_1012_A1 | B11: =IF(ISBLANK(InfoPro!B4),"",InfoPro!B4) -> PARQUE SOLAR FOTOVOLTAICO TUNA | C11: =IF(ISBLANK(InfoPro!E4),"",InfoPro!E4) -> 100 | D11: =IF(ISBLANK(InfoPro!F4),"",InfoPro!F4) -> Solar FV | E11: =IF(ISBLANK(InfoPro!I4),"",YEAR(InfoPro!I4)-$G$3) -> 3 | F11: =IF(B11="","",VLOOKUP(D11,Tablas!$B$2:$E$13,2,FALSE)) -> 0.26 | G11: =IF(B11="","",VLOOKUP(D11,Tablas!$B$2:$G$13,6,FALSE)) -> 0 | H11: =IF(C11="","",+C11*F11*24*365) -> 227760 | I11: 28989.97608 | J11: 1907334.857 | K11: 1706024.023 | L11: 1525960.664 | M11: 1364902.204 | N11: 1220842.759 | O11: 1091988.156 | P11: 976733.5924 | Q11: 873643.6425 | R11: 781434.3851 | S11: 698957.4106 | T11: 625185.5194 | U11: 559199.9279 | V11: 500178.8264 | W11: 447387.1434 | X11: 400167.3913 | Y11: 5.974735785e+10 | Z11: 597473.5785
A12: =IF(ISBLANK(InfoPro!A5),"",InfoPro!A5) -> SC_1012_A2 | B12: =IF(ISBLANK(InfoPro!B5),"",InfoPro!B5) -> PARQUE SOLAR FOTOVOLTAICO TUNA | C12: =IF(ISBLANK(InfoPro!E5),"",InfoPro!E5) -> 100 | D12: =IF(ISBLANK(InfoPro!F5),"",InfoPro!F5) -> Solar FV | E12: =IF(ISBLANK(InfoPro!I5),"",YEAR(InfoPro!I5)-$G$3) -> 3 | F12: =IF(B12="","",VLOOKUP(D12,Tablas!$B$2:$E$13,2,FALSE)) -> 0.26 | G12: =IF(B12="","",VLOOKUP(D12,Tablas!$B$2:$G$13,6,FALSE)) -> 0 | H12: 227760 | I12: 28989.97608 | J12: 1907334.857 | K12: 1706024.023 | L12: 1525960.664 | M12: 1364902.204 | N12: 1220842.759 | O12: 1091988.156 | P12: 976733.5924 | Q12: 873643.6425 | R12: 781434.3851 | S12: 698957.4106 | T12: 625185.5194 | U12: 559199.9279 | V12: 500178.8264 | W12: 447387.1434 | X12: 400167.3913 | Y12: 5.974735785e+10 | Z12: 597473.5785
A13: =IF(ISBLANK(InfoPro!A6),"",InfoPro!A6) -> SC_1077_A1 | B13: =IF(ISBLANK(InfoPro!B6),"",InfoPro!B6) -> Nevada I 90 MW | C13: =IF(ISBLANK(InfoPro!E6),"",InfoPro!E6) -> 90 | D13: =IF(ISBLANK(InfoPro!F6),"",InfoPro!F6) -> Eólico Onshore | E13: =IF(ISBLANK(InfoPro!I6),"",YEAR(InfoPro!I6)-$G$3) -> 7 | F13: =IF(B13="","",VLOOKUP(D13,Tablas!$B$2:$E$13,2,FALSE)) -> 0.57 | G13: =IF(B13="","",VLOOKUP(D13,Tablas!$B$2:$G$13,6,FALSE)) -> 0 | H13: 449388 | I13: 57199.4528 | J13: 2408816.674 | K13: 2154576.631 | L13: 1927170.511 | M13: 1723766.11 | N13: 1541830.152 | O13: 1379096.737 | P13: 1233539.121 | Q13: 1103344.473 | R13: 986891.2997 | S13: 882729.2484 | T13: 789561.0451 | U13: 706226.3373 | V13: 631687.2426 | W13: 565015.4228 | X13: 505380.5213 | Y13: 7.545630031e+10 | Z13: 838403.3368
A14: =IF(ISBLANK(InfoPro!A7),"",InfoPro!A7) -> SC_1077_A2 | B14: =IF(ISBLANK(InfoPro!B7),"",InfoPro!B7) -> Nevada I 90 MW | C14: =IF(ISBLANK(InfoPro!E7),"",InfoPro!E7) -> 90 | D14: =IF(ISBLANK(InfoPro!F7),"",InfoPro!F7) -> Eólico Onshore | E14: =IF(ISBLANK(InfoPro!I7),"",YEAR(InfoPro!I7)-$G$3) -> 7 | F14: =IF(B14="","",VLOOKUP(D14,Tablas!$B$2:$E$13,2,FALSE)) -> 0.57 | G14: =IF(B14="","",VLOOKUP(D14,Tablas!$B$2:$G$13,6,FALSE)) -> 0 | H14: 449388 | I14: 57199.4528 | J14: 2408816.674 | K14: 2154576.631 | L14: 1927170.511 | M14: 1723766.11 | N14: 1541830.152 | O14: 1379096.737 | P14: 1233539.121 | Q14: 1103344.473 | R14: 986891.2997 | S14: 882729.2484 | T14: 789561.0451 | U14: 706226.3373 | V14: 631687.2426 | W14: 565015.4228 | X14: 505380.5213 | Y14: 7.545630031e+10 | Z14: 838403.3368
A15: =IF(ISBLANK(InfoPro!A8),"",InfoPro!A8) -> SC_1135_A1 | B15: =IF(ISBLANK(InfoPro!B8),"",InfoPro!B8) -> Parque Eólico Brisas 1 | C15: =IF(ISBLANK(InfoPro!E8),"",InfoPro!E8) -> 200 | D15: =IF(ISBLANK(InfoPro!F8),"",InfoPro!F8) -> Eólico Onshore | E15: =IF(ISBLANK(InfoPro!I8),"",YEAR(InfoPro!I8)-$G$3) -> 5 | F15: =IF(B15="","",VLOOKUP(D15,Tablas!$B$2:$E$13,2,FALSE)) -> 0.57 | G15: =IF(B15="","",VLOOKUP(D15,Tablas!$B$2:$G$13,6,FALSE)) -> 0 | H15: 998640 | I15: 127109.8951 | J15: 6690750.605 | K15: 5984571.203 | L15: 5352925.942 | M15: 4787948.07 | N15: 4282601.136 | O15: 3830591.356 | P15: 3426289.227 | Q15: 3064659.416 | R15: 2741198.046 | S15: 2451876.607 | T15: 2193091.777 | U15: 1961620.552 | V15: 1754580.1 | W15: 1569391.861 | X15: 1403749.428 | Y15: 2.095880905e+11 | Z15: 1047940.452
A16: =IF(ISBLANK(InfoPro!A9),"",InfoPro!A9) -> SC_1135_A2 | B16: =IF(ISBLANK(InfoPro!B9),"",InfoPro!B9) -> Parque Eólico Brisas 1 | C16: =IF(ISBLANK(InfoPro!E9),"",InfoPro!E9) -> 200 | D16: =IF(ISBLANK(InfoPro!F9),"",InfoPro!F9) -> Eólico Onshore | E16: =IF(ISBLANK(InfoPro!I9),"",YEAR(InfoPro!I9)-$G$3) -> 5 | F16: =IF(B16="","",VLOOKUP(D16,Tablas!$B$2:$E$13,2,FALSE)) -> 0.57 | G16: =IF(B16="","",VLOOKUP(D16,Tablas!$B$2:$G$13,6,FALSE)) -> 0 | H16: 998640 | I16: 127109.8951 | J16: 6690750.605 | K16: 5984571.203 | L16: 5352925.942 | M16: 4787948.07 | N16: 4282601.136 | O16: 3830591.356 | P16: 3426289.227 | Q16: 3064659.416 | R16: 2741198.046 | S16: 2451876.607 | T16: 2193091.777 | U16: 1961620.552 | V16: 1754580.1 | W16: 1569391.861 | X16: 1403749.428 | Y16: 2.095880905e+11 | Z16: 1047940.452
A17: =IF(ISBLANK(InfoPro!A10),"",InfoPro!A10) -> SC_1154_A1 | B17: =IF(ISBLANK(InfoPro!B10),"",InfoPro!B10) -> Parque Eólico Brisas 2 | C17: =IF(ISBLANK(InfoPro!E10),"",InfoPro!E10) -> 200 | D17: =IF(ISBLANK(InfoPro!F10),"",InfoPro!F10) -> Eólico Onshore | E17: =IF(ISBLANK(InfoPro!I10),"",YEAR(InfoPro!I10)-$G$3) -> 6 | F17: =IF(B17="","",VLOOKUP(D17,Tablas!$B$2:$E$13,2,FALSE)) -> 0.57 | G17: =IF(B17="","",VLOOKUP(D17,Tablas!$B$2:$G$13,6,FALSE)) -> 0 | H17: 998640 | I17: 127109.8951 | J17: 5984571.203 | K17: 5352925.942 | L17: 4787948.07 | M17: 4282601.136 | N17: 3830591.356 | O17: 3426289.227 | P17: 3064659.416 | Q17: 2741198.046 | R17: 2451876.607 | S17: 2193091.777 | T17: 1961620.552 | U17: 1754580.1 | V17: 1569391.861 | W17: 1403749.428 | X17: 1255589.828 | Y17: 1.874669861e+11 | Z17: 937334.9306
A18: =IF(ISBLANK(InfoPro!A11),"",InfoPro!A11) -> SC_1154_A2 | B18: =IF(ISBLANK(InfoPro!B11),"",InfoPro!B11) -> Parque Eólico Brisas 2 | C18: =IF(ISBLANK(InfoPro!E11),"",InfoPro!E11) -> 200 | D18: =IF(ISBLANK(InfoPro!F11),"",InfoPro!F11) -> Eólico Onshore | E18: =IF(ISBLANK(InfoPro!I11),"",YEAR(InfoPro!I11)-$G$3) -> 6 | F18: =IF(B18="","",VLOOKUP(D18,Tablas!$B$2:$E$13,2,FALSE)) -> 0.57 | G18: =IF(B18="","",VLOOKUP(D18,Tablas!$B$2:$G$13,6,FALSE)) -> 0 | H18: 998640 | I18: 127109.8951 | J18: 5984571.203 | K18: 5352925.942 | L18: 4787948.07 | M18: 4282601.136 | N18: 3830591.356 | O18: 3426289.227 | P18: 3064659.416 | Q18: 2741198.046 | R18: 2451876.607 | S18: 2193091.777 | T18: 1961620.552 | U18: 1754580.1 | V18: 1569391.861 | W18: 1403749.428 | X18: 1255589.828 | Y18: 1.874669861e+11 | Z18: 937334.9306
A19: =IF(ISBLANK(InfoPro!A12),"",InfoPro!A12) -> SC_1161_A1 | B19: =IF(ISBLANK(InfoPro!B12),"",InfoPro!B12) -> Parque Eólico Brisas 3 | C19: =IF(ISBLANK(InfoPro!E12),"",InfoPro!E12) -> 200 | D19: =IF(ISBLANK(InfoPro!F12),"",InfoPro!F12) -> Eólico Onshore | E19: =IF(ISBLANK(InfoPro!I12),"",YEAR(InfoPro!I12)-$G$3) -> 7 | F19: =IF(B19="","",VLOOKUP(D19,Tablas!$B$2:$E$13,2,FALSE)) -> 0.57 | G19: =IF(B19="","",VLOOKUP(D19,Tablas!$B$2:$G$13,6,FALSE)) -> 0 | H19: 998640 | I19: 127109.8951 | J19: =IF($I19="","",(1/(1+$C$4)^(J$7+$E19))*$I19*$C$5) -> 5352925.942 | K19: 4787948.07 | L19: 4282601.136 | M19: 3830591.356 | N19: 3426289.227 | O19: 3064659.416 | P19: 2741198.046 | Q19: 2451876.607 | R19: 2193091.777 | S19: 1961620.552 | T19: 1754580.1 | U19: 1569391.861 | V19: 1403749.428 | W19: 1255589.828 | X19: 1123067.825 | Y19: 1.676806674e+11 | Z19: 838403.3368
A20: =IF(ISBLANK(InfoPro!A13),"",InfoPro!A13) -> SC_1161_A2 | B20: =IF(ISBLANK(InfoPro!B13),"",InfoPro!B13) -> Parque Eólico Brisas 3 | C20: =IF(ISBLANK(InfoPro!E13),"",InfoPro!E13) -> 200 | D20: =IF(ISBLANK(InfoPro!F13),"",InfoPro!F13) -> Eólico Onshore | E20: =IF(ISBLANK(InfoPro!I13),"",YEAR(InfoPro!I13)-$G$3) -> 7 | F20: =IF(B20="","",VLOOKUP(D20,Tablas!$B$2:$E$13,2,FALSE)) -> 0.57 | G20: =IF(B20="","",VLOOKUP(D20,Tablas!$B$2:$G$13,6,FALSE)) -> 0 | H20: 998640 | I20: 127109.8951 | J20: 5352925.942 | K20: 4787948.07 | L20: 4282601.136 | M20: 3830591.356 | N20: 3426289.227 | O20: 3064659.416 | P20: 2741198.046 | Q20: 2451876.607 | R20: 2193091.777 | S20: 1961620.552 | T20: 1754580.1 | U20: 1569391.861 | V20: 1403749.428 | W20: 1255589.828 | X20: 1123067.825 | Y20: 1.676806674e+11 | Z20: 838403.3368
A21: =IF(ISBLANK(InfoPro!#REF!),"",InfoPro!#REF!) ->  | B21: =IF(ISBLANK(InfoPro!#REF!),"",InfoPro!#REF!) ->  | C21: =IF(ISBLANK(InfoPro!#REF!),"",InfoPro!#REF!) ->  | D21: =IF(ISBLANK(InfoPro!#REF!),"",InfoPro!#REF!) ->  | E21: =IF(ISBLANK(InfoPro!#REF!),"",YEAR(InfoPro!#REF!)-$G$3) ->  | F21: =IF(B21="","",VLOOKUP(D21,Tablas!$B$2:$E$13,2,FALSE)) ->  | G21: =IF(B21="","",VLOOKUP(D21,Tablas!$B$2:$G$13,6,FALSE)) -> 
A22: =IF(ISBLANK(InfoPro!A14),"",InfoPro!A14) -> SC_1211_A1 | B22: =IF(ISBLANK(InfoPro!B14),"",InfoPro!B14) -> Planta Solar FV Caracolicitos 69MW | C22: =IF(ISBLANK(InfoPro!E14),"",InfoPro!E14) -> 69 | D22: =IF(ISBLANK(InfoPro!F14),"",InfoPro!F14) -> Solar FV | E22: =IF(ISBLANK(InfoPro!I14),"",YEAR(InfoPro!I14)-$G$3) -> 3 | F22: =IF(B22="","",VLOOKUP(D22,Tablas!$B$2:$E$13,2,FALSE)) -> 0.26 | G22: =IF(B22="","",VLOOKUP(D22,Tablas!$B$2:$G$13,6,FALSE)) -> 0 | H22: 157154.4 | I22: 20003.0835 | J22: 1316061.052 | K22: 1177156.576 | L22: 1052912.858 | M22: 941782.5209 | N22: 842381.5035 | O22: 753471.8278 | P22: 673946.1787 | Q22: 602814.1134 | R22: 539189.7257 | S22: 482280.6133 | T22: 431378.0084 | U22: 385847.9502 | V22: 345123.3902 | W22: 308697.129 | X22: 276115.5 | Y22: 4.122567691e+10 | Z22: 597473.5785
A23: =IF(ISBLANK(InfoPro!A15),"",InfoPro!A15) -> SC_1211_A2 | B23: =IF(ISBLANK(InfoPro!B15),"",InfoPro!B15) -> Planta Solar FV Caracolicitos 69MW | C23: =IF(ISBLANK(InfoPro!E15),"",InfoPro!E15) -> 69 | D23: =IF(ISBLANK(InfoPro!F15),"",InfoPro!F15) -> Solar FV | E23: =IF(ISBLANK(InfoPro!I15),"",YEAR(InfoPro!I15)-$G$3) -> 3 | F23: =IF(B23="","",VLOOKUP(D23,Tablas!$B$2:$E$13,2,FALSE)) -> 0.26 | G23: =IF(B23="","",VLOOKUP(D23,Tablas!$B$2:$G$13,6,FALSE)) -> 0 | H23: 157154.4 | I23: 20003.0835 | J23: 1316061.052 | K23: 1177156.576 | L23: 1052912.858 | M23: 941782.5209 | N23: 842381.5035 | O23: 753471.8278 | P23: 673946.1787 | Q23: 602814.1134 | R23: 539189.7257 | S23: 482280.6133 | T23: 431378.0084 | U23: 385847.9502 | V23: 345123.3902 | W23: 308697.129 | X23: 276115.5 | Y23: 4.122567691e+10 | Z23: 597473.5785
A24: =IF(ISBLANK(InfoPro!A16),"",InfoPro!A16) -> SC_1218_A1 | B24: =IF(ISBLANK(InfoPro!B16),"",InfoPro!B16) -> Las Flores 150 MW | C24: =IF(ISBLANK(InfoPro!E16),"",InfoPro!E16) -> 150 | D24: =IF(ISBLANK(InfoPro!F16),"",InfoPro!F16) -> Solar FV | E24: =IF(ISBLANK(InfoPro!I16),"",YEAR(InfoPro!I16)-$G$3) -> 2 | F24: =IF(B24="","",VLOOKUP(D24,Tablas!$B$2:$E$13,2,FALSE)) -> 0.26 | G24: =IF(B24="","",VLOOKUP(D24,Tablas!$B$2:$G$13,6,FALSE)) -> 0 | H24: 341640 | I24: 43484.96412 | J24: 3198600.556 | K24: 2861002.286 | L24: 2559036.034 | M24: 2288940.996 | N24: 2047353.306 | O24: 1831264.138 | P24: 1637982.234 | Q24: 1465100.389 | R24: 1310465.464 | S24: 1172151.578 | T24: 1048436.116 | U24: 937778.279 | V24: 838799.8918 | W24: 750268.2395 | X24: 671080.7152 | Y24: 1.001963191e+11 | Z24: 667975.4607
A25: =IF(ISBLANK(InfoPro!A17),"",InfoPro!A17) -> SC_1223_A1 | B25: =IF(ISBLANK(InfoPro!B17),"",InfoPro!B17) -> Parque Eolico Sirius | C25: =IF(ISBLANK(InfoPro!E17),"",InfoPro!E17) -> 100 | D25: =IF(ISBLANK(InfoPro!F17),"",InfoPro!F17) -> Eólico Onshore | E25: =IF(ISBLANK(InfoPro!I17),"",YEAR(InfoPro!I17)-$G$3) -> 2 | F25: =IF(B25="","",VLOOKUP(D25,Tablas!$B$2:$E$13,2,FALSE)) -> 0.57 | G25: =IF(B25="","",VLOOKUP(D25,Tablas!$B$2:$G$13,6,FALSE)) -> 0 | H25: 499320 | I25: 63554.94756 | J25: 4674877.735 | K25: 4181464.88 | L25: 3740129.588 | M25: 3345375.303 | N25: 2992285.602 | O25: 2676462.971 | P25: 2393974.035 | Q25: 2141300.568 | R25: 1915295.678 | S25: 1713144.613 | T25: 1532329.708 | U25: 1370599.023 | V25: 1225938.303 | W25: 1096545.889 | X25: 980810.276 | Y25: 1.464407741e+11 | Z25: 1464407.741
A26: =IF(ISBLANK(InfoPro!A18),"",InfoPro!A18) -> SC_1232_A1 | B26: =IF(ISBLANK(InfoPro!B18),"",InfoPro!B18) -> La Paz Solar 9,9 MW | C26: =IF(ISBLANK(InfoPro!E18),"",InfoPro!E18) -> 9.9 | D26: =IF(ISBLANK(InfoPro!F18),"",InfoPro!F18) -> Solar FV | E26: =IF(ISBLANK(InfoPro!I18),"",YEAR(InfoPro!I18)-$G$3) -> 2 | F26: =IF(B26="","",VLOOKUP(D26,Tablas!$B$2:$E$13,2,FALSE)) -> 0.26 | G26: =IF(B26="","",VLOOKUP(D26,Tablas!$B$2:$G$13,6,FALSE)) -> 0 | H26: 22548.24 | I26: 2870.007632 | J26: 211107.6367 | K26: 188826.1509 | L26: 168896.3782 | M26: 151070.1058 | N26: 135125.3182 | O26: 120863.4331 | P26: 108106.8275 | Q26: 96696.62564 | R26: 86490.72061 | S26: 77362.00413 | T26: 69196.78365 | U26: 61893.36642 | V26: 55360.79286 | W26: 49517.70381 | X26: 44291.3272 | Y26: 6612957061 | Z26: 667975.4607
A27: =IF(ISBLANK(InfoPro!A19),"",InfoPro!A19) -> SC_1232_A2 | B27: =IF(ISBLANK(InfoPro!B19),"",InfoPro!B19) -> La Paz Solar 9,9 MW | C27: =IF(ISBLANK(InfoPro!E19),"",InfoPro!E19) -> 9.9 | D27: =IF(ISBLANK(InfoPro!F19),"",InfoPro!F19) -> Solar FV | E27: =IF(ISBLANK(InfoPro!I19),"",YEAR(InfoPro!I19)-$G$3) -> 2 | F27: =IF(B27="","",VLOOKUP(D27,Tablas!$B$2:$E$13,2,FALSE)) -> 0.26 | G27: =IF(B27="","",VLOOKUP(D27,Tablas!$B$2:$G$13,6,FALSE)) -> 0 | H27: 22548.24 | I27: 2870.007632 | J27: 211107.6367 | K27: 188826.1509 | L27: 168896.3782 | M27: 151070.1058 | N27: 135125.3182 | O27: 120863.4331 | P27: 108106.8275 | Q27: 96696.62564 | R27: 86490.72061 | S27: 77362.00413 | T27: 69196.78365 | U27: 61893.36642 | V27: 55360.79286 | W27: 49517.70381 | X27: 44291.3272 | Y27: 6612957061 | Z27: 667975.4607
A28: =IF(ISBLANK(InfoPro!A20),"",InfoPro!A20) -> SC_1239_A1 | B28: =IF(ISBLANK(InfoPro!B20),"",InfoPro!B20) -> El Carmen | C28: =IF(ISBLANK(InfoPro!E20),"",InfoPro!E20) -> 104.5 | D28: =IF(ISBLANK(InfoPro!F20),"",InfoPro!F20) -> Eólico Onshore | E28: =IF(ISBLANK(InfoPro!I20),"",YEAR(InfoPro!I20)-$G$3) -> 4 | F28: =IF(B28="","",VLOOKUP(D28,Tablas!$B$2:$E$13,2,FALSE)) -> 0.57 | G28: =IF(B28="","",VLOOKUP(D28,Tablas!$B$2:$G$13,6,FALSE)) -> 0 | H28: 521789.4 | I28: 66414.9202 | J28: 3908435.42 | K28: 3495917.191 | L28: 3126938.454 | M28: 2796903.805 | N28: 2501702.866 | O28: 2237659.093 | P28: 2001483.983 | Q28: 1790236.121 | R28: 1601284.545 | S28: 1432275.979 | T28: 1281105.527 | U28: 1145890.454 | V28: 1024946.738 | W28: 916768.1023 | X28: 820007.2472 | Y28: 1.22431931e+11 | Z28: 1171597.426
A29: =IF(ISBLANK(InfoPro!A21),"",InfoPro!A21) -> SC_1239_A2 | B29: =IF(ISBLANK(InfoPro!B21),"",InfoPro!B21) -> El Carmen | C29: =IF(ISBLANK(InfoPro!E21),"",InfoPro!E21) -> 104.5 | D29: =IF(ISBLANK(InfoPro!F21),"",InfoPro!F21) -> Eólico Onshore | E29: =IF(ISBLANK(InfoPro!I21),"",YEAR(InfoPro!I21)-$G$3) -> 4 | F29: =IF(B29="","",VLOOKUP(D29,Tablas!$B$2:$E$13,2,FALSE)) -> 0.57 | G29: =IF(B29="","",VLOOKUP(D29,Tablas!$B$2:$G$13,6,FALSE)) -> 0 | H29: 521789.4 | I29: 66414.9202 | J29: =IF($I29="","",(1/(1+$C$4)^(J$7+$E29))*$I29*$C$5) -> 3908435.42 | K29: 3495917.191 | L29: 3126938.454 | M29: 2796903.805 | N29: 2501702.866 | O29: 2237659.093 | P29: 2001483.983 | Q29: 1790236.121 | R29: 1601284.545 | S29: 1432275.979 | T29: 1281105.527 | U29: 1145890.454 | V29: 1024946.738 | W29: 916768.1023 | X29: 820007.2472 | Y29: 1.22431931e+11 | Z29: 1171597.426
A30: =IF(ISBLANK(InfoPro!A22),"",InfoPro!A22) -> SC_1244_A1 | B30: =IF(ISBLANK(InfoPro!B22),"",InfoPro!B22) -> Proyecto Maria | C30: =IF(ISBLANK(InfoPro!E22),"",InfoPro!E22) -> 120 | D30: =IF(ISBLANK(InfoPro!F22),"",InfoPro!F22) -> Eólico Onshore | E30: =IF(ISBLANK(InfoPro!I22),"",YEAR(InfoPro!I22)-$G$3) -> 3 | F30: =IF(B30="","",VLOOKUP(D30,Tablas!$B$2:$E$13,2,FALSE)) -> 0.57 | G30: =IF(B30="","",VLOOKUP(D30,Tablas!$B$2:$G$13,6,FALSE)) -> 0 | H30: 599184 | I30: 76265.93707 | J30: 5017757.856 | K30: 4488155.506 | L30: 4014450.363 | M30: 3590742.722 | N30: 3211755.565 | O30: 2872768.842 | P30: 2569560.681 | Q30: 2298354.813 | R30: 2055773.536 | S30: 1838795.65 | T30: 1644718.828 | U30: 1471125.964 | V30: 1315855.066 | W30: 1176972.331 | X30: 1052748.06 | Y30: 1.571815106e+11 | Z30: 1309845.922
A31: =IF(ISBLANK(InfoPro!A23),"",InfoPro!A23) -> SC_1252_A1 | B31: =IF(ISBLANK(InfoPro!B23),"",InfoPro!B23) -> Parque Eólico Neptuno | C31: =IF(ISBLANK(InfoPro!E23),"",InfoPro!E23) -> 150 | D31: =IF(ISBLANK(InfoPro!F23),"",InfoPro!F23) -> Eólico Onshore | E31: =IF(ISBLANK(InfoPro!I23),"",YEAR(InfoPro!I23)-$G$3) -> 3 | F31: =IF(B31="","",VLOOKUP(D31,Tablas!$B$2:$E$13,2,FALSE)) -> 0.57 | G31: =IF(B31="","",VLOOKUP(D31,Tablas!$B$2:$G$13,6,FALSE)) -> 0 | H31: 748980 | I31: 95332.42134 | J31: 6272197.32 | K31: 5610194.382 | L31: 5018062.954 | M31: 4488428.402 | N31: 4014694.457 | O31: 3590961.052 | P31: 3211950.852 | Q31: 2872943.517 | R31: 2569716.92 | S31: 2298494.562 | T31: 2055898.535 | U31: 1838907.455 | V31: 1644818.833 | W31: 1471215.414 | X31: 1315935.075 | Y31: 1.964768883e+11 | Z31: 1309845.922
A32: =IF(ISBLANK(InfoPro!A24),"",InfoPro!A24) -> SC_1262_A1 | B32: =IF(ISBLANK(InfoPro!B24),"",InfoPro!B24) -> Parque Solar Australe de 251 MW (entrega 200 MW) | C32: =IF(ISBLANK(InfoPro!E24),"",InfoPro!E24) -> 200 | D32: =IF(ISBLANK(InfoPro!F24),"",InfoPro!F24) -> Solar FV | E32: =IF(ISBLANK(InfoPro!I24),"",YEAR(InfoPro!I24)-$G$3) -> 3 | F32: =IF(B32="","",VLOOKUP(D32,Tablas!$B$2:$E$13,2,FALSE)) -> 0.26 | G32: =IF(B32="","",VLOOKUP(D32,Tablas!$B$2:$G$13,6,FALSE)) -> 0 | H32: 455520 | I32: 57979.95216 | J32: 3814669.715 | K32: 3412048.045 | L32: 3051921.329 | M32: 2729804.408 | N32: 2441685.517 | O32: 2183976.313 | P32: 1953467.185 | Q32: 1747287.285 | R32: 1562868.77 | S32: 1397914.821 | T32: 1250371.039 | U32: 1118399.856 | V32: 1000357.653 | W32: 894774.2869 | X32: 800334.7825 | Y32: 1.194947157e+11 | Z32: 597473.5785
A33: =IF(ISBLANK(InfoPro!A25),"",InfoPro!A25) -> SC_1262_A2 | B33: =IF(ISBLANK(InfoPro!B25),"",InfoPro!B25) -> Parque Solar Australe de 251 MW (entrega 200 MW) | C33: =IF(ISBLANK(InfoPro!E25),"",InfoPro!E25) -> 200 | D33: =IF(ISBLANK(InfoPro!F25),"",InfoPro!F25) -> Solar FV | E33: =IF(ISBLANK(InfoPro!I25),"",YEAR(InfoPro!I25)-$G$3) -> 3 | F33: =IF(B33="","",VLOOKUP(D33,Tablas!$B$2:$E$13,2,FALSE)) -> 0.26 | G33: =IF(B33="","",VLOOKUP(D33,Tablas!$B$2:$G$13,6,FALSE)) -> 0 | H33: 455520 | I33: 57979.95216 | J33: 3814669.715 | K33: 3412048.045 | L33: 3051921.329 | M33: 2729804.408 | N33: 2441685.517 | O33: 2183976.313 | P33: 1953467.185 | Q33: 1747287.285 | R33: 1562868.77 | S33: 1397914.821 | T33: 1250371.039 | U33: 1118399.856 | V33: 1000357.653 | W33: 894774.2869 | X33: 800334.7825 | Y33: 1.194947157e+11 | Z33: 597473.5785
A34: =IF(ISBLANK(InfoPro!A26),"",InfoPro!A26) -> SC_1264_A1 | B34: =IF(ISBLANK(InfoPro!B26),"",InfoPro!B26) -> Parque Solar Galus de 133 MW (entrega 110 MW) | C34: =IF(ISBLANK(InfoPro!E26),"",InfoPro!E26) -> 110 | D34: =IF(ISBLANK(InfoPro!F26),"",InfoPro!F26) -> Solar FV | E34: =IF(ISBLANK(InfoPro!I26),"",YEAR(InfoPro!I26)-$G$3) -> 4 | F34: =IF(B34="","",VLOOKUP(D34,Tablas!$B$2:$E$13,2,FALSE)) -> 0.26 | G34: =IF(B34="","",VLOOKUP(D34,Tablas!$B$2:$G$13,6,FALSE)) -> 0 | H34: 250536 | I34: 31888.97369 | J34: 1876626.425 | K34: 1678556.731 | L34: 1501392.425 | M34: 1342927.035 | N34: 1201186.972 | O34: 1074406.952 | P34: 961008.0068 | Q34: 859577.8236 | R34: 768853.1517 | S34: 687704.0713 | T34: 615119.9207 | U34: 550196.709 | V34: 492125.8578 | W34: 440184.1304 | X34: 393724.6247 | Y34: 5.87854147e+10 | Z34: 534412.8609
A35: =IF(ISBLANK(InfoPro!A27),"",InfoPro!A27) -> SC_1264_A2 | B35: =IF(ISBLANK(InfoPro!B27),"",InfoPro!B27) -> Parque Solar Galus de 133 MW (entrega 110 MW) | C35: =IF(ISBLANK(InfoPro!E27),"",InfoPro!E27) -> 110 | D35: =IF(ISBLANK(InfoPro!F27),"",InfoPro!F27) -> Solar FV | E35: =IF(ISBLANK(InfoPro!I27),"",YEAR(InfoPro!I27)-$G$3) -> 4 | F35: =IF(B35="","",VLOOKUP(D35,Tablas!$B$2:$E$13,2,FALSE)) -> 0.26 | G35: =IF(B35="","",VLOOKUP(D35,Tablas!$B$2:$G$13,6,FALSE)) -> 0 | H35: 250536 | I35: 31888.97369 | J35: 1876626.425 | K35: 1678556.731 | L35: 1501392.425 | M35: 1342927.035 | N35: 1201186.972 | O35: 1074406.952 | P35: 961008.0068 | Q35: 859577.8236 | R35: 768853.1517 | S35: 687704.0713 | T35: 615119.9207 | U35: 550196.709 | V35: 492125.8578 | W35: 440184.1304 | X35: 393724.6247 | Y35: 5.87854147e+10 | Z35: 534412.8609
A36: =IF(ISBLANK(InfoPro!A28),"",InfoPro!A28) -> SC_1266_A1 | B36: =IF(ISBLANK(InfoPro!B28),"",InfoPro!B28) -> Parque Solar Fornax DE 127 MW (Entrega 105 MW) | C36: =IF(ISBLANK(InfoPro!E28),"",InfoPro!E28) -> 105 | D36: =IF(ISBLANK(InfoPro!F28),"",InfoPro!F28) -> Solar FV | E36: =IF(ISBLANK(InfoPro!I28),"",YEAR(InfoPro!I28)-$G$3) -> 4 | F36: =IF(B36="","",VLOOKUP(D36,Tablas!$B$2:$E$13,2,FALSE)) -> 0.26 | G36: =IF(B36="","",VLOOKUP(D36,Tablas!$B$2:$G$13,6,FALSE)) -> 0 | H36: 239148 | I36: 30439.47488 | J36: 1791325.224 | K36: 1602258.698 | L36: 1433147.314 | M36: 1281884.897 | N36: 1146587.564 | O36: 1025570.272 | P36: 917325.8247 | Q36: 820506.1044 | R36: 733905.2812 | S36: 656444.7953 | T36: 587159.9243 | U36: 525187.7677 | V36: 469756.5006 | W36: 420175.7608 | X36: 375828.0508 | Y36: 5.611335039e+10 | Z36: 534412.8609
A37: =IF(ISBLANK(InfoPro!A29),"",InfoPro!A29) -> SC_1266_A2 | B37: =IF(ISBLANK(InfoPro!B29),"",InfoPro!B29) -> Parque Solar Fornax DE 127 MW (Entrega 105 MW) | C37: =IF(ISBLANK(InfoPro!E29),"",InfoPro!E29) -> 105 | D37: =IF(ISBLANK(InfoPro!F29),"",InfoPro!F29) -> Solar FV | E37: =IF(ISBLANK(InfoPro!I29),"",YEAR(InfoPro!I29)-$G$3) -> 4 | F37: =IF(B37="","",VLOOKUP(D37,Tablas!$B$2:$E$13,2,FALSE)) -> 0.26 | G37: =IF(B37="","",VLOOKUP(D37,Tablas!$B$2:$G$13,6,FALSE)) -> 0 | H37: 239148 | I37: 30439.47488 | J37: 1791325.224 | K37: 1602258.698 | L37: 1433147.314 | M37: 1281884.897 | N37: 1146587.564 | O37: 1025570.272 | P37: 917325.8247 | Q37: 820506.1044 | R37: 733905.2812 | S37: 656444.7953 | T37: 587159.9243 | U37: 525187.7677 | V37: 469756.5006 | W37: 420175.7608 | X37: 375828.0508 | Y37: 5.611335039e+10 | Z37: 534412.8609
A38: =IF(ISBLANK(InfoPro!A30),"",InfoPro!A30) -> SC_1272_A1 | B38: =IF(ISBLANK(InfoPro!B30),"",InfoPro!B30) -> Guacamayal Solar de 9,9 MW | C38: =IF(ISBLANK(InfoPro!E30),"",InfoPro!E30) -> 9.9 | D38: =IF(ISBLANK(InfoPro!F30),"",InfoPro!F30) -> Solar FV | E38: =IF(ISBLANK(InfoPro!I30),"",YEAR(InfoPro!I30)-$G$3) -> 1 | F38: =IF(B38="","",VLOOKUP(D38,Tablas!$B$2:$E$13,2,FALSE)) -> 0.26 | G38: =IF(B38="","",VLOOKUP(D38,Tablas!$B$2:$G$13,6,FALSE)) -> 0 | H38: 22548.24 | I38: 2870.007632 | J38: 236018.3378 | K38: 211107.6367 | L38: 188826.1509 | M38: 168896.3782 | N38: 151070.1058 | O38: 135125.3182 | P38: 120863.4331 | Q38: 108106.8275 | R38: 96696.62564 | S38: 86490.72061 | T38: 77362.00413 | U38: 69196.78365 | V38: 61893.36642 | W38: 55360.79286 | X38: 49517.70381 | Y38: 7393285994 | Z38: 746796.5651
A39: =IF(ISBLANK(InfoPro!A31),"",InfoPro!A31) -> SC_1272_A2 | B39: =IF(ISBLANK(InfoPro!B31),"",InfoPro!B31) -> Guacamayal Solar de 9,9 MW | C39: =IF(ISBLANK(InfoPro!E31),"",InfoPro!E31) -> 9.9 | D39: =IF(ISBLANK(InfoPro!F31),"",InfoPro!F31) -> Solar FV | E39: =IF(ISBLANK(InfoPro!I31),"",YEAR(InfoPro!I31)-$G$3) -> 1 | F39: =IF(B39="","",VLOOKUP(D39,Tablas!$B$2:$E$13,2,FALSE)) -> 0.26 | G39: =IF(B39="","",VLOOKUP(D39,Tablas!$B$2:$G$13,6,FALSE)) -> 0 | H39: 22548.24 | I39: 2870.007632 | J39: =IF($I39="","",(1/(1+$C$4)^(J$7+$E39))*$I39*$C$5) -> 236018.3378 | K39: 211107.6367 | L39: 188826.1509 | M39: 168896.3782 | N39: 151070.1058 | O39: 135125.3182 | P39: 120863.4331 | Q39: 108106.8275 | R39: 96696.62564 | S39: 86490.72061 | T39: 77362.00413 | U39: 69196.78365 | V39: 61893.36642 | W39: 55360.79286 | X39: 49517.70381 | Y39: 7393285994 | Z39: 746796.5651
A40: =IF(ISBLANK(InfoPro!A32),"",InfoPro!A32) -> SC_1293_A1 | B40: =IF(ISBLANK(InfoPro!B32),"",InfoPro!B32) -> Leo Solar II | C40: =IF(ISBLANK(InfoPro!E32),"",InfoPro!E32) -> 80 | D40: =IF(ISBLANK(InfoPro!F32),"",InfoPro!F32) -> Solar FV | E40: =IF(ISBLANK(InfoPro!I32),"",YEAR(InfoPro!I32)-$G$3) -> 2 | F40: =IF(B40="","",VLOOKUP(D40,Tablas!$B$2:$E$13,2,FALSE)) -> 0.26 | G40: =IF(B40="","",VLOOKUP(D40,Tablas!$B$2:$G$13,6,FALSE)) -> 0 | H40: 182208 | I40: 23191.98086 | J40: 1705920.296 | K40: 1525867.886 | L40: 1364819.218 | M40: 1220768.531 | N40: 1091921.763 | O40: 976674.207 | P40: 873590.525 | Q40: 781386.8739 | R40: 698914.914 | S40: 625147.5081 | T40: 559165.9285 | U40: 500148.4155 | V40: 447359.9423 | W40: 400143.0611 | X40: 357909.7147 | Y40: 5.343803686e+10 | Z40: 667975.4607
A41: =IF(ISBLANK(InfoPro!A33),"",InfoPro!A33) -> SC_1293_A2 | B41: =IF(ISBLANK(InfoPro!B33),"",InfoPro!B33) -> Leo Solar II | C41: =IF(ISBLANK(InfoPro!E33),"",InfoPro!E33) -> 80 | D41: =IF(ISBLANK(InfoPro!F33),"",InfoPro!F33) -> Solar FV | E41: =IF(ISBLANK(InfoPro!I33),"",YEAR(InfoPro!I33)-$G$3) -> 2 | F41: =IF(B41="","",VLOOKUP(D41,Tablas!$B$2:$E$13,2,FALSE)) -> 0.26 | G41: =IF(B41="","",VLOOKUP(D41,Tablas!$B$2:$G$13,6,FALSE)) -> 0 | H41: =IF(C41="","",+C41*F41*24*365) -> 182208 | I41: =IF(H41="","",+H41*($C$3-G41)) -> 23191.98086 | J41: 1705920.296 | K41: 1525867.886 | L41: 1364819.218 | M41: 1220768.531 | N41: 1091921.763 | O41: 976674.207 | P41: 873590.525 | Q41: 781386.8739 | R41: 698914.914 | S41: 625147.5081 | T41: 559165.9285 | U41: 500148.4155 | V41: 447359.9423 | W41: 400143.0611 | X41: 357909.7147 | Y41: 5.343803686e+10 | Z41: 667975.4607
A42: =IF(ISBLANK(InfoPro!A34),"",InfoPro!A34) -> SC_1306_A1 | B42: =IF(ISBLANK(InfoPro!B34),"",InfoPro!B34) -> Leo Solar I | C42: =IF(ISBLANK(InfoPro!E34),"",InfoPro!E34) -> 19.9 | D42: =IF(ISBLANK(InfoPro!F34),"",InfoPro!F34) -> Solar FV | E42: =IF(ISBLANK(InfoPro!I34),"",YEAR(InfoPro!I34)-$G$3) -> 2 | F42: =IF(B42="","",VLOOKUP(D42,Tablas!$B$2:$E$13,2,FALSE)) -> 0.26 | G42: =IF(B42="","",VLOOKUP(D42,Tablas!$B$2:$G$13,6,FALSE)) -> 0 | H42: 45324.24 | I42: 5769.00524 | J42: 424347.6737 | K42: 379559.6366 | L42: 339498.7805 | M42: 303666.1722 | N42: 271615.5386 | O42: 242947.709 | P42: 217305.6431 | Q42: 194369.9849 | R42: 173855.0849 | S42: 155505.4426 | T42: 139092.5247 | U42: 124411.9184 | V42: 111280.7856 | W42: 99535.58645 | X42: 89030.04154 | Y42: 1.329271167e+10 | Z42: 667975.4607
A43: =IF(ISBLANK(InfoPro!A35),"",InfoPro!A35) -> SC_1306_A2 | B43: =IF(ISBLANK(InfoPro!B35),"",InfoPro!B35) -> Leo Solar I | C43: =IF(ISBLANK(InfoPro!E35),"",InfoPro!E35) -> 19.9 | D43: =IF(ISBLANK(InfoPro!F35),"",InfoPro!F35) -> Solar FV | E43: =IF(ISBLANK(InfoPro!I35),"",YEAR(InfoPro!I35)-$G$3) -> 2 | F43: =IF(B43="","",VLOOKUP(D43,Tablas!$B$2:$E$13,2,FALSE)) -> 0.26 | G43: =IF(B43="","",VLOOKUP(D43,Tablas!$B$2:$G$13,6,FALSE)) -> 0 | H43: 45324.24 | I43: 5769.00524 | J43: 424347.6737 | K43: 379559.6366 | L43: 339498.7805 | M43: 303666.1722 | N43: 271615.5386 | O43: 242947.709 | P43: 217305.6431 | Q43: 194369.9849 | R43: 173855.0849 | S43: 155505.4426 | T43: 139092.5247 | U43: 124411.9184 | V43: 111280.7856 | W43: 99535.58645 | X43: 89030.04154 | Y43: 1.329271167e+10 | Z43: 667975.4607
A44: =IF(ISBLANK(InfoPro!A36),"",InfoPro!A36) -> SC_1311_A1 | B44: =IF(ISBLANK(InfoPro!B36),"",InfoPro!B36) -> Elipse de 200 MW | C44: =IF(ISBLANK(InfoPro!E36),"",InfoPro!E36) -> 200 | D44: =IF(ISBLANK(InfoPro!F36),"",InfoPro!F36) -> Eólico Onshore | E44: =IF(ISBLANK(InfoPro!I36),"",YEAR(InfoPro!I36)-$G$3) -> 2 | F44: =IF(B44="","",VLOOKUP(D44,Tablas!$B$2:$E$13,2,FALSE)) -> 0.57 | G44: =IF(B44="","",VLOOKUP(D44,Tablas!$B$2:$G$13,6,FALSE)) -> 0 | H44: 998640 | I44: 127109.8951 | J44: 9349755.471 | K44: 8362929.759 | L44: 7480259.177 | M44: 6690750.605 | N44: 5984571.203 | O44: 5352925.942 | P44: 4787948.07 | Q44: 4282601.136 | R44: 3830591.356 | S44: 3426289.227 | T44: 3064659.416 | U44: 2741198.046 | V44: 2451876.607 | W44: 2193091.777 | X44: 1961620.552 | Y44: 2.928815482e+11 | Z44: 1464407.741
A45: =IF(ISBLANK(InfoPro!A37),"",InfoPro!A37) -> SC_1312_A1 | B45: =IF(ISBLANK(InfoPro!B37),"",InfoPro!B37) -> Omega de 300 MW | C45: =IF(ISBLANK(InfoPro!E37),"",InfoPro!E37) -> 300 | D45: =IF(ISBLANK(InfoPro!F37),"",InfoPro!F37) -> Eólico Onshore | E45: =IF(ISBLANK(InfoPro!I37),"",YEAR(InfoPro!I37)-$G$3) -> 5 | F45: =IF(B45="","",VLOOKUP(D45,Tablas!$B$2:$E$13,2,FALSE)) -> 0.57 | G45: =IF(B45="","",VLOOKUP(D45,Tablas!$B$2:$G$13,6,FALSE)) -> 0 | H45: 1497960 | I45: 190664.8427 | J45: 10036125.91 | K45: 8976856.805 | L45: 8029388.913 | M45: 7181922.105 | N45: 6423901.704 | O45: 5745887.034 | P45: 5139433.84 | Q45: 4596989.124 | R45: 4111797.07 | S45: 3677814.91 | T45: 3289637.666 | U45: 2942430.828 | V45: 2631870.15 | W45: 2354087.791 | X45: 2105624.142 | Y45: 3.143821357e+11 | Z45: 1047940.452
A46: =IF(ISBLANK(InfoPro!A38),"",InfoPro!A38) -> SC_1313_A1 | B46: =IF(ISBLANK(InfoPro!B38),"",InfoPro!B38) -> Kappa de 500 MW | C46: =IF(ISBLANK(InfoPro!E38),"",InfoPro!E38) -> 500 | D46: =IF(ISBLANK(InfoPro!F38),"",InfoPro!F38) -> Eólico Onshore | E46: =IF(ISBLANK(InfoPro!I38),"",YEAR(InfoPro!I38)-$G$3) -> 4 | F46: =IF(B46="","",VLOOKUP(D46,Tablas!$B$2:$E$13,2,FALSE)) -> 0.57 | G46: =IF(B46="","",VLOOKUP(D46,Tablas!$B$2:$G$13,6,FALSE)) -> 0 | H46: 2496600 | I46: 317774.7378 | J46: 18700647.94 | K46: 16726876.51 | L46: 14961428.01 | M46: 13382314.86 | N46: 11969870.17 | O46: 10706502.84 | P46: 9576478.389 | Q46: 8565723.067 | R46: 7661648.54 | S46: 6852995.116 | T46: 6129691.517 | U46: 5482729.443 | V46: 4904051.38 | W46: 4386450.25 | X46: 3923479.652 | Y46: 5.857987129e+11 | Z46: 1171597.426
A47: =IF(ISBLANK(InfoPro!A39),"",InfoPro!A39) -> SC_1315_A1 | B47: =IF(ISBLANK(InfoPro!B39),"",InfoPro!B39) -> Parque Eólico Cordobita - 50MW | C47: =IF(ISBLANK(InfoPro!E39),"",InfoPro!E39) -> 50 | D47: =IF(ISBLANK(InfoPro!F39),"",InfoPro!F39) -> Eólico Onshore | E47: =IF(ISBLANK(InfoPro!I39),"",YEAR(InfoPro!I39)-$G$3) -> 4 | F47: =IF(B47="","",VLOOKUP(D47,Tablas!$B$2:$E$13,2,FALSE)) -> 0.57 | G47: =IF(B47="","",VLOOKUP(D47,Tablas!$B$2:$G$13,6,FALSE)) -> 0 | H47: 249660 | I47: 31777.47378 | J47: 1870064.794 | K47: 1672687.651 | L47: 1496142.801 | M47: 1338231.486 | N47: 1196987.017 | O47: 1070650.284 | P47: 957647.8389 | Q47: 856572.3067 | R47: 766164.854 | S47: 685299.5116 | T47: 612969.1517 | U47: 548272.9443 | V47: 490405.138 | W47: 438645.025 | X47: 392347.9652 | Y47: 5.857987129e+10 | Z47: 1171597.426
A48: =IF(ISBLANK(InfoPro!A40),"",InfoPro!A40) -> SC_1315_A2 | B48: =IF(ISBLANK(InfoPro!B40),"",InfoPro!B40) -> Parque Eólico Cordobita - 50MW | C48: =IF(ISBLANK(InfoPro!E40),"",InfoPro!E40) -> 50 | D48: =IF(ISBLANK(InfoPro!F40),"",InfoPro!F40) -> Eólico Onshore | E48: =IF(ISBLANK(InfoPro!I40),"",YEAR(InfoPro!I40)-$G$3) -> 4 | F48: =IF(B48="","",VLOOKUP(D48,Tablas!$B$2:$E$13,2,FALSE)) -> 0.57 | G48: =IF(B48="","",VLOOKUP(D48,Tablas!$B$2:$G$13,6,FALSE)) -> 0 | H48: 249660 | I48: 31777.47378 | J48: 1870064.794 | K48: 1672687.651 | L48: 1496142.801 | M48: 1338231.486 | N48: 1196987.017 | O48: 1070650.284 | P48: 957647.8389 | Q48: 856572.3067 | R48: 766164.854 | S48: 685299.5116 | T48: 612969.1517 | U48: 548272.9443 | V48: 490405.138 | W48: 438645.025 | X48: 392347.9652 | Y48: 5.857987129e+10 | Z48: 1171597.426
A49: =IF(ISBLANK(InfoPro!A41),"",InfoPro!A41) -> SC_1317_A1 | B49: =IF(ISBLANK(InfoPro!B41),"",InfoPro!B41) -> EÓLICA BONDA - 70MW | C49: =IF(ISBLANK(InfoPro!E41),"",InfoPro!E41) -> 70 | D49: =IF(ISBLANK(InfoPro!F41),"",InfoPro!F41) -> Eólico Onshore | E49: =IF(ISBLANK(InfoPro!I41),"",YEAR(InfoPro!I41)-$G$3) -> 4 | F49: =IF(B49="","",VLOOKUP(D49,Tablas!$B$2:$E$13,2,FALSE)) -> 0.57 | G49: =IF(B49="","",VLOOKUP(D49,Tablas!$B$2:$G$13,6,FALSE)) -> 0 | H49: 349524 | I49: 44488.46329 | J49: =IF($I49="","",(1/(1+$C$4)^(J$7+$E49))*$I49*$C$5) -> 2618090.712 | K49: 2341762.712 | L49: 2094599.921 | M49: 1873524.08 | N49: 1675781.824 | O49: 1498910.398 | P49: 1340706.975 | Q49: 1199201.229 | R49: 1072630.796 | S49: 959419.3163 | T49: 858156.8124 | U49: 767582.122 | V49: 686567.1932 | W49: 614103.0351 | X49: 549287.1512 | Y49: 8.20118198e+10 | Z49: 1171597.426
A50: =IF(ISBLANK(InfoPro!A42),"",InfoPro!A42) -> SC_1321_A1 | B50: =IF(ISBLANK(InfoPro!B42),"",InfoPro!B42) -> OWF ASTROLABIO - 600 MW | C50: =IF(ISBLANK(InfoPro!E42),"",InfoPro!E42) -> 600 | D50: =IF(ISBLANK(InfoPro!F42),"",InfoPro!F42) -> Eólico Offshore | E50: =IF(ISBLANK(InfoPro!I42),"",YEAR(InfoPro!I42)-$G$3) -> 11 | F50: =IF(B50="","",VLOOKUP(D50,Tablas!$B$2:$E$13,2,FALSE)) -> 0.57 | G50: =IF(B50="","",VLOOKUP(D50,Tablas!$B$2:$G$13,6,FALSE)) -> 0 | H50: 2995920 | I50: 381329.6854 | J50: 10278867.68 | K50: 9193978.248 | L50: 8223594.139 | M50: 7355629.82 | N50: 6579275.331 | O50: 5884861.656 | P50: 5263740.301 | Q50: 4708175.582 | R50: 4211248.284 | S50: 3766769.485 | T50: 3369203.475 | U50: 3013598.815 | V50: 2695526.668 | W50: 2411025.642 | X50: 2156552.453 | Y50: 3.219860337e+11 | Z50: 536643.3894
A51: =IF(ISBLANK(InfoPro!A43),"",InfoPro!A43) -> SC_1321_A2 | B51: =IF(ISBLANK(InfoPro!B43),"",InfoPro!B43) -> OWF ASTROLABIO - 600 MW | C51: =IF(ISBLANK(InfoPro!E43),"",InfoPro!E43) -> 825 | D51: =IF(ISBLANK(InfoPro!F43),"",InfoPro!F43) -> Eólico Offshore | E51: =IF(ISBLANK(InfoPro!I43),"",YEAR(InfoPro!I43)-$G$3) -> 11 | F51: =IF(B51="","",VLOOKUP(D51,Tablas!$B$2:$E$13,2,FALSE)) -> 0.57 | G51: =IF(B51="","",VLOOKUP(D51,Tablas!$B$2:$G$13,6,FALSE)) -> 0 | H51: 4119390 | I51: 524328.3174 | J51: 14133443.06 | K51: 12641720.09 | L51: 11307441.94 | M51: 10113991 | N51: 9046503.581 | O51: 8091684.777 | P51: 7237642.913 | Q51: 6473741.425 | R51: 5790466.391 | S51: 5179308.042 | T51: 4632654.778 | U51: 4143698.37 | V51: 3706349.169 | W51: 3315160.258 | X51: 2965259.623 | Y51: 4.427307963e+11 | Z51: 536643.3894
A52: =IF(ISBLANK(InfoPro!A44),"",InfoPro!A44) -> SC_1336_A1 | B52: =IF(ISBLANK(InfoPro!B44),"",InfoPro!B44) -> AES Solar 4 | C52: =IF(ISBLANK(InfoPro!E44),"",InfoPro!E44) -> 300 | D52: =IF(ISBLANK(InfoPro!F44),"",InfoPro!F44) -> Solar FV | E52: =IF(ISBLANK(InfoPro!I44),"",YEAR(InfoPro!I44)-$G$3) -> 3 | F52: =IF(B52="","",VLOOKUP(D52,Tablas!$B$2:$E$13,2,FALSE)) -> 0.26 | G52: =IF(B52="","",VLOOKUP(D52,Tablas!$B$2:$G$13,6,FALSE)) -> 0 | H52: 683280 | I52: 86969.92824 | J52: 5722004.572 | K52: 5118072.068 | L52: 4577881.993 | M52: 4094706.613 | N52: 3662528.276 | O52: 3275964.469 | P52: 2930200.777 | Q52: 2620930.928 | R52: 2344303.155 | S52: 2096872.232 | T52: 1875556.558 | U52: 1677599.784 | V52: 1500536.479 | W52: 1342161.43 | X52: 1200502.174 | Y52: 1.792420735e+11 | Z52: 597473.5785
A53: =IF(ISBLANK(InfoPro!A45),"",InfoPro!A45) -> SC_1336_A2 | B53: =IF(ISBLANK(InfoPro!B45),"",InfoPro!B45) -> AES Solar 4 | C53: =IF(ISBLANK(InfoPro!E45),"",InfoPro!E45) -> 300 | D53: =IF(ISBLANK(InfoPro!F45),"",InfoPro!F45) -> Solar FV | E53: =IF(ISBLANK(InfoPro!I45),"",YEAR(InfoPro!I45)-$G$3) -> 3 | F53: =IF(B53="","",VLOOKUP(D53,Tablas!$B$2:$E$13,2,FALSE)) -> 0.26 | G53: =IF(B53="","",VLOOKUP(D53,Tablas!$B$2:$G$13,6,FALSE)) -> 0 | H53: 683280 | I53: 86969.92824 | J53: 5722004.572 | K53: 5118072.068 | L53: 4577881.993 | M53: 4094706.613 | N53: 3662528.276 | O53: 3275964.469 | P53: 2930200.777 | Q53: 2620930.928 | R53: 2344303.155 | S53: 2096872.232 | T53: 1875556.558 | U53: 1677599.784 | V53: 1500536.479 | W53: 1342161.43 | X53: 1200502.174 | Y53: 1.792420735e+11 | Z53: 597473.5785
A54: =IF(ISBLANK(InfoPro!A46),"",InfoPro!A46) -> SC_1345_A1 | B54: =IF(ISBLANK(InfoPro!B46),"",InfoPro!B46) -> Parque Eólico Jouttalein_150MW | C54: =IF(ISBLANK(InfoPro!E46),"",InfoPro!E46) -> 150 | D54: =IF(ISBLANK(InfoPro!F46),"",InfoPro!F46) -> Eólico Onshore | E54: =IF(ISBLANK(InfoPro!I46),"",YEAR(InfoPro!I46)-$G$3) -> 2 | F54: =IF(B54="","",VLOOKUP(D54,Tablas!$B$2:$E$13,2,FALSE)) -> 0.57 | G54: =IF(B54="","",VLOOKUP(D54,Tablas!$B$2:$G$13,6,FALSE)) -> 0 | H54: 748980 | I54: 95332.42134 | J54: 7012316.603 | K54: 6272197.32 | L54: 5610194.382 | M54: 5018062.954 | N54: 4488428.402 | O54: 4014694.457 | P54: 3590961.052 | Q54: 3211950.852 | R54: 2872943.517 | S54: 2569716.92 | T54: 2298494.562 | U54: 2055898.535 | V54: 1838907.455 | W54: 1644818.833 | X54: 1471215.414 | Y54: 2.196611611e+11 | Z54: 1464407.741
A55: =IF(ISBLANK(InfoPro!A47),"",InfoPro!A47) -> SC_1345_A2 | B55: =IF(ISBLANK(InfoPro!B47),"",InfoPro!B47) -> Parque Eólico Jouttalein_150MW | C55: =IF(ISBLANK(InfoPro!E47),"",InfoPro!E47) -> 150 | D55: =IF(ISBLANK(InfoPro!F47),"",InfoPro!F47) -> Eólico Onshore | E55: =IF(ISBLANK(InfoPro!I47),"",YEAR(InfoPro!I47)-$G$3) -> 2 | F55: =IF(B55="","",VLOOKUP(D55,Tablas!$B$2:$E$13,2,FALSE)) -> 0.57 | G55: =IF(B55="","",VLOOKUP(D55,Tablas!$B$2:$G$13,6,FALSE)) -> 0 | H55: 748980 | I55: 95332.42134 | J55: 7012316.603 | K55: 6272197.32 | L55: 5610194.382 | M55: 5018062.954 | N55: 4488428.402 | O55: 4014694.457 | P55: 3590961.052 | Q55: 3211950.852 | R55: 2872943.517 | S55: 2569716.92 | T55: 2298494.562 | U55: 2055898.535 | V55: 1838907.455 | W55: 1644818.833 | X55: 1471215.414 | Y55: 2.196611611e+11 | Z55: 1464407.741
A56: =IF(ISBLANK(InfoPro!A48),"",InfoPro!A48) -> SC_1347_A1 | B56: =IF(ISBLANK(InfoPro!B48),"",InfoPro!B48) -> AES Solar 5_100MW | C56: =IF(ISBLANK(InfoPro!E48),"",InfoPro!E48) -> 100 | D56: =IF(ISBLANK(InfoPro!F48),"",InfoPro!F48) -> Solar FV | E56: =IF(ISBLANK(InfoPro!I48),"",YEAR(InfoPro!I48)-$G$3) -> 3 | F56: =IF(B56="","",VLOOKUP(D56,Tablas!$B$2:$E$13,2,FALSE)) -> 0.26 | G56: =IF(B56="","",VLOOKUP(D56,Tablas!$B$2:$G$13,6,FALSE)) -> 0 | H56: 227760 | I56: 28989.97608 | J56: 1907334.857 | K56: 1706024.023 | L56: 1525960.664 | M56: 1364902.204 | N56: 1220842.759 | O56: 1091988.156 | P56: 976733.5924 | Q56: 873643.6425 | R56: 781434.3851 | S56: 698957.4106 | T56: 625185.5194 | U56: 559199.9279 | V56: 500178.8264 | W56: 447387.1434 | X56: 400167.3913 | Y56: 5.974735785e+10 | Z56: 597473.5785
A57: =IF(ISBLANK(InfoPro!A49),"",InfoPro!A49) -> SC_1347_A2 | B57: =IF(ISBLANK(InfoPro!B49),"",InfoPro!B49) -> AES Solar 5_100MW | C57: =IF(ISBLANK(InfoPro!E49),"",InfoPro!E49) -> 100 | D57: =IF(ISBLANK(InfoPro!F49),"",InfoPro!F49) -> Solar FV | E57: =IF(ISBLANK(InfoPro!I49),"",YEAR(InfoPro!I49)-$G$3) -> 3 | F57: =IF(B57="","",VLOOKUP(D57,Tablas!$B$2:$E$13,2,FALSE)) -> 0.26 | G57: =IF(B57="","",VLOOKUP(D57,Tablas!$B$2:$G$13,6,FALSE)) -> 0 | H57: 227760 | I57: 28989.97608 | J57: 1907334.857 | K57: 1706024.023 | L57: 1525960.664 | M57: 1364902.204 | N57: 1220842.759 | O57: 1091988.156 | P57: 976733.5924 | Q57: 873643.6425 | R57: 781434.3851 | S57: 698957.4106 | T57: 625185.5194 | U57: 559199.9279 | V57: 500178.8264 | W57: 447387.1434 | X57: 400167.3913 | Y57: 5.974735785e+10 | Z57: 597473.5785
A58: =IF(ISBLANK(InfoPro!A50),"",InfoPro!A50) -> SC_1355_A1 | B58: =IF(ISBLANK(InfoPro!B50),"",InfoPro!B50) -> Barlovento 1 | C58: =IF(ISBLANK(InfoPro!E50),"",InfoPro!E50) -> 500 | D58: =IF(ISBLANK(InfoPro!F50),"",InfoPro!F50) -> Eólico Offshore | E58: =IF(ISBLANK(InfoPro!I50),"",YEAR(InfoPro!I50)-$G$3) -> 11 | F58: =IF(B58="","",VLOOKUP(D58,Tablas!$B$2:$E$13,2,FALSE)) -> 0.57 | G58: =IF(B58="","",VLOOKUP(D58,Tablas!$B$2:$G$13,6,FALSE)) -> 0 | H58: 2496600 | I58: 317774.7378 | J58: 8565723.067 | K58: 7661648.54 | L58: 6852995.116 | M58: 6129691.517 | N58: 5482729.443 | O58: 4904051.38 | P58: 4386450.25 | Q58: 3923479.652 | R58: 3509373.57 | S58: 3138974.571 | T58: 2807669.563 | U58: 2511332.346 | V58: 2246272.223 | W58: 2009188.035 | X58: 1797127.044 | Y58: 2.683216947e+11 | Z58: 536643.3894
A59: =IF(ISBLANK(InfoPro!A51),"",InfoPro!A51) -> SC_1356_A1 | B59: =IF(ISBLANK(InfoPro!B51),"",InfoPro!B51) -> Sol de Zawady 9,9 MW | C59: =IF(ISBLANK(InfoPro!E51),"",InfoPro!E51) -> 9.9 | D59: =IF(ISBLANK(InfoPro!F51),"",InfoPro!F51) -> Solar FV | E59: =IF(ISBLANK(InfoPro!I51),"",YEAR(InfoPro!I51)-$G$3) -> 1 | F59: =IF(B59="","",VLOOKUP(D59,Tablas!$B$2:$E$13,2,FALSE)) -> 0.26 | G59: =IF(B59="","",VLOOKUP(D59,Tablas!$B$2:$G$13,6,FALSE)) -> 0 | H59: 22548.24 | I59: 2870.007632 | J59: =IF($I59="","",(1/(1+$C$4)^(J$7+$E59))*$I59*$C$5) -> 236018.3378 | K59: 211107.6367 | L59: 188826.1509 | M59: 168896.3782 | N59: 151070.1058 | O59: 135125.3182 | P59: 120863.4331 | Q59: 108106.8275 | R59: 96696.62564 | S59: 86490.72061 | T59: 77362.00413 | U59: 69196.78365 | V59: 61893.36642 | W59: 55360.79286 | X59: 49517.70381 | Y59: 7393285994 | Z59: 746796.5651
A60: =IF(ISBLANK(InfoPro!A52),"",InfoPro!A52) -> SC_1356_A2 | B60: =IF(ISBLANK(InfoPro!B52),"",InfoPro!B52) -> Sol de Zawady 9,9 MW | C60: =IF(ISBLANK(InfoPro!E52),"",InfoPro!E52) -> 9.9 | D60: =IF(ISBLANK(InfoPro!F52),"",InfoPro!F52) -> Solar FV | E60: =IF(ISBLANK(InfoPro!I52),"",YEAR(InfoPro!I52)-$G$3) -> 1 | F60: =IF(B60="","",VLOOKUP(D60,Tablas!$B$2:$E$13,2,FALSE)) -> 0.26 | G60: =IF(B60="","",VLOOKUP(D60,Tablas!$B$2:$G$13,6,FALSE)) -> 0 | H60: 22548.24 | I60: 2870.007632 | J60: 236018.3378 | K60: 211107.6367 | L60: 188826.1509 | M60: 168896.3782 | N60: 151070.1058 | O60: 135125.3182 | P60: 120863.4331 | Q60: 108106.8275 | R60: 96696.62564 | S60: 86490.72061 | T60: 77362.00413 | U60: 69196.78365 | V60: 61893.36642 | W60: 55360.79286 | X60: 49517.70381 | Y60: 7393285994 | Z60: 746796.5651
A61: =IF(ISBLANK(InfoPro!A53),"",InfoPro!A53) -> SC_1366_A1 | B61: =IF(ISBLANK(InfoPro!B53),"",InfoPro!B53) -> PARQUE SOLAR TÁNGARA 100 MW | C61: =IF(ISBLANK(InfoPro!E53),"",InfoPro!E53) -> 100 | D61: =IF(ISBLANK(InfoPro!F53),"",InfoPro!F53) -> Solar FV | E61: =IF(ISBLANK(InfoPro!I53),"",YEAR(InfoPro!I53)-$G$3) -> 3 | F61: =IF(B61="","",VLOOKUP(D61,Tablas!$B$2:$E$13,2,FALSE)) -> 0.26 | G61: =IF(B61="","",VLOOKUP(D61,Tablas!$B$2:$G$13,6,FALSE)) -> 0 | H61: 227760 | I61: 28989.97608 | J61: 1907334.857 | K61: 1706024.023 | L61: 1525960.664 | M61: 1364902.204 | N61: 1220842.759 | O61: 1091988.156 | P61: 976733.5924 | Q61: 873643.6425 | R61: 781434.3851 | S61: 698957.4106 | T61: 625185.5194 | U61: 559199.9279 | V61: 500178.8264 | W61: 447387.1434 | X61: 400167.3913 | Y61: 5.974735785e+10 | Z61: 597473.5785
A62: =IF(ISBLANK(InfoPro!A54),"",InfoPro!A54) -> SC_1376_A1 | B62: =IF(ISBLANK(InfoPro!B54),"",InfoPro!B54) -> Expansión La Loma I - 100 MW | C62: =IF(ISBLANK(InfoPro!E54),"",InfoPro!E54) -> 100 | D62: =IF(ISBLANK(InfoPro!F54),"",InfoPro!F54) -> Solar FV | E62: =IF(ISBLANK(InfoPro!I54),"",YEAR(InfoPro!I54)-$G$3) -> 4 | F62: =IF(B62="","",VLOOKUP(D62,Tablas!$B$2:$E$13,2,FALSE)) -> 0.26 | G62: =IF(B62="","",VLOOKUP(D62,Tablas!$B$2:$G$13,6,FALSE)) -> 0 | H62: 227760 | I62: 28989.97608 | J62: 1706024.023 | K62: 1525960.664 | L62: 1364902.204 | M62: 1220842.759 | N62: 1091988.156 | O62: 976733.5924 | P62: 873643.6425 | Q62: 781434.3851 | R62: 698957.4106 | S62: 625185.5194 | T62: 559199.9279 | U62: 500178.8264 | V62: 447387.1434 | W62: 400167.3913 | X62: 357931.477 | Y62: 5.344128609e+10 | Z62: 534412.8609
A63: =IF(ISBLANK(InfoPro!A55),"",InfoPro!A55) -> SC_1376_A2 | B63: =IF(ISBLANK(InfoPro!B55),"",InfoPro!B55) -> Expansión La Loma I - 100 MW | C63: =IF(ISBLANK(InfoPro!E55),"",InfoPro!E55) -> 100 | D63: =IF(ISBLANK(InfoPro!F55),"",InfoPro!F55) -> Solar FV | E63: =IF(ISBLANK(InfoPro!I55),"",YEAR(InfoPro!I55)-$G$3) -> 4 | F63: =IF(B63="","",VLOOKUP(D63,Tablas!$B$2:$E$13,2,FALSE)) -> 0.26 | G63: =IF(B63="","",VLOOKUP(D63,Tablas!$B$2:$G$13,6,FALSE)) -> 0 | H63: 227760 | I63: 28989.97608 | J63: 1706024.023 | K63: 1525960.664 | L63: 1364902.204 | M63: 1220842.759 | N63: 1091988.156 | O63: 976733.5924 | P63: 873643.6425 | Q63: 781434.3851 | R63: 698957.4106 | S63: 625185.5194 | T63: 559199.9279 | U63: 500178.8264 | V63: 447387.1434 | W63: 400167.3913 | X63: 357931.477 | Y63: 5.344128609e+10 | Z63: 534412.8609
A64: =IF(ISBLANK(InfoPro!A56),"",InfoPro!A56) -> SC_1377_A1 | B64: =IF(ISBLANK(InfoPro!B56),"",InfoPro!B56) -> Eólica Cordobita - 50MW | C64: =IF(ISBLANK(InfoPro!E56),"",InfoPro!E56) -> 50 | D64: =IF(ISBLANK(InfoPro!F56),"",InfoPro!F56) -> Eólico Onshore | E64: =IF(ISBLANK(InfoPro!I56),"",YEAR(InfoPro!I56)-$G$3) -> 4 | F64: =IF(B64="","",VLOOKUP(D64,Tablas!$B$2:$E$13,2,FALSE)) -> 0.57 | G64: =IF(B64="","",VLOOKUP(D64,Tablas!$B$2:$G$13,6,FALSE)) -> 0 | H64: 249660 | I64: 31777.47378 | J64: 1870064.794 | K64: 1672687.651 | L64: 1496142.801 | M64: 1338231.486 | N64: 1196987.017 | O64: 1070650.284 | P64: 957647.8389 | Q64: 856572.3067 | R64: 766164.854 | S64: 685299.5116 | T64: 612969.1517 | U64: 548272.9443 | V64: 490405.138 | W64: 438645.025 | X64: 392347.9652 | Y64: 5.857987129e+10 | Z64: 1171597.426
A65: =IF(ISBLANK(InfoPro!A57),"",InfoPro!A57) -> SC_1377_A2 | B65: =IF(ISBLANK(InfoPro!B57),"",InfoPro!B57) -> Eólica Cordobita - 50MW | C65: =IF(ISBLANK(InfoPro!E57),"",InfoPro!E57) -> 50 | D65: =IF(ISBLANK(InfoPro!F57),"",InfoPro!F57) -> Eólico Onshore | E65: =IF(ISBLANK(InfoPro!I57),"",YEAR(InfoPro!I57)-$G$3) -> 4 | F65: =IF(B65="","",VLOOKUP(D65,Tablas!$B$2:$E$13,2,FALSE)) -> 0.57 | G65: =IF(B65="","",VLOOKUP(D65,Tablas!$B$2:$G$13,6,FALSE)) -> 0 | H65: 249660 | I65: 31777.47378 | J65: 1870064.794 | K65: 1672687.651 | L65: 1496142.801 | M65: 1338231.486 | N65: 1196987.017 | O65: 1070650.284 | P65: 957647.8389 | Q65: 856572.3067 | R65: 766164.854 | S65: 685299.5116 | T65: 612969.1517 | U65: 548272.9443 | V65: 490405.138 | W65: 438645.025 | X65: 392347.9652 | Y65: 5.857987129e+10 | Z65: 1171597.426
A66: =IF(ISBLANK(InfoPro!A58),"",InfoPro!A58) -> SC_1380_A1 | B66: =IF(ISBLANK(InfoPro!B58),"",InfoPro!B58) -> Parque Eólico Motosira | C66: =IF(ISBLANK(InfoPro!E58),"",InfoPro!E58) -> 300 | D66: =IF(ISBLANK(InfoPro!F58),"",InfoPro!F58) -> Eólico Onshore | E66: =IF(ISBLANK(InfoPro!I58),"",YEAR(InfoPro!I58)-$G$3) -> 3 | F66: =IF(B66="","",VLOOKUP(D66,Tablas!$B$2:$E$13,2,FALSE)) -> 0.57 | G66: =IF(B66="","",VLOOKUP(D66,Tablas!$B$2:$G$13,6,FALSE)) -> 0 | H66: 1497960 | I66: 190664.8427 | J66: 12544394.64 | K66: 11220388.76 | L66: 10036125.91 | M66: 8976856.805 | N66: 8029388.913 | O66: 7181922.105 | P66: 6423901.704 | Q66: 5745887.034 | R66: 5139433.84 | S66: 4596989.124 | T66: 4111797.07 | U66: 3677814.91 | V66: 3289637.666 | W66: 2942430.828 | X66: 2631870.15 | Y66: 3.929537766e+11 | Z66: 1309845.922
A67: =IF(ISBLANK(InfoPro!A59),"",InfoPro!A59) -> SC_1380_A2 | B67: =IF(ISBLANK(InfoPro!B59),"",InfoPro!B59) -> Parque Eólico Motosira | C67: =IF(ISBLANK(InfoPro!E59),"",InfoPro!E59) -> 300 | D67: =IF(ISBLANK(InfoPro!F59),"",InfoPro!F59) -> Eólico Onshore | E67: =IF(ISBLANK(InfoPro!I59),"",YEAR(InfoPro!I59)-$G$3) -> 3 | F67: =IF(B67="","",VLOOKUP(D67,Tablas!$B$2:$E$13,2,FALSE)) -> 0.57 | G67: =IF(B67="","",VLOOKUP(D67,Tablas!$B$2:$G$13,6,FALSE)) -> 0 | H67: 1497960 | I67: 190664.8427 | J67: 12544394.64 | K67: 11220388.76 | L67: 10036125.91 | M67: 8976856.805 | N67: 8029388.913 | O67: 7181922.105 | P67: 6423901.704 | Q67: 5745887.034 | R67: 5139433.84 | S67: 4596989.124 | T67: 4111797.07 | U67: 3677814.91 | V67: 3289637.666 | W67: 2942430.828 | X67: 2631870.15 | Y67: 3.929537766e+11 | Z67: 1309845.922
A68: =IF(ISBLANK(InfoPro!A60),"",InfoPro!A60) -> SC_1421_A1 | B68: =IF(ISBLANK(InfoPro!B60),"",InfoPro!B60) -> Parque Solar Fotovoltaico SJ Solar 100 MW | C68: =IF(ISBLANK(InfoPro!E60),"",InfoPro!E60) -> 100 | D68: =IF(ISBLANK(InfoPro!F60),"",InfoPro!F60) -> Solar FV | E68: =IF(ISBLANK(InfoPro!I60),"",YEAR(InfoPro!I60)-$G$3) -> 3 | F68: =IF(B68="","",VLOOKUP(D68,Tablas!$B$2:$E$13,2,FALSE)) -> 0.26 | G68: =IF(B68="","",VLOOKUP(D68,Tablas!$B$2:$G$13,6,FALSE)) -> 0 | H68: 227760 | I68: 28989.97608 | J68: 1907334.857 | K68: 1706024.023 | L68: 1525960.664 | M68: 1364902.204 | N68: 1220842.759 | O68: 1091988.156 | P68: 976733.5924 | Q68: 873643.6425 | R68: 781434.3851 | S68: 698957.4106 | T68: 625185.5194 | U68: 559199.9279 | V68: 500178.8264 | W68: 447387.1434 | X68: 400167.3913 | Y68: 5.974735785e+10 | Z68: 597473.5785
A69: =IF(ISBLANK(InfoPro!A61),"",InfoPro!A61) -> SC_1421_A2 | B69: =IF(ISBLANK(InfoPro!B61),"",InfoPro!B61) -> Parque Solar Fotovoltaico SJ Solar 100 MW | C69: =IF(ISBLANK(InfoPro!E61),"",InfoPro!E61) -> 100 | D69: =IF(ISBLANK(InfoPro!F61),"",InfoPro!F61) -> Solar FV | E69: =IF(ISBLANK(InfoPro!I61),"",YEAR(InfoPro!I61)-$G$3) -> 3 | F69: =IF(B69="","",VLOOKUP(D69,Tablas!$B$2:$E$13,2,FALSE)) -> 0.26 | G69: =IF(B69="","",VLOOKUP(D69,Tablas!$B$2:$G$13,6,FALSE)) -> 0 | H69: 227760 | I69: 28989.97608 | J69: =IF($I69="","",(1/(1+$C$4)^(J$7+$E69))*$I69*$C$5) -> 1907334.857 | K69: 1706024.023 | L69: 1525960.664 | M69: 1364902.204 | N69: 1220842.759 | O69: 1091988.156 | P69: 976733.5924 | Q69: 873643.6425 | R69: 781434.3851 | S69: 698957.4106 | T69: 625185.5194 | U69: 559199.9279 | V69: 500178.8264 | W69: 447387.1434 | X69: 400167.3913 | Y69: 5.974735785e+10 | Z69: 597473.5785
A70: =IF(ISBLANK(InfoPro!A62),"",InfoPro!A62) -> SC_1479_A1 | B70: =IF(ISBLANK(InfoPro!B62),"",InfoPro!B62) -> Oslo I_150MW | C70: =IF(ISBLANK(InfoPro!E62),"",InfoPro!E62) -> 150 | D70: =IF(ISBLANK(InfoPro!F62),"",InfoPro!F62) -> Solar FV | E70: =IF(ISBLANK(InfoPro!I62),"",YEAR(InfoPro!I62)-$G$3) -> 3 | F70: =IF(B70="","",VLOOKUP(D70,Tablas!$B$2:$E$13,2,FALSE)) -> 0.26 | G70: =IF(B70="","",VLOOKUP(D70,Tablas!$B$2:$G$13,6,FALSE)) -> 0 | H70: 341640 | I70: 43484.96412 | J70: 2861002.286 | K70: 2559036.034 | L70: 2288940.996 | M70: 2047353.306 | N70: 1831264.138 | O70: 1637982.234 | P70: 1465100.389 | Q70: 1310465.464 | R70: 1172151.578 | S70: 1048436.116 | T70: 937778.279 | U70: 838799.8918 | V70: 750268.2395 | W70: 671080.7152 | X70: 600251.0869 | Y70: 8.962103677e+10 | Z70: 597473.5785
A71: =IF(ISBLANK(InfoPro!A63),"",InfoPro!A63) -> SC_1479_A2 | B71: =IF(ISBLANK(InfoPro!B63),"",InfoPro!B63) -> Oslo I_150MW | C71: =IF(ISBLANK(InfoPro!E63),"",InfoPro!E63) -> 150 | D71: =IF(ISBLANK(InfoPro!F63),"",InfoPro!F63) -> Solar FV | E71: =IF(ISBLANK(InfoPro!I63),"",YEAR(InfoPro!I63)-$G$3) -> 3 | F71: =IF(B71="","",VLOOKUP(D71,Tablas!$B$2:$E$13,2,FALSE)) -> 0.26 | G71: =IF(B71="","",VLOOKUP(D71,Tablas!$B$2:$G$13,6,FALSE)) -> 0 | H71: 341640 | I71: 43484.96412 | J71: 2861002.286 | K71: 2559036.034 | L71: 2288940.996 | M71: 2047353.306 | N71: 1831264.138 | O71: 1637982.234 | P71: 1465100.389 | Q71: 1310465.464 | R71: 1172151.578 | S71: 1048436.116 | T71: 937778.279 | U71: 838799.8918 | V71: 750268.2395 | W71: 671080.7152 | X71: 600251.0869 | Y71: 8.962103677e+10 | Z71: 597473.5785
A72: =IF(ISBLANK(InfoPro!A64),"",InfoPro!A64) -> SC_1506_A1 | B72: =IF(ISBLANK(InfoPro!B64),"",InfoPro!B64) -> Parque Solar Toro Moreno | C72: =IF(ISBLANK(InfoPro!E64),"",InfoPro!E64) -> 99.9 | D72: =IF(ISBLANK(InfoPro!F64),"",InfoPro!F64) -> Solar FV | E72: =IF(ISBLANK(InfoPro!I64),"",YEAR(InfoPro!I64)-$G$3) -> -2 | F72: =IF(B72="","",VLOOKUP(D72,Tablas!$B$2:$E$13,2,FALSE)) -> 0.26 | G72: =IF(B72="","",VLOOKUP(D72,Tablas!$B$2:$G$13,6,FALSE)) -> 0 | H72: 227532.24 | I72: 28960.9861 | J72: 3328138.965 | K72: 2976868.484 | L72: 2662673.062 | M72: 2381639.591 | N72: 2130267.97 | O72: 1905427.523 | P72: 1704317.999 | Q72: 1524434.704 | R72: 1363537.302 | S72: 1219621.916 | T72: 1090896.168 | U72: 975756.8588 | V72: 872769.9989 | W72: 780652.9507 | X72: 698258.4532 | Y72: 1.042541161e+11 | Z72: 1043584.746
A73: =IF(ISBLANK(InfoPro!A65),"",InfoPro!A65) -> SC_1506_A2 | B73: =IF(ISBLANK(InfoPro!B65),"",InfoPro!B65) -> Parque Solar Toro Moreno | C73: =IF(ISBLANK(InfoPro!E65),"",InfoPro!E65) -> 99.9 | D73: =IF(ISBLANK(InfoPro!F65),"",InfoPro!F65) -> Solar FV | E73: =IF(ISBLANK(InfoPro!I65),"",YEAR(InfoPro!I65)-$G$3) -> -2 | F73: =IF(B73="","",VLOOKUP(D73,Tablas!$B$2:$E$13,2,FALSE)) -> 0.26 | G73: =IF(B73="","",VLOOKUP(D73,Tablas!$B$2:$G$13,6,FALSE)) -> 0 | H73: =IF(C73="","",+C73*F73*24*365) -> 227532.24 | I73: =IF(H73="","",+H73*($C$3-G73)) -> 28960.9861 | J73: 3328138.965 | K73: 2976868.484 | L73: 2662673.062 | M73: 2381639.591 | N73: 2130267.97 | O73: 1905427.523 | P73: 1704317.999 | Q73: 1524434.704 | R73: 1363537.302 | S73: 1219621.916 | T73: 1090896.168 | U73: 975756.8588 | V73: 872769.9989 | W73: 780652.9507 | X73: 698258.4532 | Y73: 1.042541161e+11 | Z73: 1043584.746
A74: =IF(ISBLANK(InfoPro!A66),"",InfoPro!A66) -> SC_1512_A1 | B74: =IF(ISBLANK(InfoPro!B66),"",InfoPro!B66) -> El Flamingo - 200 MW | C74: =IF(ISBLANK(InfoPro!E66),"",InfoPro!E66) -> 200 | D74: =IF(ISBLANK(InfoPro!F66),"",InfoPro!F66) -> Solar FV | E74: =IF(ISBLANK(InfoPro!I66),"",YEAR(InfoPro!I66)-$G$3) -> 4 | F74: =IF(B74="","",VLOOKUP(D74,Tablas!$B$2:$E$13,2,FALSE)) -> 0.26 | G74: =IF(B74="","",VLOOKUP(D74,Tablas!$B$2:$G$13,6,FALSE)) -> 0 | H74: 455520 | I74: 57979.95216 | J74: 3412048.045 | K74: 3051921.329 | L74: 2729804.408 | M74: 2441685.517 | N74: 2183976.313 | O74: 1953467.185 | P74: 1747287.285 | Q74: 1562868.77 | R74: 1397914.821 | S74: 1250371.039 | T74: 1118399.856 | U74: 1000357.653 | V74: 894774.2869 | W74: 800334.7825 | X74: 715862.954 | Y74: =IF(X74="","",SUM(J74:X74)*$C$6) -> 1.068825722e+11 | Z74: =IF(C74=0,0,IF(Y74="","",Y74/(C74*1000))) -> 534412.8609
A75: =IF(ISBLANK(InfoPro!A67),"",InfoPro!A67) -> SC_1512_A2 | B75: =IF(ISBLANK(InfoPro!B67),"",InfoPro!B67) -> El Flamingo - 200 MW | C75: =IF(ISBLANK(InfoPro!E67),"",InfoPro!E67) -> 200 | D75: =IF(ISBLANK(InfoPro!F67),"",InfoPro!F67) -> Solar FV | E75: =IF(ISBLANK(InfoPro!I67),"",YEAR(InfoPro!I67)-$G$3) -> 4 | F75: =IF(B75="","",VLOOKUP(D75,Tablas!$B$2:$E$13,2,FALSE)) -> 0.26 | G75: =IF(B75="","",VLOOKUP(D75,Tablas!$B$2:$G$13,6,FALSE)) -> 0 | H75: 455520 | I75: 57979.95216 | J75: 3412048.045 | K75: 3051921.329 | L75: 2729804.408 | M75: 2441685.517 | N75: 2183976.313 | O75: 1953467.185 | P75: 1747287.285 | Q75: 1562868.77 | R75: 1397914.821 | S75: 1250371.039 | T75: 1118399.856 | U75: 1000357.653 | V75: 894774.2869 | W75: 800334.7825 | X75: 715862.954 | Y75: 1.068825722e+11 | Z75: 534412.8609
A76: =IF(ISBLANK(InfoPro!A68),"",InfoPro!A68) -> SC_1518_A1 | B76: =IF(ISBLANK(InfoPro!B68),"",InfoPro!B68) -> CHIRIGUANÁ - 300 MW | C76: =IF(ISBLANK(InfoPro!E68),"",InfoPro!E68) -> 300 | D76: =IF(ISBLANK(InfoPro!F68),"",InfoPro!F68) -> Solar FV | E76: =IF(ISBLANK(InfoPro!I68),"",YEAR(InfoPro!I68)-$G$3) -> 4 | F76: =IF(B76="","",VLOOKUP(D76,Tablas!$B$2:$E$13,2,FALSE)) -> 0.26 | G76: =IF(B76="","",VLOOKUP(D76,Tablas!$B$2:$G$13,6,FALSE)) -> 0 | H76: 683280 | I76: 86969.92824 | J76: 5118072.068 | K76: 4577881.993 | L76: 4094706.613 | M76: 3662528.276 | N76: 3275964.469 | O76: 2930200.777 | P76: 2620930.928 | Q76: 2344303.155 | R76: 2096872.232 | S76: 1875556.558 | T76: 1677599.784 | U76: 1500536.479 | V76: 1342161.43 | W76: 1200502.174 | X76: 1073794.431 | Y76: 1.603238583e+11 | Z76: 534412.8609
A77: =IF(ISBLANK(InfoPro!A69),"",InfoPro!A69) -> SC_1518_A2 | B77: =IF(ISBLANK(InfoPro!B69),"",InfoPro!B69) -> CHIRIGUANÁ - 300 MW | C77: =IF(ISBLANK(InfoPro!E69),"",InfoPro!E69) -> 300 | D77: =IF(ISBLANK(InfoPro!F69),"",InfoPro!F69) -> Solar FV | E77: =IF(ISBLANK(InfoPro!I69),"",YEAR(InfoPro!I69)-$G$3) -> 4 | F77: =IF(B77="","",VLOOKUP(D77,Tablas!$B$2:$E$13,2,FALSE)) -> 0.26 | G77: =IF(B77="","",VLOOKUP(D77,Tablas!$B$2:$G$13,6,FALSE)) -> 0 | H77: 683280 | I77: 86969.92824 | J77: 5118072.068 | K77: 4577881.993 | L77: 4094706.613 | M77: 3662528.276 | N77: 3275964.469 | O77: 2930200.777 | P77: 2620930.928 | Q77: 2344303.155 | R77: 2096872.232 | S77: 1875556.558 | T77: 1677599.784 | U77: 1500536.479 | V77: 1342161.43 | W77: 1200502.174 | X77: 1073794.431 | Y77: 1.603238583e+11 | Z77: 534412.8609
A78: =IF(ISBLANK(InfoPro!A70),"",InfoPro!A70) -> SC_1531_A1 | B78: =IF(ISBLANK(InfoPro!B70),"",InfoPro!B70) -> Haticos_56MW | C78: =IF(ISBLANK(InfoPro!E70),"",InfoPro!E70) -> 56 | D78: =IF(ISBLANK(InfoPro!F70),"",InfoPro!F70) -> Solar FV | E78: =IF(ISBLANK(InfoPro!I70),"",YEAR(InfoPro!I70)-$G$3) -> 4 | F78: =IF(B78="","",VLOOKUP(D78,Tablas!$B$2:$E$13,2,FALSE)) -> 0.26 | G78: =IF(B78="","",VLOOKUP(D78,Tablas!$B$2:$G$13,6,FALSE)) -> 0 | H78: 127545.6 | I78: 16234.3866 | J78: 955373.4527 | K78: 854537.972 | L78: 764345.2344 | M78: 683671.9449 | N78: 611513.3675 | O78: 546970.8117 | P78: 489240.4398 | Q78: 437603.2557 | R78: 391416.15 | S78: 350103.8908 | T78: 313151.9596 | U78: 280100.1428 | V78: 250536.8003 | W78: 224093.7391 | X78: 200441.6271 | Y78: 2.992712021e+10 | Z78: 534412.8609
A79: =IF(ISBLANK(InfoPro!A71),"",InfoPro!A71) -> SC_1531_A2 | B79: =IF(ISBLANK(InfoPro!B71),"",InfoPro!B71) -> Haticos_56MW | C79: =IF(ISBLANK(InfoPro!E71),"",InfoPro!E71) -> 56 | D79: =IF(ISBLANK(InfoPro!F71),"",InfoPro!F71) -> Solar FV | E79: =IF(ISBLANK(InfoPro!I71),"",YEAR(InfoPro!I71)-$G$3) -> 4 | F79: =IF(B79="","",VLOOKUP(D79,Tablas!$B$2:$E$13,2,FALSE)) -> 0.26 | G79: =IF(B79="","",VLOOKUP(D79,Tablas!$B$2:$G$13,6,FALSE)) -> 0 | H79: 127545.6 | I79: 16234.3866 | J79: =IF($I79="","",(1/(1+$C$4)^(J$7+$E79))*$I79*$C$5) -> 955373.4527 | K79: 854537.972 | L79: 764345.2344 | M79: 683671.9449 | N79: 611513.3675 | O79: 546970.8117 | P79: 489240.4398 | Q79: 437603.2557 | R79: 391416.15 | S79: 350103.8908 | T79: 313151.9596 | U79: 280100.1428 | V79: 250536.8003 | W79: 224093.7391 | X79: 200441.6271 | Y79: 2.992712021e+10 | Z79: 534412.8609
A80: =IF(ISBLANK(InfoPro!A72),"",InfoPro!A72) -> SC_1532_A1 | B80: =IF(ISBLANK(InfoPro!B72),"",InfoPro!B72) -> Las Mangas_340.8MW | C80: =IF(ISBLANK(InfoPro!E72),"",InfoPro!E72) -> 340.8 | D80: =IF(ISBLANK(InfoPro!F72),"",InfoPro!F72) -> Solar FV | E80: =IF(ISBLANK(InfoPro!I72),"",YEAR(InfoPro!I72)-$G$3) -> 4 | F80: =IF(B80="","",VLOOKUP(D80,Tablas!$B$2:$E$13,2,FALSE)) -> 0.26 | G80: =IF(B80="","",VLOOKUP(D80,Tablas!$B$2:$G$13,6,FALSE)) -> 0 | H80: 776206.08 | I80: 98797.83848 | J80: 5814129.869 | K80: 5200473.944 | L80: 4651586.712 | M80: 4160632.122 | N80: 3721495.637 | O80: 3328708.083 | P80: 2977377.534 | Q80: 2663128.384 | R80: 2382046.855 | S80: 2130632.25 | T80: 1905753.354 | U80: 1704609.44 | V80: 1524695.385 | W80: 1363770.469 | X80: 1219830.474 | Y80: 1.82127903e+11 | Z80: 534412.8609
A81: =IF(ISBLANK(InfoPro!A73),"",InfoPro!A73) -> SC_1532_A2 | B81: =IF(ISBLANK(InfoPro!B73),"",InfoPro!B73) -> Las Mangas_340.8MW | C81: =IF(ISBLANK(InfoPro!E73),"",InfoPro!E73) -> 340.8 | D81: =IF(ISBLANK(InfoPro!F73),"",InfoPro!F73) -> Solar FV | E81: =IF(ISBLANK(InfoPro!I73),"",YEAR(InfoPro!I73)-$G$3) -> 4 | F81: =IF(B81="","",VLOOKUP(D81,Tablas!$B$2:$E$13,2,FALSE)) -> 0.26 | G81: =IF(B81="","",VLOOKUP(D81,Tablas!$B$2:$G$13,6,FALSE)) -> 0 | H81: 776206.08 | I81: 98797.83848 | J81: 5814129.869 | K81: 5200473.944 | L81: 4651586.712 | M81: 4160632.122 | N81: 3721495.637 | O81: 3328708.083 | P81: 2977377.534 | Q81: 2663128.384 | R81: 2382046.855 | S81: 2130632.25 | T81: 1905753.354 | U81: 1704609.44 | V81: 1524695.385 | W81: 1363770.469 | X81: 1219830.474 | Y81: 1.82127903e+11 | Z81: 534412.8609
A82: =IF(ISBLANK(InfoPro!A74),"",InfoPro!A74) -> SC_1534_A1 | B82: =IF(ISBLANK(InfoPro!B74),"",InfoPro!B74) -> Parque Eólico Cerrito_378MW | C82: =IF(ISBLANK(InfoPro!E74),"",InfoPro!E74) -> 378 | D82: =IF(ISBLANK(InfoPro!F74),"",InfoPro!F74) -> Eólico Onshore | E82: =IF(ISBLANK(InfoPro!I74),"",YEAR(InfoPro!I74)-$G$3) -> 2 | F82: =IF(B82="","",VLOOKUP(D82,Tablas!$B$2:$E$13,2,FALSE)) -> 0.57 | G82: =IF(B82="","",VLOOKUP(D82,Tablas!$B$2:$G$13,6,FALSE)) -> 0 | H82: 1887429.6 | I82: 240237.7018 | J82: 17671037.84 | K82: 15805937.25 | L82: 14137689.84 | M82: 12645518.64 | N82: 11310839.57 | O82: 10117030.03 | P82: 9049221.852 | Q82: 8094116.147 | R82: 7239817.662 | S82: 6475686.639 | T82: 5792206.296 | U82: 5180864.308 | V82: 4634046.787 | W82: 4144943.459 | X82: 3707462.843 | Y82: 5.53546126e+11 | Z82: 1464407.741
A83: =IF(ISBLANK(InfoPro!A75),"",InfoPro!A75) -> SC_1534_A2 | B83: =IF(ISBLANK(InfoPro!B75),"",InfoPro!B75) -> Parque Eólico Cerrito_378MW | C83: =IF(ISBLANK(InfoPro!E75),"",InfoPro!E75) -> 378 | D83: =IF(ISBLANK(InfoPro!F75),"",InfoPro!F75) -> Eólico Onshore | E83: =IF(ISBLANK(InfoPro!I75),"",YEAR(InfoPro!I75)-$G$3) -> 2 | F83: =IF(B83="","",VLOOKUP(D83,Tablas!$B$2:$E$13,2,FALSE)) -> 0.57 | G83: =IF(B83="","",VLOOKUP(D83,Tablas!$B$2:$G$13,6,FALSE)) -> 0 | H83: 1887429.6 | I83: 240237.7018 | J83: 17671037.84 | K83: 15805937.25 | L83: 14137689.84 | M83: 12645518.64 | N83: 11310839.57 | O83: 10117030.03 | P83: 9049221.852 | Q83: 8094116.147 | R83: 7239817.662 | S83: 6475686.639 | T83: 5792206.296 | U83: 5180864.308 | V83: 4634046.787 | W83: 4144943.459 | X83: 3707462.843 | Y83: 5.53546126e+11 | Z83: 1464407.741
A84: =IF(ISBLANK(InfoPro!A76),"",InfoPro!A76) -> SC_1535_A1 | B84: =IF(ISBLANK(InfoPro!B76),"",InfoPro!B76) -> Parque Eólico Cerrito 2 | C84: =IF(ISBLANK(InfoPro!E76),"",InfoPro!E76) -> 200 | D84: =IF(ISBLANK(InfoPro!F76),"",InfoPro!F76) -> Eólico Onshore | E84: =IF(ISBLANK(InfoPro!I76),"",YEAR(InfoPro!I76)-$G$3) -> 2 | F84: =IF(B84="","",VLOOKUP(D84,Tablas!$B$2:$E$13,2,FALSE)) -> 0.57 | G84: =IF(B84="","",VLOOKUP(D84,Tablas!$B$2:$G$13,6,FALSE)) -> 0 | H84: 998640 | I84: 127109.8951 | J84: 9349755.471 | K84: 8362929.759 | L84: 7480259.177 | M84: 6690750.605 | N84: 5984571.203 | O84: 5352925.942 | P84: 4787948.07 | Q84: 4282601.136 | R84: 3830591.356 | S84: 3426289.227 | T84: 3064659.416 | U84: 2741198.046 | V84: 2451876.607 | W84: 2193091.777 | X84: 1961620.552 | Y84: 2.928815482e+11 | Z84: 1464407.741
A85: =IF(ISBLANK(InfoPro!A77),"",InfoPro!A77) -> SC_1535_A2 | B85: =IF(ISBLANK(InfoPro!B77),"",InfoPro!B77) -> Parque Eólico Cerrito 2 | C85: =IF(ISBLANK(InfoPro!E77),"",InfoPro!E77) -> 200 | D85: =IF(ISBLANK(InfoPro!F77),"",InfoPro!F77) -> Eólico Onshore | E85: =IF(ISBLANK(InfoPro!I77),"",YEAR(InfoPro!I77)-$G$3) -> 2 | F85: =IF(B85="","",VLOOKUP(D85,Tablas!$B$2:$E$13,2,FALSE)) -> 0.57 | G85: =IF(B85="","",VLOOKUP(D85,Tablas!$B$2:$G$13,6,FALSE)) -> 0 | H85: 998640 | I85: 127109.8951 | J85: 9349755.471 | K85: 8362929.759 | L85: 7480259.177 | M85: 6690750.605 | N85: 5984571.203 | O85: 5352925.942 | P85: 4787948.07 | Q85: 4282601.136 | R85: 3830591.356 | S85: 3426289.227 | T85: 3064659.416 | U85: 2741198.046 | V85: 2451876.607 | W85: 2193091.777 | X85: 1961620.552 | Y85: 2.928815482e+11 | Z85: 1464407.741
A86: =IF(ISBLANK(InfoPro!A78),"",InfoPro!A78) -> SC_1549_A1 | B86: =IF(ISBLANK(InfoPro!B78),"",InfoPro!B78) -> Parque Solar Bonda | C86: =IF(ISBLANK(InfoPro!E78),"",InfoPro!E78) -> 9.9 | D86: =IF(ISBLANK(InfoPro!F78),"",InfoPro!F78) -> Solar FV | E86: =IF(ISBLANK(InfoPro!I78),"",YEAR(InfoPro!I78)-$G$3) -> 2 | F86: =IF(B86="","",VLOOKUP(D86,Tablas!$B$2:$E$13,2,FALSE)) -> 0.26 | G86: =IF(B86="","",VLOOKUP(D86,Tablas!$B$2:$G$13,6,FALSE)) -> 0 | H86: 22548.24 | I86: 2870.007632 | J86: 211107.6367 | K86: 188826.1509 | L86: 168896.3782 | M86: 151070.1058 | N86: 135125.3182 | O86: 120863.4331 | P86: 108106.8275 | Q86: 96696.62564 | R86: 86490.72061 | S86: 77362.00413 | T86: 69196.78365 | U86: 61893.36642 | V86: 55360.79286 | W86: 49517.70381 | X86: 44291.3272 | Y86: 6612957061 | Z86: 667975.4607
A87: =IF(ISBLANK(InfoPro!A79),"",InfoPro!A79) -> SC_1549_A2 | B87: =IF(ISBLANK(InfoPro!B79),"",InfoPro!B79) -> Parque Solar Bonda | C87: =IF(ISBLANK(InfoPro!E79),"",InfoPro!E79) -> 9.9 | D87: =IF(ISBLANK(InfoPro!F79),"",InfoPro!F79) -> Solar FV | E87: =IF(ISBLANK(InfoPro!I79),"",YEAR(InfoPro!I79)-$G$3) -> 2 | F87: =IF(B87="","",VLOOKUP(D87,Tablas!$B$2:$E$13,2,FALSE)) -> 0.26 | G87: =IF(B87="","",VLOOKUP(D87,Tablas!$B$2:$G$13,6,FALSE)) -> 0 | H87: 22548.24 | I87: 2870.007632 | J87: 211107.6367 | K87: 188826.1509 | L87: 168896.3782 | M87: 151070.1058 | N87: 135125.3182 | O87: 120863.4331 | P87: 108106.8275 | Q87: 96696.62564 | R87: 86490.72061 | S87: 77362.00413 | T87: 69196.78365 | U87: 61893.36642 | V87: 55360.79286 | W87: 49517.70381 | X87: 44291.3272 | Y87: 6612957061 | Z87: 667975.4607
A88: =IF(ISBLANK(InfoPro!A80),"",InfoPro!A80) -> SC_1550_A1 | B88: =IF(ISBLANK(InfoPro!B80),"",InfoPro!B80) -> Parque Solar Fonseca | C88: =IF(ISBLANK(InfoPro!E80),"",InfoPro!E80) -> 9.9 | D88: =IF(ISBLANK(InfoPro!F80),"",InfoPro!F80) -> Solar FV | E88: =IF(ISBLANK(InfoPro!I80),"",YEAR(InfoPro!I80)-$G$3) -> 2 | F88: =IF(B88="","",VLOOKUP(D88,Tablas!$B$2:$E$13,2,FALSE)) -> 0.26 | G88: =IF(B88="","",VLOOKUP(D88,Tablas!$B$2:$G$13,6,FALSE)) -> 0 | H88: 22548.24 | I88: 2870.007632 | J88: 211107.6367 | K88: 188826.1509 | L88: 168896.3782 | M88: 151070.1058 | N88: 135125.3182 | O88: 120863.4331 | P88: 108106.8275 | Q88: 96696.62564 | R88: 86490.72061 | S88: 77362.00413 | T88: 69196.78365 | U88: 61893.36642 | V88: 55360.79286 | W88: 49517.70381 | X88: 44291.3272 | Y88: 6612957061 | Z88: 667975.4607
A89: =IF(ISBLANK(InfoPro!A81),"",InfoPro!A81) -> SC_1550_A2 | B89: =IF(ISBLANK(InfoPro!B81),"",InfoPro!B81) -> Parque Solar Fonseca | C89: =IF(ISBLANK(InfoPro!E81),"",InfoPro!E81) -> 9.9 | D89: =IF(ISBLANK(InfoPro!F81),"",InfoPro!F81) -> Solar FV | E89: =IF(ISBLANK(InfoPro!I81),"",YEAR(InfoPro!I81)-$G$3) -> 2 | F89: =IF(B89="","",VLOOKUP(D89,Tablas!$B$2:$E$13,2,FALSE)) -> 0.26 | G89: =IF(B89="","",VLOOKUP(D89,Tablas!$B$2:$G$13,6,FALSE)) -> 0 | H89: 22548.24 | I89: 2870.007632 | J89: =IF($I89="","",(1/(1+$C$4)^(J$7+$E89))*$I89*$C$5) -> 211107.6367 | K89: 188826.1509 | L89: 168896.3782 | M89: 151070.1058 | N89: 135125.3182 | O89: 120863.4331 | P89: 108106.8275 | Q89: 96696.62564 | R89: 86490.72061 | S89: 77362.00413 | T89: 69196.78365 | U89: 61893.36642 | V89: 55360.79286 | W89: 49517.70381 | X89: 44291.3272 | Y89: 6612957061 | Z89: 667975.4607
A90: =IF(ISBLANK(InfoPro!A82),"",InfoPro!A82) -> SC_1556_A1 | B90: =IF(ISBLANK(InfoPro!B82),"",InfoPro!B82) -> Copey Solar I - 100 MW | C90: =IF(ISBLANK(InfoPro!E82),"",InfoPro!E82) -> 100 | D90: =IF(ISBLANK(InfoPro!F82),"",InfoPro!F82) -> Solar FV | E90: =IF(ISBLANK(InfoPro!I82),"",YEAR(InfoPro!I82)-$G$3) -> 3 | F90: =IF(B90="","",VLOOKUP(D90,Tablas!$B$2:$E$13,2,FALSE)) -> 0.26 | G90: =IF(B90="","",VLOOKUP(D90,Tablas!$B$2:$G$13,6,FALSE)) -> 0 | H90: 227760 | I90: 28989.97608 | J90: 1907334.857 | K90: 1706024.023 | L90: 1525960.664 | M90: 1364902.204 | N90: 1220842.759 | O90: 1091988.156 | P90: 976733.5924 | Q90: 873643.6425 | R90: 781434.3851 | S90: 698957.4106 | T90: 625185.5194 | U90: 559199.9279 | V90: 500178.8264 | W90: 447387.1434 | X90: 400167.3913 | Y90: 5.974735785e+10 | Z90: 597473.5785
A91: =IF(ISBLANK(InfoPro!A83),"",InfoPro!A83) -> SC_1556_A2 | B91: =IF(ISBLANK(InfoPro!B83),"",InfoPro!B83) -> Copey Solar I - 100 MW | C91: =IF(ISBLANK(InfoPro!E83),"",InfoPro!E83) -> 100 | D91: =IF(ISBLANK(InfoPro!F83),"",InfoPro!F83) -> Solar FV | E91: =IF(ISBLANK(InfoPro!I83),"",YEAR(InfoPro!I83)-$G$3) -> 3 | F91: =IF(B91="","",VLOOKUP(D91,Tablas!$B$2:$E$13,2,FALSE)) -> 0.26 | G91: =IF(B91="","",VLOOKUP(D91,Tablas!$B$2:$G$13,6,FALSE)) -> 0 | H91: 227760 | I91: 28989.97608 | J91: 1907334.857 | K91: 1706024.023 | L91: 1525960.664 | M91: 1364902.204 | N91: 1220842.759 | O91: 1091988.156 | P91: 976733.5924 | Q91: 873643.6425 | R91: 781434.3851 | S91: 698957.4106 | T91: 625185.5194 | U91: 559199.9279 | V91: 500178.8264 | W91: 447387.1434 | X91: 400167.3913 | Y91: 5.974735785e+10 | Z91: 597473.5785
A92: =IF(ISBLANK(InfoPro!A84),"",InfoPro!A84) -> SC_1557_A1 | B92: =IF(ISBLANK(InfoPro!B84),"",InfoPro!B84) -> Copey Solar II | C92: =IF(ISBLANK(InfoPro!E84),"",InfoPro!E84) -> 100 | D92: =IF(ISBLANK(InfoPro!F84),"",InfoPro!F84) -> Solar FV | E92: =IF(ISBLANK(InfoPro!I84),"",YEAR(InfoPro!I84)-$G$3) -> 4 | F92: =IF(B92="","",VLOOKUP(D92,Tablas!$B$2:$E$13,2,FALSE)) -> 0.26 | G92: =IF(B92="","",VLOOKUP(D92,Tablas!$B$2:$G$13,6,FALSE)) -> 0 | H92: 227760 | I92: 28989.97608 | J92: 1706024.023 | K92: 1525960.664 | L92: 1364902.204 | M92: 1220842.759 | N92: 1091988.156 | O92: 976733.5924 | P92: 873643.6425 | Q92: 781434.3851 | R92: 698957.4106 | S92: 625185.5194 | T92: 559199.9279 | U92: 500178.8264 | V92: 447387.1434 | W92: 400167.3913 | X92: 357931.477 | Y92: 5.344128609e+10 | Z92: 534412.8609
A93: =IF(ISBLANK(InfoPro!A85),"",InfoPro!A85) -> SC_1557_A2 | B93: =IF(ISBLANK(InfoPro!B85),"",InfoPro!B85) -> Copey Solar II | C93: =IF(ISBLANK(InfoPro!E85),"",InfoPro!E85) -> 100 | D93: =IF(ISBLANK(InfoPro!F85),"",InfoPro!F85) -> Solar FV | E93: =IF(ISBLANK(InfoPro!I85),"",YEAR(InfoPro!I85)-$G$3) -> 4 | F93: =IF(B93="","",VLOOKUP(D93,Tablas!$B$2:$E$13,2,FALSE)) -> 0.26 | G93: =IF(B93="","",VLOOKUP(D93,Tablas!$B$2:$G$13,6,FALSE)) -> 0 | H93: 227760 | I93: 28989.97608 | J93: 1706024.023 | K93: 1525960.664 | L93: 1364902.204 | M93: 1220842.759 | N93: 1091988.156 | O93: 976733.5924 | P93: 873643.6425 | Q93: 781434.3851 | R93: 698957.4106 | S93: 625185.5194 | T93: 559199.9279 | U93: 500178.8264 | V93: 447387.1434 | W93: 400167.3913 | X93: 357931.477 | Y93: 5.344128609e+10 | Z93: 534412.8609
A94: =IF(ISBLANK(InfoPro!A86),"",InfoPro!A86) -> SC_1565_A1 | B94: =IF(ISBLANK(InfoPro!B86),"",InfoPro!B86) -> Eólica Río Córdoba 50 MW | C94: =IF(ISBLANK(InfoPro!E86),"",InfoPro!E86) -> 50 | D94: =IF(ISBLANK(InfoPro!F86),"",InfoPro!F86) -> Eólico Onshore | E94: =IF(ISBLANK(InfoPro!I86),"",YEAR(InfoPro!I86)-$G$3) -> 2 | F94: =IF(B94="","",VLOOKUP(D94,Tablas!$B$2:$E$13,2,FALSE)) -> 0.57 | G94: =IF(B94="","",VLOOKUP(D94,Tablas!$B$2:$G$13,6,FALSE)) -> 0 | H94: 249660 | I94: 31777.47378 | J94: 2337438.868 | K94: 2090732.44 | L94: 1870064.794 | M94: 1672687.651 | N94: 1496142.801 | O94: 1338231.486 | P94: 1196987.017 | Q94: 1070650.284 | R94: 957647.8389 | S94: 856572.3067 | T94: 766164.854 | U94: 685299.5116 | V94: 612969.1517 | W94: 548272.9443 | X94: 490405.138 | Y94: 7.322038704e+10 | Z94: 1464407.741
A95: =IF(ISBLANK(InfoPro!A87),"",InfoPro!A87) -> SC_1575_A1 | B95: =IF(ISBLANK(InfoPro!B87),"",InfoPro!B87) -> BONDERO 70 MW | C95: =IF(ISBLANK(InfoPro!E87),"",InfoPro!E87) -> 70 | D95: =IF(ISBLANK(InfoPro!F87),"",InfoPro!F87) -> Eólico Onshore | E95: =IF(ISBLANK(InfoPro!I87),"",YEAR(InfoPro!I87)-$G$3) -> 1 | F95: =IF(B95="","",VLOOKUP(D95,Tablas!$B$2:$E$13,2,FALSE)) -> 0.57 | G95: =IF(B95="","",VLOOKUP(D95,Tablas!$B$2:$G$13,6,FALSE)) -> 0 | H95: =IF(C95="","",+C95*F95*24*365) -> 349524 | I95: 44488.46329 | J95: 3658559.316 | K95: 3272414.415 | L95: 2927025.416 | M95: 2618090.712 | N95: 2341762.712 | O95: 2094599.921 | P95: 1873524.08 | Q95: 1675781.824 | R95: 1498910.398 | S95: 1340706.975 | T95: 1199201.229 | U95: 1072630.796 | V95: 959419.3163 | W95: 858156.8124 | X95: 767582.122 | Y95: 1.146045498e+11 | Z95: 1637207.854
A96: =IF(ISBLANK(InfoPro!A88),"",InfoPro!A88) -> SC_1592_A1 | B96: =IF(ISBLANK(InfoPro!B88),"",InfoPro!B88) -> Expansión La Loma II - 100 MW | C96: =IF(ISBLANK(InfoPro!E88),"",InfoPro!E88) -> 100 | D96: =IF(ISBLANK(InfoPro!F88),"",InfoPro!F88) -> Solar FV | E96: =IF(ISBLANK(InfoPro!I88),"",YEAR(InfoPro!I88)-$G$3) -> 5 | F96: =IF(B96="","",VLOOKUP(D96,Tablas!$B$2:$E$13,2,FALSE)) -> 0.26 | G96: =IF(B96="","",VLOOKUP(D96,Tablas!$B$2:$G$13,6,FALSE)) -> 0 | H96: 227760 | I96: 28989.97608 | J96: 1525960.664 | K96: 1364902.204 | L96: 1220842.759 | M96: 1091988.156 | N96: 976733.5924 | O96: 873643.6425 | P96: 781434.3851 | Q96: 698957.4106 | R96: 625185.5194 | S96: 559199.9279 | T96: 500178.8264 | U96: 447387.1434 | V96: 400167.3913 | W96: 357931.477 | X96: 320153.3783 | Y96: 4.780079256e+10 | Z96: 478007.9256
A97: =IF(ISBLANK(InfoPro!A89),"",InfoPro!A89) -> SC_1593_A1 | B97: =IF(ISBLANK(InfoPro!B89),"",InfoPro!B89) -> Parque Solar Camarones 6 MW | C97: =IF(ISBLANK(InfoPro!E89),"",InfoPro!E89) -> 6 | D97: =IF(ISBLANK(InfoPro!F89),"",InfoPro!F89) -> Solar FV | E97: =IF(ISBLANK(InfoPro!I89),"",YEAR(InfoPro!I89)-$G$3) -> 1 | F97: =IF(B97="","",VLOOKUP(D97,Tablas!$B$2:$E$13,2,FALSE)) -> 0.26 | G97: =IF(B97="","",VLOOKUP(D97,Tablas!$B$2:$G$13,6,FALSE)) -> 0 | H97: 13665.6 | I97: 1739.398565 | J97: 143041.4169 | K97: 127944.0222 | L97: 114440.0914 | M97: 102361.4414 | N97: 91557.63986 | O97: 81894.13225 | P97: 73250.56552 | Q97: 65519.28938 | R97: 58604.01554 | S97: 52418.61855 | T97: 46886.06311 | U97: 41937.44464 | V97: 37511.13116 | W97: 33551.99567 | X97: 30010.72958 | Y97: 4480779390 | Z97: 746796.5651
A98: =IF(ISBLANK(InfoPro!A90),"",InfoPro!A90) -> SC_1593_A2 | B98: =IF(ISBLANK(InfoPro!B90),"",InfoPro!B90) -> Parque Solar Camarones 6 MW | C98: =IF(ISBLANK(InfoPro!E90),"",InfoPro!E90) -> 6 | D98: =IF(ISBLANK(InfoPro!F90),"",InfoPro!F90) -> Solar FV | E98: =IF(ISBLANK(InfoPro!I90),"",YEAR(InfoPro!I90)-$G$3) -> 1 | F98: =IF(B98="","",VLOOKUP(D98,Tablas!$B$2:$E$13,2,FALSE)) -> 0.26 | G98: =IF(B98="","",VLOOKUP(D98,Tablas!$B$2:$G$13,6,FALSE)) -> 0 | H98: 13665.6 | I98: 1739.398565 | J98: 143041.4169 | K98: 127944.0222 | L98: 114440.0914 | M98: 102361.4414 | N98: 91557.63986 | O98: 81894.13225 | P98: 73250.56552 | Q98: 65519.28938 | R98: 58604.01554 | S98: 52418.61855 | T98: 46886.06311 | U98: 41937.44464 | V98: 37511.13116 | W98: 33551.99567 | X98: 30010.72958 | Y98: 4480779390 | Z98: 746796.5651
A99: =IF(ISBLANK(InfoPro!A91),"",InfoPro!A91) -> SC_1596_A1 | B99: =IF(ISBLANK(InfoPro!B91),"",InfoPro!B91) -> Expansión La Loma III - 100 MW | C99: =IF(ISBLANK(InfoPro!E91),"",InfoPro!E91) -> 100 | D99: =IF(ISBLANK(InfoPro!F91),"",InfoPro!F91) -> Solar FV | E99: =IF(ISBLANK(InfoPro!I91),"",YEAR(InfoPro!I91)-$G$3) -> 6 | F99: =IF(B99="","",VLOOKUP(D99,Tablas!$B$2:$E$13,2,FALSE)) -> 0.26 | G99: =IF(B99="","",VLOOKUP(D99,Tablas!$B$2:$G$13,6,FALSE)) -> 0 | H99: 227760 | I99: 28989.97608 | J99: =IF($I99="","",(1/(1+$C$4)^(J$7+$E99))*$I99*$C$5) -> 1364902.204 | K99: 1220842.759 | L99: 1091988.156 | M99: 976733.5924 | N99: 873643.6425 | O99: 781434.3851 | P99: 698957.4106 | Q99: 625185.5194 | R99: 559199.9279 | S99: 500178.8264 | T99: 447387.1434 | U99: 400167.3913 | V99: 357931.477 | W99: 320153.3783 | X99: 286362.5924 | Y99: 4.275562841e+10 | Z99: 427556.2841
A100: =IF(ISBLANK(InfoPro!A92),"",InfoPro!A92) -> SC_1656_A1 | B100: =IF(ISBLANK(InfoPro!B92),"",InfoPro!B92) -> Parque solar TERRɅ I | C100: =IF(ISBLANK(InfoPro!E92),"",InfoPro!E92) -> 19.9 | D100: =IF(ISBLANK(InfoPro!F92),"",InfoPro!F92) -> Solar FV | E100: =IF(ISBLANK(InfoPro!I92),"",YEAR(InfoPro!I92)-$G$3) -> 1 | F100: =IF(B100="","",VLOOKUP(D100,Tablas!$B$2:$E$13,2,FALSE)) -> 0.26 | G100: =IF(B100="","",VLOOKUP(D100,Tablas!$B$2:$G$13,6,FALSE)) -> 0 | H100: 45324.24 | I100: 5769.00524 | J100: 474420.6992 | K100: 424347.6737 | L100: 379559.6366 | M100: 339498.7805 | N100: 303666.1722 | O100: 271615.5386 | P100: 242947.709 | Q100: 217305.6431 | R100: 194369.9849 | S100: 173855.0849 | T100: 155505.4426 | U100: 139092.5247 | V100: 124411.9184 | W100: 111280.7856 | X100: 99535.58645 | Y100: 1.486125165e+10 | Z100: 746796.5651
A101: =IF(ISBLANK(InfoPro!A93),"",InfoPro!A93) -> SC_1656_A2 | B101: =IF(ISBLANK(InfoPro!B93),"",InfoPro!B93) -> Parque solar TERRɅ I | C101: =IF(ISBLANK(InfoPro!E93),"",InfoPro!E93) -> 19.9 | D101: =IF(ISBLANK(InfoPro!F93),"",InfoPro!F93) -> Solar FV | E101: =IF(ISBLANK(InfoPro!I93),"",YEAR(InfoPro!I93)-$G$3) -> 1 | F101: =IF(B101="","",VLOOKUP(D101,Tablas!$B$2:$E$13,2,FALSE)) -> 0.26 | G101: =IF(B101="","",VLOOKUP(D101,Tablas!$B$2:$G$13,6,FALSE)) -> 0 | H101: 45324.24 | I101: 5769.00524 | J101: 474420.6992 | K101: 424347.6737 | L101: 379559.6366 | M101: 339498.7805 | N101: 303666.1722 | O101: 271615.5386 | P101: 242947.709 | Q101: 217305.6431 | R101: 194369.9849 | S101: 173855.0849 | T101: 155505.4426 | U101: 139092.5247 | V101: 124411.9184 | W101: 111280.7856 | X101: 99535.58645 | Y101: 1.486125165e+10 | Z101: 746796.5651
A102: =IF(ISBLANK(InfoPro!A94),"",InfoPro!A94) -> SC_1698_A1 | B102: =IF(ISBLANK(InfoPro!B94),"",InfoPro!B94) -> Barlovento 2_500MW | C102: =IF(ISBLANK(InfoPro!E94),"",InfoPro!E94) -> 500 | D102: =IF(ISBLANK(InfoPro!F94),"",InfoPro!F94) -> Eólico Offshore | E102: =IF(ISBLANK(InfoPro!I94),"",YEAR(InfoPro!I94)-$G$3) -> 11 | F102: =IF(B102="","",VLOOKUP(D102,Tablas!$B$2:$E$13,2,FALSE)) -> 0.57 | G102: =IF(B102="","",VLOOKUP(D102,Tablas!$B$2:$G$13,6,FALSE)) -> 0 | H102: 2496600 | I102: 317774.7378 | J102: 8565723.067 | K102: 7661648.54 | L102: 6852995.116 | M102: 6129691.517 | N102: 5482729.443 | O102: 4904051.38 | P102: 4386450.25 | Q102: 3923479.652 | R102: 3509373.57 | S102: 3138974.571 | T102: 2807669.563 | U102: 2511332.346 | V102: 2246272.223 | W102: 2009188.035 | X102: 1797127.044 | Y102: 2.683216947e+11 | Z102: 536643.3894
A103: =IF(ISBLANK(InfoPro!A95),"",InfoPro!A95) -> SC_1699_A1 | B103: =IF(ISBLANK(InfoPro!B95),"",InfoPro!B95) -> PARQUE EOLICO GUAJIRA II de 302.4 MW | C103: =IF(ISBLANK(InfoPro!E95),"",InfoPro!E95) -> 302.4 | D103: =IF(ISBLANK(InfoPro!F95),"",InfoPro!F95) -> Eólico Onshore | E103: =IF(ISBLANK(InfoPro!I95),"",YEAR(InfoPro!I95)-$G$3) -> 4 | F103: =IF(B103="","",VLOOKUP(D103,Tablas!$B$2:$E$13,2,FALSE)) -> 0.57 | G103: =IF(B103="","",VLOOKUP(D103,Tablas!$B$2:$G$13,6,FALSE)) -> 0 | H103: 1509943.68 | I103: 192190.1614 | J103: 11310151.87 | K103: 10116414.91 | L103: 9048671.659 | M103: 8093624.024 | N103: 7239377.482 | O103: 6475292.917 | P103: 5791854.13 | Q103: 5180549.311 | R103: 4633765.037 | S103: 4144691.446 | T103: 3707237.43 | U103: 3315954.767 | V103: 2965970.275 | W103: 2652925.111 | X103: 2372920.493 | Y103: 3.542910616e+11 | Z103: 1171597.426
A104: =IF(ISBLANK(InfoPro!A96),"",InfoPro!A96) -> SC_1699_A2 | B104: =IF(ISBLANK(InfoPro!B96),"",InfoPro!B96) -> PARQUE EOLICO GUAJIRA II de 302.4 MW | C104: =IF(ISBLANK(InfoPro!E96),"",InfoPro!E96) -> 302.4 | D104: =IF(ISBLANK(InfoPro!F96),"",InfoPro!F96) -> Eólico Onshore | E104: =IF(ISBLANK(InfoPro!I96),"",YEAR(InfoPro!I96)-$G$3) -> 4 | F104: =IF(B104="","",VLOOKUP(D104,Tablas!$B$2:$E$13,2,FALSE)) -> 0.57 | G104: =IF(B104="","",VLOOKUP(D104,Tablas!$B$2:$G$13,6,FALSE)) -> 0 | H104: 1509943.68 | I104: 192190.1614 | J104: 11310151.87 | K104: 10116414.91 | L104: 9048671.659 | M104: 8093624.024 | N104: 7239377.482 | O104: 6475292.917 | P104: 5791854.13 | Q104: 5180549.311 | R104: 4633765.037 | S104: 4144691.446 | T104: 3707237.43 | U104: 3315954.767 | V104: 2965970.275 | W104: 2652925.111 | X104: 2372920.493 | Y104: 3.542910616e+11 | Z104: 1171597.426
A105: =IF(ISBLANK(InfoPro!A97),"",InfoPro!A97) -> SC_1703_A1 | B105: =IF(ISBLANK(InfoPro!B97),"",InfoPro!B97) -> Barlovento 3 de 500 MW | C105: =IF(ISBLANK(InfoPro!E97),"",InfoPro!E97) -> 500 | D105: =IF(ISBLANK(InfoPro!F97),"",InfoPro!F97) -> Eólico Offshore | E105: =IF(ISBLANK(InfoPro!I97),"",YEAR(InfoPro!I97)-$G$3) -> 11 | F105: =IF(B105="","",VLOOKUP(D105,Tablas!$B$2:$E$13,2,FALSE)) -> 0.57 | G105: =IF(B105="","",VLOOKUP(D105,Tablas!$B$2:$G$13,6,FALSE)) -> 0 | H105: 2496600 | I105: =IF(H105="","",+H105*($C$3-G105)) -> 317774.7378 | J105: 8565723.067 | K105: 7661648.54 | L105: 6852995.116 | M105: 6129691.517 | N105: 5482729.443 | O105: 4904051.38 | P105: 4386450.25 | Q105: 3923479.652 | R105: 3509373.57 | S105: 3138974.571 | T105: 2807669.563 | U105: 2511332.346 | V105: 2246272.223 | W105: 2009188.035 | X105: 1797127.044 | Y105: 2.683216947e+11 | Z105: 536643.3894
A106: =IF(ISBLANK(InfoPro!A98),"",InfoPro!A98) -> SC_1707_A1 | B106: =IF(ISBLANK(InfoPro!B98),"",InfoPro!B98) -> Santa Marta II - 50 MW | C106: =IF(ISBLANK(InfoPro!E98),"",InfoPro!E98) -> 50 | D106: =IF(ISBLANK(InfoPro!F98),"",InfoPro!F98) -> Solar FV | E106: =IF(ISBLANK(InfoPro!I98),"",YEAR(InfoPro!I98)-$G$3) -> 2 | F106: =IF(B106="","",VLOOKUP(D106,Tablas!$B$2:$E$13,2,FALSE)) -> 0.26 | G106: =IF(B106="","",VLOOKUP(D106,Tablas!$B$2:$G$13,6,FALSE)) -> 0 | H106: 113880 | I106: 14494.98804 | J106: 1066200.185 | K106: 953667.4287 | L106: 853012.0114 | M106: 762980.3322 | N106: 682451.1021 | O106: 610421.3794 | P106: 545994.0781 | Q106: 488366.7962 | R106: 436821.8213 | S106: 390717.1926 | T106: 349478.7053 | U106: 312592.7597 | V106: 279599.9639 | W106: 250089.4132 | X106: 223693.5717 | Y106: 3.339877304e+10 | Z106: 667975.4607
A107: =IF(ISBLANK(InfoPro!A99),"",InfoPro!A99) -> SC_1710_A1 | B107: =IF(ISBLANK(InfoPro!B99),"",InfoPro!B99) -> Parque Eólico Trupillo_100MW | C107: =IF(ISBLANK(InfoPro!E99),"",InfoPro!E99) -> 100 | D107: =IF(ISBLANK(InfoPro!F99),"",InfoPro!F99) -> Eólico Onshore | E107: =IF(ISBLANK(InfoPro!I99),"",YEAR(InfoPro!I99)-$G$3) -> 5 | F107: =IF(B107="","",VLOOKUP(D107,Tablas!$B$2:$E$13,2,FALSE)) -> 0.57 | G107: =IF(B107="","",VLOOKUP(D107,Tablas!$B$2:$G$13,6,FALSE)) -> 0 | H107: 499320 | I107: 63554.94756 | J107: 3345375.303 | K107: 2992285.602 | L107: 2676462.971 | M107: 2393974.035 | N107: 2141300.568 | O107: 1915295.678 | P107: 1713144.613 | Q107: 1532329.708 | R107: 1370599.023 | S107: 1225938.303 | T107: 1096545.889 | U107: 980810.276 | V107: 877290.0501 | W107: 784695.9303 | X107: 701874.7141 | Y107: 1.047940452e+11 | Z107: 1047940.452
A108: =IF(ISBLANK(InfoPro!A100),"",InfoPro!A100) -> SC_1710_A2 | B108: =IF(ISBLANK(InfoPro!B100),"",InfoPro!B100) -> Parque Eólico Trupillo_100MW | C108: =IF(ISBLANK(InfoPro!E100),"",InfoPro!E100) -> 100 | D108: =IF(ISBLANK(InfoPro!F100),"",InfoPro!F100) -> Eólico Onshore | E108: =IF(ISBLANK(InfoPro!I100),"",YEAR(InfoPro!I100)-$G$3) -> 5 | F108: =IF(B108="","",VLOOKUP(D108,Tablas!$B$2:$E$13,2,FALSE)) -> 0.57 | G108: =IF(B108="","",VLOOKUP(D108,Tablas!$B$2:$G$13,6,FALSE)) -> 0 | H108: 499320 | I108: 63554.94756 | J108: 3345375.303 | K108: 2992285.602 | L108: 2676462.971 | M108: 2393974.035 | N108: 2141300.568 | O108: 1915295.678 | P108: 1713144.613 | Q108: 1532329.708 | R108: 1370599.023 | S108: 1225938.303 | T108: 1096545.889 | U108: 980810.276 | V108: 877290.0501 | W108: 784695.9303 | X108: 701874.7141 | Y108: 1.047940452e+11 | Z108: 1047940.452
A109: =IF(ISBLANK(InfoPro!A101),"",InfoPro!A101) -> SC_1718_A1 | B109: =IF(ISBLANK(InfoPro!B101),"",InfoPro!B101) -> Autogeneración Drummond 50 MW | C109: =IF(ISBLANK(InfoPro!E101),"",InfoPro!E101) -> 50 | D109: =IF(ISBLANK(InfoPro!F101),"",InfoPro!F101) -> Solar FV | E109: =IF(ISBLANK(InfoPro!I101),"",YEAR(InfoPro!I101)-$G$3) -> 0 | F109: =IF(B109="","",VLOOKUP(D109,Tablas!$B$2:$E$13,2,FALSE)) -> 0.26 | G109: =IF(B109="","",VLOOKUP(D109,Tablas!$B$2:$G$13,6,FALSE)) -> 0 | H109: =IF(C109="","",+C109*F109*24*365) -> 113880 | I109: =IF(H109="","",+H109*($C$3-G109)) -> 14494.98804 | J109: 1332669.2 | K109: 1192011.807 | L109: 1066200.185 | M109: 953667.4287 | N109: 853012.0114 | O109: 762980.3322 | P109: 682451.1021 | Q109: 610421.3794 | R109: 545994.0781 | S109: 488366.7962 | T109: 436821.8213 | U109: 390717.1926 | V109: 349478.7053 | W109: 312592.7597 | X109: 279599.9639 | Y109: =IF(X109="","",SUM(J109:X109)*$C$6) -> 4.174592799e+10 | Z109: =IF(C109=0,0,IF(Y109="","",Y109/(C109*1000))) -> 834918.5598
A110: =IF(ISBLANK(InfoPro!A102),"",InfoPro!A102) -> SC_1722_A1 | B110: =IF(ISBLANK(InfoPro!B102),"",InfoPro!B102) -> PARQUE EÓLICO MONSAUI 9,9 MW | C110: =IF(ISBLANK(InfoPro!E102),"",InfoPro!E102) -> 9.9 | D110: =IF(ISBLANK(InfoPro!F102),"",InfoPro!F102) -> Eólico Onshore | E110: =IF(ISBLANK(InfoPro!I102),"",YEAR(InfoPro!I102)-$G$3) -> 4 | F110: =IF(B110="","",VLOOKUP(D110,Tablas!$B$2:$E$13,2,FALSE)) -> 0.57 | G110: =IF(B110="","",VLOOKUP(D110,Tablas!$B$2:$G$13,6,FALSE)) -> 0 | H110: 49432.68 | I110: 6291.939808 | J110: 370272.8292 | K110: 331192.155 | L110: 296236.2746 | M110: 264969.8341 | N110: 237003.4295 | O110: 211988.7562 | P110: 189614.2721 | Q110: 169601.3167 | R110: 151700.6411 | S110: 135689.3033 | T110: 121367.892 | U110: 108558.043 | V110: 97100.21732 | W110: 86851.71496 | X110: 77684.8971 | Y110: 1.159881452e+10 | Z110: 1171597.426
A111: =IF(ISBLANK(InfoPro!A103),"",InfoPro!A103) -> SC_1722_A2 | B111: =IF(ISBLANK(InfoPro!B103),"",InfoPro!B103) -> PARQUE EÓLICO MONSAUI 9,9 MW | C111: =IF(ISBLANK(InfoPro!E103),"",InfoPro!E103) -> 9.9 | D111: =IF(ISBLANK(InfoPro!F103),"",InfoPro!F103) -> Eólico Onshore | E111: =IF(ISBLANK(InfoPro!I103),"",YEAR(InfoPro!I103)-$G$3) -> 4 | F111: =IF(B111="","",VLOOKUP(D111,Tablas!$B$2:$E$13,2,FALSE)) -> 0.57 | G111: =IF(B111="","",VLOOKUP(D111,Tablas!$B$2:$G$13,6,FALSE)) -> 0 | H111: =IF(C111="","",+C111*F111*24*365) -> 49432.68 | I111: =IF(H111="","",+H111*($C$3-G111)) -> 6291.939808 | J111: 370272.8292 | K111: 331192.155 | L111: 296236.2746 | M111: 264969.8341 | N111: 237003.4295 | O111: 211988.7562 | P111: 189614.2721 | Q111: 169601.3167 | R111: 151700.6411 | S111: 135689.3033 | T111: 121367.892 | U111: 108558.043 | V111: 97100.21732 | W111: 86851.71496 | X111: 77684.8971 | Y111: =IF(X111="","",SUM(J111:X111)*$C$6) -> 1.159881452e+10 | Z111: =IF(C111=0,0,IF(Y111="","",Y111/(C111*1000))) -> 1171597.426
A112: =IF(ISBLANK(InfoPro!A104),"",InfoPro!A104) -> SC_1728_A1 | B112: =IF(ISBLANK(InfoPro!B104),"",InfoPro!B104) -> PARQUE SOLAR CAÑAHUATE II - 190 MW | C112: =IF(ISBLANK(InfoPro!E104),"",InfoPro!E104) -> 190 | D112: =IF(ISBLANK(InfoPro!F104),"",InfoPro!F104) -> Solar FV | E112: =IF(ISBLANK(InfoPro!I104),"",YEAR(InfoPro!I104)-$G$3) -> 1 | F112: =IF(B112="","",VLOOKUP(D112,Tablas!$B$2:$E$13,2,FALSE)) -> 0.26 | G112: =IF(B112="","",VLOOKUP(D112,Tablas!$B$2:$G$13,6,FALSE)) -> 0 | H112: 432744 | I112: 55080.95455 | J112: 4529644.867 | K112: 4051560.704 | L112: 3623936.229 | M112: 3241445.643 | N112: 2899325.262 | O112: 2593314.188 | P112: 2319601.242 | Q112: 2074777.497 | R112: 1855793.825 | S112: 1659922.921 | T112: 1484725.332 | U112: 1328019.08 | V112: 1187852.487 | W112: 1062479.863 | X112: 950339.7701 | Y112: 1.418913474e+11 | Z112: 746796.5651
A113: =IF(ISBLANK(InfoPro!A105),"",InfoPro!A105) -> SC_1729_A1 | B113: =IF(ISBLANK(InfoPro!B105),"",InfoPro!B105) -> TR Solar 17 | C113: =IF(ISBLANK(InfoPro!E105),"",InfoPro!E105) -> 200 | D113: =IF(ISBLANK(InfoPro!F105),"",InfoPro!F105) -> Solar FV | E113: =IF(ISBLANK(InfoPro!I105),"",YEAR(InfoPro!I105)-$G$3) -> 3 | F113: =IF(B113="","",VLOOKUP(D113,Tablas!$B$2:$E$13,2,FALSE)) -> 0.26 | G113: =IF(B113="","",VLOOKUP(D113,Tablas!$B$2:$G$13,6,FALSE)) -> 0 | H113: 455520 | I113: 57979.95216 | J113: 3814669.715 | K113: 3412048.045 | L113: 3051921.329 | M113: 2729804.408 | N113: 2441685.517 | O113: 2183976.313 | P113: 1953467.185 | Q113: 1747287.285 | R113: 1562868.77 | S113: 1397914.821 | T113: 1250371.039 | U113: 1118399.856 | V113: 1000357.653 | W113: 894774.2869 | X113: 800334.7825 | Y113: 1.194947157e+11 | Z113: 597473.5785
A114: =IF(ISBLANK(InfoPro!A106),"",InfoPro!A106) -> SC_1729_A2 | B114: =IF(ISBLANK(InfoPro!B106),"",InfoPro!B106) -> TR Solar 17 | C114: =IF(ISBLANK(InfoPro!E106),"",InfoPro!E106) -> 200 | D114: =IF(ISBLANK(InfoPro!F106),"",InfoPro!F106) -> Solar FV | E114: =IF(ISBLANK(InfoPro!I106),"",YEAR(InfoPro!I106)-$G$3) -> 3 | F114: =IF(B114="","",VLOOKUP(D114,Tablas!$B$2:$E$13,2,FALSE)) -> 0.26 | G114: =IF(B114="","",VLOOKUP(D114,Tablas!$B$2:$G$13,6,FALSE)) -> 0 | H114: 455520 | I114: 57979.95216 | J114: 3814669.715 | K114: 3412048.045 | L114: 3051921.329 | M114: 2729804.408 | N114: 2441685.517 | O114: 2183976.313 | P114: 1953467.185 | Q114: 1747287.285 | R114: 1562868.77 | S114: 1397914.821 | T114: 1250371.039 | U114: 1118399.856 | V114: 1000357.653 | W114: 894774.2869 | X114: 800334.7825 | Y114: 1.194947157e+11 | Z114: 597473.5785
A115: =IF(ISBLANK(InfoPro!A107),"",InfoPro!A107) -> SC_1746_A1 | B115: =IF(ISBLANK(InfoPro!B107),"",InfoPro!B107) -> Parque Solar Nuevo Mundo | C115: =IF(ISBLANK(InfoPro!E107),"",InfoPro!E107) -> 99.99 | D115: =IF(ISBLANK(InfoPro!F107),"",InfoPro!F107) -> Solar FV | E115: =IF(ISBLANK(InfoPro!I107),"",YEAR(InfoPro!I107)-$G$3) -> 2 | F115: =IF(B115="","",VLOOKUP(D115,Tablas!$B$2:$E$13,2,FALSE)) -> 0.26 | G115: =IF(B115="","",VLOOKUP(D115,Tablas!$B$2:$G$13,6,FALSE)) -> 0 | H115: 227737.224 | I115: 28987.07708 | J115: =IF($I115="","",(1/(1+$C$4)^(J$7+$E115))*$I115*$C$5) -> 2132187.131 | K115: 1907144.124 | L115: 1705853.42 | M115: 1525808.068 | N115: 1364765.714 | O115: 1220720.674 | P115: 1091878.957 | Q115: 976635.919 | R115: 873556.2782 | S115: 781356.2417 | T115: 698887.5149 | U115: 625123.0008 | V115: 559144.0079 | W115: 500128.8085 | X115: 447342.4047 | Y115: 6.679086632e+10 | Z115: 667975.4607
A116: =IF(ISBLANK(InfoPro!A108),"",InfoPro!A108) -> SC_1746_A2 | B116: =IF(ISBLANK(InfoPro!B108),"",InfoPro!B108) -> Parque Solar Nuevo Mundo | C116: =IF(ISBLANK(InfoPro!E108),"",InfoPro!E108) -> 99.99 | D116: =IF(ISBLANK(InfoPro!F108),"",InfoPro!F108) -> Solar FV | E116: =IF(ISBLANK(InfoPro!I108),"",YEAR(InfoPro!I108)-$G$3) -> 2 | F116: =IF(B116="","",VLOOKUP(D116,Tablas!$B$2:$E$13,2,FALSE)) -> 0.26 | G116: =IF(B116="","",VLOOKUP(D116,Tablas!$B$2:$G$13,6,FALSE)) -> 0 | H116: 227737.224 | I116: 28987.07708 | J116: 2132187.131 | K116: 1907144.124 | L116: 1705853.42 | M116: 1525808.068 | N116: 1364765.714 | O116: 1220720.674 | P116: 1091878.957 | Q116: 976635.919 | R116: 873556.2782 | S116: 781356.2417 | T116: 698887.5149 | U116: 625123.0008 | V116: 559144.0079 | W116: 500128.8085 | X116: 447342.4047 | Y116: 6.679086632e+10 | Z116: 667975.4607
A117: =IF(ISBLANK(InfoPro!A109),"",InfoPro!A109) -> SC_1752_A1 | B117: =IF(ISBLANK(InfoPro!B109),"",InfoPro!B109) -> OWF BERGANTIN 300 | C117: =IF(ISBLANK(InfoPro!E109),"",InfoPro!E109) -> 300 | D117: =IF(ISBLANK(InfoPro!F109),"",InfoPro!F109) -> Eólico Offshore | E117: =IF(ISBLANK(InfoPro!I109),"",YEAR(InfoPro!I109)-$G$3) -> 9 | F117: =IF(B117="","",VLOOKUP(D117,Tablas!$B$2:$E$13,2,FALSE)) -> 0.57 | G117: =IF(B117="","",VLOOKUP(D117,Tablas!$B$2:$G$13,6,FALSE)) -> 0 | H117: 1497960 | I117: 190664.8427 | J117: 6423901.704 | K117: 5745887.034 | L117: 5139433.84 | M117: 4596989.124 | N117: 4111797.07 | O117: 3677814.91 | P117: 3289637.666 | Q117: 2942430.828 | R117: 2631870.15 | S117: 2354087.791 | T117: 2105624.142 | U117: 1883384.743 | V117: 1684601.738 | W117: 1506799.407 | X117: 1347763.334 | Y117: 2.012290356e+11 | Z117: 670763.4519
A118: =IF(ISBLANK(InfoPro!A110),"",InfoPro!A110) -> SC_1752_A2 | B118: =IF(ISBLANK(InfoPro!B110),"",InfoPro!B110) -> OWF BERGANTIN 300 | C118: =IF(ISBLANK(InfoPro!E110),"",InfoPro!E110) -> 300 | D118: =IF(ISBLANK(InfoPro!F110),"",InfoPro!F110) -> Eólico Offshore | E118: =IF(ISBLANK(InfoPro!I110),"",YEAR(InfoPro!I110)-$G$3) -> 9 | F118: =IF(B118="","",VLOOKUP(D118,Tablas!$B$2:$E$13,2,FALSE)) -> 0.57 | G118: =IF(B118="","",VLOOKUP(D118,Tablas!$B$2:$G$13,6,FALSE)) -> 0 | H118: 1497960 | I118: 190664.8427 | J118: 6423901.704 | K118: 5745887.034 | L118: 5139433.84 | M118: 4596989.124 | N118: 4111797.07 | O118: 3677814.91 | P118: 3289637.666 | Q118: 2942430.828 | R118: 2631870.15 | S118: 2354087.791 | T118: 2105624.142 | U118: 1883384.743 | V118: 1684601.738 | W118: 1506799.407 | X118: 1347763.334 | Y118: 2.012290356e+11 | Z118: 670763.4519
A119: =IF(ISBLANK(InfoPro!A111),"",InfoPro!A111) -> SC_1756_A1 | B119: =IF(ISBLANK(InfoPro!B111),"",InfoPro!B111) -> Barlovento 4_500MW | C119: =IF(ISBLANK(InfoPro!E111),"",InfoPro!E111) -> 500 | D119: =IF(ISBLANK(InfoPro!F111),"",InfoPro!F111) -> Eólico Offshore | E119: =IF(ISBLANK(InfoPro!I111),"",YEAR(InfoPro!I111)-$G$3) -> 11 | F119: =IF(B119="","",VLOOKUP(D119,Tablas!$B$2:$E$13,2,FALSE)) -> 0.57 | G119: =IF(B119="","",VLOOKUP(D119,Tablas!$B$2:$G$13,6,FALSE)) -> 0 | H119: 2496600 | I119: 317774.7378 | J119: 8565723.067 | K119: 7661648.54 | L119: 6852995.116 | M119: 6129691.517 | N119: 5482729.443 | O119: 4904051.38 | P119: 4386450.25 | Q119: 3923479.652 | R119: 3509373.57 | S119: 3138974.571 | T119: 2807669.563 | U119: 2511332.346 | V119: 2246272.223 | W119: 2009188.035 | X119: 1797127.044 | Y119: 2.683216947e+11 | Z119: 536643.3894
A120: =IF(ISBLANK(InfoPro!A112),"",InfoPro!A112) -> SC_1765_A1 | B120: =IF(ISBLANK(InfoPro!B112),"",InfoPro!B112) -> PARQUE SOLAR CIUDAD BLANCA - 199 MW | C120: =IF(ISBLANK(InfoPro!E112),"",InfoPro!E112) -> 19.9 | D120: =IF(ISBLANK(InfoPro!F112),"",InfoPro!F112) -> Solar FV | E120: =IF(ISBLANK(InfoPro!I112),"",YEAR(InfoPro!I112)-$G$3) -> 3 | F120: =IF(B120="","",VLOOKUP(D120,Tablas!$B$2:$E$13,2,FALSE)) -> 0.26 | G120: =IF(B120="","",VLOOKUP(D120,Tablas!$B$2:$G$13,6,FALSE)) -> 0 | H120: 45324.24 | I120: 5769.00524 | J120: 379559.6366 | K120: 339498.7805 | L120: 303666.1722 | M120: 271615.5386 | N120: 242947.709 | O120: 217305.6431 | P120: 194369.9849 | Q120: 173855.0849 | R120: 155505.4426 | S120: 139092.5247 | T120: 124411.9184 | U120: 111280.7856 | V120: 99535.58645 | W120: 89030.04154 | X120: 79633.31086 | Y120: 1.188972421e+10 | Z120: 597473.5785
A121: =IF(ISBLANK(InfoPro!A113),"",InfoPro!A113) -> SC_1765_A2 | B121: =IF(ISBLANK(InfoPro!B113),"",InfoPro!B113) -> PARQUE SOLAR CIUDAD BLANCA - 199 MW | C121: =IF(ISBLANK(InfoPro!E113),"",InfoPro!E113) -> 19.9 | D121: =IF(ISBLANK(InfoPro!F113),"",InfoPro!F113) -> Solar FV | E121: =IF(ISBLANK(InfoPro!I113),"",YEAR(InfoPro!I113)-$G$3) -> 3 | F121: =IF(B121="","",VLOOKUP(D121,Tablas!$B$2:$E$13,2,FALSE)) -> 0.26 | G121: =IF(B121="","",VLOOKUP(D121,Tablas!$B$2:$G$13,6,FALSE)) -> 0 | H121: 45324.24 | I121: 5769.00524 | J121: 379559.6366 | K121: 339498.7805 | L121: 303666.1722 | M121: 271615.5386 | N121: 242947.709 | O121: 217305.6431 | P121: 194369.9849 | Q121: 173855.0849 | R121: 155505.4426 | S121: 139092.5247 | T121: 124411.9184 | U121: 111280.7856 | V121: 99535.58645 | W121: 89030.04154 | X121: 79633.31086 | Y121: 1.188972421e+10 | Z121: 597473.5785
A122: =IF(ISBLANK(InfoPro!A114),"",InfoPro!A114) -> SC_1779_A1 | B122: =IF(ISBLANK(InfoPro!B114),"",InfoPro!B114) -> Pétalo del Cesar III El Paso | C122: =IF(ISBLANK(InfoPro!E114),"",InfoPro!E114) -> 9.9 | D122: =IF(ISBLANK(InfoPro!F114),"",InfoPro!F114) -> Solar FV | E122: =IF(ISBLANK(InfoPro!I114),"",YEAR(InfoPro!I114)-$G$3) -> 3 | F122: =IF(B122="","",VLOOKUP(D122,Tablas!$B$2:$E$13,2,FALSE)) -> 0.26 | G122: =IF(B122="","",VLOOKUP(D122,Tablas!$B$2:$G$13,6,FALSE)) -> 0 | H122: 22548.24 | I122: 2870.007632 | J122: 188826.1509 | K122: 168896.3782 | L122: 151070.1058 | M122: 135125.3182 | N122: 120863.4331 | O122: 108106.8275 | P122: 96696.62564 | Q122: 86490.72061 | R122: 77362.00413 | S122: 69196.78365 | T122: 61893.36642 | U122: 55360.79286 | V122: 49517.70381 | W122: 44291.3272 | X122: 39616.57174 | Y122: 5914988427 | Z122: 597473.5785
A123: =IF(ISBLANK(InfoPro!A115),"",InfoPro!A115) -> SC_1779_A2 | B123: =IF(ISBLANK(InfoPro!B115),"",InfoPro!B115) -> Pétalo del Cesar III El Paso | C123: =IF(ISBLANK(InfoPro!E115),"",InfoPro!E115) -> 9.9 | D123: =IF(ISBLANK(InfoPro!F115),"",InfoPro!F115) -> Solar FV | E123: =IF(ISBLANK(InfoPro!I115),"",YEAR(InfoPro!I115)-$G$3) -> 3 | F123: =IF(B123="","",VLOOKUP(D123,Tablas!$B$2:$E$13,2,FALSE)) -> 0.26 | G123: =IF(B123="","",VLOOKUP(D123,Tablas!$B$2:$G$13,6,FALSE)) -> 0 | H123: 22548.24 | I123: 2870.007632 | J123: 188826.1509 | K123: 168896.3782 | L123: 151070.1058 | M123: 135125.3182 | N123: 120863.4331 | O123: 108106.8275 | P123: 96696.62564 | Q123: 86490.72061 | R123: 77362.00413 | S123: 69196.78365 | T123: 61893.36642 | U123: 55360.79286 | V123: 49517.70381 | W123: 44291.3272 | X123: 39616.57174 | Y123: 5914988427 | Z123: 597473.5785
A124: =IF(ISBLANK(InfoPro!A116),"",InfoPro!A116) -> SC_1783_A1 | B124: =IF(ISBLANK(InfoPro!B116),"",InfoPro!B116) -> Pétalo del Cesar IV La Loma | C124: =IF(ISBLANK(InfoPro!E116),"",InfoPro!E116) -> 9.9 | D124: =IF(ISBLANK(InfoPro!F116),"",InfoPro!F116) -> Solar FV | E124: =IF(ISBLANK(InfoPro!I116),"",YEAR(InfoPro!I116)-$G$3) -> 3 | F124: =IF(B124="","",VLOOKUP(D124,Tablas!$B$2:$E$13,2,FALSE)) -> 0.26 | G124: =IF(B124="","",VLOOKUP(D124,Tablas!$B$2:$G$13,6,FALSE)) -> 0 | H124: 22548.24 | I124: 2870.007632 | J124: 188826.1509 | K124: 168896.3782 | L124: 151070.1058 | M124: 135125.3182 | N124: 120863.4331 | O124: 108106.8275 | P124: 96696.62564 | Q124: 86490.72061 | R124: 77362.00413 | S124: 69196.78365 | T124: 61893.36642 | U124: 55360.79286 | V124: 49517.70381 | W124: 44291.3272 | X124: 39616.57174 | Y124: 5914988427 | Z124: 597473.5785
A125: =IF(ISBLANK(InfoPro!A117),"",InfoPro!A117) -> SC_1783_A2 | B125: =IF(ISBLANK(InfoPro!B117),"",InfoPro!B117) -> Pétalo del Cesar IV La Loma | C125: =IF(ISBLANK(InfoPro!E117),"",InfoPro!E117) -> 9.9 | D125: =IF(ISBLANK(InfoPro!F117),"",InfoPro!F117) -> Solar FV | E125: =IF(ISBLANK(InfoPro!I117),"",YEAR(InfoPro!I117)-$G$3) -> 3 | F125: =IF(B125="","",VLOOKUP(D125,Tablas!$B$2:$E$13,2,FALSE)) -> 0.26 | G125: =IF(B125="","",VLOOKUP(D125,Tablas!$B$2:$G$13,6,FALSE)) -> 0 | H125: 22548.24 | I125: 2870.007632 | J125: 188826.1509 | K125: 168896.3782 | L125: 151070.1058 | M125: 135125.3182 | N125: 120863.4331 | O125: 108106.8275 | P125: 96696.62564 | Q125: 86490.72061 | R125: 77362.00413 | S125: 69196.78365 | T125: 61893.36642 | U125: 55360.79286 | V125: 49517.70381 | W125: 44291.3272 | X125: 39616.57174 | Y125: 5914988427 | Z125: 597473.5785
A126: =IF(ISBLANK(InfoPro!A118),"",InfoPro!A118) -> SC_1788_A1 | B126: =IF(ISBLANK(InfoPro!B118),"",InfoPro!B118) -> DSE COPEY 19.9 | C126: =IF(ISBLANK(InfoPro!E118),"",InfoPro!E118) -> 19.9 | D126: =IF(ISBLANK(InfoPro!F118),"",InfoPro!F118) -> Solar FV | E126: =IF(ISBLANK(InfoPro!I118),"",YEAR(InfoPro!I118)-$G$3) -> 2 | F126: =IF(B126="","",VLOOKUP(D126,Tablas!$B$2:$E$13,2,FALSE)) -> 0.26 | G126: =IF(B126="","",VLOOKUP(D126,Tablas!$B$2:$G$13,6,FALSE)) -> 0 | H126: 45324.24 | I126: 5769.00524 | J126: 424347.6737 | K126: 379559.6366 | L126: 339498.7805 | M126: 303666.1722 | N126: 271615.5386 | O126: 242947.709 | P126: 217305.6431 | Q126: 194369.9849 | R126: 173855.0849 | S126: 155505.4426 | T126: 139092.5247 | U126: 124411.9184 | V126: 111280.7856 | W126: 99535.58645 | X126: 89030.04154 | Y126: 1.329271167e+10 | Z126: 667975.4607
A127: =IF(ISBLANK(InfoPro!A119),"",InfoPro!A119) -> SC_1811_A1 | B127: =IF(ISBLANK(InfoPro!B119),"",InfoPro!B119) -> DSE RIOHACHA | C127: =IF(ISBLANK(InfoPro!E119),"",InfoPro!E119) -> 9.9 | D127: =IF(ISBLANK(InfoPro!F119),"",InfoPro!F119) -> Solar FV | E127: =IF(ISBLANK(InfoPro!I119),"",YEAR(InfoPro!I119)-$G$3) -> 2 | F127: =IF(B127="","",VLOOKUP(D127,Tablas!$B$2:$E$13,2,FALSE)) -> 0.26 | G127: =IF(B127="","",VLOOKUP(D127,Tablas!$B$2:$G$13,6,FALSE)) -> 0 | H127: 22548.24 | I127: 2870.007632 | J127: 211107.6367 | K127: 188826.1509 | L127: 168896.3782 | M127: 151070.1058 | N127: 135125.3182 | O127: 120863.4331 | P127: 108106.8275 | Q127: 96696.62564 | R127: 86490.72061 | S127: 77362.00413 | T127: 69196.78365 | U127: 61893.36642 | V127: 55360.79286 | W127: 49517.70381 | X127: 44291.3272 | Y127: 6612957061 | Z127: 667975.4607
A128: =IF(ISBLANK(InfoPro!A120),"",InfoPro!A120) -> SC_1811_A2 | B128: =IF(ISBLANK(InfoPro!B120),"",InfoPro!B120) -> DSE RIOHACHA | C128: =IF(ISBLANK(InfoPro!E120),"",InfoPro!E120) -> 9.9 | D128: =IF(ISBLANK(InfoPro!F120),"",InfoPro!F120) -> Solar FV | E128: =IF(ISBLANK(InfoPro!I120),"",YEAR(InfoPro!I120)-$G$3) -> 2 | F128: =IF(B128="","",VLOOKUP(D128,Tablas!$B$2:$E$13,2,FALSE)) -> 0.26 | G128: =IF(B128="","",VLOOKUP(D128,Tablas!$B$2:$G$13,6,FALSE)) -> 0 | H128: 22548.24 | I128: 2870.007632 | J128: 211107.6367 | K128: 188826.1509 | L128: 168896.3782 | M128: 151070.1058 | N128: 135125.3182 | O128: 120863.4331 | P128: 108106.8275 | Q128: 96696.62564 | R128: 86490.72061 | S128: 77362.00413 | T128: 69196.78365 | U128: 61893.36642 | V128: 55360.79286 | W128: 49517.70381 | X128: 44291.3272 | Y128: 6612957061 | Z128: 667975.4607
A129: =IF(ISBLANK(InfoPro!A121),"",InfoPro!A121) -> SC_1824_A1 | B129: =IF(ISBLANK(InfoPro!B121),"",InfoPro!B121) -> PGF ROSARIO II_45MW | C129: =IF(ISBLANK(InfoPro!E121),"",InfoPro!E121) -> 45 | D129: =IF(ISBLANK(InfoPro!F121),"",InfoPro!F121) -> Solar FV | E129: =IF(ISBLANK(InfoPro!I121),"",YEAR(InfoPro!I121)-$G$3) -> 3 | F129: =IF(B129="","",VLOOKUP(D129,Tablas!$B$2:$E$13,2,FALSE)) -> 0.26 | G129: =IF(B129="","",VLOOKUP(D129,Tablas!$B$2:$G$13,6,FALSE)) -> 0 | H129: 102492 | I129: 13045.48924 | J129: 858300.6858 | K129: 767710.8102 | L129: 686682.2989 | M129: 614205.9919 | N129: 549379.2414 | O129: 491394.6703 | P129: 439530.1166 | Q129: 393139.6391 | R129: 351645.4733 | S129: 314530.8348 | T129: 281333.4837 | U129: 251639.9675 | V129: 225080.4719 | W129: 201324.2145 | X129: 180075.3261 | Y129: 2.688631103e+10 | Z129: 597473.5785
A130: =IF(ISBLANK(InfoPro!A122),"",InfoPro!A122) -> SC_1824_A2 | B130: =IF(ISBLANK(InfoPro!B122),"",InfoPro!B122) -> PGF ROSARIO II_45MW | C130: =IF(ISBLANK(InfoPro!E122),"",InfoPro!E122) -> 45 | D130: =IF(ISBLANK(InfoPro!F122),"",InfoPro!F122) -> Solar FV | E130: =IF(ISBLANK(InfoPro!I122),"",YEAR(InfoPro!I122)-$G$3) -> 3 | F130: =IF(B130="","",VLOOKUP(D130,Tablas!$B$2:$E$13,2,FALSE)) -> 0.26 | G130: =IF(B130="","",VLOOKUP(D130,Tablas!$B$2:$G$13,6,FALSE)) -> 0 | H130: 102492 | I130: 13045.48924 | J130: 858300.6858 | K130: 767710.8102 | L130: 686682.2989 | M130: 614205.9919 | N130: 549379.2414 | O130: 491394.6703 | P130: 439530.1166 | Q130: 393139.6391 | R130: 351645.4733 | S130: 314530.8348 | T130: 281333.4837 | U130: 251639.9675 | V130: 225080.4719 | W130: 201324.2145 | X130: 180075.3261 | Y130: 2.688631103e+10 | Z130: 597473.5785
A131: =IF(ISBLANK(InfoPro!A123),"",InfoPro!A123) -> SC_1827_A1 | B131: =IF(ISBLANK(InfoPro!B123),"",InfoPro!B123) -> Guatapurí Solar I 9,9 MW | C131: =IF(ISBLANK(InfoPro!E123),"",InfoPro!E123) -> 9.9 | D131: =IF(ISBLANK(InfoPro!F123),"",InfoPro!F123) -> Solar FV | E131: =IF(ISBLANK(InfoPro!I123),"",YEAR(InfoPro!I123)-$G$3) -> 2 | F131: =IF(B131="","",VLOOKUP(D131,Tablas!$B$2:$E$13,2,FALSE)) -> 0.26 | G131: =IF(B131="","",VLOOKUP(D131,Tablas!$B$2:$G$13,6,FALSE)) -> 0 | H131: 22548.24 | I131: 2870.007632 | J131: 211107.6367 | K131: 188826.1509 | L131: 168896.3782 | M131: 151070.1058 | N131: 135125.3182 | O131: 120863.4331 | P131: 108106.8275 | Q131: 96696.62564 | R131: 86490.72061 | S131: 77362.00413 | T131: 69196.78365 | U131: 61893.36642 | V131: 55360.79286 | W131: 49517.70381 | X131: 44291.3272 | Y131: 6612957061 | Z131: 667975.4607
A132: =IF(ISBLANK(InfoPro!A124),"",InfoPro!A124) -> SC_1827_A2 | B132: =IF(ISBLANK(InfoPro!B124),"",InfoPro!B124) -> Guatapurí Solar I 9,9 MW | C132: =IF(ISBLANK(InfoPro!E124),"",InfoPro!E124) -> 9.9 | D132: =IF(ISBLANK(InfoPro!F124),"",InfoPro!F124) -> Solar FV | E132: =IF(ISBLANK(InfoPro!I124),"",YEAR(InfoPro!I124)-$G$3) -> 2 | F132: =IF(B132="","",VLOOKUP(D132,Tablas!$B$2:$E$13,2,FALSE)) -> 0.26 | G132: =IF(B132="","",VLOOKUP(D132,Tablas!$B$2:$G$13,6,FALSE)) -> 0 | H132: 22548.24 | I132: 2870.007632 | J132: =IF($I132="","",(1/(1+$C$4)^(J$7+$E132))*$I132*$C$5) -> 211107.6367 | K132: 188826.1509 | L132: 168896.3782 | M132: 151070.1058 | N132: 135125.3182 | O132: 120863.4331 | P132: 108106.8275 | Q132: 96696.62564 | R132: 86490.72061 | S132: 77362.00413 | T132: 69196.78365 | U132: 61893.36642 | V132: 55360.79286 | W132: 49517.70381 | X132: 44291.3272 | Y132: 6612957061 | Z132: 667975.4607
A133: =IF(ISBLANK(InfoPro!A125),"",InfoPro!A125) -> SC_1830_A1 | B133: =IF(ISBLANK(InfoPro!B125),"",InfoPro!B125) -> Guatapurí Solar II 9,9 MW | C133: =IF(ISBLANK(InfoPro!E125),"",InfoPro!E125) -> 9.9 | D133: =IF(ISBLANK(InfoPro!F125),"",InfoPro!F125) -> Solar FV | E133: =IF(ISBLANK(InfoPro!I125),"",YEAR(InfoPro!I125)-$G$3) -> 2 | F133: =IF(B133="","",VLOOKUP(D133,Tablas!$B$2:$E$13,2,FALSE)) -> 0.26 | G133: =IF(B133="","",VLOOKUP(D133,Tablas!$B$2:$G$13,6,FALSE)) -> 0 | H133: 22548.24 | I133: 2870.007632 | J133: 211107.6367 | K133: 188826.1509 | L133: 168896.3782 | M133: 151070.1058 | N133: 135125.3182 | O133: 120863.4331 | P133: 108106.8275 | Q133: 96696.62564 | R133: 86490.72061 | S133: 77362.00413 | T133: 69196.78365 | U133: 61893.36642 | V133: 55360.79286 | W133: 49517.70381 | X133: 44291.3272 | Y133: 6612957061 | Z133: 667975.4607
A134: =IF(ISBLANK(InfoPro!A126),"",InfoPro!A126) -> SC_1830_A2 | B134: =IF(ISBLANK(InfoPro!B126),"",InfoPro!B126) -> Guatapurí Solar II 9,9 MW | C134: =IF(ISBLANK(InfoPro!E126),"",InfoPro!E126) -> 9.9 | D134: =IF(ISBLANK(InfoPro!F126),"",InfoPro!F126) -> Solar FV | E134: =IF(ISBLANK(InfoPro!I126),"",YEAR(InfoPro!I126)-$G$3) -> 2 | F134: =IF(B134="","",VLOOKUP(D134,Tablas!$B$2:$E$13,2,FALSE)) -> 0.26 | G134: =IF(B134="","",VLOOKUP(D134,Tablas!$B$2:$G$13,6,FALSE)) -> 0 | H134: 22548.24 | I134: 2870.007632 | J134: 211107.6367 | K134: 188826.1509 | L134: 168896.3782 | M134: 151070.1058 | N134: 135125.3182 | O134: 120863.4331 | P134: 108106.8275 | Q134: 96696.62564 | R134: 86490.72061 | S134: 77362.00413 | T134: 69196.78365 | U134: 61893.36642 | V134: 55360.79286 | W134: 49517.70381 | X134: 44291.3272 | Y134: 6612957061 | Z134: 667975.4607
A135: =IF(ISBLANK(InfoPro!A127),"",InfoPro!A127) -> SC_1840_A1 | B135: =IF(ISBLANK(InfoPro!B127),"",InfoPro!B127) -> Granja Solar Asturias 9,9 MW | C135: =IF(ISBLANK(InfoPro!E127),"",InfoPro!E127) -> 9.9 | D135: =IF(ISBLANK(InfoPro!F127),"",InfoPro!F127) -> Solar FV | E135: =IF(ISBLANK(InfoPro!I127),"",YEAR(InfoPro!I127)-$G$3) -> 2 | F135: =IF(B135="","",VLOOKUP(D135,Tablas!$B$2:$E$13,2,FALSE)) -> 0.26 | G135: =IF(B135="","",VLOOKUP(D135,Tablas!$B$2:$G$13,6,FALSE)) -> 0 | H135: 22548.24 | I135: 2870.007632 | J135: 211107.6367 | K135: 188826.1509 | L135: 168896.3782 | M135: 151070.1058 | N135: 135125.3182 | O135: 120863.4331 | P135: 108106.8275 | Q135: 96696.62564 | R135: 86490.72061 | S135: 77362.00413 | T135: 69196.78365 | U135: 61893.36642 | V135: 55360.79286 | W135: 49517.70381 | X135: 44291.3272 | Y135: 6612957061 | Z135: 667975.4607
A136: =IF(ISBLANK(InfoPro!A128),"",InfoPro!A128) -> SC_1840_A2 | B136: =IF(ISBLANK(InfoPro!B128),"",InfoPro!B128) -> Granja Solar Asturias 9,9 MW | C136: =IF(ISBLANK(InfoPro!E128),"",InfoPro!E128) -> 9.9 | D136: =IF(ISBLANK(InfoPro!F128),"",InfoPro!F128) -> Solar FV | E136: =IF(ISBLANK(InfoPro!I128),"",YEAR(InfoPro!I128)-$G$3) -> 2 | F136: =IF(B136="","",VLOOKUP(D136,Tablas!$B$2:$E$13,2,FALSE)) -> 0.26 | G136: =IF(B136="","",VLOOKUP(D136,Tablas!$B$2:$G$13,6,FALSE)) -> 0 | H136: 22548.24 | I136: 2870.007632 | J136: 211107.6367 | K136: 188826.1509 | L136: 168896.3782 | M136: 151070.1058 | N136: 135125.3182 | O136: 120863.4331 | P136: 108106.8275 | Q136: 96696.62564 | R136: 86490.72061 | S136: 77362.00413 | T136: 69196.78365 | U136: 61893.36642 | V136: 55360.79286 | W136: 49517.70381 | X136: 44291.3272 | Y136: 6612957061 | Z136: 667975.4607
A137: =IF(ISBLANK(InfoPro!A129),"",InfoPro!A129) -> SC_1846_A1 | B137: =IF(ISBLANK(InfoPro!B129),"",InfoPro!B129) -> PARQUE DE GENERACIÓN SOLAR CYGNUS 50 MW | C137: =IF(ISBLANK(InfoPro!E129),"",InfoPro!E129) -> 50 | D137: =IF(ISBLANK(InfoPro!F129),"",InfoPro!F129) -> Solar FV | E137: =IF(ISBLANK(InfoPro!I129),"",YEAR(InfoPro!I129)-$G$3) -> 2 | F137: =IF(B137="","",VLOOKUP(D137,Tablas!$B$2:$E$13,2,FALSE)) -> 0.26 | G137: =IF(B137="","",VLOOKUP(D137,Tablas!$B$2:$G$13,6,FALSE)) -> 0 | H137: 113880 | I137: 14494.98804 | J137: 1066200.185 | K137: 953667.4287 | L137: 853012.0114 | M137: 762980.3322 | N137: 682451.1021 | O137: 610421.3794 | P137: 545994.0781 | Q137: 488366.7962 | R137: 436821.8213 | S137: 390717.1926 | T137: 349478.7053 | U137: 312592.7597 | V137: 279599.9639 | W137: 250089.4132 | X137: 223693.5717 | Y137: 3.339877304e+10 | Z137: 667975.4607
A138: =IF(ISBLANK(InfoPro!A130),"",InfoPro!A130) -> SC_1846_A2 | B138: =IF(ISBLANK(InfoPro!B130),"",InfoPro!B130) -> PARQUE DE GENERACIÓN SOLAR CYGNUS 50 MW | C138: =IF(ISBLANK(InfoPro!E130),"",InfoPro!E130) -> 50 | D138: =IF(ISBLANK(InfoPro!F130),"",InfoPro!F130) -> Solar FV | E138: =IF(ISBLANK(InfoPro!I130),"",YEAR(InfoPro!I130)-$G$3) -> 2 | F138: =IF(B138="","",VLOOKUP(D138,Tablas!$B$2:$E$13,2,FALSE)) -> 0.26 | G138: =IF(B138="","",VLOOKUP(D138,Tablas!$B$2:$G$13,6,FALSE)) -> 0 | H138: 113880 | I138: 14494.98804 | J138: 1066200.185 | K138: 953667.4287 | L138: 853012.0114 | M138: 762980.3322 | N138: 682451.1021 | O138: 610421.3794 | P138: 545994.0781 | Q138: 488366.7962 | R138: 436821.8213 | S138: 390717.1926 | T138: 349478.7053 | U138: 312592.7597 | V138: 279599.9639 | W138: 250089.4132 | X138: 223693.5717 | Y138: 3.339877304e+10 | Z138: 667975.4607
A139: =IF(ISBLANK(InfoPro!A131),"",InfoPro!A131) -> SC_1854_A1 | B139: =IF(ISBLANK(InfoPro!B131),"",InfoPro!B131) -> CATAY 1 - 200 MW | C139: =IF(ISBLANK(InfoPro!E131),"",InfoPro!E131) -> 200 | D139: =IF(ISBLANK(InfoPro!F131),"",InfoPro!F131) -> Solar FV | E139: =IF(ISBLANK(InfoPro!I131),"",YEAR(InfoPro!I131)-$G$3) -> 4 | F139: =IF(B139="","",VLOOKUP(D139,Tablas!$B$2:$E$13,2,FALSE)) -> 0.26 | G139: =IF(B139="","",VLOOKUP(D139,Tablas!$B$2:$G$13,6,FALSE)) -> 0 | H139: 455520 | I139: 57979.95216 | J139: 3412048.045 | K139: 3051921.329 | L139: 2729804.408 | M139: 2441685.517 | N139: 2183976.313 | O139: 1953467.185 | P139: 1747287.285 | Q139: 1562868.77 | R139: 1397914.821 | S139: 1250371.039 | T139: 1118399.856 | U139: 1000357.653 | V139: 894774.2869 | W139: 800334.7825 | X139: 715862.954 | Y139: 1.068825722e+11 | Z139: 534412.8609
A140: =IF(ISBLANK(InfoPro!A132),"",InfoPro!A132) -> SC_1854_A2 | B140: =IF(ISBLANK(InfoPro!B132),"",InfoPro!B132) -> CATAY 1 - 200 MW | C140: =IF(ISBLANK(InfoPro!E132),"",InfoPro!E132) -> 200 | D140: =IF(ISBLANK(InfoPro!F132),"",InfoPro!F132) -> Solar FV | E140: =IF(ISBLANK(InfoPro!I132),"",YEAR(InfoPro!I132)-$G$3) -> 4 | F140: =IF(B140="","",VLOOKUP(D140,Tablas!$B$2:$E$13,2,FALSE)) -> 0.26 | G140: =IF(B140="","",VLOOKUP(D140,Tablas!$B$2:$G$13,6,FALSE)) -> 0 | H140: 455520 | I140: 57979.95216 | J140: 3412048.045 | K140: 3051921.329 | L140: 2729804.408 | M140: 2441685.517 | N140: 2183976.313 | O140: 1953467.185 | P140: 1747287.285 | Q140: 1562868.77 | R140: 1397914.821 | S140: 1250371.039 | T140: 1118399.856 | U140: 1000357.653 | V140: 894774.2869 | W140: 800334.7825 | X140: 715862.954 | Y140: 1.068825722e+11 | Z140: 534412.8609
A141: =IF(ISBLANK(InfoPro!A133),"",InfoPro!A133) -> SC_1856_A1 | B141: =IF(ISBLANK(InfoPro!B133),"",InfoPro!B133) -> SIERRA NEVADA DE VERANO | C141: =IF(ISBLANK(InfoPro!E133),"",InfoPro!E133) -> 99.9 | D141: =IF(ISBLANK(InfoPro!F133),"",InfoPro!F133) -> Solar FV | E141: =IF(ISBLANK(InfoPro!I133),"",YEAR(InfoPro!I133)-$G$3) -> 4 | F141: =IF(B141="","",VLOOKUP(D141,Tablas!$B$2:$E$13,2,FALSE)) -> 0.26 | G141: =IF(B141="","",VLOOKUP(D141,Tablas!$B$2:$G$13,6,FALSE)) -> 0 | H141: 227532.24 | I141: 28960.9861 | J141: 1704317.999 | K141: 1524434.704 | L141: 1363537.302 | M141: 1219621.916 | N141: 1090896.168 | O141: 975756.8588 | P141: 872769.9989 | Q141: 780652.9507 | R141: 698258.4532 | S141: 624560.3338 | T141: 558640.7279 | U141: 499678.6475 | V141: 446939.7563 | W141: 399767.2239 | X141: 357573.5455 | Y141: 5.33878448e+10 | Z141: 534412.8609
A142: =IF(ISBLANK(InfoPro!A134),"",InfoPro!A134) -> SC_1856_A2 | B142: =IF(ISBLANK(InfoPro!B134),"",InfoPro!B134) -> SIERRA NEVADA DE VERANO | C142: =IF(ISBLANK(InfoPro!E134),"",InfoPro!E134) -> 99.9 | D142: =IF(ISBLANK(InfoPro!F134),"",InfoPro!F134) -> Solar FV | E142: =IF(ISBLANK(InfoPro!I134),"",YEAR(InfoPro!I134)-$G$3) -> 4 | F142: =IF(B142="","",VLOOKUP(D142,Tablas!$B$2:$E$13,2,FALSE)) -> 0.26 | G142: =IF(B142="","",VLOOKUP(D142,Tablas!$B$2:$G$13,6,FALSE)) -> 0 | H142: 227532.24 | I142: 28960.9861 | J142: 1704317.999 | K142: 1524434.704 | L142: 1363537.302 | M142: 1219621.916 | N142: 1090896.168 | O142: 975756.8588 | P142: 872769.9989 | Q142: 780652.9507 | R142: 698258.4532 | S142: 624560.3338 | T142: 558640.7279 | U142: 499678.6475 | V142: 446939.7563 | W142: 399767.2239 | X142: 357573.5455 | Y142: 5.33878448e+10 | Z142: 534412.8609
A143: =IF(ISBLANK(InfoPro!A135),"",InfoPro!A135) -> SC_1857_A1 | B143: =IF(ISBLANK(InfoPro!B135),"",InfoPro!B135) -> MILAGROS DE VERANO | C143: =IF(ISBLANK(InfoPro!E135),"",InfoPro!E135) -> 99.9 | D143: =IF(ISBLANK(InfoPro!F135),"",InfoPro!F135) -> Solar FV | E143: =IF(ISBLANK(InfoPro!I135),"",YEAR(InfoPro!I135)-$G$3) -> 5 | F143: =IF(B143="","",VLOOKUP(D143,Tablas!$B$2:$E$13,2,FALSE)) -> 0.26 | G143: =IF(B143="","",VLOOKUP(D143,Tablas!$B$2:$G$13,6,FALSE)) -> 0 | H143: 227532.24 | I143: 28960.9861 | J143: 1524434.704 | K143: 1363537.302 | L143: 1219621.916 | M143: 1090896.168 | N143: 975756.8588 | O143: 872769.9989 | P143: 780652.9507 | Q143: 698258.4532 | R143: 624560.3338 | S143: 558640.7279 | T143: 499678.6475 | U143: 446939.7563 | V143: 399767.2239 | W143: 357573.5455 | X143: 319833.225 | Y143: 4.775299177e+10 | Z143: 478007.9256
A144: =IF(ISBLANK(InfoPro!A136),"",InfoPro!A136) -> SC_1857_A2 | B144: =IF(ISBLANK(InfoPro!B136),"",InfoPro!B136) -> MILAGROS DE VERANO | C144: =IF(ISBLANK(InfoPro!E136),"",InfoPro!E136) -> 99.9 | D144: =IF(ISBLANK(InfoPro!F136),"",InfoPro!F136) -> Solar FV | E144: =IF(ISBLANK(InfoPro!I136),"",YEAR(InfoPro!I136)-$G$3) -> 5 | F144: =IF(B144="","",VLOOKUP(D144,Tablas!$B$2:$E$13,2,FALSE)) -> 0.26 | G144: =IF(B144="","",VLOOKUP(D144,Tablas!$B$2:$G$13,6,FALSE)) -> 0 | H144: 227532.24 | I144: 28960.9861 | J144: 1524434.704 | K144: 1363537.302 | L144: 1219621.916 | M144: 1090896.168 | N144: 975756.8588 | O144: 872769.9989 | P144: 780652.9507 | Q144: 698258.4532 | R144: 624560.3338 | S144: 558640.7279 | T144: 499678.6475 | U144: 446939.7563 | V144: 399767.2239 | W144: 357573.5455 | X144: 319833.225 | Y144: 4.775299177e+10 | Z144: 478007.9256
A145: =IF(ISBLANK(InfoPro!A137),"",InfoPro!A137) -> SC_1861_A1 | B145: =IF(ISBLANK(InfoPro!B137),"",InfoPro!B137) -> Autogenerador CELSIA Solar Cenit Copey | C145: =IF(ISBLANK(InfoPro!E137),"",InfoPro!E137) -> 6.6 | D145: =IF(ISBLANK(InfoPro!F137),"",InfoPro!F137) -> Solar FV | E145: =IF(ISBLANK(InfoPro!I137),"",YEAR(InfoPro!I137)-$G$3) -> 0 | F145: =IF(B145="","",VLOOKUP(D145,Tablas!$B$2:$E$13,2,FALSE)) -> 0.26 | G145: =IF(B145="","",VLOOKUP(D145,Tablas!$B$2:$G$13,6,FALSE)) -> 0 | H145: 15032.16 | I145: 1913.338421 | J145: 175912.3345 | K145: 157345.5585 | L145: 140738.4245 | M145: 125884.1006 | N145: 112597.5855 | O145: 100713.4038 | P145: 90083.54548 | Q145: 80575.62207 | R145: 72071.21831 | S145: 64464.4171 | T145: 57660.48041 | U145: 51574.66942 | V145: 46131.1891 | W145: 41262.24428 | X145: 36907.19524 | Y145: 5510462494 | Z145: 834918.5598
A146: =IF(ISBLANK(InfoPro!A138),"",InfoPro!A138) -> SC_1876_A1 | B146: =IF(ISBLANK(InfoPro!B138),"",InfoPro!B138) -> Nevada II 250 MW | C146: =IF(ISBLANK(InfoPro!E138),"",InfoPro!E138) -> 250 | D146: =IF(ISBLANK(InfoPro!F138),"",InfoPro!F138) -> Eólico Onshore | E146: =IF(ISBLANK(InfoPro!I138),"",YEAR(InfoPro!I138)-$G$3) -> 7 | F146: =IF(B146="","",VLOOKUP(D146,Tablas!$B$2:$E$13,2,FALSE)) -> 0.57 | G146: =IF(B146="","",VLOOKUP(D146,Tablas!$B$2:$G$13,6,FALSE)) -> 0 | H146: 1248300 | I146: 158887.3689 | J146: 6691157.428 | K146: 5984935.087 | L146: 5353251.42 | M146: 4788239.195 | N146: 4282861.534 | O146: 3830824.27 | P146: 3426497.558 | Q146: 3064845.759 | R146: 2741364.721 | S146: 2452025.69 | T146: 2193225.125 | U146: 1961739.826 | V146: 1754686.785 | W146: 1569487.285 | X146: 1403834.781 | Y146: 2.096008342e+11 | Z146: 838403.3368
A147: =IF(ISBLANK(InfoPro!A139),"",InfoPro!A139) -> SC_1876_A2 | B147: =IF(ISBLANK(InfoPro!B139),"",InfoPro!B139) -> Nevada II 250 MW | C147: =IF(ISBLANK(InfoPro!E139),"",InfoPro!E139) -> 250 | D147: =IF(ISBLANK(InfoPro!F139),"",InfoPro!F139) -> Eólico Onshore | E147: =IF(ISBLANK(InfoPro!I139),"",YEAR(InfoPro!I139)-$G$3) -> 7 | F147: =IF(B147="","",VLOOKUP(D147,Tablas!$B$2:$E$13,2,FALSE)) -> 0.57 | G147: =IF(B147="","",VLOOKUP(D147,Tablas!$B$2:$G$13,6,FALSE)) -> 0 | H147: 1248300 | I147: 158887.3689 | J147: 6691157.428 | K147: 5984935.087 | L147: 5353251.42 | M147: 4788239.195 | N147: 4282861.534 | O147: 3830824.27 | P147: 3426497.558 | Q147: 3064845.759 | R147: 2741364.721 | S147: 2452025.69 | T147: 2193225.125 | U147: 1961739.826 | V147: 1754686.785 | W147: 1569487.285 | X147: 1403834.781 | Y147: 2.096008342e+11 | Z147: 838403.3368
A148: =IF(ISBLANK(InfoPro!A140),"",InfoPro!A140) -> SC_1877_A1 | B148: =IF(ISBLANK(InfoPro!B140),"",InfoPro!B140) -> Planta Solar FV Corozal 9,9MW | C148: =IF(ISBLANK(InfoPro!E140),"",InfoPro!E140) -> 9.9 | D148: =IF(ISBLANK(InfoPro!F140),"",InfoPro!F140) -> Solar FV | E148: =IF(ISBLANK(InfoPro!I140),"",YEAR(InfoPro!I140)-$G$3) -> 3 | F148: =IF(B148="","",VLOOKUP(D148,Tablas!$B$2:$E$13,2,FALSE)) -> 0.26 | G148: =IF(B148="","",VLOOKUP(D148,Tablas!$B$2:$G$13,6,FALSE)) -> 0 | H148: 22548.24 | I148: 2870.007632 | J148: 188826.1509 | K148: 168896.3782 | L148: 151070.1058 | M148: 135125.3182 | N148: 120863.4331 | O148: 108106.8275 | P148: 96696.62564 | Q148: 86490.72061 | R148: 77362.00413 | S148: 69196.78365 | T148: 61893.36642 | U148: 55360.79286 | V148: 49517.70381 | W148: 44291.3272 | X148: 39616.57174 | Y148: 5914988427 | Z148: 597473.5785
A149: =IF(ISBLANK(InfoPro!A141),"",InfoPro!A141) -> SC_1877_A2 | B149: =IF(ISBLANK(InfoPro!B141),"",InfoPro!B141) -> Planta Solar FV Corozal 9,9MW | C149: =IF(ISBLANK(InfoPro!E141),"",InfoPro!E141) -> 9.9 | D149: =IF(ISBLANK(InfoPro!F141),"",InfoPro!F141) -> Solar FV | E149: =IF(ISBLANK(InfoPro!I141),"",YEAR(InfoPro!I141)-$G$3) -> 3 | F149: =IF(B149="","",VLOOKUP(D149,Tablas!$B$2:$E$13,2,FALSE)) -> 0.26 | G149: =IF(B149="","",VLOOKUP(D149,Tablas!$B$2:$G$13,6,FALSE)) -> 0 | H149: 22548.24 | I149: 2870.007632 | J149: =IF($I149="","",(1/(1+$C$4)^(J$7+$E149))*$I149*$C$5) -> 188826.1509 | K149: 168896.3782 | L149: 151070.1058 | M149: 135125.3182 | N149: 120863.4331 | O149: 108106.8275 | P149: 96696.62564 | Q149: 86490.72061 | R149: 77362.00413 | S149: 69196.78365 | T149: 61893.36642 | U149: 55360.79286 | V149: 49517.70381 | W149: 44291.3272 | X149: 39616.57174 | Y149: 5914988427 | Z149: 597473.5785
A150: =IF(ISBLANK(InfoPro!A142),"",InfoPro!A142) -> SC_1889_A1 | B150: =IF(ISBLANK(InfoPro!B142),"",InfoPro!B142) -> La Granja | C150: =IF(ISBLANK(InfoPro!E142),"",InfoPro!E142) -> 19.9 | D150: =IF(ISBLANK(InfoPro!F142),"",InfoPro!F142) -> Solar FV | E150: =IF(ISBLANK(InfoPro!I142),"",YEAR(InfoPro!I142)-$G$3) -> 2 | F150: =IF(B150="","",VLOOKUP(D150,Tablas!$B$2:$E$13,2,FALSE)) -> 0.26 | G150: =IF(B150="","",VLOOKUP(D150,Tablas!$B$2:$G$13,6,FALSE)) -> 0 | H150: 45324.24 | I150: 5769.00524 | J150: 424347.6737 | K150: 379559.6366 | L150: 339498.7805 | M150: 303666.1722 | N150: 271615.5386 | O150: 242947.709 | P150: 217305.6431 | Q150: 194369.9849 | R150: 173855.0849 | S150: 155505.4426 | T150: 139092.5247 | U150: 124411.9184 | V150: 111280.7856 | W150: 99535.58645 | X150: 89030.04154 | Y150: 1.329271167e+10 | Z150: 667975.4607
A151: =IF(ISBLANK(InfoPro!A143),"",InfoPro!A143) -> SC_1889_A2 | B151: =IF(ISBLANK(InfoPro!B143),"",InfoPro!B143) -> La Granja | C151: =IF(ISBLANK(InfoPro!E143),"",InfoPro!E143) -> 19.9 | D151: =IF(ISBLANK(InfoPro!F143),"",InfoPro!F143) -> Solar FV | E151: =IF(ISBLANK(InfoPro!I143),"",YEAR(InfoPro!I143)-$G$3) -> 2 | F151: =IF(B151="","",VLOOKUP(D151,Tablas!$B$2:$E$13,2,FALSE)) -> 0.26 | G151: =IF(B151="","",VLOOKUP(D151,Tablas!$B$2:$G$13,6,FALSE)) -> 0 | H151: 45324.24 | I151: 5769.00524 | J151: 424347.6737 | K151: 379559.6366 | L151: 339498.7805 | M151: 303666.1722 | N151: 271615.5386 | O151: 242947.709 | P151: 217305.6431 | Q151: 194369.9849 | R151: 173855.0849 | S151: 155505.4426 | T151: 139092.5247 | U151: 124411.9184 | V151: 111280.7856 | W151: 99535.58645 | X151: 89030.04154 | Y151: 1.329271167e+10 | Z151: 667975.4607
A152: =IF(ISBLANK(InfoPro!A144),"",InfoPro!A144) -> SC_1898_A1 | B152: =IF(ISBLANK(InfoPro!B144),"",InfoPro!B144) -> Parque Eólico Fenix_70MW | C152: =IF(ISBLANK(InfoPro!E144),"",InfoPro!E144) -> 70 | D152: =IF(ISBLANK(InfoPro!F144),"",InfoPro!F144) -> Eólico Onshore | E152: =IF(ISBLANK(InfoPro!I144),"",YEAR(InfoPro!I144)-$G$3) -> 5 | F152: =IF(B152="","",VLOOKUP(D152,Tablas!$B$2:$E$13,2,FALSE)) -> 0.57 | G152: =IF(B152="","",VLOOKUP(D152,Tablas!$B$2:$G$13,6,FALSE)) -> 0 | H152: =IF(C152="","",+C152*F152*24*365) -> 349524 | I152: =IF(H152="","",+H152*($C$3-G152)) -> 44488.46329 | J152: 2341762.712 | K152: 2094599.921 | L152: 1873524.08 | M152: 1675781.824 | N152: 1498910.398 | O152: 1340706.975 | P152: 1199201.229 | Q152: 1072630.796 | R152: 959419.3163 | S152: 858156.8124 | T152: 767582.122 | U152: 686567.1932 | V152: 614103.0351 | W152: 549287.1512 | X152: 491312.2998 | Y152: =IF(X152="","",SUM(J152:X152)*$C$6) -> 7.335583167e+10 | Z152: =IF(C152=0,0,IF(Y152="","",Y152/(C152*1000))) -> 1047940.452
A153: =IF(ISBLANK(InfoPro!A145),"",InfoPro!A145) -> SC_1898_A2 | B153: =IF(ISBLANK(InfoPro!B145),"",InfoPro!B145) -> Parque Eólico Fenix_70MW | C153: =IF(ISBLANK(InfoPro!E145),"",InfoPro!E145) -> 70 | D153: =IF(ISBLANK(InfoPro!F145),"",InfoPro!F145) -> Eólico Onshore | E153: =IF(ISBLANK(InfoPro!I145),"",YEAR(InfoPro!I145)-$G$3) -> 5 | F153: =IF(B153="","",VLOOKUP(D153,Tablas!$B$2:$E$13,2,FALSE)) -> 0.57 | G153: =IF(B153="","",VLOOKUP(D153,Tablas!$B$2:$G$13,6,FALSE)) -> 0 | H153: 349524 | I153: 44488.46329 | J153: 2341762.712 | K153: 2094599.921 | L153: 1873524.08 | M153: 1675781.824 | N153: 1498910.398 | O153: 1340706.975 | P153: 1199201.229 | Q153: 1072630.796 | R153: 959419.3163 | S153: 858156.8124 | T153: 767582.122 | U153: 686567.1932 | V153: 614103.0351 | W153: 549287.1512 | X153: 491312.2998 | Y153: 7.335583167e+10 | Z153: 1047940.452
A154: =IF(ISBLANK(InfoPro!A146),"",InfoPro!A146) -> SC_1904_A1 | B154: =IF(ISBLANK(InfoPro!B146),"",InfoPro!B146) -> Parque Solar Fotovoltaico Potreritos | C154: =IF(ISBLANK(InfoPro!E146),"",InfoPro!E146) -> 168 | D154: =IF(ISBLANK(InfoPro!F146),"",InfoPro!F146) -> Solar FV | E154: =IF(ISBLANK(InfoPro!I146),"",YEAR(InfoPro!I146)-$G$3) -> 1 | F154: =IF(B154="","",VLOOKUP(D154,Tablas!$B$2:$E$13,2,FALSE)) -> 0.26 | G154: =IF(B154="","",VLOOKUP(D154,Tablas!$B$2:$G$13,6,FALSE)) -> 0 | H154: 382636.8 | I154: 48703.15981 | J154: 4005159.672 | K154: 3582432.623 | L154: 3204322.56 | M154: 2866120.358 | N154: 2563613.916 | O154: 2293035.703 | P154: 2051015.835 | Q154: 1834540.103 | R154: 1640912.435 | S154: 1467721.319 | T154: 1312809.767 | U154: 1174248.45 | V154: 1050311.673 | W154: 939455.8788 | X154: 840300.4283 | Y154: 1.254618229e+11 | Z154: 746796.5651
A155: =IF(ISBLANK(InfoPro!A147),"",InfoPro!A147) -> SC_1904_A2 | B155: =IF(ISBLANK(InfoPro!B147),"",InfoPro!B147) -> Parque Solar Fotovoltaico Potreritos | C155: =IF(ISBLANK(InfoPro!E147),"",InfoPro!E147) -> 168 | D155: =IF(ISBLANK(InfoPro!F147),"",InfoPro!F147) -> Solar FV | E155: =IF(ISBLANK(InfoPro!I147),"",YEAR(InfoPro!I147)-$G$3) -> 1 | F155: =IF(B155="","",VLOOKUP(D155,Tablas!$B$2:$E$13,2,FALSE)) -> 0.26 | G155: =IF(B155="","",VLOOKUP(D155,Tablas!$B$2:$G$13,6,FALSE)) -> 0 | H155: 382636.8 | I155: 48703.15981 | J155: 4005159.672 | K155: 3582432.623 | L155: 3204322.56 | M155: 2866120.358 | N155: 2563613.916 | O155: 2293035.703 | P155: 2051015.835 | Q155: 1834540.103 | R155: 1640912.435 | S155: 1467721.319 | T155: 1312809.767 | U155: 1174248.45 | V155: 1050311.673 | W155: 939455.8788 | X155: 840300.4283 | Y155: 1.254618229e+11 | Z155: 746796.5651
A156: =IF(ISBLANK(InfoPro!A148),"",InfoPro!A148) -> SC_1905_A1 | B156: =IF(ISBLANK(InfoPro!B148),"",InfoPro!B148) -> Parque Solar Valle del Cesar | C156: =IF(ISBLANK(InfoPro!E148),"",InfoPro!E148) -> 50 | D156: =IF(ISBLANK(InfoPro!F148),"",InfoPro!F148) -> Solar FV | E156: =IF(ISBLANK(InfoPro!I148),"",YEAR(InfoPro!I148)-$G$3) -> 3 | F156: =IF(B156="","",VLOOKUP(D156,Tablas!$B$2:$E$13,2,FALSE)) -> 0.26 | G156: =IF(B156="","",VLOOKUP(D156,Tablas!$B$2:$G$13,6,FALSE)) -> 0 | H156: 113880 | I156: 14494.98804 | J156: 953667.4287 | K156: 853012.0114 | L156: 762980.3322 | M156: 682451.1021 | N156: 610421.3794 | O156: 545994.0781 | P156: 488366.7962 | Q156: 436821.8213 | R156: 390717.1926 | S156: 349478.7053 | T156: 312592.7597 | U156: 279599.9639 | V156: 250089.4132 | W156: 223693.5717 | X156: 200083.6956 | Y156: 2.987367892e+10 | Z156: 597473.5785
A157: =IF(ISBLANK(InfoPro!A149),"",InfoPro!A149) -> SC_1905_A2 | B157: =IF(ISBLANK(InfoPro!B149),"",InfoPro!B149) -> Parque Solar Valle del Cesar | C157: =IF(ISBLANK(InfoPro!E149),"",InfoPro!E149) -> 50 | D157: =IF(ISBLANK(InfoPro!F149),"",InfoPro!F149) -> Solar FV | E157: =IF(ISBLANK(InfoPro!I149),"",YEAR(InfoPro!I149)-$G$3) -> 3 | F157: =IF(B157="","",VLOOKUP(D157,Tablas!$B$2:$E$13,2,FALSE)) -> 0.26 | G157: =IF(B157="","",VLOOKUP(D157,Tablas!$B$2:$G$13,6,FALSE)) -> 0 | H157: 113880 | I157: 14494.98804 | J157: 953667.4287 | K157: 853012.0114 | L157: 762980.3322 | M157: 682451.1021 | N157: 610421.3794 | O157: 545994.0781 | P157: 488366.7962 | Q157: 436821.8213 | R157: 390717.1926 | S157: 349478.7053 | T157: 312592.7597 | U157: 279599.9639 | V157: 250089.4132 | W157: 223693.5717 | X157: 200083.6956 | Y157: 2.987367892e+10 | Z157: 597473.5785
A158: =IF(ISBLANK(InfoPro!A150),"",InfoPro!A150) -> SC_1908_A1 | B158: =IF(ISBLANK(InfoPro!B150),"",InfoPro!B150) -> Corocoro 500 MW | C158: =IF(ISBLANK(InfoPro!E150),"",InfoPro!E150) -> 500 | D158: =IF(ISBLANK(InfoPro!F150),"",InfoPro!F150) -> Solar FV | E158: =IF(ISBLANK(InfoPro!I150),"",YEAR(InfoPro!I150)-$G$3) -> 3 | F158: =IF(B158="","",VLOOKUP(D158,Tablas!$B$2:$E$13,2,FALSE)) -> 0.26 | G158: =IF(B158="","",VLOOKUP(D158,Tablas!$B$2:$G$13,6,FALSE)) -> 0 | H158: 1138800 | I158: 144949.8804 | J158: 9536674.287 | K158: 8530120.114 | L158: 7629803.322 | M158: 6824511.021 | N158: 6104213.794 | O158: 5459940.781 | P158: 4883667.962 | Q158: 4368218.213 | R158: 3907171.926 | S158: 3494787.053 | T158: 3125927.597 | U158: 2795999.639 | V158: 2500894.132 | W158: 2236935.717 | X158: 2000836.956 | Y158: 2.987367892e+11 | Z158: 597473.5785
A159: =IF(ISBLANK(InfoPro!A151),"",InfoPro!A151) -> SC_1908_A2 | B159: =IF(ISBLANK(InfoPro!B151),"",InfoPro!B151) -> Corocoro 500 MW | C159: =IF(ISBLANK(InfoPro!E151),"",InfoPro!E151) -> 500 | D159: =IF(ISBLANK(InfoPro!F151),"",InfoPro!F151) -> Solar FV | E159: =IF(ISBLANK(InfoPro!I151),"",YEAR(InfoPro!I151)-$G$3) -> 3 | F159: =IF(B159="","",VLOOKUP(D159,Tablas!$B$2:$E$13,2,FALSE)) -> 0.26 | G159: =IF(B159="","",VLOOKUP(D159,Tablas!$B$2:$G$13,6,FALSE)) -> 0 | H159: 1138800 | I159: 144949.8804 | J159: 9536674.287 | K159: 8530120.114 | L159: 7629803.322 | M159: 6824511.021 | N159: 6104213.794 | O159: 5459940.781 | P159: 4883667.962 | Q159: 4368218.213 | R159: 3907171.926 | S159: 3494787.053 | T159: 3125927.597 | U159: 2795999.639 | V159: 2500894.132 | W159: 2236935.717 | X159: 2000836.956 | Y159: 2.987367892e+11 | Z159: 597473.5785
A160: =IF(ISBLANK(InfoPro!A152),"",InfoPro!A152) -> SC_1912_A1 | B160: =IF(ISBLANK(InfoPro!B152),"",InfoPro!B152) -> Draco de 22.5 MW (entrega 19,9 MW) | C160: =IF(ISBLANK(InfoPro!E152),"",InfoPro!E152) -> 19.9 | D160: =IF(ISBLANK(InfoPro!F152),"",InfoPro!F152) -> Solar FV | E160: =IF(ISBLANK(InfoPro!I152),"",YEAR(InfoPro!I152)-$G$3) -> 2 | F160: =IF(B160="","",VLOOKUP(D160,Tablas!$B$2:$E$13,2,FALSE)) -> 0.26 | G160: =IF(B160="","",VLOOKUP(D160,Tablas!$B$2:$G$13,6,FALSE)) -> 0 | H160: 45324.24 | I160: 5769.00524 | J160: 424347.6737 | K160: 379559.6366 | L160: 339498.7805 | M160: 303666.1722 | N160: 271615.5386 | O160: 242947.709 | P160: 217305.6431 | Q160: 194369.9849 | R160: 173855.0849 | S160: 155505.4426 | T160: 139092.5247 | U160: 124411.9184 | V160: 111280.7856 | W160: 99535.58645 | X160: 89030.04154 | Y160: 1.329271167e+10 | Z160: 667975.4607
A161: =IF(ISBLANK(InfoPro!A153),"",InfoPro!A153) -> SC_1912_A2 | B161: =IF(ISBLANK(InfoPro!B153),"",InfoPro!B153) -> Draco de 22.5 MW (entrega 19,9 MW) | C161: =IF(ISBLANK(InfoPro!E153),"",InfoPro!E153) -> 19.9 | D161: =IF(ISBLANK(InfoPro!F153),"",InfoPro!F153) -> Solar FV | E161: =IF(ISBLANK(InfoPro!I153),"",YEAR(InfoPro!I153)-$G$3) -> 2 | F161: =IF(B161="","",VLOOKUP(D161,Tablas!$B$2:$E$13,2,FALSE)) -> 0.26 | G161: =IF(B161="","",VLOOKUP(D161,Tablas!$B$2:$G$13,6,FALSE)) -> 0 | H161: 45324.24 | I161: 5769.00524 | J161: 424347.6737 | K161: 379559.6366 | L161: 339498.7805 | M161: 303666.1722 | N161: 271615.5386 | O161: 242947.709 | P161: 217305.6431 | Q161: 194369.9849 | R161: 173855.0849 | S161: 155505.4426 | T161: 139092.5247 | U161: 124411.9184 | V161: 111280.7856 | W161: 99535.58645 | X161: 89030.04154 | Y161: 1.329271167e+10 | Z161: 667975.4607
A162: =IF(ISBLANK(InfoPro!A154),"",InfoPro!A154) -> SC_1920_A1 | B162: =IF(ISBLANK(InfoPro!B154),"",InfoPro!B154) -> Parque Solar TERRɅ II 19.9 MW | C162: =IF(ISBLANK(InfoPro!E154),"",InfoPro!E154) -> 19.9 | D162: =IF(ISBLANK(InfoPro!F154),"",InfoPro!F154) -> Solar FV | E162: =IF(ISBLANK(InfoPro!I154),"",YEAR(InfoPro!I154)-$G$3) -> 1 | F162: =IF(B162="","",VLOOKUP(D162,Tablas!$B$2:$E$13,2,FALSE)) -> 0.26 | G162: =IF(B162="","",VLOOKUP(D162,Tablas!$B$2:$G$13,6,FALSE)) -> 0 | H162: 45324.24 | I162: 5769.00524 | J162: 474420.6992 | K162: 424347.6737 | L162: 379559.6366 | M162: 339498.7805 | N162: 303666.1722 | O162: 271615.5386 | P162: 242947.709 | Q162: 217305.6431 | R162: 194369.9849 | S162: 173855.0849 | T162: 155505.4426 | U162: 139092.5247 | V162: 124411.9184 | W162: 111280.7856 | X162: 99535.58645 | Y162: 1.486125165e+10 | Z162: 746796.5651
A163: =IF(ISBLANK(InfoPro!A155),"",InfoPro!A155) -> SC_1920_A2 | B163: =IF(ISBLANK(InfoPro!B155),"",InfoPro!B155) -> Parque Solar TERRɅ II 19.9 MW | C163: =IF(ISBLANK(InfoPro!E155),"",InfoPro!E155) -> 19.9 | D163: =IF(ISBLANK(InfoPro!F155),"",InfoPro!F155) -> Solar FV | E163: =IF(ISBLANK(InfoPro!I155),"",YEAR(InfoPro!I155)-$G$3) -> 1 | F163: =IF(B163="","",VLOOKUP(D163,Tablas!$B$2:$E$13,2,FALSE)) -> 0.26 | G163: =IF(B163="","",VLOOKUP(D163,Tablas!$B$2:$G$13,6,FALSE)) -> 0 | H163: 45324.24 | I163: 5769.00524 | J163: 474420.6992 | K163: 424347.6737 | L163: 379559.6366 | M163: 339498.7805 | N163: 303666.1722 | O163: 271615.5386 | P163: 242947.709 | Q163: 217305.6431 | R163: 194369.9849 | S163: 173855.0849 | T163: 155505.4426 | U163: 139092.5247 | V163: 124411.9184 | W163: 111280.7856 | X163: 99535.58645 | Y163: 1.486125165e+10 | Z163: 746796.5651
A164: =IF(ISBLANK(InfoPro!A156),"",InfoPro!A156) -> SC_1928_A1 | B164: =IF(ISBLANK(InfoPro!B156),"",InfoPro!B156) -> Jacamará 500 MW | C164: =IF(ISBLANK(InfoPro!E156),"",InfoPro!E156) -> 500 | D164: =IF(ISBLANK(InfoPro!F156),"",InfoPro!F156) -> Solar FV | E164: =IF(ISBLANK(InfoPro!I156),"",YEAR(InfoPro!I156)-$G$3) -> 3 | F164: =IF(B164="","",VLOOKUP(D164,Tablas!$B$2:$E$13,2,FALSE)) -> 0.26 | G164: =IF(B164="","",VLOOKUP(D164,Tablas!$B$2:$G$13,6,FALSE)) -> 0 | H164: 1138800 | I164: 144949.8804 | J164: 9536674.287 | K164: 8530120.114 | L164: 7629803.322 | M164: 6824511.021 | N164: 6104213.794 | O164: 5459940.781 | P164: 4883667.962 | Q164: 4368218.213 | R164: 3907171.926 | S164: 3494787.053 | T164: 3125927.597 | U164: 2795999.639 | V164: 2500894.132 | W164: 2236935.717 | X164: 2000836.956 | Y164: 2.987367892e+11 | Z164: 597473.5785
A165: =IF(ISBLANK(InfoPro!A157),"",InfoPro!A157) -> SC_1928_A2 | B165: =IF(ISBLANK(InfoPro!B157),"",InfoPro!B157) -> Jacamará 500 MW | C165: =IF(ISBLANK(InfoPro!E157),"",InfoPro!E157) -> 500 | D165: =IF(ISBLANK(InfoPro!F157),"",InfoPro!F157) -> Solar FV | E165: =IF(ISBLANK(InfoPro!I157),"",YEAR(InfoPro!I157)-$G$3) -> 3 | F165: =IF(B165="","",VLOOKUP(D165,Tablas!$B$2:$E$13,2,FALSE)) -> 0.26 | G165: =IF(B165="","",VLOOKUP(D165,Tablas!$B$2:$G$13,6,FALSE)) -> 0 | H165: 1138800 | I165: 144949.8804 | J165: =IF($I165="","",(1/(1+$C$4)^(J$7+$E165))*$I165*$C$5) -> 9536674.287 | K165: 8530120.114 | L165: 7629803.322 | M165: 6824511.021 | N165: 6104213.794 | O165: 5459940.781 | P165: 4883667.962 | Q165: 4368218.213 | R165: 3907171.926 | S165: 3494787.053 | T165: 3125927.597 | U165: 2795999.639 | V165: 2500894.132 | W165: 2236935.717 | X165: 2000836.956 | Y165: 2.987367892e+11 | Z165: 597473.5785
A166: =IF(ISBLANK(InfoPro!A158),"",InfoPro!A158) -> SC_1944_A1 | B166: =IF(ISBLANK(InfoPro!B158),"",InfoPro!B158) -> MANANTIALES DE VERANO de 99.9 MW | C166: =IF(ISBLANK(InfoPro!E158),"",InfoPro!E158) -> 99.9 | D166: =IF(ISBLANK(InfoPro!F158),"",InfoPro!F158) -> Solar FV | E166: =IF(ISBLANK(InfoPro!I158),"",YEAR(InfoPro!I158)-$G$3) -> 3 | F166: =IF(B166="","",VLOOKUP(D166,Tablas!$B$2:$E$13,2,FALSE)) -> 0.26 | G166: =IF(B166="","",VLOOKUP(D166,Tablas!$B$2:$G$13,6,FALSE)) -> 0 | H166: 227532.24 | I166: 28960.9861 | J166: 1905427.523 | K166: 1704317.999 | L166: 1524434.704 | M166: 1363537.302 | N166: 1219621.916 | O166: 1090896.168 | P166: 975756.8588 | Q166: 872769.9989 | R166: 780652.9507 | S166: 698258.4532 | T166: 624560.3338 | U166: 558640.7279 | V166: 499678.6475 | W166: 446939.7563 | X166: 399767.2239 | Y166: 5.968761049e+10 | Z166: 597473.5785
A167: =IF(ISBLANK(InfoPro!A159),"",InfoPro!A159) -> SC_1944_A2 | B167: =IF(ISBLANK(InfoPro!B159),"",InfoPro!B159) -> MANANTIALES DE VERANO de 99.9 MW | C167: =IF(ISBLANK(InfoPro!E159),"",InfoPro!E159) -> 99.9 | D167: =IF(ISBLANK(InfoPro!F159),"",InfoPro!F159) -> Solar FV | E167: =IF(ISBLANK(InfoPro!I159),"",YEAR(InfoPro!I159)-$G$3) -> 3 | F167: =IF(B167="","",VLOOKUP(D167,Tablas!$B$2:$E$13,2,FALSE)) -> 0.26 | G167: =IF(B167="","",VLOOKUP(D167,Tablas!$B$2:$G$13,6,FALSE)) -> 0 | H167: 227532.24 | I167: 28960.9861 | J167: 1905427.523 | K167: 1704317.999 | L167: 1524434.704 | M167: 1363537.302 | N167: 1219621.916 | O167: 1090896.168 | P167: 975756.8588 | Q167: 872769.9989 | R167: 780652.9507 | S167: 698258.4532 | T167: 624560.3338 | U167: 558640.7279 | V167: 499678.6475 | W167: 446939.7563 | X167: 399767.2239 | Y167: 5.968761049e+10 | Z167: 597473.5785
A168: =IF(ISBLANK(InfoPro!A160),"",InfoPro!A160) -> SC_1948_A1 | B168: =IF(ISBLANK(InfoPro!B160),"",InfoPro!B160) -> PGF ROSARIO I | C168: =IF(ISBLANK(InfoPro!E160),"",InfoPro!E160) -> 95 | D168: =IF(ISBLANK(InfoPro!F160),"",InfoPro!F160) -> Solar FV | E168: =IF(ISBLANK(InfoPro!I160),"",YEAR(InfoPro!I160)-$G$3) -> 3 | F168: =IF(B168="","",VLOOKUP(D168,Tablas!$B$2:$E$13,2,FALSE)) -> 0.26 | G168: =IF(B168="","",VLOOKUP(D168,Tablas!$B$2:$G$13,6,FALSE)) -> 0 | H168: 216372 | I168: 27540.47728 | J168: 1811968.115 | K168: 1620722.822 | L168: 1449662.631 | M168: 1296657.094 | N168: 1159800.621 | O168: 1037388.748 | P168: 927896.9127 | Q168: 829961.4604 | R168: 742362.6658 | S168: 664009.5401 | T168: 593926.2434 | U168: 531239.9315 | V168: 475169.885 | W168: 425017.7863 | X168: 380159.0217 | Y168: 5.675998995e+10 | Z168: 597473.5785
A169: =IF(ISBLANK(InfoPro!A161),"",InfoPro!A161) -> SC_1948_A2 | B169: =IF(ISBLANK(InfoPro!B161),"",InfoPro!B161) -> PGF ROSARIO I | C169: =IF(ISBLANK(InfoPro!E161),"",InfoPro!E161) -> 95 | D169: =IF(ISBLANK(InfoPro!F161),"",InfoPro!F161) -> Solar FV | E169: =IF(ISBLANK(InfoPro!I161),"",YEAR(InfoPro!I161)-$G$3) -> 3 | F169: =IF(B169="","",VLOOKUP(D169,Tablas!$B$2:$E$13,2,FALSE)) -> 0.26 | G169: =IF(B169="","",VLOOKUP(D169,Tablas!$B$2:$G$13,6,FALSE)) -> 0 | H169: 216372 | I169: 27540.47728 | J169: 1811968.115 | K169: 1620722.822 | L169: 1449662.631 | M169: 1296657.094 | N169: 1159800.621 | O169: 1037388.748 | P169: 927896.9127 | Q169: 829961.4604 | R169: 742362.6658 | S169: 664009.5401 | T169: 593926.2434 | U169: 531239.9315 | V169: 475169.885 | W169: 425017.7863 | X169: 380159.0217 | Y169: 5.675998995e+10 | Z169: 597473.5785
A170: =IF(ISBLANK(InfoPro!A162),"",InfoPro!A162) -> SC_1967_A1 | B170: =IF(ISBLANK(InfoPro!B162),"",InfoPro!B162) -> Solar Valledupar 4 | C170: =IF(ISBLANK(InfoPro!E162),"",InfoPro!E162) -> 19.9 | D170: =IF(ISBLANK(InfoPro!F162),"",InfoPro!F162) -> Solar FV | E170: =IF(ISBLANK(InfoPro!I162),"",YEAR(InfoPro!I162)-$G$3) -> 2 | F170: =IF(B170="","",VLOOKUP(D170,Tablas!$B$2:$E$13,2,FALSE)) -> 0.26 | G170: =IF(B170="","",VLOOKUP(D170,Tablas!$B$2:$G$13,6,FALSE)) -> 0 | H170: 45324.24 | I170: 5769.00524 | J170: 424347.6737 | K170: 379559.6366 | L170: 339498.7805 | M170: 303666.1722 | N170: 271615.5386 | O170: 242947.709 | P170: 217305.6431 | Q170: 194369.9849 | R170: 173855.0849 | S170: 155505.4426 | T170: 139092.5247 | U170: 124411.9184 | V170: 111280.7856 | W170: 99535.58645 | X170: 89030.04154 | Y170: 1.329271167e+10 | Z170: 667975.4607
A171: =IF(ISBLANK(InfoPro!A163),"",InfoPro!A163) -> SC_1967_A2 | B171: =IF(ISBLANK(InfoPro!B163),"",InfoPro!B163) -> Solar Valledupar 4 | C171: =IF(ISBLANK(InfoPro!E163),"",InfoPro!E163) -> 19.9 | D171: =IF(ISBLANK(InfoPro!F163),"",InfoPro!F163) -> Solar FV | E171: =IF(ISBLANK(InfoPro!I163),"",YEAR(InfoPro!I163)-$G$3) -> 2 | F171: =IF(B171="","",VLOOKUP(D171,Tablas!$B$2:$E$13,2,FALSE)) -> 0.26 | G171: =IF(B171="","",VLOOKUP(D171,Tablas!$B$2:$G$13,6,FALSE)) -> 0 | H171: 45324.24 | I171: 5769.00524 | J171: 424347.6737 | K171: 379559.6366 | L171: 339498.7805 | M171: 303666.1722 | N171: 271615.5386 | O171: 242947.709 | P171: 217305.6431 | Q171: 194369.9849 | R171: 173855.0849 | S171: 155505.4426 | T171: 139092.5247 | U171: 124411.9184 | V171: 111280.7856 | W171: 99535.58645 | X171: 89030.04154 | Y171: 1.329271167e+10 | Z171: 667975.4607
A172: =IF(ISBLANK(InfoPro!A164),"",InfoPro!A164) -> SC_1968_A1 | B172: =IF(ISBLANK(InfoPro!B164),"",InfoPro!B164) -> Solar Valledupar 5 | C172: =IF(ISBLANK(InfoPro!E164),"",InfoPro!E164) -> 19.9 | D172: =IF(ISBLANK(InfoPro!F164),"",InfoPro!F164) -> Solar FV | E172: =IF(ISBLANK(InfoPro!I164),"",YEAR(InfoPro!I164)-$G$3) -> 2 | F172: =IF(B172="","",VLOOKUP(D172,Tablas!$B$2:$E$13,2,FALSE)) -> 0.26 | G172: =IF(B172="","",VLOOKUP(D172,Tablas!$B$2:$G$13,6,FALSE)) -> 0 | H172: 45324.24 | I172: 5769.00524 | J172: 424347.6737 | K172: 379559.6366 | L172: 339498.7805 | M172: 303666.1722 | N172: 271615.5386 | O172: 242947.709 | P172: 217305.6431 | Q172: 194369.9849 | R172: 173855.0849 | S172: 155505.4426 | T172: 139092.5247 | U172: 124411.9184 | V172: 111280.7856 | W172: 99535.58645 | X172: 89030.04154 | Y172: 1.329271167e+10 | Z172: 667975.4607
A173: =IF(ISBLANK(InfoPro!A165),"",InfoPro!A165) -> SC_1968_A2 | B173: =IF(ISBLANK(InfoPro!B165),"",InfoPro!B165) -> Solar Valledupar 5 | C173: =IF(ISBLANK(InfoPro!E165),"",InfoPro!E165) -> 19.9 | D173: =IF(ISBLANK(InfoPro!F165),"",InfoPro!F165) -> Solar FV | E173: =IF(ISBLANK(InfoPro!I165),"",YEAR(InfoPro!I165)-$G$3) -> 2 | F173: =IF(B173="","",VLOOKUP(D173,Tablas!$B$2:$E$13,2,FALSE)) -> 0.26 | G173: =IF(B173="","",VLOOKUP(D173,Tablas!$B$2:$G$13,6,FALSE)) -> 0 | H173: 45324.24 | I173: 5769.00524 | J173: 424347.6737 | K173: 379559.6366 | L173: 339498.7805 | M173: 303666.1722 | N173: 271615.5386 | O173: 242947.709 | P173: 217305.6431 | Q173: 194369.9849 | R173: 173855.0849 | S173: 155505.4426 | T173: 139092.5247 | U173: 124411.9184 | V173: 111280.7856 | W173: 99535.58645 | X173: 89030.04154 | Y173: 1.329271167e+10 | Z173: 667975.4607
A174: =IF(ISBLANK(InfoPro!A166),"",InfoPro!A166) -> SC_1978_A1 | B174: =IF(ISBLANK(InfoPro!B166),"",InfoPro!B166) -> Solar El Copey | C174: =IF(ISBLANK(InfoPro!E166),"",InfoPro!E166) -> 230 | D174: =IF(ISBLANK(InfoPro!F166),"",InfoPro!F166) -> Solar FV | E174: =IF(ISBLANK(InfoPro!I166),"",YEAR(InfoPro!I166)-$G$3) -> 2 | F174: =IF(B174="","",VLOOKUP(D174,Tablas!$B$2:$E$13,2,FALSE)) -> 0.26 | G174: =IF(B174="","",VLOOKUP(D174,Tablas!$B$2:$G$13,6,FALSE)) -> 0 | H174: 523848 | I174: 66676.94498 | J174: 4904520.852 | K174: 4386870.172 | L174: 3923855.252 | M174: 3509709.528 | N174: 3139275.07 | O174: 2807938.345 | P174: 2511572.759 | Q174: 2246487.262 | R174: 2009380.378 | S174: 1797299.086 | T174: 1607602.044 | U174: 1437926.695 | V174: 1286159.834 | W174: 1150411.301 | X174: 1028990.43 | Y174: 1.53634356e+11 | Z174: 667975.4607
A175: =IF(ISBLANK(InfoPro!A167),"",InfoPro!A167) -> SC_1978_A2 | B175: =IF(ISBLANK(InfoPro!B167),"",InfoPro!B167) -> Solar El Copey | C175: =IF(ISBLANK(InfoPro!E167),"",InfoPro!E167) -> 230 | D175: =IF(ISBLANK(InfoPro!F167),"",InfoPro!F167) -> Solar FV | E175: =IF(ISBLANK(InfoPro!I167),"",YEAR(InfoPro!I167)-$G$3) -> 2 | F175: =IF(B175="","",VLOOKUP(D175,Tablas!$B$2:$E$13,2,FALSE)) -> 0.26 | G175: =IF(B175="","",VLOOKUP(D175,Tablas!$B$2:$G$13,6,FALSE)) -> 0 | H175: 523848 | I175: 66676.94498 | J175: 4904520.852 | K175: 4386870.172 | L175: 3923855.252 | M175: 3509709.528 | N175: 3139275.07 | O175: 2807938.345 | P175: 2511572.759 | Q175: 2246487.262 | R175: 2009380.378 | S175: 1797299.086 | T175: 1607602.044 | U175: 1437926.695 | V175: 1286159.834 | W175: 1150411.301 | X175: 1028990.43 | Y175: 1.53634356e+11 | Z175: 667975.4607
A176: =IF(ISBLANK(InfoPro!A168),"",InfoPro!A168) -> SC_1981_A1 | B176: =IF(ISBLANK(InfoPro!B168),"",InfoPro!B168) -> Solar Valledupar 2 | C176: =IF(ISBLANK(InfoPro!E168),"",InfoPro!E168) -> 19.9 | D176: =IF(ISBLANK(InfoPro!F168),"",InfoPro!F168) -> Solar FV | E176: =IF(ISBLANK(InfoPro!I168),"",YEAR(InfoPro!I168)-$G$3) -> 0 | F176: =IF(B176="","",VLOOKUP(D176,Tablas!$B$2:$E$13,2,FALSE)) -> 0.26 | G176: =IF(B176="","",VLOOKUP(D176,Tablas!$B$2:$G$13,6,FALSE)) -> 0 | H176: 45324.24 | I176: 5769.00524 | J176: 530402.3418 | K176: 474420.6992 | L176: 424347.6737 | M176: 379559.6366 | N176: 339498.7805 | O176: 303666.1722 | P176: 271615.5386 | Q176: 242947.709 | R176: 217305.6431 | S176: 194369.9849 | T176: 173855.0849 | U176: 155505.4426 | V176: 139092.5247 | W176: 124411.9184 | X176: 111280.7856 | Y176: 1.661487934e+10 | Z176: 834918.5598
A177: =IF(ISBLANK(InfoPro!A169),"",InfoPro!A169) -> SC_1981_A2 | B177: =IF(ISBLANK(InfoPro!B169),"",InfoPro!B169) -> Solar Valledupar 2 | C177: =IF(ISBLANK(InfoPro!E169),"",InfoPro!E169) -> 19.9 | D177: =IF(ISBLANK(InfoPro!F169),"",InfoPro!F169) -> Solar FV | E177: =IF(ISBLANK(InfoPro!I169),"",YEAR(InfoPro!I169)-$G$3) -> 0 | F177: =IF(B177="","",VLOOKUP(D177,Tablas!$B$2:$E$13,2,FALSE)) -> 0.26 | G177: =IF(B177="","",VLOOKUP(D177,Tablas!$B$2:$G$13,6,FALSE)) -> 0 | H177: 45324.24 | I177: 5769.00524 | J177: 530402.3418 | K177: 474420.6992 | L177: 424347.6737 | M177: 379559.6366 | N177: 339498.7805 | O177: 303666.1722 | P177: 271615.5386 | Q177: 242947.709 | R177: 217305.6431 | S177: 194369.9849 | T177: 173855.0849 | U177: 155505.4426 | V177: 139092.5247 | W177: 124411.9184 | X177: 111280.7856 | Y177: 1.661487934e+10 | Z177: 834918.5598
A178: =IF(ISBLANK(InfoPro!A170),"",InfoPro!A170) -> SC_1982_A1 | B178: =IF(ISBLANK(InfoPro!B170),"",InfoPro!B170) -> Solar Valledupar 3 | C178: =IF(ISBLANK(InfoPro!E170),"",InfoPro!E170) -> 19.9 | D178: =IF(ISBLANK(InfoPro!F170),"",InfoPro!F170) -> Solar FV | E178: =IF(ISBLANK(InfoPro!I170),"",YEAR(InfoPro!I170)-$G$3) -> 2 | F178: =IF(B178="","",VLOOKUP(D178,Tablas!$B$2:$E$13,2,FALSE)) -> 0.26 | G178: =IF(B178="","",VLOOKUP(D178,Tablas!$B$2:$G$13,6,FALSE)) -> 0 | H178: 45324.24 | I178: 5769.00524 | J178: 424347.6737 | K178: 379559.6366 | L178: 339498.7805 | M178: 303666.1722 | N178: 271615.5386 | O178: 242947.709 | P178: 217305.6431 | Q178: 194369.9849 | R178: 173855.0849 | S178: 155505.4426 | T178: 139092.5247 | U178: 124411.9184 | V178: 111280.7856 | W178: 99535.58645 | X178: 89030.04154 | Y178: 1.329271167e+10 | Z178: 667975.4607
A179: =IF(ISBLANK(InfoPro!A171),"",InfoPro!A171) -> SC_1982_A2 | B179: =IF(ISBLANK(InfoPro!B171),"",InfoPro!B171) -> Solar Valledupar 3 | C179: =IF(ISBLANK(InfoPro!E171),"",InfoPro!E171) -> 19.9 | D179: =IF(ISBLANK(InfoPro!F171),"",InfoPro!F171) -> Solar FV | E179: =IF(ISBLANK(InfoPro!I171),"",YEAR(InfoPro!I171)-$G$3) -> 2 | F179: =IF(B179="","",VLOOKUP(D179,Tablas!$B$2:$E$13,2,FALSE)) -> 0.26 | G179: =IF(B179="","",VLOOKUP(D179,Tablas!$B$2:$G$13,6,FALSE)) -> 0 | H179: 45324.24 | I179: 5769.00524 | J179: 424347.6737 | K179: 379559.6366 | L179: 339498.7805 | M179: 303666.1722 | N179: 271615.5386 | O179: 242947.709 | P179: 217305.6431 | Q179: 194369.9849 | R179: 173855.0849 | S179: 155505.4426 | T179: 139092.5247 | U179: 124411.9184 | V179: 111280.7856 | W179: 99535.58645 | X179: 89030.04154 | Y179: 1.329271167e+10 | Z179: 667975.4607
A180: =IF(ISBLANK(InfoPro!A172),"",InfoPro!A172) -> SC_1989_A1 | B180: =IF(ISBLANK(InfoPro!B172),"",InfoPro!B172) -> Solar Valledupar 1 | C180: =IF(ISBLANK(InfoPro!E172),"",InfoPro!E172) -> 19.9 | D180: =IF(ISBLANK(InfoPro!F172),"",InfoPro!F172) -> Solar FV | E180: =IF(ISBLANK(InfoPro!I172),"",YEAR(InfoPro!I172)-$G$3) -> 0 | F180: =IF(B180="","",VLOOKUP(D180,Tablas!$B$2:$E$13,2,FALSE)) -> 0.26 | G180: =IF(B180="","",VLOOKUP(D180,Tablas!$B$2:$G$13,6,FALSE)) -> 0 | H180: 45324.24 | I180: 5769.00524 | J180: 530402.3418 | K180: 474420.6992 | L180: 424347.6737 | M180: 379559.6366 | N180: 339498.7805 | O180: 303666.1722 | P180: 271615.5386 | Q180: 242947.709 | R180: 217305.6431 | S180: 194369.9849 | T180: 173855.0849 | U180: 155505.4426 | V180: 139092.5247 | W180: 124411.9184 | X180: 111280.7856 | Y180: 1.661487934e+10 | Z180: 834918.5598
